Workbook

Sheet DataSummer (hidden)
A1: Code LA Df E | B1: School Details Name (auto lookup) | C1: LA Ref | D1: Surname | E1: Forename | F1: DOB | G1: Start | H1: End | I1: =LastFY&" NC Year" -> 2019/20 NC Year | J1: =ThisFY&" NC Year" -> 2020/21 NC Year | K1: Funding LA | L1: Band | M1: Band Percentage | N1: Additional | O1: SENIF/Exceptional comments | P1: Notes for this financial year | Q1: Cost Centre
A2: 3021000 | B2: =VLOOKUP(A2,Schools!A:B,2,0) -> Brookhill Nursery | C2: 1125849 | D2: Surname | E2: Forename | F2: 2015-05-13 | I2: Nursery 2 | K2: Enfield | L2: N | M2: 1 | Q2: 0
A3: 3021000 | B3: =VLOOKUP(A3,Schools!A:B,2,0) -> Brookhill Nursery | C3: 1137569 | D3: Surname | E3: Forename | F3: 2015-11-09 | H3: 2020-07-21 | I3: Nursery 2 | K3: Barnet | L3: EXY | M3: 1 | N3: 1044.285714 | O3: Early years SENIF | Q3: 10265
A4: 3021001 | B4: =VLOOKUP(A4,Schools!A:B,2,0) -> Hampden Way Nursery | C4: 302290801 | D4: Surname | E4: Forename | F4: 2016-08-29 | H4: 2020-07-21 | I4: Nursery 2 | K4: Barnet | L4: EXY | M4: 1 | N4: 1305.357143 | O4: Early years SENIF | Q4: 10265
A5: 3021001 | B5: =VLOOKUP(A5,Schools!A:B,2,0) -> Hampden Way Nursery | C5: 1096060 | D5: Surname | E5: Forename | F5: 2015-11-05 | G5: 2020-03-27 | H5: 2020-08-31 | I5: Nursery 2 | K5: Barnet | L5: N | M5: 1 | Q5: 11439
A6: 3021001 | B6: =VLOOKUP(A6,Schools!A:B,2,0) -> Hampden Way Nursery | C6: 1126475 | D6: Surname | E6: Forename | F6: 2017-04-01 | G6: 2020-04-20 | H6: 2020-12-22 | I6: Nursery 2 | K6: Barnet | L6: EXY | M6: 1 | N6: 2917.86 | Q6: 10265
A7: 3021001 | B7: =VLOOKUP(A7,Schools!A:B,2,0) -> Hampden Way Nursery | C7: 1137365 | D7: Surname | E7: Forename | F7: 2016-01-17 | H7: 2020-07-21 | I7: Nursery 2 | K7: Barnet | L7: EXY | M7: 1 | N7: 1412.857143 | O7: Early years SENIF | Q7: 10265
A8: 3021002 | B8: =VLOOKUP(A8,Schools!A:B,2,0) -> Moss Hall Nursery | C8: 1114189 | D8: Surname | E8: Forename | F8: 2016-06-17 | G8: 2020-04-20 | H8: 2020-07-17 | I8: Nursery 2 | K8: Barnet | L8: EXY | M8: 1 | N8: 1243.928571 | O8: Early years SENIF - Amount shown based on full attendance please confirm when child attends | Q8: 10265
A9: 3021002 | B9: =VLOOKUP(A9,Schools!A:B,2,0) -> Moss Hall Nursery | C9: 302131202 | D9: Surname | E9: Forename | F9: 2016-12-13 | G9: 2020-03-02 | H9: 2020-07-17 | I9: Nursery 2 | K9: Barnet | L9: EXY | M9: 1 | N9: 2672.142857 | O9: Early years SENIF | Q9: 10265
A10: 3021002 | B10: =VLOOKUP(A10,Schools!A:B,2,0) -> Moss Hall Nursery | C10: 1115994 | D10: Surname | E10: Forename | F10: 2016-12-09 | G10: 2020-03-02 | H10: 2020-07-17 | I10: Nursery 2 | K10: Barnet | L10: EXY | M10: 1 | N10: 2672.142857 | O10: Early years SENIF | Q10: 10265
A11: 3021002 | B11: =VLOOKUP(A11,Schools!A:B,2,0) -> Moss Hall Nursery | C11: 1115993 | D11: Surname | E11: Forename | F11: 2016-12-09 | G11: 2020-03-02 | H11: 2020-07-17 | I11: Nursery 2 | K11: Barnet | L11: EXY | M11: 1 | N11: 2672.142857 | O11: Early years SENIF | Q11: 10265
A12: 3021003 | B12: =VLOOKUP(A12,Schools!A:B,2,0) -> St Margaret's Nursery | C12: 343887 | D12: Surname | E12: Forename | F12: 2016-10-26 | G12: 2020-04-20 | H12: 2020-12-19 | I12: Nursery 2 | K12: Barnet | L12: EXY | M12: 1 | N12: 3446.14 | O12: Early years SENIF - Amount shown based on full attendance please confirm when child attends | Q12: 10265
A13: 3021003 | B13: =VLOOKUP(A13,Schools!A:B,2,0) -> St Margaret's Nursery | C13: 1137601 | D13: Surname | E13: Forename | F13: 2016-04-19 | G13: 2020-04-20 | H13: 2020-07-17 | I13: Nursery 2 | K13: Barnet | L13: EXY | M13: 1 | N13: 1865.89 | O13: Early years SENIF - Amount shown based on full attendance please confirm when child attends | Q13: 10265
A14: 3021003 | B14: =VLOOKUP(A14,Schools!A:B,2,0) -> St Margaret's Nursery | C14: 1105717 | D14: Surname | E14: Forename | F14: 2016-03-01 | G14: 2020-04-15 | H14: 2020-08-31 | I14: Nursery 2 | K14: Barnet | L14: N | M14: 1 | Q14: 11439
A15: 3021003 | B15: =VLOOKUP(A15,Schools!A:B,2,0) -> St Margaret's Nursery | C15: 1137099 | D15: Surname | E15: Forename | F15: 2016-06-02 | H15: 2020-07-21 | I15: Nursery 2 | K15: Barnet | L15: EXY | M15: 1 | N15: 1305.357143 | O15: Early years SENIF | Q15: 10265
A16: 3021003 | B16: =VLOOKUP(A16,Schools!A:B,2,0) -> St Margaret's Nursery | C16: 1126144 | D16: Surname | E16: Forename | F16: 2017-07-23 | G16: 2020-04-20 | H16: 2020-12-19 | I16: Nursery 2 | K16: Barnet | L16: EXY | M16: 1 | N16: 2871.79 | O16: Early years SENIF - Amount shown based on full attendance please confirm when child attends | Q16: 10265
A17: 3021003 | B17: =VLOOKUP(A17,Schools!A:B,2,0) -> St Margaret's Nursery | C17: 1096059 | D17: Surname | E17: Forename | F17: 2015-12-22 | G17: 2020-04-20 | H17: 2020-07-17 | I17: Nursery 2 | K17: Barnet | L17: EXY | M17: 1 | N17: 2487.86 | O17: Early years SENIF - Amount shown based on full attendance please confirm when child attends | Q17: 10265
A18: 3021003 | B18: =VLOOKUP(A18,Schools!A:B,2,0) -> St Margaret's Nursery | C18: 1105879 | D18: Surname | E18: Forename | F18: 2016-01-16 | G18: 2020-02-10 | H18: 2020-08-31 | I18: Nursery 2 | K18: Barnet | L18: N | M18: 1 | Q18: 11439
A19: 3021003 | B19: =VLOOKUP(A19,Schools!A:B,2,0) -> St Margaret's Nursery | C19: 1125735 | D19: Surname | E19: Forename | F19: 2016-09-18 | I19: Nursery 1 | J19: Nursery 2 | K19: Barnet | L19: N | M19: 1 | Q19: 11439
A20: 3021100 | B20: =VLOOKUP(A20,Schools!A:B,2,0) -> Pavilion | C20: 173785 | D20: Surname | E20: Forename | F20: 2006-03-21 | I20: NC Year 9 | J20: NC Year 10 | K20: Barnet | L20: PavC | M20: 1 | Q20: 11425
A21: 3021100 | B21: =VLOOKUP(A21,Schools!A:B,2,0) -> Pavilion | C21: 208217 | D21: Surname | E21: Forename | F21: 2007-03-23 | I21: NC Year 8 | J21: NC Year 9 | K21: Barnet | L21: PavE | M21: 1 | Q21: 11425
A22: 3021100 | B22: =VLOOKUP(A22,Schools!A:B,2,0) -> Pavilion | C22: 316388 | D22: Surname | E22: Forename | F22: 2005-01-06 | I22: NC Year 10 | J22: NC Year 11 | K22: Barnet | L22: PavD | M22: 0.8 | P22: ! Day a week at Capel Manor with Grasvenor support | Q22: 11425
A23: 3021100 | B23: =VLOOKUP(A23,Schools!A:B,2,0) -> Pavilion | C23: 258886 | D23: Surname | E23: Forename | F23: 2004-01-21 | I23: NC Year 11 | K23: Barnet | L23: PavB | M23: 1 | Q23: 11425
A24: 3021100 | B24: =VLOOKUP(A24,Schools!A:B,2,0) -> Pavilion | C24: 208710 | D24: Surname | E24: Forename | F24: 2007-04-27 | I24: NC Year 8 | J24: NC Year 9 | K24: Barnet | L24: PavB | M24: 1 | Q24: 11425
A25: 3021100 | B25: =VLOOKUP(A25,Schools!A:B,2,0) -> Pavilion | C25: 127944 | D25: Surname | E25: Forename | F25: 2004-05-19 | I25: NC Year 11 | K25: Barnet | L25: PavC | M25: 1 | Q25: 11425
A26: 3021100 | B26: =VLOOKUP(A26,Schools!A:B,2,0) -> Pavilion | C26: 279735 | D26: Surname | E26: Forename | F26: 2009-05-23 | H26: 2020-08-31 | I26: NC Year 6 | K26: Barnet | L26: PavASS | M26: 1 | P26: Care panel 17.10.19 change of type to ARP | Q26: 11425
A27: 3021100 | B27: =VLOOKUP(A27,Schools!A:B,2,0) -> Pavilion | C27: 237602 | D27: Surname | E27: Forename | F27: 2008-07-11 | I27: NC Year 7 | J27: NC Year 8 | K27: Barnet | L27: PavD | M27: 1 | Q27: 11425
A28: 3021100 | B28: =VLOOKUP(A28,Schools!A:B,2,0) -> Pavilion | C28: 231919 | D28: Surname | E28: Forename | F28: 2007-05-03 | I28: NC Year 8 | J28: NC Year 9 | K28: Barnet | L28: PavD | M28: 1 | Q28: 11425
A29: 3021100 | B29: =VLOOKUP(A29,Schools!A:B,2,0) -> Pavilion | C29: Topups 47 | D29: PRU places – 47 @ 2900 | E29: PRU places – 47 @ 2900 | F29: 2004-01-01 | G29: 2020-04-01 | H29: 2021-03-31 | I29: NC Year 8 | J29: NC Year 9 | K29: Barnet | L29: PAV1 | M29: =47*100% -> 47 | P29: 136300 | Q29: 11425
A30: 3021100 | B30: =VLOOKUP(A30,Schools!A:B,2,0) -> Pavilion | C30: Topups 77 | D30: PRU places – 77 @ 8805 | E30: =D30 -> PRU places – 77 @ 8805 | F30: 2004-01-01 | G30: 2020-04-01 | H30: 2021-03-31 | I30: NC Year 8 | J30: NC Year 9 | K30: Barnet | L30: PAV2 | M30: =77*100% -> 77 | P30: 677985 | Q30: 11425
A31: 3021100 | B31: =VLOOKUP(A31,Schools!A:B,2,0) -> Pavilion | C31: Topups IncAut2020 | D31: PRU places –increase to 80 Autumn20 | E31: PRU places –increase to 80 Autumn20 | F31: 2004-01-01 | G31: 2020-09-01 | H31: 2021-03-31 | I31: NC Year 8 | J31: NC Year 9 | K31: Barnet | L31: PAV2 | M31: =3*1 -> 3 | P31: 15408.75 | Q31: 11425
A32: 3021100 | B32: =VLOOKUP(A32,Schools!A:B,2,0) -> Pavilion | C32: 122648 | D32: Surname | E32: Forename | F32: 2003-12-31 | I32: NC Year 11 | K32: Barnet | L32: PavD | M32: 1 | Q32: 11425
A33: 3021100 | B33: =VLOOKUP(A33,Schools!A:B,2,0) -> Pavilion | C33: 130247 | D33: Surname | E33: Forename | F33: 2004-03-09 | I33: NC Year 11 | K33: Barnet | L33: PavE | M33: 1 | Q33: 11425
A34: 3021102 | B34: =VLOOKUP(A34,Schools!A:B,2,0) -> Northgate | C34: 305349 | D34: Surname | E34: Forename | F34: 2003-06-11 | I34: NC Year 11 | K34: Barnet | L34: NorC | M34: 1 | Q34: 11425
A35: 3021102 | B35: =VLOOKUP(A35,Schools!A:B,2,0) -> Northgate | C35: 155578 | D35: Surname | E35: Forename | F35: 2005-08-20 | I35: NC Year 10 | J35: NC Year 11 | K35: Barnet | L35: NorE | M35: 1 | Q35: 11425
A36: 3022001 | B36: =VLOOKUP(A36,Schools!A:B,2,0) -> Etz Chaim Jewish Primary School | C36: 276063 | D36: Surname | E36: Forename | F36: 2008-09-20 | I36: NC Year 6 | K36: Barnet | L36: E | M36: 1 | Q36: 11443
A37: 3022001 | B37: =VLOOKUP(A37,Schools!A:B,2,0) -> Etz Chaim Jewish Primary School | C37: 1003783 | D37: Surname | E37: Forename | F37: 2011-07-22 | I37: NC Year 4 | J37: NC Year 5 | K37: Barnet | L37: D | M37: 1 | Q37: 11443
A38: 3022001 | B38: =VLOOKUP(A38,Schools!A:B,2,0) -> Etz Chaim Jewish Primary School | C38: 1069423 | D38: Surname | E38: Forename | F38: 2009-08-07 | I38: NC Year 5 | J38: NC Year 6 | K38: Enfield | L38: C | M38: 1 | Q38: 0
A39: 3022002 | B39: =VLOOKUP(A39,Schools!A:B,2,0) -> Barnfield School | C39: 274331 | D39: Surname | E39: Forename | F39: 2009-05-05 | I39: NC Year 5 | J39: NC Year 6 | K39: Barnet | L39: E | M39: 1 | Q39: 11431
A40: 3022002 | B40: =VLOOKUP(A40,Schools!A:B,2,0) -> Barnfield School | C40: 1052628 | D40: Surname | E40: Forename | F40: 2014-04-11 | I40: NC Year 1 | J40: NC Year 2 | K40: Barnet | L40: C | M40: 1 | Q40: 11431
A41: 3022002 | B41: =VLOOKUP(A41,Schools!A:B,2,0) -> Barnfield School | C41: 1002812 | D41: Surname | E41: Forename | F41: 2010-12-31 | I41: NC Year 4 | J41: NC Year 5 | K41: Barnet | L41: C | M41: 1 | Q41: 11431
A42: 3022002 | B42: =VLOOKUP(A42,Schools!A:B,2,0) -> Barnfield School | C42: 236778 | D42: Surname | E42: Forename | F42: 2008-08-02 | I42: NC Year 6 | K42: Barnet | L42: D | M42: 1 | Q42: 11431
A43: 3022002 | B43: =VLOOKUP(A43,Schools!A:B,2,0) -> Barnfield School | C43: 1124552 | D43: Surname | E43: Forename | F43: 2016-06-04 | G43: 2020-02-10 | H43: 2020-07-21 | I43: Nursery 2 | K43: Barnet | L43: EXY | M43: 1 | N43: 2572.32 | O43: Early years SENIF | Q43: 10265
A44: 3022002 | B44: =VLOOKUP(A44,Schools!A:B,2,0) -> Barnfield School | C44: 302130702 | D44: Surname | E44: Forename | F44: 2016-07-13 | H44: 2020-07-19 | I44: Nursery 2 | K44: Barnet | L44: EXY | M44: 1 | N44: 1727.678571 | O44: Early years SENIF | Q44: 10265
A45: 3022002 | B45: =VLOOKUP(A45,Schools!A:B,2,0) -> Barnfield School | C45: 276762 | D45: Surname | E45: Forename | F45: 2009-06-30 | I45: NC Year 6 | K45: Barnet | L45: C | M45: 1 | Q45: 11431
A46: 3022002 | B46: =VLOOKUP(A46,Schools!A:B,2,0) -> Barnfield School | C46: 1067795 | D46: Surname | E46: Forename | F46: 2014-08-21 | I46: NC Year 1 | J46: NC Year 2 | K46: Barnet | L46: D | M46: 1 | Q46: 11431
A47: 3022002 | B47: =VLOOKUP(A47,Schools!A:B,2,0) -> Barnfield School | C47: 251595 | D47: Surname | E47: Forename | F47: 2009-02-26 | I47: NC Year 6 | K47: Barnet | L47: E | M47: 1 | Q47: 11431
A48: 3022002 | B48: =VLOOKUP(A48,Schools!A:B,2,0) -> Barnfield School | C48: 1074093 | D48: Surname | E48: Forename | F48: 2014-12-01 | I48: Reception | J48: NC Year 1 | K48: Barnet | L48: C | M48: 1 | Q48: 11431
A49: 3022002 | B49: =VLOOKUP(A49,Schools!A:B,2,0) -> Barnfield School | C49: 1130491 | D49: Surname | E49: Forename | F49: 2016-06-27 | G49: 2020-02-10 | H49: 2020-07-21 | I49: Nursery 2 | K49: Barnet | L49: EXY | M49: 1 | N49: 2057.86 | O49: Early years SENIF | Q49: 10265
A50: 3022003 | B50: =VLOOKUP(A50,Schools!A:B,2,0) -> Bell Lane Primary School | C50: 1044920 | D50: Surname | E50: Forename | F50: 2014-03-21 | I50: NC Year 1 | J50: NC Year 2 | K50: Barnet | L50: C | M50: 1 | Q50: 11431
A51: 3022003 | B51: =VLOOKUP(A51,Schools!A:B,2,0) -> Bell Lane Primary School | C51: 1005428 | D51: Surname | E51: Forename | F51: 2011-06-08 | I51: NC Year 4 | J51: NC Year 5 | K51: Barnet | L51: B | M51: 1 | Q51: 11431
A52: 3022003 | B52: =VLOOKUP(A52,Schools!A:B,2,0) -> Bell Lane Primary School | C52: 1045518 | D52: Surname | E52: Forename | F52: 2014-01-29 | I52: NC Year 1 | J52: NC Year 2 | K52: Barnet | L52: D | M52: 1 | Q52: 11431
A53: 3022003 | B53: =VLOOKUP(A53,Schools!A:B,2,0) -> Bell Lane Primary School | C53: 1086945 | D53: Surname | E53: Forename | F53: 2015-06-29 | I53: Reception | J53: NC Year 1 | K53: Barnet | L53: C | M53: 1 | Q53: 11431
A54: 3022003 | B54: =VLOOKUP(A54,Schools!A:B,2,0) -> Bell Lane Primary School | C54: 1076700 | D54: Surname | E54: Forename | F54: 2013-05-01 | I54: NC Year 2 | J54: NC Year 3 | K54: Barnet | L54: C | M54: 1 | Q54: 11431
A55: 3022003 | B55: =VLOOKUP(A55,Schools!A:B,2,0) -> Bell Lane Primary School | C55: 1104637 | D55: Surname | E55: Forename | F55: 2014-08-02 | I55: NC Year 1 | J55: NC Year 2 | K55: Barnet | L55: D | M55: 1 | Q55: 11431
A56: 3022003 | B56: =VLOOKUP(A56,Schools!A:B,2,0) -> Bell Lane Primary School | C56: 1038606 | D56: Surname | E56: Forename | F56: 2011-12-31 | I56: NC Year 3 | J56: NC Year 4 | K56: Barnet | L56: C | M56: 1 | Q56: 11431
A57: 3022003 | B57: =VLOOKUP(A57,Schools!A:B,2,0) -> Bell Lane Primary School | C57: 1050663 | D57: Surname | E57: Forename | F57: 2014-04-01 | I57: NC Year 1 | J57: NC Year 2 | K57: Barnet | L57: D | M57: 1 | Q57: 11431
A58: 3022003 | B58: =VLOOKUP(A58,Schools!A:B,2,0) -> Bell Lane Primary School | C58: 1087847 | D58: Surname | E58: Forename | F58: 2015-08-05 | I58: Reception | J58: NC Year 1 | K58: Barnet | L58: D | M58: 1 | Q58: 11431
A59: 3022004 | B59: =VLOOKUP(A59,Schools!A:B,2,0) -> Rimon Jewish Primary School | C59: 1038283 | D59: Surname | E59: Forename | F59: 2011-12-01 | G59: 2020-04-16 | I59: NC Year 3 | J59: NC Year 4 | K59: Barnet | L59: C | M59: 1 | Q59: 11443
A60: 3022004 | B60: =VLOOKUP(A60,Schools!A:B,2,0) -> Rimon Jewish Primary School | C60: 298972 | D60: Surname | E60: Forename | F60: 2010-04-21 | I60: NC Year 5 | J60: NC Year 6 | K60: Barnet | L60: C | M60: 1 | Q60: 11443
A61: 3022004 | B61: =VLOOKUP(A61,Schools!A:B,2,0) -> Rimon Jewish Primary School | C61: 314233 | D61: Surname | E61: Forename | F61: 2010-08-16 | I61: NC Year 5 | J61: NC Year 6 | K61: Barnet | L61: C | M61: 1 | Q61: 11443
A62: 3022004 | B62: =VLOOKUP(A62,Schools!A:B,2,0) -> Rimon Jewish Primary School | C62: 1013075 | D62: Surname | E62: Forename | F62: 2008-05-25 | I62: NC Year 6 | K62: Barnet | L62: C | M62: 1 | Q62: 11443
A63: 3022004 | B63: =VLOOKUP(A63,Schools!A:B,2,0) -> Rimon Jewish Primary School | C63: 1031241 | D63: Surname | E63: Forename | F63: 2009-05-27 | I63: NC Year 6 | K63: Barnet | L63: B | M63: 1 | Q63: 11443
A64: 3022004 | B64: =VLOOKUP(A64,Schools!A:B,2,0) -> Rimon Jewish Primary School | C64: 315525 | D64: Surname | E64: Forename | F64: 2009-11-11 | I64: NC Year 5 | J64: NC Year 6 | K64: Westminster | L64: C | M64: 1 | Q64: 0
A65: 3022007 | B65: =VLOOKUP(A65,Schools!A:B,2,0) -> Brookland Junior School | C65: 1113505 | D65: Surname | E65: Forename | F65: 2012-06-11 | G65: 2020-03-12 | I65: NC Year 3 | J65: NC Year 4 | K65: Barnet | L65: D | M65: 1 | Q65: 11431
A66: 3022007 | B66: =VLOOKUP(A66,Schools!A:B,2,0) -> Brookland Junior School | C66: 294484 | D66: Surname | E66: Forename | F66: 2009-12-24 | I66: NC Year 5 | J66: NC Year 6 | K66: Barnet | L66: D | M66: 1 | Q66: 11431
A67: 3022007 | B67: =VLOOKUP(A67,Schools!A:B,2,0) -> Brookland Junior School | C67: 341355 | D67: Surname | E67: Forename | F67: 2010-11-28 | I67: NC Year 4 | J67: NC Year 5 | K67: Barnet | L67: D | M67: 1 | Q67: 11431
A68: 3022007 | B68: =VLOOKUP(A68,Schools!A:B,2,0) -> Brookland Junior School | C68: 303878 | D68: Surname | E68: Forename | F68: 2010-05-07 | I68: NC Year 5 | J68: NC Year 6 | K68: Barnet | L68: D | M68: 1 | Q68: 11431
A69: 3022007 | B69: =VLOOKUP(A69,Schools!A:B,2,0) -> Brookland Junior School | C69: 348702 | D69: Surname | E69: Forename | F69: 2011-04-05 | I69: NC Year 4 | J69: NC Year 5 | K69: Barnet | L69: C | M69: 1 | Q69: 11431
A70: 3022007 | B70: =VLOOKUP(A70,Schools!A:B,2,0) -> Brookland Junior School | C70: 1003568 | D70: Surname | E70: Forename | F70: 2011-02-11 | I70: NC Year 4 | J70: NC Year 5 | K70: Barnet | L70: D | M70: 1 | Q70: 11431
A71: 3022007 | B71: =VLOOKUP(A71,Schools!A:B,2,0) -> Brookland Junior School | C71: 210604 | D71: Surname | E71: Forename | F71: 2008-09-02 | I71: NC Year 6 | K71: Barnet | L71: E | M71: 1 | Q71: 11431
A72: 3022007 | B72: =VLOOKUP(A72,Schools!A:B,2,0) -> Brookland Junior School | C72: 1042195 | D72: Surname | E72: Forename | F72: 2012-06-14 | I72: NC Year 3 | J72: NC Year 4 | K72: Barnet | L72: D | M72: 1 | Q72: 11431
A73: 3022007 | B73: =VLOOKUP(A73,Schools!A:B,2,0) -> Brookland Junior School | C73: 1039457 | D73: Surname | E73: Forename | F73: 2012-03-06 | I73: NC Year 3 | J73: NC Year 4 | K73: Barnet | L73: C | M73: 1 | Q73: 11431
A74: 3022007 | B74: =VLOOKUP(A74,Schools!A:B,2,0) -> Brookland Junior School | C74: 280861 | D74: Surname | E74: Forename | F74: 2009-01-12 | I74: NC Year 6 | K74: Enfield | L74: B | M74: 1 | P74: Moved out of Barnet - please confirm if still attending | Q74: 0
A75: 3022008 | B75: =VLOOKUP(A75,Schools!A:B,2,0) -> Brookland Infant & Nursery School | C75: 1115240 | D75: Surname | E75: Forename | F75: 2012-10-11 | I75: NC Year 2 | J75: NC Year 3 | K75: Barnet | L75: C | M75: 1 | Q75: 11431
A76: 3022008 | B76: =VLOOKUP(A76,Schools!A:B,2,0) -> Brookland Infant & Nursery School | C76: 1100894 | D76: Surname | E76: Forename | F76: 2014-01-23 | I76: NC Year 1 | J76: NC Year 2 | K76: Barnet | L76: D | M76: 1 | Q76: 11431
A77: 3022008 | B77: =VLOOKUP(A77,Schools!A:B,2,0) -> Brookland Infant & Nursery School | C77: 1009094 | D77: Surname | E77: Forename | F77: 2013-03-21 | I77: NC Year 2 | J77: NC Year 3 | K77: Barnet | L77: C | M77: 1 | Q77: 11431
A78: 3022008 | B78: =VLOOKUP(A78,Schools!A:B,2,0) -> Brookland Infant & Nursery School | C78: 1121219 | D78: Surname | E78: Forename | F78: 2014-09-23 | I78: Reception | J78: NC Year 1 | K78: Barnet | L78: B | M78: 1 | Q78: 11431
A79: 3022008 | B79: =VLOOKUP(A79,Schools!A:B,2,0) -> Brookland Infant & Nursery School | C79: 1075863 | D79: Surname | E79: Forename | F79: 2013-05-05 | I79: NC Year 2 | J79: NC Year 3 | K79: Barnet | L79: D | M79: 1 | Q79: 11431
A80: 3022008 | B80: =VLOOKUP(A80,Schools!A:B,2,0) -> Brookland Infant & Nursery School | C80: 1093562 | D80: Surname | E80: Forename | F80: 2015-10-19 | H80: 2020-07-21 | I80: Nursery 2 | K80: Barnet | L80: EXY | M80: 1 | N80: 179.6785714 | O80: Early years SENIF | Q80: 10265
A81: 3022008 | B81: =VLOOKUP(A81,Schools!A:B,2,0) -> Brookland Infant & Nursery School | C81: 1060964 | D81: Surname | E81: Forename | F81: 2013-10-21 | I81: NC Year 1 | J81: NC Year 2 | K81: Barnet | L81: E | M81: 1 | P81: Funding increased to band E from D to end of Autumn Term. Decision to be made at OCT AR | Q81: 11431
A82: 3022008 | B82: =VLOOKUP(A82,Schools!A:B,2,0) -> Brookland Infant & Nursery School | C82: 302220108 | D82: Surname | E82: Forename | F82: 2016-01-22 | H82: 2020-07-21 | I82: Nursery 2 | K82: Barnet | L82: EXY | M82: 1 | N82: 3532.142857 | O82: Early years SENIF | Q82: 10265
A83: 3022008 | B83: =VLOOKUP(A83,Schools!A:B,2,0) -> Brookland Infant & Nursery School | C83: 1084008 | D83: Surname | E83: Forename | F83: 2015-01-22 | I83: Reception | J83: NC Year 1 | K83: Barnet | L83: C | M83: 1 | Q83: 11431
A84: 3022008 | B84: =VLOOKUP(A84,Schools!A:B,2,0) -> Brookland Infant & Nursery School | C84: 1060773 | D84: Surname | E84: Forename | F84: 2012-02-13 | I84: NC Year 2 | J84: NC Year 3 | K84: Barnet | L84: C | M84: 1 | Q84: 11431
A85: 3022008 | B85: =VLOOKUP(A85,Schools!A:B,2,0) -> Brookland Infant & Nursery School | C85: 1086579 | D85: Surname | E85: Forename | F85: 2015-04-13 | I85: Reception | J85: NC Year 1 | K85: Barnet | L85: C | M85: 1 | Q85: 11431
A86: 3022008 | B86: =VLOOKUP(A86,Schools!A:B,2,0) -> Brookland Infant & Nursery School | C86: 1093873 | D86: Surname | E86: Forename | F86: 2014-04-30 | G86: 2020-01-01 | I86: NC Year 1 | J86: NC Year 2 | K86: Barnet | L86: C | M86: 1 | P86: End dated 31/12/19 in error - back payment | Q86: 11431
A87: 3022008 | B87: =VLOOKUP(A87,Schools!A:B,2,0) -> Brookland Infant & Nursery School | C87: 1049430 | D87: Surname | E87: Forename | F87: 2012-11-17 | I87: NC Year 2 | J87: NC Year 3 | K87: Barnet | L87: C | M87: 1 | Q87: 11431
A88: 3022008 | B88: =VLOOKUP(A88,Schools!A:B,2,0) -> Brookland Infant & Nursery School | C88: 1090403 | D88: Surname | E88: Forename | F88: 2015-05-20 | I88: Reception | J88: NC Year 1 | K88: Barnet | L88: C | M88: 1 | Q88: 11431
A89: 3022008 | B89: =VLOOKUP(A89,Schools!A:B,2,0) -> Brookland Infant & Nursery School | C89: 1125952 | D89: Surname | E89: Forename | F89: 2015-01-16 | I89: Reception | J89: NC Year 1 | K89: Barnet | L89: D | M89: 1 | P89: Panel minutes 20.2.20 band D for one year only - revert to C in FY 2021/22 | Q89: 11431
A90: 3022008 | B90: =VLOOKUP(A90,Schools!A:B,2,0) -> Brookland Infant & Nursery School | C90: 1127036 | D90: Surname | E90: Forename | F90: 2012-11-13 | I90: NC Year 2 | J90: NC Year 3 | K90: Barnet | L90: D | M90: 1 | Q90: 11431
A91: 3022009 | B91: =VLOOKUP(A91,Schools!A:B,2,0) -> Brunswick Park Primary & Nursery School | C91: 314107 | D91: Surname | E91: Forename | F91: 2009-12-13 | I91: NC Year 5 | J91: NC Year 6 | K91: Barnet | L91: B | M91: 1 | Q91: 11431
A92: 3022009 | B92: =VLOOKUP(A92,Schools!A:B,2,0) -> Brunswick Park Primary & Nursery School | C92: 1046652 | D92: Surname | E92: Forename | F92: 2013-01-25 | I92: NC Year 2 | J92: NC Year 3 | K92: Enfield | L92: u | M92: 1 | Q92: 0
A93: 3022009 | B93: =VLOOKUP(A93,Schools!A:B,2,0) -> Brunswick Park Primary & Nursery School | C93: 1125682 | D93: Surname | E93: Forename | F93: 2008-10-17 | G93: 2020-04-08 | I93: NC Year 2 | J93: NC Year 3 | K93: Hertfordshire | L93: B | M93: 1 | Q93: 0
A94: 3022009 | B94: =VLOOKUP(A94,Schools!A:B,2,0) -> Brunswick Park Primary & Nursery School | C94: 1036478 | D94: Surname | E94: Forename | F94: 2011-09-16 | I94: NC Year 3 | J94: NC Year 4 | K94: Barnet | L94: D | M94: 1 | Q94: 11431
A95: 3022009 | B95: =VLOOKUP(A95,Schools!A:B,2,0) -> Brunswick Park Primary & Nursery School | C95: 315212 | D95: Surname | E95: Forename | F95: 2010-06-27 | I95: NC Year 5 | J95: NC Year 6 | K95: Barnet | L95: C | M95: 1 | Q95: 11431
A96: 3022009 | B96: =VLOOKUP(A96,Schools!A:B,2,0) -> Brunswick Park Primary & Nursery School | C96: 274262 | D96: Surname | E96: Forename | F96: 2008-09-05 | I96: NC Year 6 | K96: Barnet | L96: B | M96: 1 | Q96: 11431
A97: 3022009 | B97: =VLOOKUP(A97,Schools!A:B,2,0) -> Brunswick Park Primary & Nursery School | C97: 1110774 | D97: Surname | E97: Forename | F97: 2016-02-29 | G97: 2020-02-03 | H97: 2020-07-19 | I97: Nursery 2 | K97: Barnet | L97: EXY | M97: 1 | N97: 2134.64 | O97: Early years SENIF | Q97: 10265
A98: 3022009 | B98: =VLOOKUP(A98,Schools!A:B,2,0) -> Brunswick Park Primary & Nursery School | C98: 1036497 | D98: Surname | E98: Forename | F98: 2011-12-13 | I98: NC Year 3 | J98: NC Year 4 | K98: Barnet | L98: C | M98: 1 | Q98: 11431
A99: 3022009 | B99: =VLOOKUP(A99,Schools!A:B,2,0) -> Brunswick Park Primary & Nursery School | C99: 314756 | D99: Surname | E99: Forename | F99: 2010-07-23 | I99: NC Year 5 | J99: NC Year 6 | K99: Barnet | L99: A | M99: 1 | Q99: 11431
A100: 3022009 | B100: =VLOOKUP(A100,Schools!A:B,2,0) -> Brunswick Park Primary & Nursery School | C100: 1077371 | D100: Surname | E100: Forename | F100: 2013-12-11 | I100: NC Year 1 | J100: NC Year 2 | K100: Barnet | L100: D | M100: 1 | Q100: 11431
A101: 3022009 | B101: =VLOOKUP(A101,Schools!A:B,2,0) -> Brunswick Park Primary & Nursery School | C101: 1030651 | D101: Surname | E101: Forename | F101: 2013-05-17 | I101: NC Year 2 | J101: NC Year 3 | K101: Barnet | L101: F | M101: 1 | P101: Tribunal orders 36.6 hours to be paid - band F £16695 | Q101: 11431
A102: 3022009 | B102: =VLOOKUP(A102,Schools!A:B,2,0) -> Brunswick Park Primary & Nursery School | C102: 1123463 | D102: Surname | E102: Forename | F102: 2015-05-30 | I102: Reception | J102: NC Year 1 | K102: Barnet | L102: C | M102: 1 | Q102: 11431
A103: 3022009 | B103: =VLOOKUP(A103,Schools!A:B,2,0) -> Brunswick Park Primary & Nursery School | C103: 1055070 | D103: Surname | E103: Forename | F103: 2013-03-22 | I103: NC Year 2 | J103: NC Year 3 | K103: Barnet | L103: D | M103: 1 | Q103: 11431
A104: 3022010 | B104: =VLOOKUP(A104,Schools!A:B,2,0) -> Child's Hill Academy | C104: 276474 | D104: Surname | E104: Forename | F104: 2009-03-07 | I104: NC Year 6 | K104: Barnet | L104: ARPCHIASD | M104: 1 | Q104: 11422
A105: 3022010 | B105: =VLOOKUP(A105,Schools!A:B,2,0) -> Child's Hill Academy | C105: 301406 | D105: Surname | E105: Forename | F105: 2010-02-08 | I105: NC Year 5 | J105: NC Year 6 | K105: Barnet | L105: ARPCHIASD | M105: 1 | Q105: 11422
A106: 3022010 | B106: =VLOOKUP(A106,Schools!A:B,2,0) -> Child's Hill Academy | C106: 1121865 | D106: Surname | E106: Forename | F106: 2015-02-04 | I106: Reception | J106: NC Year 1 | K106: Barnet | L106: ARPCHIASD | M106: 1 | Q106: 11422
A107: 3022010 | B107: =VLOOKUP(A107,Schools!A:B,2,0) -> Child's Hill Academy | C107: 1072504 | D107: Surname | E107: Forename | F107: 2012-12-16 | I107: NC Year 2 | J107: NC Year 3 | K107: Barnet | L107: D | M107: 1 | Q107: 11443
A108: 3022010 | B108: =VLOOKUP(A108,Schools!A:B,2,0) -> Child's Hill Academy | C108: 1062497 | D108: Surname | E108: Forename | F108: 2014-05-29 | I108: NC Year 1 | J108: NC Year 2 | K108: Barnet | L108: ARPCHIASD | M108: 1 | Q108: 11422
A109: 3022010 | B109: =VLOOKUP(A109,Schools!A:B,2,0) -> Child's Hill Academy | C109: 1117142 | D109: Surname | E109: Forename | F109: 2015-07-21 | I109: Reception | J109: NC Year 1 | K109: Barnet | L109: ARPCHIASD | M109: 1 | Q109: 11422
A110: 3022010 | B110: =VLOOKUP(A110,Schools!A:B,2,0) -> Child's Hill Academy | C110: 1029545 | D110: Surname | E110: Forename | F110: 2009-04-25 | I110: NC Year 6 | K110: Barnet | L110: C | M110: 1 | Q110: 11443
A111: 3022010 | B111: =VLOOKUP(A111,Schools!A:B,2,0) -> Child's Hill Academy | C111: 1061072 | D111: Surname | E111: Forename | F111: 2014-08-20 | I111: NC Year 1 | J111: NC Year 2 | K111: Barnet | L111: B | M111: 1 | Q111: 11443
A112: 3022010 | B112: =VLOOKUP(A112,Schools!A:B,2,0) -> Child's Hill Academy | C112: 349301 | D112: Surname | E112: Forename | F112: 2010-10-18 | I112: NC Year 4 | J112: NC Year 5 | K112: Barnet | L112: B | M112: 1 | Q112: 11443
A113: 3022010 | B113: =VLOOKUP(A113,Schools!A:B,2,0) -> Child's Hill Academy | C113: 1106455 | D113: Surname | E113: Forename | F113: 2014-06-30 | I113: NC Year 1 | J113: NC Year 2 | K113: Barnet | L113: ARPCHIASD | M113: 1 | Q113: 11422
A114: 3022010 | B114: =VLOOKUP(A114,Schools!A:B,2,0) -> Child's Hill Academy | C114: 1114293 | D114: Surname | E114: Forename | F114: 2015-12-22 | H114: 2020-07-21 | I114: Nursery 2 | K114: Barnet | L114: EXY | M114: 1 | N114: 2119.285714 | O114: Early years SENIF | Q114: 10265
A115: 3022010 | B115: =VLOOKUP(A115,Schools!A:B,2,0) -> Child's Hill Academy | C115: 1037633 | D115: Surname | E115: Forename | F115: 2012-08-09 | I115: NC Year 3 | J115: NC Year 4 | K115: Barnet | L115: ARPCHIASD | M115: 1 | Q115: 11422
A116: 3022010 | B116: =VLOOKUP(A116,Schools!A:B,2,0) -> Child's Hill Academy | C116: 348689 | D116: Surname | E116: Forename | F116: 2012-02-04 | I116: NC Year 3 | J116: NC Year 4 | K116: Barnet | L116: ARPCHIASD | M116: 1 | Q116: 11422
A117: 3022010 | B117: =VLOOKUP(A117,Schools!A:B,2,0) -> Child's Hill Academy | C117: 274530 | D117: Surname | E117: Forename | F117: 2009-07-20 | I117: NC Year 6 | K117: Barnet | L117: D | M117: 1 | Q117: 11443
A118: 3022010 | B118: =VLOOKUP(A118,Schools!A:B,2,0) -> Child's Hill Academy | C118: 1055490 | D118: Surname | E118: Forename | F118: 2012-09-05 | I118: NC Year 2 | J118: NC Year 3 | K118: Barnet | L118: ARPCHIASD | M118: 1 | Q118: 11422
A119: 3022010 | B119: =VLOOKUP(A119,Schools!A:B,2,0) -> Child's Hill Academy | C119: 247335 | D119: Surname | E119: Forename | F119: 2009-08-09 | I119: NC Year 6 | K119: Barnet | L119: E | M119: 1 | P119: Panel minutes 3.10.19 refer to ARP/Spec panel | Q119: 11443
A120: 3022010 | B120: =VLOOKUP(A120,Schools!A:B,2,0) -> Child's Hill Academy | C120: 1026657 | D120: Surname | E120: Forename | F120: 2011-01-06 | I120: NC Year 4 | J120: NC Year 5 | K120: Barnet | L120: D | M120: 1 | Q120: 11443
A121: 3022010 | B121: =VLOOKUP(A121,Schools!A:B,2,0) -> Child's Hill Academy | C121: 1027037 | D121: Surname | E121: Forename | F121: 2009-12-16 | I121: NC Year 5 | J121: NC Year 6 | K121: Barnet | L121: ARPCHIASD | M121: 1 | Q121: 11422
A122: 3022010 | B122: =VLOOKUP(A122,Schools!A:B,2,0) -> Child's Hill Academy | C122: 315893 | D122: Surname | E122: Forename | F122: 2010-05-23 | I122: NC Year 5 | J122: NC Year 6 | K122: Barnet | L122: ARPCHIASD | M122: 1 | Q122: 11422
A123: 3022010 | B123: =VLOOKUP(A123,Schools!A:B,2,0) -> Child's Hill Academy | C123: 1003594 | D123: Surname | E123: Forename | F123: 2011-05-03 | I123: NC Year 4 | J123: NC Year 5 | K123: Barnet | L123: ARPCHIASD | M123: 1 | Q123: 11422
A124: 3022011 | B124: =VLOOKUP(A124,Schools!A:B,2,0) -> Church Hill Primary School | C124: 279141 | D124: Surname | E124: Forename | F124: 2009-08-27 | I124: NC Year 6 | K124: Barnet | L124: B | M124: 1 | Q124: 11431
A125: 3022011 | B125: =VLOOKUP(A125,Schools!A:B,2,0) -> Church Hill Primary School | C125: 295044 | D125: Surname | E125: Forename | F125: 2010-08-22 | I125: NC Year 5 | J125: NC Year 6 | K125: Barnet | L125: E | M125: 1 | Q125: 11431
A126: 3022011 | B126: =VLOOKUP(A126,Schools!A:B,2,0) -> Church Hill Primary School | C126: 277711 | D126: Surname | E126: Forename | F126: 2009-02-20 | I126: NC Year 6 | K126: Barnet | L126: C | M126: 1 | Q126: 11431
A127: 3022014 | B127: =VLOOKUP(A127,Schools!A:B,2,0) -> Colindale School | C127: 274522 | D127: Surname | E127: Forename | F127: 2009-05-22 | I127: NC Year 6 | K127: Barnet | L127: D | M127: 1 | Q127: 11431
A128: 3022014 | B128: =VLOOKUP(A128,Schools!A:B,2,0) -> Colindale School | C128: 1009204 | D128: Surname | E128: Forename | F128: 2013-04-30 | I128: NC Year 2 | J128: NC Year 3 | K128: Barnet | L128: D | M128: 1 | Q128: 11431
A129: 3022014 | B129: =VLOOKUP(A129,Schools!A:B,2,0) -> Colindale School | C129: 1004713 | D129: Surname | E129: Forename | F129: 2011-04-25 | I129: NC Year 4 | J129: NC Year 5 | K129: Barnet | L129: C | M129: 1 | Q129: 11431
A130: 3022014 | B130: =VLOOKUP(A130,Schools!A:B,2,0) -> Colindale School | C130: 1105636 | D130: Surname | E130: Forename | F130: 2014-12-12 | I130: Reception | J130: NC Year 1 | K130: Barnet | L130: C | M130: 1 | Q130: 11431
A131: 3022014 | B131: =VLOOKUP(A131,Schools!A:B,2,0) -> Colindale School | C131: 1040947 | D131: Surname | E131: Forename | F131: 2012-04-02 | I131: NC Year 3 | J131: NC Year 4 | K131: Barnet | L131: D | M131: 1 | Q131: 11431
A132: 3022014 | B132: =VLOOKUP(A132,Schools!A:B,2,0) -> Colindale School | C132: 1000825 | D132: Surname | E132: Forename | F132: 2012-10-19 | I132: NC Year 3 | J132: NC Year 4 | K132: Barnet | L132: ARPCOLPD | M132: 1 | Q132: 11432
A133: 3022014 | B133: =VLOOKUP(A133,Schools!A:B,2,0) -> Colindale School | C133: 1061609 | D133: Surname | E133: Forename | F133: 2010-11-09 | I133: NC Year 4 | J133: NC Year 5 | K133: Barnet | L133: ARPCOLPD | M133: 1 | Q133: 11432
A134: 3022014 | B134: =VLOOKUP(A134,Schools!A:B,2,0) -> Colindale School | C134: 1080043 | D134: Surname | E134: Forename | F134: 2015-03-08 | I134: Reception | J134: NC Year 1 | K134: Barnet | L134: C | M134: 1 | Q134: 11431
A135: 3022014 | B135: =VLOOKUP(A135,Schools!A:B,2,0) -> Colindale School | C135: 1001176 | D135: Surname | E135: Forename | F135: 2011-10-26 | I135: NC Year 3 | J135: NC Year 4 | K135: Barnet | L135: D | M135: 1 | Q135: 11431
A136: 3022014 | B136: =VLOOKUP(A136,Schools!A:B,2,0) -> Colindale School | C136: 276555 | D136: Surname | E136: Forename | F136: 2008-11-03 | I136: NC Year 6 | K136: Barnet | L136: C | M136: 1 | Q136: 11431
A137: 3022014 | B137: =VLOOKUP(A137,Schools!A:B,2,0) -> Colindale School | C137: 270616 | D137: Surname | E137: Forename | F137: 2010-11-02 | I137: NC Year 4 | J137: NC Year 5 | K137: Barnet | L137: ARPCOLPD | M137: 1 | Q137: 11432
A138: 3022014 | B138: =VLOOKUP(A138,Schools!A:B,2,0) -> Colindale School | C138: 1124163 | D138: Surname | E138: Forename | F138: 2015-11-10 | G138: 2020-01-06 | H138: 2020-07-17 | I138: Nursery 2 | K138: Barnet | L138: EXY | M138: 1 | N138: 2533.928571 | O138: Early years SENIF - Amount shown based on full attendance please confirm when child attends. School confirms on role? | Q138: 10265
A139: 3022014 | B139: =VLOOKUP(A139,Schools!A:B,2,0) -> Colindale School | C139: 1104903 | D139: Surname | E139: Forename | F139: 2013-10-13 | I139: NC Year 1 | J139: NC Year 2 | K139: Barnet | L139: E | M139: 1 | Q139: 11431
A140: 3022014 | B140: =VLOOKUP(A140,Schools!A:B,2,0) -> Colindale School | C140: 294508 | D140: Surname | E140: Forename | F140: 2009-10-27 | I140: NC Year 5 | J140: NC Year 6 | K140: Barnet | L140: D | M140: 1 | Q140: 11431
A141: 3022014 | B141: =VLOOKUP(A141,Schools!A:B,2,0) -> Colindale School | C141: 1035153 | D141: Surname | E141: Forename | F141: 2012-07-17 | I141: NC Year 3 | J141: NC Year 4 | K141: Barnet | L141: ARPCOLPD | M141: 1 | Q141: 11432
A142: 3022014 | B142: =VLOOKUP(A142,Schools!A:B,2,0) -> Colindale School | C142: 1081859 | D142: Surname | E142: Forename | F142: 2009-05-29 | I142: NC Year 6 | K142: Barnet | L142: ARPCOLPD | M142: 1 | Q142: 11432
A143: 3022014 | B143: =VLOOKUP(A143,Schools!A:B,2,0) -> Colindale School | C143: 257322 | D143: Surname | E143: Forename | F143: 2008-12-15 | I143: NC Year 6 | K143: Barnet | L143: ARPCOLPD | M143: 1 | Q143: 11432
A144: 3022014 | B144: =VLOOKUP(A144,Schools!A:B,2,0) -> Colindale School | C144: 338332 | D144: Surname | E144: Forename | F144: 2010-10-18 | I144: NC Year 4 | J144: NC Year 5 | K144: Barnet | L144: D | M144: 1 | Q144: 11431
A145: 3022014 | B145: =VLOOKUP(A145,Schools!A:B,2,0) -> Colindale School | C145: 251875 | D145: Surname | E145: Forename | F145: 2010-04-27 | I145: NC Year 5 | J145: NC Year 6 | K145: Barnet | L145: ARPCOLPD | M145: 1 | Q145: 11432
A146: 3022014 | B146: =VLOOKUP(A146,Schools!A:B,2,0) -> Colindale School | C146: 1051610 | D146: Surname | E146: Forename | F146: 2012-11-12 | I146: NC Year 2 | J146: NC Year 3 | K146: Barnet | L146: ARPCOLPD | M146: 1 | Q146: 11432
A147: 3022014 | B147: =VLOOKUP(A147,Schools!A:B,2,0) -> Colindale School | C147: 1094583 | D147: Surname | E147: Forename | F147: 2011-07-13 | I147: NC Year 4 | J147: NC Year 5 | K147: Barnet | L147: ARPCOLPD | M147: 1 | Q147: 11432
A148: 3022015 | B148: =VLOOKUP(A148,Schools!A:B,2,0) -> Coppetts Wood | C148: 1122698 | D148: Surname | E148: Forename | F148: 2015-02-04 | I148: Reception | J148: NC Year 1 | K148: Barnet | L148: ARPCOPASD | M148: 1 | Q148: 11432
A149: 3022015 | B149: =VLOOKUP(A149,Schools!A:B,2,0) -> Coppetts Wood | C149: 275510 | D149: Surname | E149: Forename | F149: 2009-08-17 | I149: NC Year 6 | K149: Barnet | L149: D | M149: 1 | Q149: 11431
A150: 3022015 | B150: =VLOOKUP(A150,Schools!A:B,2,0) -> Coppetts Wood | C150: 1137778 | D150: Surname | E150: Forename | F150: 2016-06-01 | G150: 2020-02-03 | H150: 2020-07-19 | I150: Nursery 2 | K150: Barnet | L150: EXY | M150: 1 | N150: 2134.64 | O150: Early years SENIF | Q150: 10265
A151: 3022015 | B151: =VLOOKUP(A151,Schools!A:B,2,0) -> Coppetts Wood | C151: 297766 | D151: Surname | E151: Forename | F151: 2010-04-12 | I151: NC Year 5 | J151: NC Year 6 | K151: Barnet | L151: ARPCOPSPL | M151: 1 | Q151: 11432
A152: 3022015 | B152: =VLOOKUP(A152,Schools!A:B,2,0) -> Coppetts Wood | C152: 297766 | D152: Surname | E152: Forename | F152: 2010-04-12 | I152: NC Year 5 | J152: NC Year 6 | K152: Barnet | L152: ARPAD | M152: 1 | N152: 6901 | P152: Additional £6901 pa - confirmed continuing into 2016/17 | Q152: 11432
A153: 3022015 | B153: =VLOOKUP(A153,Schools!A:B,2,0) -> Coppetts Wood | C153: 1044921 | D153: Surname | E153: Forename | F153: 2014-03-20 | I153: NC Year 1 | J153: NC Year 2 | K153: Barnet | L153: ARPCOPASD | M153: 1 | Q153: 11432
A154: 3022015 | B154: =VLOOKUP(A154,Schools!A:B,2,0) -> Coppetts Wood | C154: 1078989 | D154: Surname | E154: Forename | F154: 2012-09-08 | I154: NC Year 2 | J154: NC Year 3 | K154: Haringey | L154: D | M154: 1 | Q154: 0
A155: 3022015 | B155: =VLOOKUP(A155,Schools!A:B,2,0) -> Coppetts Wood | C155: 1116671 | D155: Surname | E155: Forename | F155: 2015-01-20 | I155: Reception | J155: NC Year 1 | K155: Haringey | L155: E | M155: 1 | Q155: 0
A156: 3022015 | B156: =VLOOKUP(A156,Schools!A:B,2,0) -> Coppetts Wood | C156: 315856 | D156: Surname | E156: Forename | F156: 2010-05-28 | I156: NC Year 5 | J156: NC Year 6 | K156: Hackney | L156: Level 3 | M156: 1 | Q156: 0
A157: 3022015 | B157: =VLOOKUP(A157,Schools!A:B,2,0) -> Coppetts Wood | C157: 1068157 | D157: Surname | E157: Forename | F157: 2013-09-02 | I157: NC Year 1 | J157: NC Year 2 | K157: Barnet | L157: D | M157: 1 | Q157: 11431
A158: 3022015 | B158: =VLOOKUP(A158,Schools!A:B,2,0) -> Coppetts Wood | C158: 1043105 | D158: Surname | E158: Forename | F158: 2012-01-04 | I158: NC Year 3 | J158: NC Year 4 | K158: Haringey | L158: C | M158: 1 | Q158: 0
A159: 3022015 | B159: =VLOOKUP(A159,Schools!A:B,2,0) -> Coppetts Wood | C159: 274744 | D159: Surname | E159: Forename | F159: 2009-07-22 | I159: NC Year 6 | K159: Barnet | L159: ARPCOPSPL | M159: 1 | Q159: 11432
A160: 3022015 | B160: =VLOOKUP(A160,Schools!A:B,2,0) -> Coppetts Wood | C160: 274746 | D160: Surname | E160: Forename | F160: 2009-07-22 | I160: NC Year 6 | K160: Barnet | L160: ARPCOPSPL | M160: 1 | Q160: 11432
A161: 3022015 | B161: =VLOOKUP(A161,Schools!A:B,2,0) -> Coppetts Wood | C161: 1096140 | D161: Surname | E161: Forename | F161: 2015-09-10 | H161: 2020-07-21 | I161: Nursery 2 | K161: Barnet | L161: EXY | M161: 1 | N161: 2459.855687 | O161: Early years SENIF | Q161: 10265
A162: 3022015 | B162: =VLOOKUP(A162,Schools!A:B,2,0) -> Coppetts Wood | C162: 1096140 | D162: Surname | E162: Forename | F162: 2015-09-10 | G162: 2020-09-01 | J162: Reception | K162: Barnet | L162: C | M162: 1 | Q162: 11431
A163: 3022015 | B163: =VLOOKUP(A163,Schools!A:B,2,0) -> Coppetts Wood | C163: 1107022 | D163: Surname | E163: Forename | F163: 2014-05-05 | I163: NC Year 1 | J163: NC Year 2 | K163: Haringey | L163: E | M163: 1 | Q163: 0
A164: 3022015 | B164: =VLOOKUP(A164,Schools!A:B,2,0) -> Coppetts Wood | C164: 1114992 | D164: Surname | E164: Forename | F164: 2015-06-24 | I164: Reception | J164: NC Year 1 | K164: Barnet | L164: ARPCOPASD | M164: 1 | Q164: 11432
A165: 3022015 | B165: =VLOOKUP(A165,Schools!A:B,2,0) -> Coppetts Wood | C165: 313502 | D165: Surname | E165: Forename | F165: 2010-08-19 | I165: NC Year 5 | J165: NC Year 6 | K165: Barnet | L165: C | M165: 1 | Q165: 11431
A166: 3022015 | B166: =VLOOKUP(A166,Schools!A:B,2,0) -> Coppetts Wood | C166: 1124981 | D166: Surname | E166: Forename | F166: 2015-01-07 | I166: Reception | J166: NC Year 1 | K166: Haringey | L166: D | M166: 1 | Q166: 0
A167: 3022015 | B167: =VLOOKUP(A167,Schools!A:B,2,0) -> Coppetts Wood | C167: 1075477 | D167: Surname | E167: Forename | F167: 2013-09-30 | I167: NC Year 1 | J167: NC Year 2 | K167: Barnet | L167: ARPCOPASD | M167: 1 | Q167: 11432
A168: 3022015 | B168: =VLOOKUP(A168,Schools!A:B,2,0) -> Coppetts Wood | C168: 300223 | D168: Surname | E168: Forename | F168: 2009-10-07 | H168: 2020-04-28 | I168: NC Year 5 | J168: NC Year 6 | K168: Bedfordshire | L168: ARPCOPSPL | M168: 1 | P168: SEN File to Barnet 28.4.20 | Q168: 0
A169: 3022015 | B169: =VLOOKUP(A169,Schools!A:B,2,0) -> Coppetts Wood | C169: 300223 | D169: Surname | E169: Forename | F169: 2009-10-07 | G169: 2020-04-29 | I169: NC Year 5 | J169: NC Year 6 | K169: Barnet | L169: ARPCOPSPL | M169: 1 | Q169: 11432
A170: 3022016 | B170: =VLOOKUP(A170,Schools!A:B,2,0) -> Courtland School | C170: 338320 | D170: Surname | E170: Forename | F170: 2010-12-13 | I170: NC Year 4 | J170: NC Year 5 | K170: Barnet | L170: I | M170: 1 | P170: I banding E mail CC cook - Tribunal order - e mail | Q170: 11431
A171: 3022016 | B171: =VLOOKUP(A171,Schools!A:B,2,0) -> Courtland School | C171: 311026 | D171: Surname | E171: Forename | F171: 2010-05-14 | I171: NC Year 5 | J171: NC Year 6 | K171: Barnet | L171: C | M171: 1 | Q171: 11431
A172: 3022016 | B172: =VLOOKUP(A172,Schools!A:B,2,0) -> Courtland School | C172: 1042415 | D172: Surname | E172: Forename | F172: 2014-03-25 | I172: NC Year 1 | J172: NC Year 2 | K172: Barnet | L172: D | M172: 1 | P172: Panel 26/3/20 agreed to increase in funding - awaiting further input as to amount. E mail LO 15/05/20 confirms band D | Q172: 11431
A173: 3022016 | B173: =VLOOKUP(A173,Schools!A:B,2,0) -> Courtland School | C173: 1135528 | D173: Surname | E173: Forename | F173: 2015-10-07 | G173: 2020-09-01 | J173: Reception | K173: Barnet | L173: D | M173: 1 | Q173: 11431
A174: 3022016 | B174: =VLOOKUP(A174,Schools!A:B,2,0) -> Courtland School | C174: 1116428 | D174: Surname | E174: Forename | F174: 2014-01-31 | I174: Reception | J174: NC Year 1 | K174: Barnet | L174: D | M174: 1 | Q174: 11431
A175: 3022016 | B175: =VLOOKUP(A175,Schools!A:B,2,0) -> Courtland School | C175: 1003952 | D175: Surname | E175: Forename | F175: 2011-02-05 | I175: NC Year 4 | J175: NC Year 5 | K175: Barnet | L175: C | M175: 1 | Q175: 11431
A176: 3022017 | B176: =VLOOKUP(A176,Schools!A:B,2,0) -> Cromer Road Primary School | C176: 1123417 | D176: Surname | E176: Forename | F176: 2015-08-23 | G176: 2020-01-09 | I176: Reception | J176: NC Year 1 | K176: Barnet | L176: C | M176: 1 | Q176: 11431
A177: 3022017 | B177: =VLOOKUP(A177,Schools!A:B,2,0) -> Cromer Road Primary School | C177: 285780 | D177: Surname | E177: Forename | F177: 2009-10-01 | I177: NC Year 5 | J177: NC Year 6 | K177: Hertfordshire | L177: u | M177: 1 | P177: Added from Jan 2020 census - please confirm | Q177: 0
A178: 3022017 | B178: =VLOOKUP(A178,Schools!A:B,2,0) -> Cromer Road Primary School | C178: 1122355 | D178: Surname | E178: Forename | F178: 2015-03-14 | I178: Reception | J178: NC Year 1 | K178: Barnet | L178: D | M178: 1 | Q178: 11431
A179: 3022017 | B179: =VLOOKUP(A179,Schools!A:B,2,0) -> Cromer Road Primary School | C179: 1104458 | D179: Surname | E179: Forename | F179: 2013-12-14 | I179: NC Year 1 | J179: NC Year 2 | K179: Barnet | L179: D | M179: 1 | Q179: 11431
A180: 3022018 | B180: =VLOOKUP(A180,Schools!A:B,2,0) -> Deansbrook Junior School | C180: 1114183 | D180: Surname | E180: Forename | F180: 2008-09-03 | I180: NC Year 6 | K180: Barnet | L180: B | M180: 1 | Q180: 11443
A181: 3022018 | B181: =VLOOKUP(A181,Schools!A:B,2,0) -> Deansbrook Junior School | C181: 1002191 | D181: Surname | E181: Forename | F181: 2010-10-05 | I181: NC Year 4 | J181: NC Year 5 | K181: Barnet | L181: B | M181: 1 | Q181: 11443
A182: 3022018 | B182: =VLOOKUP(A182,Schools!A:B,2,0) -> Deansbrook Junior School | C182: 1041254 | D182: Surname | E182: Forename | F182: 2012-02-06 | I182: NC Year 3 | J182: NC Year 4 | K182: Barnet | L182: C | M182: 1 | Q182: 11443
A183: 3022018 | B183: =VLOOKUP(A183,Schools!A:B,2,0) -> Deansbrook Junior School | C183: 1094644 | D183: Surname | E183: Forename | F183: 2009-10-29 | I183: NC Year 5 | J183: NC Year 6 | K183: Barnet | L183: C | M183: 1 | Q183: 11443
A184: 3022018 | B184: =VLOOKUP(A184,Schools!A:B,2,0) -> Deansbrook Junior School | C184: 276726 | D184: Surname | E184: Forename | F184: 2009-08-07 | I184: NC Year 6 | K184: Barnet | L184: B | M184: 1 | Q184: 11443
A185: 3022018 | B185: =VLOOKUP(A185,Schools!A:B,2,0) -> Deansbrook Junior School | C185: 1041125 | D185: Surname | E185: Forename | F185: 2012-06-19 | I185: NC Year 3 | J185: NC Year 4 | K185: Barnet | L185: C | M185: 1 | Q185: 11443
A186: 3022018 | B186: =VLOOKUP(A186,Schools!A:B,2,0) -> Deansbrook Junior School | C186: 316210 | D186: Surname | E186: Forename | F186: 2010-08-18 | H186: 2020-04-23 | I186: NC Year 5 | J186: NC Year 6 | K186: Barnet | L186: B | M186: 1 | Q186: 11443
A187: 3022018 | B187: =VLOOKUP(A187,Schools!A:B,2,0) -> Deansbrook Junior School | C187: 316210 | D187: Surname | E187: Forename | F187: 2010-08-18 | G187: 2020-04-24 | I187: NC Year 5 | J187: NC Year 6 | K187: Barnet | L187: C | M187: 1 | Q187: 11443
A188: 3022018 | B188: =VLOOKUP(A188,Schools!A:B,2,0) -> Deansbrook Junior School | C188: 315354 | D188: Surname | E188: Forename | F188: 2009-10-07 | I188: NC Year 5 | J188: NC Year 6 | K188: Barnet | L188: D | M188: 1 | Q188: 11443
A189: 3022018 | B189: =VLOOKUP(A189,Schools!A:B,2,0) -> Deansbrook Junior School | C189: 1009534 | D189: Surname | E189: Forename | F189: 2011-02-15 | I189: NC Year 4 | J189: NC Year 5 | K189: Barnet | L189: D | M189: 1 | Q189: 11443
A190: 3022018 | B190: =VLOOKUP(A190,Schools!A:B,2,0) -> Deansbrook Junior School | C190: 310286 | D190: Surname | E190: Forename | F190: 2009-09-10 | I190: NC Year 5 | J190: NC Year 6 | K190: Barnet | L190: C | M190: 1 | Q190: 11443
A191: 3022018 | B191: =VLOOKUP(A191,Schools!A:B,2,0) -> Deansbrook Junior School | C191: 312108 | D191: Surname | E191: Forename | F191: 2010-02-15 | I191: NC Year 5 | J191: NC Year 6 | K191: Barnet | L191: C | M191: 1 | Q191: 11443
A192: 3022018 | B192: =VLOOKUP(A192,Schools!A:B,2,0) -> Deansbrook Junior School | C192: 267939 | D192: Surname | E192: Forename | F192: 2008-11-13 | I192: NC Year 6 | K192: Barnet | L192: C | M192: 1 | Q192: 11443
A193: 3022018 | B193: =VLOOKUP(A193,Schools!A:B,2,0) -> Deansbrook Junior School | C193: 277687 | D193: Surname | E193: Forename | F193: 2009-01-14 | I193: NC Year 6 | K193: Barnet | L193: B | M193: 1 | Q193: 11443
A194: 3022018 | B194: =VLOOKUP(A194,Schools!A:B,2,0) -> Deansbrook Junior School | C194: 1000739 | D194: Surname | E194: Forename | F194: 2012-04-03 | G194: 2019-09-01 | I194: NC Year 3 | J194: NC Year 4 | K194: Barnet | L194: D | M194: 1 | P194: Autumn and Spring 19/20 paid to Infant school in error - paying 19 months in 20/21 | Q194: 11443
A195: 3022018 | B195: =VLOOKUP(A195,Schools!A:B,2,0) -> Deansbrook Junior School | C195: 297769 | D195: Surname | E195: Forename | F195: 2009-07-04 | G195: 2020-05-06 | I195: NC Year 6 | K195: Barnet | L195: B | M195: 1 | Q195: 11443
A196: 3022018 | B196: =VLOOKUP(A196,Schools!A:B,2,0) -> Deansbrook Junior School | C196: 268567 | D196: Surname | E196: Forename | F196: 2009-07-01 | I196: NC Year 6 | K196: Barnet | L196: E | M196: 1 | Q196: 11443
A197: 3022018 | B197: =VLOOKUP(A197,Schools!A:B,2,0) -> Deansbrook Junior School | C197: 1006530 | D197: Surname | E197: Forename | F197: 2011-06-07 | G197: 2020-04-21 | I197: NC Year 4 | J197: NC Year 5 | K197: Barnet | L197: B | M197: 1 | Q197: 11443
A198: 3022018 | B198: =VLOOKUP(A198,Schools!A:B,2,0) -> Deansbrook Junior School | C198: 1002716 | D198: Surname | E198: Forename | F198: 2011-03-12 | I198: NC Year 4 | J198: NC Year 5 | K198: Barnet | L198: C | M198: 1 | Q198: 11443
A199: 3022018 | B199: =VLOOKUP(A199,Schools!A:B,2,0) -> Deansbrook Junior School | C199: 1039122 | D199: Surname | E199: Forename | F199: 2011-12-03 | I199: NC Year 3 | J199: NC Year 4 | K199: Barnet | L199: C | M199: 1 | Q199: 11443
A200: 3022018 | B200: =VLOOKUP(A200,Schools!A:B,2,0) -> Deansbrook Junior School | C200: 347874 | D200: Surname | E200: Forename | F200: 2011-03-03 | G200: 2020-04-14 | I200: NC Year 4 | J200: NC Year 5 | K200: Barnet | L200: C | M200: 1 | Q200: 11443
... 925 more rows

Sheet Diagram (hidden)
S1: Links
R3: Instructions for SEN and School Funding Teams
R12: List of workbook sheets
R22: DATA sheet
R25: FUNDING sheet
R28: CONTROL sheet
R31: PAYMENTS sheet
R34: SCHOOL REPORT
B68: Redundant Sheets which were used in the old version.
B69: TRANSytd | C69: Top up funding to date
B70: SENOriginals | C70: List of funded pupils - originals
B71: SENSpring | C71: List of funded pupils - Spring
B72: SENAutumn | C72: List of funded pupils - Autumn
B73: SENSummer | C73: List of funded pupils - Summer
B74: ForSFSTrans | C74: Current Year and Prior Year updates to TRANS
B75: Adjustments | C75: Calculates the adjustments for the TRANS
B76: Dashboard | C76: Collates all the error checks in one place
B77: Datasummer | C77: Data for the summer term 2020
B78: PaymentsV1 | C78: First version of the Payments calculations, now replaced
B79: OldPayments | C79: Previous version of the Payments from previous month, now replaced
B80: DiagramOld | C80: Diagram of how things worked with the old TRANS

Sheet Howtouse (hidden)
A1: =TODAY() -> 2022-02-10 | B1: How to use this system | C1: Sheet colour | E1: How to use this system | F1: Sheet colour | G1: Value | I1: How to use this system | J1: Sheet colour | K1: Value | M1: Colour | N1: Key
B4: Termly Process | E4: Termly Process | G4: Value | I4: Monthly Process | K4: Value | N4: Data entry and validation
A5: Process for SEN Team (Termly) | B5: Enter the data for each pupil into the Data sheet. See below for notes on Data Entry. | D5: Termly Process for School Funding Team | E5: The SEN team have a copy of the SEN funding system which they use to enter data, but their copy may be out of date, so first copy their Data sheet into a new copy of the newest version of the system | H5: Monthly Process for the School Funding Team | I5: The system needs to be updated every month to calculate the next month's funding and produce the Accounts Payable schedules. Do the following steps in order. | N5: Admin
A6: Go to Errors | B6: Look at the sheet Errors. Check that the number of lines on Datacheck and Funding are the same as Data. If not, drag down extra lines on Datacheck and Funding until the numbers match | D6: Go to Data | E6: Check that there are no first or surnames or initials in the Data sheet. This is extremely important because the whole file will go on the web and any part of it can be viewed whether hidden or not. Leaving names in the file would be a serious data breach under GDPR. For this reason, names should never be brought into the file. | H6: Go to Payments | I6: Go to the Payments sheet and make a value copy of it in LastMonthPay, overwriting what was previously there. This will be used to calculate the new month's payments. | N6: Payments calculation and generation
A7: Go to Errors | B7: Return to the Errors sheet. Anything the Datacheck sheet believes is an error will be summarised here. | D7: Go to Control | E7: Go to the Control sheet and change the term in cell D7. | G7: =Control!D7 -> Autumn | H7: Go to Control | I7: Go to the Control sheet and choose the month you want to pay in cell J8 | K7: =Control!J8 -> Feb | N7: Control
A8: Go to Data | B8: If there are errors, look at the sheet Datacheck. The blue columns come directly from the Data sheet. The white columns check the columns of the Data sheet for errors, and will display an error message if the data is missing or unexpected - ie is not a valid code or is out of normal range. Check all the white columns for errors and resolve these by editing Data before going any further. Do not edit Datacheck. | D8: Go to Schools | E8: The 5 lookup sheets : Costcentres, Rates, Schools, Lookup and Bandlist must be kept up to date, although most changes are likely to be needed at the beginning of the new financial or academic year. Update these if necessary. Be particularly careful doing this for academy conversions. Regardless of when funding for a particular pupil changes, once the school converts to an academy all money must be paid to the academy using its new supplier number. | H8: Go to Payments | I8: Go back to the Payments sheet and refresh the pivot table. This shouldn't be necessary if the Data sheet hasn't changed, but it is best to be safe. Check the Payments sheet to ensure there are no errors anywhere - there are check totals along the top which will turn red if there are problems. | K8: =Payments!B3 -> OK | N8: Reports for schools and LA
A9: Go to Summary | B9: Look at the Summary sheet - this has two sections one by cost centre and one by band. Refresh each pivot table. Check there are no errors which will show up as "N/A" and there are no red error boxes | D9: Go to Errors | E9: Make sure that all the errors have been cleared - see the Errors sheet. If there are still errors which are not obvious to fix, ask the SEN team for confirmation that they are content. There may be an exceptional circumstance. | H9: Go to Control | I9: The sheets APInvoices and APCredits will be automatically updated. Go back to Control and check that the total of each balances to the total to be paid this month. Cell K27 should be a green OK. If there is an error you may need to drag down the lines of APInvoices or APCredits further. | K9: =Control!K27 -> Error | N9: Lookup tables
A10: Go to SchoolSummary | B10: The School Summary sheet is a summary of topup funding by school. Again, refresh the pivot and check there are no errors. | D10: Go to Summary | E10: Look at the Summary sheet - this has two sections one by cost centre and one by band. Refresh each pivot table. Check there are no errors which will show up as "N/A" and there are no red error boxes | G10: =Summary!C9&"-"&Summary!D9&"-"&Summary!H9 -> OK-OK-OK | H10: Go to SchoolPayCheck | I10: SchoolPayCheck looks at the totals from the APInvoice and APCredits sheets and reports how many schools owe Barnet more than we are paying this month. These schools should be removed from the schedules and the money reclaimed via invoice unless there are other payments going through which balance against it. | K10: =SchoolPayCheck!C3 -> 2
D11: Go to SchoolSummary | E11: The School Summary sheet is a summary of topup funding by school. Again, refresh the pivot and check there are no errors. | G11: =SchoolSummary!C9&"-"&SchoolSummary!D9 -> OK-OK | H11: Schedules | I11: The two schedules will need tidying up before they can be submitted, ie
A12: HOW TO REFRESH A PIVOT TABLE | B12: How to refresh (update) a pivot table: Right click anywhere inside the pivot table report, select Refresh from the drop down menu. The table will change if any of the data has changed. | D12: Go to Projections | E12: Go to the Projections sheet and refresh the pivot table. They are the end of year projections for budget monitoring for these cost centres until a new batch of data is received from the SEN team | I12: 1. Copy to another file and convert to values
D13: Go to Control | E13: Return to Control and check that there are only green OK boxes, no red errors in column E. Ignore the right hand side of the sheet for the present. | G13: =Control!E24&Control!E26&Control!E27&Control!E28&Control!E30&Control!E31&Control!E33 -> OKOKOKOKOKOKOK | I13: 2. Delete lines with the zero blue cells in the TOT_VALUE column
A14: Data Entry notes | B14: Band with an X means do not fund this pupil on a band, only additional funding as entered | D14: Go to SchoolReport | E14: These are the two web reports the schools will see. The school is selected from the slicer on the SchoolReport and picked up for pivots on School Payments. Refresh the pivots and go through each school individually to ensure there are no errors. If there are red boxes will appear in the top left hand corner of SchoolReport. There may be errors which can't be resolved until the payments for this month have been prepared, so go to the next step before releasing to the web. | I14: 3. Delete lines 1-4
B15: Please ensure all dates are valid - eg not 31/9/16, 30.9.16 etc | D15: Go to School Payments | I15: 4. Delete lines for schools where credits exceed invoices (see above)
B16: If pupil is leaving at the end of the summer term please put the leave date as August, not July, to ensure the school receives funding for August. | D16: Go to Funding | E16: The Funding sheet contains all the information required about each placement and its funding. The Payments sheet starts with a pivot from the Funding sheet. | I16: 5. The Payments sheet can be used as the control sheet.
B17: If a pupil starts at the beginning of the term, but that term starts mid month, please could you put the start date as 1st of the month. Pupils are not funded for the first month unless they start in the first day or two. | D17: Housekeeping | E17: Update these instructions (Howtouse) if necessary. Update the Sheetlist and Diagram if necessary. Make sure there are no links to external files.
B18: Pupils with additional funding as well as band funding must be entered on two lines with different bands but the same LARef
B19: Please ensure that NC year groups are in a standard format - eg "NC Year 7", not "NC Year 7" which has an extra space before the 7. Also blanks should be actually blank, not contain spaces or other non-printing characters. | D19: Release to Web | E19: Before releasing to the web, double check that there are no pupil names on any sheets in the file. Hide all the sheets except SchoolReport and SchoolPayments. Check that the file opens on with SchoolPayments showing school 0 and that row and column headers are hidden. | H19: Profile of payments | I19: The payments are profiled as follows: Maintained schools - 2/13 in April and 1/13 from May to March. Academies - 1/12 from April to March.
B20: If in September a pupil stays at the same school but moves from Nursery to Reception, Year 6 to Year 7 or Year 11 to Year 12, please put them in as 2 lines as if they left the school on 31st August and rejoined on 1st September | E20: Store a copy of the file to be released in a GOLD folder so that it cannot be confused with any other versions, and you know what to start with next time. | H20: Go to Payment - this month | I20: The current month's payment is calculated by taking the difference between what should be paid to date and what has been paid up to last month. This means that if there is a change in a school's funding, the next month will have a big balancing change.
B21: If a pupil leaves the school in September, or moves to a different phase, please enter the year group from September as blank. | H21: Go to Payment Profiles | I21: There are other ways of doing this calculation, but this seems the simplest. The new profile for each month is done in columns AO to AZ in the Payments sheet. These can be overwritten if desired and the system will check if the revised figures don't add to the correct amount. Also make sure the calculations are reset before next month as the order of the lines on Payments may change.
B22: Please ensure all LA Refs and refer to only one pupil, or a group of pupils being funded as a lumpsum to an individual school.
B23: All OOB pupils should be entered with band U, since other LAs' bands may clash with Barnet's.
A25: Process for the School Funding Team | B25: When the file is received from the SEN team, any remaining data errors should be cleared with the SEN team
B26: The data will be in the order it was entered by the SEN team, however it will need sorting to ensure the pupils are each school are grouped and numbered sequentially.
B27: Make a value copy of the Funding sheet and then sort it by Dfe number (reverse) , Type of provision and LA Ref (reverse). The special schools come first, the pupils in different types of provision are grouped, and the pupils with the highest LA refs (ie the youngest ones) come first in the list).
B28: Double check for any personal data such as date of birth, name, initials, etc. These should not occur anywhere in the Funding sheet but it is best to be sure.
B29: Create a new field which numbers the rows of Funding using the DfEnumber plus a number starting at 0001 and increased by 1 for each consecutive line, unless the DfE number changes, in which case go back to 0001
B30: The Funding sheet can now be used as the old Pupillist sheet.
B31: Pivot the Funding sheet by school and funding type.
B49: Sort the sheet SortedData by DfeNo(reverse order), Type, LARef(reverse order)
B50: Check that there are more lines in the SortedData and Calculations sheets than in the Data sheet. If not, drag down to create more lines in SortedData and Calculations sheets. There are 2200 lines already so it is unlikely to need more, but if there are you will need to adjust the totals on the Calculations sheets too.
B51: Bring in the Year to date funding from a pivot of the TRANS sheet and paste into YTDFunding using exactly the same columns.
B52: Columns AR and AT on Calculations checks that the DFENO+FUNDINGTYPE combination already exists on the TRANS. Cells AR4 and AT4 should be zero. If not, add missing combinations at the bottom of the YTDFunding data.
B53: Check that cells F2 and H2 on the YTDFunding sheet are zero, if not investigate why and correct. These cells check that the funding calculated by Calculations matches YTDFunding
B54: The sheet TRANSlines contains the adjustments to go into the TRANS sheet. Please check the totals agrees with YTDFunding
B55: TRANSlines should be copied in to the funding system as values. These contain the adjustments to be made for each school for each funding type.
B56: Pupillist should be copied into the funding system as values. This is the data required for the top-up report. The total of this report for each school should match the total of all top-ups on the main funding page.
B57: ChecklistforDonna should be sent to the SEN team for checking prior to release. It is essentially the Pupillist with pupils's names.
B58: Sheet Funding calculates the funding for each line on the Data sheet, and a summary is shown on the NewSummary sheet. Check the NewSummary sheet for any mismatches or amounts out of balance and try to work out why it is happening, if not consult the School Funding team.
B59: When you are happy that the data is correct and there are no errors in the funding, send the whole file to the School Funding team.
A64: New Financial Year | B64: Unless a new file is provided, the estimates for the funding for the new financial year will be done as follows:
B65: The Spring term pupil list will be used as a starting point
B66: All prior year funding will be removed
B67: All exceptional / additional / fixed period funding will be removed.
B68: All pupils will be funded for the whole year.
B69: Additional place funding will be removed
B70: Block topups (eg for PRUs) will continue
B71: No estimates for joiners or leavers in September will be made unless a school / ARP is closing
B72: No estimates for topups for newly opening schools / ARPs will be made.

Sheet Data (hidden)
A1: Code LA Df E | B1: School Details Name | C1: LA Ref | D1: Surname | E1: Forename | F1: DOB | G1: Start | H1: End | I1: 2020/21 NC Year | J1: 2021/22 NC Year | K1: Funding LA | L1: Band | M1: Band Percentage | N1: Additional | O1: SENIF/Exceptional comments | P1: Notes for 2019/20 | Q1: Cost Centre
A2: 3021000 | B2: =VLOOKUP(A2,Schools!$A$8:$B$143,2,FALSE) -> Brookhill Nursery | C2: 1116620 | F2: 2016-11-26 | G2: 2021-03-01 | H2: 2021-03-31 | I2: Nursery 2 | K2: Barnet | L2: EXY | M2: 1 | N2: 581.25 | Q2: 10265
A3: 3021000 | B3: =VLOOKUP(A3,Schools!$A$8:$B$143,2,FALSE) -> Brookhill Nursery | C3: 1145334 | F3: 2018-11-05 | G3: 2021-02-08 | H3: 2021-07-23 | I3: Nursery 2 | K3: Barnet | L3: EXY | M3: 1 | N3: 3182.25 | Q3: 10265
A4: 3021000 | B4: =VLOOKUP(A4,Schools!$A$8:$B$143,2,FALSE) -> Brookhill Nursery | C4: 1149472 | F4: 2018-04-18 | G4: 2021-09-06 | H4: 2022-02-11 | J4: Nursery 2 | K4: Barnet | L4: EXY | M4: 1 | N4: 2654.375 | Q4: 10265
A5: 3021000 | B5: =VLOOKUP(A5,Schools!$A$8:$B$143,2,FALSE) -> Brookhill Nursery | C5: 1141000 | F5: 2018-01-06 | H5: 2021-07-23 | I5: Nursery 2 | K5: Barnet | L5: EXY | M5: 1 | N5: 1472.5 | Q5: 10265
A6: 3021000 | B6: =VLOOKUP(A6,Schools!$A$8:$B$143,2,FALSE) -> Brookhill Nursery | C6: 1141000 | F6: 2018-01-06 | G6: 2021-09-06 | H6: 2022-02-11 | J6: Nursery 2 | K6: Barnet | L6: EXY | M6: 1 | N6: 2123.5 | Q6: 10265
A7: 3021001 | B7: =VLOOKUP(A7,Schools!$A$8:$B$143,2,FALSE) -> Hampden Way Nursery | C7: 1156542 | F7: 2018-10-11 | G7: 2021-10-22 | J7: Nursery 2 | K7: Barnet | L7: N | M7: 1 | Q7: 11439
A8: 3021001 | B8: =VLOOKUP(A8,Schools!$A$8:$B$143,2,FALSE) -> Hampden Way Nursery | C8: 1156547 | F8: 2018-12-28 | G8: 2022-01-04 | H8: 2022-03-31 | J8: Nursery 2 | K8: Barnet | L8: EXY | M8: 1 | N8: 1469.96 | Q8: 10265
A9: 3021001 | B9: =VLOOKUP(A9,Schools!$A$8:$B$143,2,FALSE) -> Hampden Way Nursery | C9: 1158000 | F9: 2018-08-13 | G9: 2022-01-04 | H9: 2022-03-31 | J9: Nursery 2 | K9: Barnet | L9: EXY | M9: 1 | N9: 918.72 | Q9: 10265
A10: 3021001 | B10: =VLOOKUP(A10,Schools!$A$8:$B$143,2,FALSE) -> Hampden Way Nursery | C10: 1135677 | F10: 2017-12-02 | H10: 2021-07-23 | I10: Nursery 2 | K10: Barnet | L10: EXY | M10: 1 | N10: 1840.625 | Q10: 10265
A11: 3021001 | B11: =VLOOKUP(A11,Schools!$A$8:$B$143,2,FALSE) -> Hampden Way Nursery | C11: 1145337 | F11: 2018-11-26 | G11: 2022-01-04 | H11: 2022-03-31 | J11: Nursery 2 | K11: Barnet | L11: EXY | M11: 1 | N11: 1224.97 | Q11: 10265
A12: 3021001 | B12: =VLOOKUP(A12,Schools!$A$8:$B$143,2,FALSE) -> Hampden Way Nursery | C12: 1126475 | F12: 2017-04-01 | H12: 2021-07-23 | I12: Nursery 2 | K12: Barnet | L12: EXY | M12: 1 | N12: 1355.925581 | Q12: 10265
A13: 3021001 | B13: =VLOOKUP(A13,Schools!$A$8:$B$143,2,FALSE) -> Hampden Way Nursery | C13: 1157986 | F13: 2018-08-16 | G13: 2022-01-04 | H13: 2022-03-31 | J13: Nursery 2 | K13: Barnet | L13: EXY | M13: 1 | N13: 918.72 | Q13: 10265
A14: 3021001 | B14: =VLOOKUP(A14,Schools!$A$8:$B$143,2,FALSE) -> Hampden Way Nursery | C14: 1130427 | F14: 2017-02-08 | G14: 2021-03-10 | H14: 2021-03-31 | I14: Nursery 2 | K14: Barnet | L14: EXY | M14: 1 | N14: 325.5 | Q14: 10265
A15: 3021001 | B15: =VLOOKUP(A15,Schools!$A$8:$B$143,2,FALSE) -> Hampden Way Nursery | C15: 1143312 | F15: 2017-08-09 | G15: 2021-09-06 | H15: 2022-03-31 | J15: Nursery 2 | K15: Barnet | L15: EXY | M15: 1 | N15: 5549 | Q15: 10265
A16: 3021002 | B16: =VLOOKUP(A16,Schools!$A$8:$B$143,2,FALSE) -> Moss Hall Nursery | C16: 1150086 | F16: 2017-02-24 | G16: 2021-02-01 | H16: 2021-05-28 | I16: Nursery 2 | K16: Barnet | L16: EXY | M16: 1 | N16: 1840.63 | Q16: 10265
A17: 3021002 | B17: =VLOOKUP(A17,Schools!$A$8:$B$143,2,FALSE) -> Moss Hall Nursery | C17: 1150086 | F17: 2017-04-24 | G17: 2021-06-01 | H17: 2021-08-31 | I17: Nursery 2 | K17: Barnet | L17: N | M17: 1 | Q17: 11439
A18: 3021002 | B18: =VLOOKUP(A18,Schools!$A$8:$B$143,2,FALSE) -> Moss Hall Nursery | C18: 1153178 | F18: 2017-12-26 | G18: 2021-09-06 | H18: 2022-02-11 | J18: Nursery 2 | K18: Barnet | L18: EXY | M18: 1 | N18: 4247 | Q18: 10265
A19: 3021002 | B19: =VLOOKUP(A19,Schools!$A$8:$B$143,2,FALSE) -> Moss Hall Nursery | C19: 1144236 | F19: 2017-02-09 | G19: 2021-02-01 | H19: 2021-07-23 | I19: Nursery 2 | K19: Barnet | L19: EXY | M19: 1 | N19: 2232 | Q19: 10265
A20: 3021002 | B20: =VLOOKUP(A20,Schools!$A$8:$B$143,2,FALSE) -> Moss Hall Nursery | C20: 1144236 | F20: 2017-02-09 | G20: 2021-04-19 | H20: 2021-07-23 | I20: Nursery 2 | K20: Barnet | L20: EXY | M20: 1 | N20: 272.8 | Q20: 10265
A21: 3021002 | B21: =VLOOKUP(A21,Schools!$A$8:$B$143,2,FALSE) -> Moss Hall Nursery | C21: 1141425 | F21: 2017-12-06 | G21: 2021-09-03 | H21: 2021-12-17 | J21: Nursery 2 | K21: Barnet | L21: EXY | M21: 1 | N21: 1519 | Q21: 10265
A22: 3021002 | B22: =VLOOKUP(A22,Schools!$A$8:$B$143,2,FALSE) -> Moss Hall Nursery | C22: 1144244 | F22: 2016-10-07 | G22: 2021-02-01 | H22: 2021-07-23 | I22: Nursery 2 | K22: Barnet | L22: EXY | M22: 1 | N22: 3348 | Q22: 10265
A23: 3021002 | B23: =VLOOKUP(A23,Schools!$A$8:$B$143,2,FALSE) -> Moss Hall Nursery | C23: 1115994 | F23: 2016-12-09 | G23: 2021-02-01 | H23: 2021-03-31 | I23: Nursery 2 | K23: Barnet | L23: EXY | M23: 1 | N23: 1581 | P23: 27.5hours | Q23: 10265
A24: 3021002 | B24: =VLOOKUP(A24,Schools!$A$8:$B$143,2,FALSE) -> Moss Hall Nursery | C24: 1115994 | F24: 2016-12-09 | G24: 2021-04-19 | H24: 2021-07-23 | I24: Nursery 2 | K24: Barnet | L24: EXY | M24: 1 | N24: 1364 | Q24: 10265
A25: 3021002 | B25: =VLOOKUP(A25,Schools!$A$8:$B$143,2,FALSE) -> Moss Hall Nursery | C25: 1115993 | F25: 2016-12-09 | G25: 2021-02-10 | H25: 2021-07-31 | I25: Nursery 2 | K25: Barnet | L25: N | M25: 2 | Q25: 11439
A26: 3021002 | B26: =VLOOKUP(A26,Schools!$A$8:$B$143,2,FALSE) -> Moss Hall Nursery | C26: 1144217 | F26: 2017-08-23 | G26: 2021-02-01 | H26: 2021-07-23 | I26: Nursery 2 | K26: Barnet | L26: EXY | M26: 1 | N26: 2790 | Q26: 10265
A27: 3021002 | B27: =VLOOKUP(A27,Schools!$A$8:$B$143,2,FALSE) -> Moss Hall Nursery | C27: 1144217 | F27: 2017-08-23 | G27: 2022-01-04 | H27: 2022-03-31 | J27: Nursery 2 | K27: Barnet | L27: EXY | M27: 1 | N27: 1531.21 | Q27: 10265
A28: 3021002 | B28: =VLOOKUP(A28,Schools!$A$8:$B$143,2,FALSE) -> Moss Hall Nursery | C28: 1151181 | F28: 2017-11-30 | G28: 2021-04-19 | H28: 2021-10-22 | I28: Nursery 1 | J28: Nursery 2 | K28: Barnet | L28: EXY | M28: 1 | N28: 2654.375 | Q28: 10265
A29: 3021002 | B29: =VLOOKUP(A29,Schools!$A$8:$B$143,2,FALSE) -> Moss Hall Nursery | C29: 1150764 | F29: 2017-01-15 | G29: 2021-06-07 | H29: 2021-07-23 | I29: Nursery 2 | K29: Barnet | L29: EXY | M29: 1 | N29: 356.5 | Q29: 10265
A30: 3021003 | B30: =VLOOKUP(A30,Schools!$A$8:$B$143,2,FALSE) -> St Margaret's Nursery | C30: 1141141 | F30: 2016-10-26 | H30: 2021-07-23 | I30: Nursery 2 | K30: Barnet | L30: N | M30: =27.5/15 -> 1.833333333 | Q30: 11439
A31: 3021003 | B31: =VLOOKUP(A31,Schools!$A$8:$B$143,2,FALSE) -> St Margaret's Nursery | C31: 1127466 | F31: 2017-09-06 | G31: 2021-04-19 | H31: 2021-10-22 | I31: Nursery 1 | J31: Nursery 2 | K31: Barnet | L31: EXY | M31: 1 | N31: 2123.5 | Q31: 10265
A32: 3021003 | B32: =VLOOKUP(A32,Schools!$A$8:$B$143,2,FALSE) -> St Margaret's Nursery | C32: 1157972 | F32: 2017-04-18 | G32: 2022-01-04 | H32: 2022-03-31 | J32: Nursery 2 | K32: Barnet | L32: EXY | M32: 1 | N32: 612.48 | Q32: 10265
A33: 3021003 | B33: =VLOOKUP(A33,Schools!$A$8:$B$143,2,FALSE) -> St Margaret's Nursery | C33: 1163623 | F33: 2017-09-06 | G33: 2021-11-29 | H33: 2022-03-31 | J33: Nursery 2 | K33: Barnet | L33: EXY | M33: 1 | N33: =203.44+918.72 -> 1122.16 | P33: Care check if moved to gloucester house as per EHCP | Q33: 10265
A34: 3021003 | B34: =VLOOKUP(A34,Schools!$A$8:$B$143,2,FALSE) -> St Margaret's Nursery | C34: 1116071 | F34: 2017-03-01 | G34: 2021-04-19 | H34: 2021-07-23 | I34: Nursery 2 | K34: Barnet | L34: EXY | M34: 1 | N34: 1364 | Q34: 10265
A35: 3021003 | B35: =VLOOKUP(A35,Schools!$A$8:$B$143,2,FALSE) -> St Margaret's Nursery | C35: 1154131 | F35: 2017-01-05 | G35: 2021-06-07 | H35: 2021-07-23 | I35: Nursery 2 | K35: Barnet | L35: EXY | M35: 1 | N35: 855.6 | P35: Primary place. | Q35: 10265
A36: 3021003 | B36: =VLOOKUP(A36,Schools!$A$8:$B$143,2,FALSE) -> St Margaret's Nursery | C36: 1154628 | F36: 2018-11-02 | G36: 2021-10-11 | H36: 2022-03-31 | J36: Nursery 2 | K36: Barnet | L36: EXY | M36: 1 | N36: 2216.5 | P36: 1 Day a week at Capel Manor with Grasvenor support from Autumn 2020 | Q36: 10265
A37: 3021003 | B37: =VLOOKUP(A37,Schools!$A$8:$B$143,2,FALSE) -> St Margaret's Nursery | C37: 1135823 | F37: 2017-08-05 | G37: 2021-04-19 | H37: 2021-07-23 | I37: Nursery 2 | K37: Barnet | L37: EXY | M37: 1 | N37: 1364 | P37: to cover payment to Capel manor | Q37: 10265
A38: 3021003 | B38: =VLOOKUP(A38,Schools!$A$8:$B$143,2,FALSE) -> St Margaret's Nursery | C38: 1135823 | F38: 2017-08-05 | G38: 2021-09-01 | H38: 2021-12-03 | J38: Nursery 2 | K38: Barnet | L38: N | M38: 1 | Q38: 11439
A39: 3021003 | B39: =VLOOKUP(A39,Schools!$A$8:$B$143,2,FALSE) -> St Margaret's Nursery | C39: 1125735 | F39: 2016-09-18 | H39: 2021-06-30 | I39: Nursery 2 | K39: Barnet | L39: N | M39: 1 | Q39: 11439
A40: 3021003 | B40: =VLOOKUP(A40,Schools!$A$8:$B$143,2,FALSE) -> St Margaret's Nursery | C40: 1125735 | F40: 2016-09-18 | G40: 2021-07-01 | H40: 2021-07-31 | I40: Nursery 2 | K40: Barnet | L40: N | M40: 2 | Q40: 11439
A41: 3021003 | B41: =VLOOKUP(A41,Schools!$A$8:$B$143,2,FALSE) -> St Margaret's Nursery | C41: 1163574 | F41: 2017-04-01 | G41: 2022-01-04 | H41: 2022-03-31 | J41: Nursery 2 | K41: Barnet | L41: EXY | M41: 1 | N41: 1469.96 | Q41: 10265
A42: 3021100 | B42: =VLOOKUP(A42,Schools!$A$8:$B$143,2,FALSE) -> Pavilion | C42: 1035746 | F42: 2009-12-07 | G42: 2021-09-01 | H42: 2021-11-30 | J42: NC Year 7 | K42: Barnet | L42: PavD | M42: 1 | Q42: 11425
A43: 3021100 | B43: =VLOOKUP(A43,Schools!$A$8:$B$143,2,FALSE) -> Pavilion | C43: 239154 | F43: 2008-06-12 | H43: 2021-12-31 | I43: NC Year 8 | J43: NC Year 9 | K43: Barnet | L43: PavC | M43: 1 | P43: £9990 additional cost of placement. See email 16.6.20 7 MONTHS 20/21 fy 5 MONTHS 21/22 fy | Q43: 11425
A44: 3021100 | B44: =VLOOKUP(A44,Schools!$A$8:$B$143,2,FALSE) -> Pavilion | C44: 1142830 | F44: 2007-09-03 | H44: 2021-08-31 | I44: NC Year 8 | K44: Barnet | L44: PavC | M44: 1 | Q44: 11425
A45: 3021100 | B45: =VLOOKUP(A45,Schools!$A$8:$B$143,2,FALSE) -> Pavilion | C45: 1038732 | F45: 2011-11-14 | G45: 2020-09-04 | H45: 2021-03-31 | I45: Nc Year 4 | K45: Barnet | L45: PAVASS | M45: 1 | Q45: 11425
A46: 3021100 | B46: =VLOOKUP(A46,Schools!$A$8:$B$143,2,FALSE) -> Pavilion | C46: 316388 | F46: 2005-01-06 | H46: 2021-08-31 | I46: NC Year 11 | K46: Barnet | L46: PAVD | M46: 0.8 | Q46: 11425
A47: 3021100 | B47: =VLOOKUP(A47,Schools!$A$8:$B$143,2,FALSE) -> Pavilion | C47: 316388 | F47: 2005-01-06 | H47: 2021-08-31 | I47: NC Year 11 | K47: Barnet | L47: PRUAD | M47: 1 | N47: 3183 | Q47: 11425
A48: 3021100 | B48: =VLOOKUP(A48,Schools!$A$8:$B$143,2,FALSE) -> Pavilion | C48: 1135699 | F48: 2007-04-29 | G48: 2022-02-14 | J48: NC Year 10 | K48: Barnet | L48: PavD | M48: 1 | Q48: 11425
A49: 3021100 | B49: =VLOOKUP(A49,Schools!$A$8:$B$143,2,FALSE) -> Pavilion | C49: 151326 | F49: 2005-04-19 | H49: 2021-08-31 | I49: NC Year 11 | K49: Barnet | L49: PavB | M49: 1 | P49: Plesae confirm is still with you Autumn 21 | Q49: 11425
A50: 3021100 | B50: =VLOOKUP(A50,Schools!$A$8:$B$143,2,FALSE) -> Pavilion | C50: 1003800 | F50: 2010-10-26 | G50: 2021-09-01 | J50: NC Year 6 | K50: Barnet | L50: PAVASS | M50: 1 | Q50: 11425
A51: 3021100 | B51: =VLOOKUP(A51,Schools!$A$8:$B$143,2,FALSE) -> Pavilion | C51: 1091170 | F51: 2006-11-06 | G51: 2021-10-22 | J51: NC Year 10 | K51: Barnet | L51: PavC | M51: 1 | Q51: 11425
A52: 3021100 | B52: =VLOOKUP(A52,Schools!$A$8:$B$143,2,FALSE) -> Pavilion | C52: 244499 | F52: 2008-01-27 | I52: NC Year 8 | J52: NC Year 9 | K52: Barnet | L52: PavC | M52: 1 | Q52: 11425
A53: 3021100 | B53: =VLOOKUP(A53,Schools!$A$8:$B$143,2,FALSE) -> Pavilion | C53: 1128320 | F53: 2011-03-09 | G53: 2021-11-30 | J53: NC Year 6 | K53: Barnet | L53: PAVASS | M53: 1 | Q53: 11425
A54: 3021100 | B54: =VLOOKUP(A54,Schools!$A$8:$B$143,2,FALSE) -> Pavilion | C54: 174210 | F54: 2006-03-19 | G54: 2021-10-12 | J54: NC Year 11 | K54: Barnet | L54: PavC | M54: 1 | Q54: 11425
A55: 3021100 | B55: =VLOOKUP(A55,Schools!$A$8:$B$143,2,FALSE) -> Pavilion | C55: 1153078 | F55: 2011-10-31 | G55: 2021-09-01 | J55: NC Year 5 | K55: Barnet | L55: PAVASS | M55: 1 | Q55: 11425
A56: 3021100 | B56: =VLOOKUP(A56,Schools!$A$8:$B$143,2,FALSE) -> Pavilion | C56: 155578 | F56: 2005-08-20 | H56: 2021-08-31 | I56: NC Year 11 | K56: Barnet | L56: PAVe | M56: 1 | Q56: 11425
A57: 3021100 | B57: =VLOOKUP(A57,Schools!$A$8:$B$143,2,FALSE) -> Pavilion | C57: 155578 | F57: 2005-08-20 | H57: 2021-08-31 | I57: NC Year 11 | K57: Barnet | L57: PRUAD | M57: 1 | N57: =9990/12*5 -> 4162.5 | Q57: 11425
A58: 3021100 | B58: =VLOOKUP(A58,Schools!$A$8:$B$143,2,FALSE) -> Pavilion | C58: 30200 | F58: 2014-01-01 | G58: 2021-09-01 | J58: NC Year 3 | K58: Barnet | L58: PRUAD | M58: 1 | N58: =14000/12*7 -> 8166.666667 | Q58: 11425
A59: 3021100 | B59: =VLOOKUP(A59,Schools!$A$8:$B$143,2,FALSE) -> Pavilion | C59: 1017900 | F59: 2014-05-24 | G59: 2021-09-01 | J59: NC Year 3 | K59: Barnet | L59: PRUAD | M59: 1 | N59: =14000/12*7 -> 8166.666667 | Q59: 11425
A60: 3021100 | B60: =VLOOKUP(A60,Schools!$A$8:$B$143,2,FALSE) -> Pavilion | C60: 341552 | F60: 2010-09-01 | G60: 2021-09-01 | J60: NC Year 6 | K60: Barnet | L60: PAVASS | M60: 1 | Q60: 11425
A61: 3021100 | B61: =VLOOKUP(A61,Schools!$A$8:$B$143,2,FALSE) -> Pavilion | C61: 184222 | F61: 2006-05-15 | G61: 2021-09-01 | J61: NC Year 11 | K61: Barnet | L61: PavD | M61: 1 | Q61: 11425
A62: 3021100 | B62: =VLOOKUP(A62,Schools!$A$8:$B$143,2,FALSE) -> Pavilion | C62: 1140348 | F62: 2015-06-04 | G62: 2021-11-23 | J62: NC Year 2 | K62: Barnet | L62: PAVASS | M62: 1 | Q62: 11425
A63: 3021100 | B63: =VLOOKUP(A63,Schools!$A$8:$B$143,2,FALSE) -> Pavilion | C63: Topups 47 | F63: 2003-01-01 | G63: 2021-04-01 | H63: 2022-03-31 | I63: NC Year 7 | J63: NC Year 8 | K63: Barnet | L63: PAV1 | M63: 47 | Q63: 11425
A64: 3021100 | B64: =VLOOKUP(A64,Schools!$A$8:$B$143,2,FALSE) -> Pavilion | C64: Topups 80 | F64: 2003-01-01 | G64: 2021-04-01 | H64: 2022-03-31 | I64: NC Year 7 | J64: NC Year 8 | K64: Barnet | L64: PAV2 | M64: 80 | Q64: 11425
A65: 3021100 | B65: =VLOOKUP(A65,Schools!$A$8:$B$143,2,FALSE) -> Pavilion | C65: 157944 | F65: 2006-05-12 | G65: 2021-11-20 | J65: NC Year 11 | K65: Barnet | L65: PavE | M65: 1 | Q65: 11425
A66: 3021100 | B66: =VLOOKUP(A66,Schools!$A$8:$B$143,2,FALSE) -> Pavilion | C66: AdditionalPrimaryPlacefunding | F66: 2014-01-01 | J66: Nc Year 6 | K66: Barnet | L66: PRUAD | M66: 1 | N66: 16666 | Q66: 11425
A67: 3021100 | B67: =VLOOKUP(A67,Schools!$A$8:$B$143,2,FALSE) -> Pavilion | C67: 212285 | F67: 2006-11-03 | H67: 2021-08-31 | I67: NC Year 9 | K67: Barnet | L67: PavD | M67: 1 | Q67: 11425
A68: 3021100 | B68: =VLOOKUP(A68,Schools!$A$8:$B$143,2,FALSE) -> Pavilion | C68: 183720 | F68: 2006-01-08 | I68: NC Year 10 | J68: NC Year 11 | K68: Barnet | L68: PavD | M68: 1 | Q68: 11425
A69: 3021100 | B69: =VLOOKUP(A69,Schools!$A$8:$B$143,2,FALSE) -> Pavilion | C69: 162775 | F69: 2005-12-24 | I69: NC Year 10 | J69: NC Year 11 | K69: Barnet | L69: PavE | M69: 1 | Q69: 11425
A70: 3022001 | B70: =VLOOKUP(A70,Schools!$A$8:$B$143,2,FALSE) -> Etz Chaim Jewish Primary School | C70: 1003783 | F70: 2011-07-22 | I70: NC Year 5 | J70: NC Year 6 | K70: Barnet | L70: D | M70: 1 | Q70: 11443
A71: 3022002 | B71: =VLOOKUP(A71,Schools!$A$8:$B$143,2,FALSE) -> Barnfield School | C71: 274331 | F71: 2009-05-05 | H71: 2021-08-31 | I71: NC Year 6 | K71: Barnet | L71: D | M71: 1 | Q71: 11431
A72: 3022002 | B72: =VLOOKUP(A72,Schools!$A$8:$B$143,2,FALSE) -> Barnfield School | C72: 1122105 | F72: 2017-01-24 | H72: 2021-07-23 | I72: Nursery 2 | K72: Barnet | L72: EXY | M72: 1 | N72: 1472.5 | Q72: 10265
A73: 3022002 | B73: =VLOOKUP(A73,Schools!$A$8:$B$143,2,FALSE) -> Barnfield School | C73: 1122105 | F73: 2017-01-24 | G73: 2022-01-05 | J73: Reception | K73: Barnet | L73: B | M73: 1 | Q73: 11431
A74: 3022002 | B74: =VLOOKUP(A74,Schools!$A$8:$B$143,2,FALSE) -> Barnfield School | C74: 1144909 | F74: 2017-05-27 | H74: 2021-07-23 | I74: Nursery 2 | K74: Barnet | L74: EXY | M74: 1 | N74: 1472.5 | Q74: 10265
A75: 3022002 | B75: =VLOOKUP(A75,Schools!$A$8:$B$143,2,FALSE) -> Barnfield School | C75: 1002812 | F75: 2010-12-31 | I75: NC Year 5 | J75: NC Year 6 | K75: Barnet | L75: C | M75: 1 | Q75: 11431
A76: 3022002 | B76: =VLOOKUP(A76,Schools!$A$8:$B$143,2,FALSE) -> Barnfield School | C76: 1040297 | F76: 2012-06-25 | G76: 2021-09-30 | J76: NC Year 5 | K76: Barnet | L76: B | M76: 1 | Q76: 11431
A77: 3022002 | B77: =VLOOKUP(A77,Schools!$A$8:$B$143,2,FALSE) -> Barnfield School | C77: 1159492 | F77: 2017-10-23 | G77: 2022-01-04 | H77: 2022-03-31 | J77: Nursery 2 | K77: Barnet | L77: EXY | M77: 1 | N77: 1469.96 | Q77: 10265
A78: 3022002 | B78: =VLOOKUP(A78,Schools!$A$8:$B$143,2,FALSE) -> Barnfield School | C78: 1009527 | F78: 2011-03-03 | G78: 2021-06-21 | I78: NC Year 5 | J78: Nc Year 6 | K78: Barnet | L78: C | M78: 1 | Q78: 11431
A79: 3022002 | B79: =VLOOKUP(A79,Schools!$A$8:$B$143,2,FALSE) -> Barnfield School | C79: 1115600 | F79: 2016-07-19 | G79: 2021-04-06 | I79: Reception | J79: NC Year 1 | K79: Barnet | L79: C | M79: 1 | Q79: 11431
A80: 3022002 | B80: =VLOOKUP(A80,Schools!$A$8:$B$143,2,FALSE) -> Barnfield School | C80: 1152453 | F80: 2012-04-15 | G80: 2021-03-26 | I80: NC Year 4 | J80: NC Year 5 | K80: Barnet | L80: B | M80: 1 | Q80: 11431
A81: 3022002 | B81: =VLOOKUP(A81,Schools!$A$8:$B$143,2,FALSE) -> Barnfield School | C81: 1142557 | F81: 2017-06-22 | G81: 2021-09-01 | J81: Reception | K81: Barnet | L81: C | M81: 1 | Q81: 11431
A82: 3022002 | B82: =VLOOKUP(A82,Schools!$A$8:$B$143,2,FALSE) -> Barnfield School | C82: 1116566 | F82: 2016-07-13 | I82: Reception | J82: NC Year 1 | K82: Barnet | L82: D | M82: 1 | P82: Move overseas | Q82: 11431
A83: 3022002 | B83: =VLOOKUP(A83,Schools!$A$8:$B$143,2,FALSE) -> Barnfield School | C83: 1067795 | F83: 2014-08-21 | I83: NC Year 2 | J83: NC Year 3 | K83: Barnet | L83: D | M83: 1 | Q83: 11431
A84: 3022002 | B84: =VLOOKUP(A84,Schools!$A$8:$B$143,2,FALSE) -> Barnfield School | C84: 1074093 | F84: 2014-12-01 | I84: NC Year 1 | J84: NC Year 2 | K84: Barnet | L84: C | M84: 1 | Q84: 11431
A85: 3022002 | B85: =VLOOKUP(A85,Schools!$A$8:$B$143,2,FALSE) -> Barnfield School | C85: 1130491 | F85: 2016-06-27 | G85: 2021-06-10 | I85: NC Year 4 | J85: NC Year 5 | K85: Barnet | L85: C | M85: 1 | Q85: 11431
A86: 3022002 | B86: =VLOOKUP(A86,Schools!$A$8:$B$143,2,FALSE) -> Barnfield School | C86: 1135558 | F86: 2018-03-18 | G86: 2022-01-04 | H86: 2022-03-31 | J86: Nursery 2 | K86: Barnet | L86: EXY | M86: 1 | N86: 1469.96 | Q86: 10265
A87: 3022002 | B87: =VLOOKUP(A87,Schools!$A$8:$B$143,2,FALSE) -> Barnfield School | C87: 1144921 | F87: 2017-06-26 | G87: 2021-09-01 | J87: Reception | K87: Barnet | L87: B | M87: 1 | Q87: 11431
A88: 3022003 | B88: =VLOOKUP(A88,Schools!$A$8:$B$143,2,FALSE) -> Bell Lane Primary School | C88: 1123196 | F88: 2014-11-12 | I88: NC Year 1 | J88: NC Year 2 | K88: Barnet | L88: C | M88: 1 | Q88: 11431
A89: 3022003 | B89: =VLOOKUP(A89,Schools!$A$8:$B$143,2,FALSE) -> Bell Lane Primary School | C89: 1155964 | F89: 2016-10-25 | G89: 2021-09-01 | J89: Reception | K89: Barnet | L89: D | M89: 1 | P89: Move to Ind | Q89: 11431
A90: 3022003 | B90: =VLOOKUP(A90,Schools!$A$8:$B$143,2,FALSE) -> Bell Lane Primary School | C90: 1126237 | F90: 2015-05-28 | I90: NC Year 1 | J90: NC Year 2 | K90: Barnet | L90: C | M90: 1 | Q90: 11431
A91: 3022003 | B91: =VLOOKUP(A91,Schools!$A$8:$B$143,2,FALSE) -> Bell Lane Primary School | C91: 1044920 | F91: 2014-03-21 | I91: NC Year 2 | J91: NC Year 3 | K91: Barnet | L91: C | M91: 1 | Q91: 11431
A92: 3022003 | B92: =VLOOKUP(A92,Schools!$A$8:$B$143,2,FALSE) -> Bell Lane Primary School | C92: 1135818 | F92: 2018-03-15 | G92: 2021-09-06 | H92: 2022-02-11 | J92: Nursery 2 | K92: Barnet | L92: EXY | M92: 1 | N92: 2123.5 | Q92: 10265
A93: 3022003 | B93: =VLOOKUP(A93,Schools!$A$8:$B$143,2,FALSE) -> Bell Lane Primary School | C93: 1005428 | F93: 2011-06-08 | I93: NC Year 5 | J93: NC Year 6 | K93: Barnet | L93: B | M93: 1 | Q93: 11431
A94: 3022003 | B94: =VLOOKUP(A94,Schools!$A$8:$B$143,2,FALSE) -> Bell Lane Primary School | C94: 1086945 | F94: 2015-06-29 | I94: NC Year 1 | J94: NC Year 2 | K94: Barnet | L94: C | M94: 1 | Q94: 11431
A95: 3022003 | B95: =VLOOKUP(A95,Schools!$A$8:$B$143,2,FALSE) -> Bell Lane Primary School | C95: 1076700 | F95: 2013-05-01 | I95: NC Year 3 | J95: NC Year 4 | K95: Barnet | L95: C | M95: 1 | Q95: 11431
A96: 3022003 | B96: =VLOOKUP(A96,Schools!$A$8:$B$143,2,FALSE) -> Bell Lane Primary School | C96: 1104637 | F96: 2014-08-02 | I96: NC Year 2 | J96: NC Year 3 | K96: Barnet | L96: D | M96: 1 | Q96: 11431
A97: 3022003 | B97: =VLOOKUP(A97,Schools!$A$8:$B$143,2,FALSE) -> Bell Lane Primary School | C97: 1137645 | F97: 2016-04-20 | G97: 2021-04-21 | I97: Reception | J97: NC Year 1 | K97: Barnet | L97: D | M97: 1 | Q97: 11431
A98: 3022003 | B98: =VLOOKUP(A98,Schools!$A$8:$B$143,2,FALSE) -> Bell Lane Primary School | C98: 1050663 | F98: 2014-04-01 | I98: NC Year 2 | J98: NC Year 3 | K98: Barnet | L98: D | M98: 1 | Q98: 11431
A99: 3022003 | B99: =VLOOKUP(A99,Schools!$A$8:$B$143,2,FALSE) -> Bell Lane Primary School | C99: 1038606 | F99: 2011-12-31 | I99: NC Year 4 | J99: NC Year 5 | K99: Barnet | L99: C | M99: 1 | Q99: 11431
A100: 3022003 | B100: =VLOOKUP(A100,Schools!$A$8:$B$143,2,FALSE) -> Bell Lane Primary School | C100: 1087847 | F100: 2015-08-05 | I100: NC Year 1 | J100: NC Year 2 | K100: Barnet | L100: D | M100: 1 | Q100: 11431
A101: 3022003 | B101: =VLOOKUP(A101,Schools!$A$8:$B$143,2,FALSE) -> Bell Lane Primary School | C101: 1122252 | F101: 2014-10-10 | G101: 2021-06-07 | I101: NC Year 1 | J101: NC Year 2 | K101: Barnet | L101: D | M101: 1 | Q101: 11431
A102: 3022003 | B102: =VLOOKUP(A102,Schools!$A$8:$B$143,2,FALSE) -> Bell Lane Primary School | C102: 1124357 | F102: 2017-03-21 | H102: 2021-07-23 | I102: Nursery 2 | K102: Barnet | L102: EXY | M102: 1 | N102: 1840.625 | Q102: 10265
A103: 3022003 | B103: =VLOOKUP(A103,Schools!$A$8:$B$143,2,FALSE) -> Bell Lane Primary School | C103: 1124357 | F103: 2017-03-21 | G103: 2021-09-01 | J103: Reception | K103: Barnet | L103: C | M103: 1 | Q103: 11431
A104: 3022004 | B104: =VLOOKUP(A104,Schools!$A$8:$B$143,2,FALSE) -> Rimon Jewish Primary School | C104: 1078594 | F104: 2012-09-21 | G104: 2022-01-13 | J104: NC Year 4 | K104: Barnet | L104: B | M104: 1 | Q104: 11443
A105: 3022004 | B105: =VLOOKUP(A105,Schools!$A$8:$B$143,2,FALSE) -> Rimon Jewish Primary School | C105: 1039420 | F105: 2011-12-27 | G105: 2021-02-17 | H105: 2021-08-31 | I105: NC Year 4 | K105: Barnet | L105: C | M105: 1 | Q105: 11443
A106: 3022004 | B106: =VLOOKUP(A106,Schools!$A$8:$B$143,2,FALSE) -> Rimon Jewish Primary School | C106: 1038283 | F106: 2011-12-01 | I106: NC Year 4 | J106: NC Year 5 | K106: Barnet | L106: C | M106: 1 | Q106: 11443
A107: 3022004 | B107: =VLOOKUP(A107,Schools!$A$8:$B$143,2,FALSE) -> Rimon Jewish Primary School | C107: 1136981 | F107: 2016-06-08 | I107: Reception | J107: NC Year 1 | K107: Barnet | L107: D | M107: 1 | Q107: 11443
A108: 3022004 | B108: =VLOOKUP(A108,Schools!$A$8:$B$143,2,FALSE) -> Rimon Jewish Primary School | C108: 298972 | F108: 2010-04-21 | H108: 2021-08-31 | I108: NC Year 6 | K108: Barnet | L108: C | M108: 1 | Q108: 11443
A109: 3022004 | B109: =VLOOKUP(A109,Schools!$A$8:$B$143,2,FALSE) -> Rimon Jewish Primary School | C109: 314233 | F109: 2010-08-16 | H109: 2021-08-31 | I109: NC Year 6 | K109: Barnet | L109: C | M109: 1 | Q109: 11443
A110: 3022004 | B110: =VLOOKUP(A110,Schools!$A$8:$B$143,2,FALSE) -> Rimon Jewish Primary School | C110: 1116735 | F110: 2015-11-17 | I110: Reception | J110: NC Year 1 | K110: Barnet | L110: C | M110: 1 | Q110: 11443
A111: 3022004 | B111: =VLOOKUP(A111,Schools!$A$8:$B$143,2,FALSE) -> Rimon Jewish Primary School | C111: 1127446 | F111: 2017-05-17 | G111: 2021-09-01 | J111: Reception | K111: Barnet | L111: B | M111: 1 | Q111: 11443
A112: 3022004 | B112: =VLOOKUP(A112,Schools!$A$8:$B$143,2,FALSE) -> Rimon Jewish Primary School | C112: 1039366 | F112: 2012-04-14 | G112: 2021-06-10 | H112: 2021-08-31 | I112: NC Year 4 | K112: Barnet | L112: B | M112: 1 | Q112: 11443
A113: 3022004 | B113: =VLOOKUP(A113,Schools!$A$8:$B$143,2,FALSE) -> Rimon Jewish Primary School | C113: 1041627 | F113: 2012-07-10 | G113: 2021-12-17 | J113: NC Year 5 | K113: Barnet | L113: D | M113: 1 | Q113: 11443
A114: 3022007 | B114: =VLOOKUP(A114,Schools!$A$8:$B$143,2,FALSE) -> Brookland Junior School | C114: 1115240 | F114: 2012-10-11 | I114: NC Year 3 | J114: NC Year 4 | K114: Barnet | L114: C | M114: 1 | Q114: 11431
A115: 3022007 | B115: =VLOOKUP(A115,Schools!$A$8:$B$143,2,FALSE) -> Brookland Junior School | C115: 1113505 | F115: 2012-06-11 | I115: NC Year 4 | J115: NC Year 5 | K115: Barnet | L115: D | M115: 1 | Q115: 11431
A116: 3022007 | B116: =VLOOKUP(A116,Schools!$A$8:$B$143,2,FALSE) -> Brookland Junior School | C116: 1009094 | F116: 2013-03-21 | I116: NC Year 3 | J116: NC Year 4 | K116: Barnet | L116: C | M116: 1 | Q116: 11431
A117: 3022007 | B117: =VLOOKUP(A117,Schools!$A$8:$B$143,2,FALSE) -> Brookland Junior School | C117: 294484 | F117: 2009-12-24 | H117: 2021-08-31 | I117: NC Year 6 | K117: Barnet | L117: D | M117: 1 | Q117: 11431
A118: 3022007 | B118: =VLOOKUP(A118,Schools!$A$8:$B$143,2,FALSE) -> Brookland Junior School | C118: 341355 | F118: 2010-11-28 | I118: NC Year 5 | J118: NC Year 6 | K118: Barnet | L118: D | M118: 1 | O118: Exceptional funding | Q118: 11431
A119: 3022007 | B119: =VLOOKUP(A119,Schools!$A$8:$B$143,2,FALSE) -> Brookland Junior School | C119: 1075863 | F119: 2013-05-05 | I119: NC Year 3 | J119: NC Year 4 | K119: Barnet | L119: D | M119: 1 | P119: Offset 1 year | Q119: 11431
A120: 3022007 | B120: =VLOOKUP(A120,Schools!$A$8:$B$143,2,FALSE) -> Brookland Junior School | C120: 303878 | F120: 2010-05-07 | H120: 2021-08-31 | I120: NC Year 6 | K120: Barnet | L120: D | M120: 1 | Q120: 11431
A121: 3022007 | B121: =VLOOKUP(A121,Schools!$A$8:$B$143,2,FALSE) -> Brookland Junior School | C121: 348702 | F121: 2011-04-05 | I121: NC Year 5 | J121: NC Year 6 | K121: Barnet | L121: C | M121: 1 | Q121: 11431
A122: 3022007 | B122: =VLOOKUP(A122,Schools!$A$8:$B$143,2,FALSE) -> Brookland Junior School | C122: 1003568 | F122: 2011-02-11 | I122: NC Year 5 | J122: NC Year 6 | K122: Barnet | L122: D | M122: 1 | Q122: 11431
A123: 3022007 | B123: =VLOOKUP(A123,Schools!$A$8:$B$143,2,FALSE) -> Brookland Junior School | C123: 1075043 | F123: 2013-03-15 | I123: NC Year 3 | J123: NC Year 4 | K123: Barnet | L123: C | M123: 1 | Q123: 11431
A124: 3022007 | B124: =VLOOKUP(A124,Schools!$A$8:$B$143,2,FALSE) -> Brookland Junior School | C124: 1060773 | F124: 2012-02-13 | I124: NC Year 3 | J124: NC Year 4 | K124: Barnet | L124: C | M124: 1 | Q124: 11431
A125: 3022007 | B125: =VLOOKUP(A125,Schools!$A$8:$B$143,2,FALSE) -> Brookland Junior School | C125: 1064278 | F125: 2011-11-01 | G125: 2022-01-10 | J125: NC Year 5 | K125: Barnet | L125: C | M125: 1 | Q125: 11431
A126: 3022007 | B126: =VLOOKUP(A126,Schools!$A$8:$B$143,2,FALSE) -> Brookland Junior School | C126: 1042195 | F126: 2012-06-14 | I126: NC Year 4 | J126: NC Year 5 | K126: Barnet | L126: D | M126: 1 | Q126: 11431
A127: 3022007 | B127: =VLOOKUP(A127,Schools!$A$8:$B$143,2,FALSE) -> Brookland Junior School | C127: 1049430 | F127: 2012-11-17 | I127: NC Year 3 | J127: NC Year 4 | K127: Barnet | L127: C | M127: 1 | Q127: 11431
A128: 3022007 | B128: =VLOOKUP(A128,Schools!$A$8:$B$143,2,FALSE) -> Brookland Junior School | C128: 1039457 | F128: 2012-03-06 | I128: NC Year 4 | J128: NC Year 5 | K128: Barnet | L128: C | M128: 1 | Q128: 11431
A129: 3022007 | B129: =VLOOKUP(A129,Schools!$A$8:$B$143,2,FALSE) -> Brookland Junior School | C129: 1039468 | F129: 2012-04-25 | G129: 2021-09-01 | J129: NC Year 5 | K129: Barnet | L129: C | M129: 1 | Q129: 11431
A130: 3022008 | B130: =VLOOKUP(A130,Schools!$A$8:$B$143,2,FALSE) -> Brookland Infant & Nursery School | C130: 1124328 | F130: 2015-11-13 | I130: Reception | J130: NC Year 1 | K130: Barnet | L130: C | M130: 1 | Q130: 11431
A131: 3022008 | B131: =VLOOKUP(A131,Schools!$A$8:$B$143,2,FALSE) -> Brookland Infant & Nursery School | C131: 1100894 | F131: 2014-01-23 | H131: 2021-08-31 | I131: NC Year 2 | K131: Barnet | L131: D | M131: 1 | Q131: 11431
A132: 3022008 | B132: =VLOOKUP(A132,Schools!$A$8:$B$143,2,FALSE) -> Brookland Infant & Nursery School | C132: 1124514 | F132: 2014-12-11 | I132: NC Year 1 | J132: NC Year 2 | K132: Barnet | L132: C | M132: 1 | P132: Tribunal orders 36.6 hours to be paid - band F £16695 | Q132: 11431
A133: 3022008 | B133: =VLOOKUP(A133,Schools!$A$8:$B$143,2,FALSE) -> Brookland Infant & Nursery School | C133: 1116151 | F133: 2015-04-25 | G133: 2021-12-16 | J133: NC Year 2 | K133: Barnet | L133: D | M133: 1 | Q133: 11431
A134: 3022008 | B134: =VLOOKUP(A134,Schools!$A$8:$B$143,2,FALSE) -> Brookland Infant & Nursery School | C134: 1121219 | F134: 2014-09-23 | I134: NC Year 1 | J134: NC Year 2 | K134: Barnet | L134: C | M134: 1 | Q134: 11431
A135: 3022008 | B135: =VLOOKUP(A135,Schools!$A$8:$B$143,2,FALSE) -> Brookland Infant & Nursery School | C135: 1115510 | F135: 2015-06-16 | G135: 2022-01-14 | J135: NC Year 2 | K135: Barnet | L135: C | M135: 1 | Q135: 11431
A136: 3022008 | B136: =VLOOKUP(A136,Schools!$A$8:$B$143,2,FALSE) -> Brookland Infant & Nursery School | C136: 1094474 | F136: 2014-05-23 | G136: 2021-12-03 | J136: NC Year 2 | K136: Barnet | L136: C | M136: 1 | Q136: 11431
A137: 3022008 | B137: =VLOOKUP(A137,Schools!$A$8:$B$143,2,FALSE) -> Brookland Infant & Nursery School | C137: 1157575 | F137: 2018-06-11 | G137: 2021-10-11 | H137: 2022-03-31 | J137: Nursery 2 | K137: Barnet | L137: EXY | M137: 1 | N137: 2216.5 | Q137: 10265
A138: 3022008 | B138: =VLOOKUP(A138,Schools!$A$8:$B$143,2,FALSE) -> Brookland Infant & Nursery School | C138: 1129745 | F138: 2016-07-15 | I138: Reception | J138: NC Year 1 | K138: Barnet | L138: C | M138: 1 | Q138: 11431
A139: 3022008 | B139: =VLOOKUP(A139,Schools!$A$8:$B$143,2,FALSE) -> Brookland Infant & Nursery School | C139: 1084008 | F139: 2015-01-22 | I139: NC Year 1 | J139: NC Year 2 | K139: Barnet | L139: C | M139: 1 | Q139: 11431
A140: 3022008 | B140: =VLOOKUP(A140,Schools!$A$8:$B$143,2,FALSE) -> Brookland Infant & Nursery School | C140: 1086579 | F140: 2015-04-13 | I140: NC Year 1 | J140: NC Year 2 | K140: Barnet | L140: C | M140: 1 | Q140: 11431
A141: 3022008 | B141: =VLOOKUP(A141,Schools!$A$8:$B$143,2,FALSE) -> Brookland Infant & Nursery School | C141: 1157562 | F141: 2018-01-20 | G141: 2021-11-29 | H141: 2022-03-31 | J141: Nursery 2 | K141: Barnet | L141: EXY | M141: 1 | N141: =271.25+1224.97 -> 1496.22 | P141: Special arrangement for full time costs. | Q141: 10265
A142: 3022008 | B142: =VLOOKUP(A142,Schools!$A$8:$B$143,2,FALSE) -> Brookland Infant & Nursery School | C142: 1090403 | F142: 2015-05-20 | I142: NC Year 1 | J142: NC Year 2 | K142: Barnet | L142: C | M142: 1 | Q142: 11431
A143: 3022008 | B143: =VLOOKUP(A143,Schools!$A$8:$B$143,2,FALSE) -> Brookland Infant & Nursery School | C143: 1141706 | F143: 2017-08-04 | G143: 2021-09-01 | J143: Nursery 2 | K143: Barnet | L143: N | M143: 1 | Q143: 11436
A144: 3022008 | B144: =VLOOKUP(A144,Schools!$A$8:$B$143,2,FALSE) -> Brookland Infant & Nursery School | C144: 1137173 | F144: 2016-01-22 | I144: Reception | J144: NC Year 1 | K144: Barnet | L144: D | M144: 1 | Q144: 11431
A145: 3022008 | B145: =VLOOKUP(A145,Schools!$A$8:$B$143,2,FALSE) -> Brookland Infant & Nursery School | C145: 1151907 | F145: 2017-10-26 | G145: 2021-10-11 | H145: 2022-03-31 | J145: Nursery 2 | K145: Barnet | L145: EXY | M145: 1 | N145: 1662.375 | Q145: 10265
A146: 3022008 | B146: =VLOOKUP(A146,Schools!$A$8:$B$143,2,FALSE) -> Brookland Infant & Nursery School | C146: 1125952 | F146: 2015-01-16 | I146: NC Year 1 | J146: NC Year 2 | K146: Barnet | L146: C | M146: 1 | P146: move out of borough | Q146: 11431
A147: 3022008 | B147: =VLOOKUP(A147,Schools!$A$8:$B$143,2,FALSE) -> Brookland Infant & Nursery School | C147: 302010508 | F147: 2014-05-01 | G147: 2021-04-01 | H147: 2021-07-23 | I147: NC Year 2 | K147: Barnet | L147: B | M147: 1 | Q147: 11431
A148: 3022008 | B148: =VLOOKUP(A148,Schools!$A$8:$B$143,2,FALSE) -> Brookland Infant & Nursery School | C148: 1127036 | F148: 2012-11-13 | H148: 2021-08-31 | I148: NC Year 2 | K148: Barnet | L148: D | M148: 1 | Q148: 11431
A149: 3022009 | B149: =VLOOKUP(A149,Schools!$A$8:$B$143,2,FALSE) -> Brunswick Park Primary & Nursery School | C149: 314107 | F149: 2009-12-13 | H149: 2021-08-31 | I149: NC Year 6 | K149: Barnet | L149: B | M149: 1 | Q149: 11431
A150: 3022009 | B150: =VLOOKUP(A150,Schools!$A$8:$B$143,2,FALSE) -> Brunswick Park Primary & Nursery School | C150: 1137239 | F150: 2016-08-29 | I150: Reception | J150: NC Year 1 | K150: Barnet | L150: C | M150: 1 | Q150: 11431
A151: 3022009 | B151: =VLOOKUP(A151,Schools!$A$8:$B$143,2,FALSE) -> Brunswick Park Primary & Nursery School | C151: 1126033 | F151: 2010-08-23 | G151: 2021-06-23 | H151: 2021-08-31 | I151: NC Year 6 | K151: Barnet | L151: C | M151: 1 | Q151: 11431
A152: 3022009 | B152: =VLOOKUP(A152,Schools!$A$8:$B$143,2,FALSE) -> Brunswick Park Primary & Nursery School | C152: 1096060 | F152: 2015-11-05 | I152: Reception | J152: NC Year 1 | K152: Barnet | L152: C | M152: 1 | Q152: 11431
A153: 3022009 | B153: =VLOOKUP(A153,Schools!$A$8:$B$143,2,FALSE) -> Brunswick Park Primary & Nursery School | C153: 1036478 | F153: 2011-09-16 | I153: NC Year 4 | J153: NC Year 5 | K153: Barnet | L153: D | M153: 1 | Q153: 11431
A154: 3022009 | B154: =VLOOKUP(A154,Schools!$A$8:$B$143,2,FALSE) -> Brunswick Park Primary & Nursery School | C154: 1054293 | F154: 2014-06-16 | I154: NC Year 2 | J154: NC Year 3 | K154: Barnet | L154: C | M154: 1 | Q154: 11431
A155: 3022009 | B155: =VLOOKUP(A155,Schools!$A$8:$B$143,2,FALSE) -> Brunswick Park Primary & Nursery School | C155: 315212 | F155: 2010-06-27 | H155: 2021-08-31 | I155: NC Year 6 | K155: Barnet | L155: C | M155: 1 | Q155: 11431
A156: 3022009 | B156: =VLOOKUP(A156,Schools!$A$8:$B$143,2,FALSE) -> Brunswick Park Primary & Nursery School | C156: 314756 | F156: 2010-07-23 | H156: 2021-08-31 | I156: NC Year 6 | K156: Barnet | L156: B | M156: 1 | Q156: 11431
A157: 3022009 | B157: =VLOOKUP(A157,Schools!$A$8:$B$143,2,FALSE) -> Brunswick Park Primary & Nursery School | C157: 1004774 | F157: 2011-03-29 | I157: NC Year 5 | J157: NC Year 6 | K157: Barnet | L157: C | M157: 1 | Q157: 11431
A158: 3022009 | B158: =VLOOKUP(A158,Schools!$A$8:$B$143,2,FALSE) -> Brunswick Park Primary & Nursery School | C158: 1077371 | F158: 2013-12-11 | I158: NC Year 2 | J158: NC Year 3 | K158: Barnet | L158: D | M158: 1 | Q158: 11431
A159: 3022009 | B159: =VLOOKUP(A159,Schools!$A$8:$B$143,2,FALSE) -> Brunswick Park Primary & Nursery School | C159: 1036627 | F159: 2012-03-09 | I159: NC Year 4 | J159: NC Year 5 | K159: Barnet | L159: C | M159: 1 | Q159: 11431
A160: 3022009 | B160: =VLOOKUP(A160,Schools!$A$8:$B$143,2,FALSE) -> Brunswick Park Primary & Nursery School | C160: 1123463 | F160: 2015-05-30 | I160: NC Year 1 | J160: NC Year 2 | K160: Barnet | L160: E | M160: 1 | Q160: 11431
A161: 3022009 | B161: =VLOOKUP(A161,Schools!$A$8:$B$143,2,FALSE) -> Brunswick Park Primary & Nursery School | C161: 1030651 | F161: 2013-05-17 | I161: NC Year 3 | J161: NC Year 4 | K161: Barnet | L161: F | M161: 1 | Q161: 11431
A162: 3022009 | B162: =VLOOKUP(A162,Schools!$A$8:$B$143,2,FALSE) -> Brunswick Park Primary & Nursery School | C162: 1055070 | F162: 2013-03-22 | I162: NC Year 3 | J162: NC Year 4 | K162: Barnet | L162: D | M162: 1 | Q162: 11431
A163: 3022010 | B163: =VLOOKUP(A163,Schools!$A$8:$B$143,2,FALSE) -> Child's Hill Academy | C163: 1150015 | F163: 2017-01-08 | G163: 2021-09-01 | J163: Reception | K163: Barnet | L163: D | M163: 1 | Q163: 11443
A164: 3022010 | B164: =VLOOKUP(A164,Schools!$A$8:$B$143,2,FALSE) -> Child's Hill Academy | C164: 1039972 | F164: 2012-07-31 | G164: 2021-12-01 | J164: NC Year 5 | K164: Barnet | L164: B | M164: 1 | Q164: 11443
A165: 3022010 | B165: =VLOOKUP(A165,Schools!$A$8:$B$143,2,FALSE) -> Child's Hill Academy | C165: 1113691 | F165: 2016-04-08 | I165: Reception | J165: NC Year 1 | K165: Barnet | L165: ARPCHIASD | M165: 1 | Q165: 11422
A166: 3022010 | B166: =VLOOKUP(A166,Schools!$A$8:$B$143,2,FALSE) -> Child's Hill Academy | C166: 1003314 | F166: 2011-06-27 | I166: NC Year 5 | J166: NC Year 6 | K166: Barnet | L166: C | M166: 1 | Q166: 11443
A167: 3022010 | B167: =VLOOKUP(A167,Schools!$A$8:$B$143,2,FALSE) -> Child's Hill Academy | C167: 1121698 | F167: 2016-11-14 | G167: 2021-02-08 | H167: 2021-07-23 | I167: Nursery 2 | K167: Barnet | L167: EXY | M167: 1 | N167: 2123.5 | Q167: 10265
A168: 3022010 | B168: =VLOOKUP(A168,Schools!$A$8:$B$143,2,FALSE) -> Child's Hill Academy | C168: 1121698 | F168: 2016-11-14 | G168: 2021-09-01 | J168: Reception | K168: Barnet | L168: C | M168: 1 | Q168: 11443
A169: 3022010 | B169: =VLOOKUP(A169,Schools!$A$8:$B$143,2,FALSE) -> Child's Hill Academy | C169: 1052295 | F169: 2012-05-12 | I169: NC Year 4 | J169: NC Year 5 | K169: Barnet | L169: C | M169: 1 | Q169: 11443
A170: 3022010 | B170: =VLOOKUP(A170,Schools!$A$8:$B$143,2,FALSE) -> Child's Hill Academy | C170: 1137967 | F170: 2016-09-29 | G170: 2021-09-01 | J170: Reception | K170: Barnet | L170: ARPCHIASD | M170: 1 | Q170: 11422
A171: 3022010 | B171: =VLOOKUP(A171,Schools!$A$8:$B$143,2,FALSE) -> Child's Hill Academy | C171: 1125413 | F171: 2017-08-09 | G171: 2021-09-01 | J171: Reception | K171: Barnet | L171: EHCPAD | M171: 1 | N171: =26395/12*7 -> 15397.08333 | P171: Possible change of type panel 24/9/20 | Q171: 11443
A172: 3022010 | B172: =VLOOKUP(A172,Schools!$A$8:$B$143,2,FALSE) -> Child's Hill Academy | C172: 1104457 | F172: 2014-07-14 | I172: NC Year 2 | J172: NC Year 3 | K172: Barnet | L172: C | M172: 1 | Q172: 11443
A173: 3022010 | B173: =VLOOKUP(A173,Schools!$A$8:$B$143,2,FALSE) -> Child's Hill Academy | C173: 301406 | F173: 2010-02-08 | H173: 2021-08-31 | I173: NC Year 6 | K173: Barnet | L173: ARPCHIASD | M173: 1 | Q173: 11422
A174: 3022010 | B174: =VLOOKUP(A174,Schools!$A$8:$B$143,2,FALSE) -> Child's Hill Academy | C174: 1129508 | F174: 2017-11-05 | G174: 2021-04-19 | H174: 2021-07-23 | I174: Nursery 2 | K174: Barnet | L174: EXY | M174: 1 | N174: 1364 | P174: Returned from Overseas | Q174: 10265
A175: 3022010 | B175: =VLOOKUP(A175,Schools!$A$8:$B$143,2,FALSE) -> Child's Hill Academy | C175: 1129508 | F175: 2017-11-05 | G175: 2021-09-06 | H175: 2022-03-31 | J175: Nursery 2 | K175: Barnet | L175: EXY | M175: 1 | N175: 3448.75 | Q175: 10265
A176: 3022010 | B176: =VLOOKUP(A176,Schools!$A$8:$B$143,2,FALSE) -> Child's Hill Academy | C176: 1121865 | F176: 2015-02-04 | H176: 2021-08-31 | I176: NC Year 1 | K176: Barnet | L176: ARPCHIASD | M176: 1 | Q176: 11422
A177: 3022010 | B177: =VLOOKUP(A177,Schools!$A$8:$B$143,2,FALSE) -> Child's Hill Academy | C177: 1135724 | F177: 2018-02-08 | H177: 2021-07-21 | I177: Nursery 2 | K177: Barnet | L177: EXY | M177: 1 | N177: 2828.75 | Q177: 10265
A178: 3022010 | B178: =VLOOKUP(A178,Schools!$A$8:$B$143,2,FALSE) -> Child's Hill Academy | C178: 1072504 | F178: 2012-12-16 | I178: NC Year 3 | J178: NC Year 4 | K178: Barnet | L178: D | M178: 1 | Q178: 11443
A179: 3022010 | B179: =VLOOKUP(A179,Schools!$A$8:$B$143,2,FALSE) -> Child's Hill Academy | C179: 1042115 | F179: 2011-11-28 | H179: 2021-05-28 | I179: NC Year 4 | K179: Barnet | L179: C | M179: 1 | Q179: 11443
A180: 3022010 | B180: =VLOOKUP(A180,Schools!$A$8:$B$143,2,FALSE) -> Child's Hill Academy | C180: 1154457 | F180: 2013-02-03 | G180: 2021-09-01 | J180: NC year 4 | K180: Barnet | L180: C | M180: 1 | Q180: 11443
A181: 3022010 | B181: =VLOOKUP(A181,Schools!$A$8:$B$143,2,FALSE) -> Child's Hill Academy | C181: 1062497 | F181: 2014-05-29 | I181: NC Year 2 | J181: NC Year 3 | K181: Barnet | L181: ARPCHIASD | M181: 1 | Q181: 11422
A182: 3022010 | B182: =VLOOKUP(A182,Schools!$A$8:$B$143,2,FALSE) -> Child's Hill Academy | C182: 1117142 | F182: 2015-07-21 | I182: NC Year 1 | J182: NC Year 2 | K182: Barnet | L182: ARPCHIASD | M182: 1 | Q182: 11422
A183: 3022010 | B183: =VLOOKUP(A183,Schools!$A$8:$B$143,2,FALSE) -> Child's Hill Academy | C183: 1144831 | F183: 2018-11-20 | G183: 2021-10-11 | H183: 2022-03-31 | J183: Nursery 2 | K183: Barnet | L183: EXY | M183: 1 | N183: 1662.375 | Q183: 10265
A184: 3022010 | B184: =VLOOKUP(A184,Schools!$A$8:$B$143,2,FALSE) -> Child's Hill Academy | C184: 1108649 | F184: 2016-02-20 | G184: 2021-10-12 | J184: NC Year 1 | K184: Barnet | L184: B | M184: 1 | Q184: 11443
A185: 3022010 | B185: =VLOOKUP(A185,Schools!$A$8:$B$143,2,FALSE) -> Child's Hill Academy | C185: 1061072 | F185: 2014-08-20 | I185: NC Year 2 | J185: NC Year 3 | K185: Barnet | L185: B | M185: 1 | O185: Exceptional funding | Q185: 11443
A186: 3022010 | B186: =VLOOKUP(A186,Schools!$A$8:$B$143,2,FALSE) -> Child's Hill Academy | C186: 349301 | F186: 2010-10-18 | I186: NC Year 5 | J186: NC Year 6 | K186: Barnet | L186: B | M186: 1 | Q186: 11443
A187: 3022010 | B187: =VLOOKUP(A187,Schools!$A$8:$B$143,2,FALSE) -> Child's Hill Academy | C187: 1106455 | F187: 2014-06-30 | I187: NC Year 2 | J187: NC Year 3 | K187: Barnet | L187: ARPCHIASD | M187: 1 | Q187: 11422
A188: 3022010 | B188: =VLOOKUP(A188,Schools!$A$8:$B$143,2,FALSE) -> Child's Hill Academy | C188: 1139445 | F188: 2018-01-19 | G188: 2021-10-11 | H188: 2022-03-31 | J188: Nursery 2 | K188: Barnet | L188: EXY | M188: 1 | N188: 2216.5 | Q188: 10265
A189: 3022010 | B189: =VLOOKUP(A189,Schools!$A$8:$B$143,2,FALSE) -> Child's Hill Academy | C189: 1037633 | F189: 2012-08-09 | I189: NC Year 4 | J189: NC Year 5 | K189: Barnet | L189: ARPCHIASD | M189: 1 | Q189: 11422
A190: 3022010 | B190: =VLOOKUP(A190,Schools!$A$8:$B$143,2,FALSE) -> Child's Hill Academy | C190: 348689 | F190: 2012-02-04 | I190: NC Year 4 | J190: NC Year 5 | K190: Barnet | L190: ARPCHIASD | M190: 1 | Q190: 11422
A191: 3022010 | B191: =VLOOKUP(A191,Schools!$A$8:$B$143,2,FALSE) -> Child's Hill Academy | C191: 348689 | F191: 2012-02-04 | G191: 2021-10-28 | J191: NC Year 5 | K191: Barnet | L191: ARPAD | M191: 1 | N191: =(10990/12*5)/2 -> 2289.583333 | Q191: 11422
A192: 3022010 | B192: =VLOOKUP(A192,Schools!$A$8:$B$143,2,FALSE) -> Child's Hill Academy | C192: 1125240 | F192: 2017-02-28 | G192: 2021-09-01 | J192: Reception | K192: Barnet | L192: ARPCHIASD | M192: 1 | Q192: 11422
A193: 3022010 | B193: =VLOOKUP(A193,Schools!$A$8:$B$143,2,FALSE) -> Child's Hill Academy | C193: 1055490 | F193: 2012-09-05 | I193: NC Year 3 | J193: NC Year 4 | K193: Barnet | L193: ARPCHIASD | M193: 1 | Q193: 11422
A194: 3022010 | B194: =VLOOKUP(A194,Schools!$A$8:$B$143,2,FALSE) -> Child's Hill Academy | C194: 1143436 | F194: 2016-10-28 | G194: 2021-09-01 | J194: Reception | K194: Barnet | L194: C | M194: 1 | Q194: 11443
A195: 3022010 | B195: =VLOOKUP(A195,Schools!$A$8:$B$143,2,FALSE) -> Child's Hill Academy | C195: 1026657 | F195: 2011-01-06 | I195: NC Year 5 | J195: NC Year 6 | K195: Barnet | L195: D | M195: 1 | Q195: 11443
A196: 3022010 | B196: =VLOOKUP(A196,Schools!$A$8:$B$143,2,FALSE) -> Child's Hill Academy | C196: 1114165 | F196: 2010-10-31 | I196: NC Year 5 | J196: NC Year 6 | K196: Barnet | L196: B | M196: 1 | Q196: 11443
A197: 3022010 | B197: =VLOOKUP(A197,Schools!$A$8:$B$143,2,FALSE) -> Child's Hill Academy | C197: 1040966 | F197: 2011-10-14 | G197: 2021-09-01 | J197: NC Year 5 | K197: Barnet | L197: ARPCHIASD | M197: 1 | Q197: 11422
A198: 3022010 | B198: =VLOOKUP(A198,Schools!$A$8:$B$143,2,FALSE) -> Child's Hill Academy | C198: 1027037 | F198: 2009-12-16 | H198: 2021-08-31 | I198: NC Year 6 | K198: Barnet | L198: ARPCHIASD | M198: 1 | Q198: 11422
A199: 3022010 | B199: =VLOOKUP(A199,Schools!$A$8:$B$143,2,FALSE) -> Child's Hill Academy | C199: 315893 | F199: 2010-05-23 | H199: 2021-08-31 | I199: NC Year 6 | K199: Barnet | L199: ARPCHIASD | M199: 1 | Q199: 11422
A200: 3022010 | B200: =VLOOKUP(A200,Schools!$A$8:$B$143,2,FALSE) -> Child's Hill Academy | C200: 1003594 | F200: 2011-05-03 | I200: NC Year 5 | J200: NC Year 6 | K200: Barnet | L200: ARPCHIASD | M200: 1 | Q200: 11422
... 925 more rows

Sheet Datacheck (hidden)
A1: =Data!A1 -> Code LA Df E | B1: =Data!B1 -> School Details Name | C1: School | D1: =Data!C1 -> LA Ref | E1: =Data!D1 -> Surname | F1: =Data!E1 -> Forename | G1: =Data!F1 -> DOB | H1: Date of birth | I1: =Data!G1 -> Start | J1: Startdate | K1: =Data!H1 -> End | L1: Enddate | M1: =Data!I1 -> 2020/21 NC Year | N1: =M1&"#" -> 2020/21 NC Year# | O1: =Data!J1 -> 2021/22 NC Year | P1: =O1&"#" -> 2021/22 NC Year# | Q1: Phase | R1: YGChange | S1: Phasechange | T1: =Data!K1 -> Funding LA | U1: =Data!L1 -> Band | V1: Bandcode | X1: =Data!M1 -> Band Percentage | Y1: =Data!N1 -> Additional | Z1: =Data!O1 -> SENIF/Exceptional comments | AA1: =Data!P1 -> Notes for 2019/20 | AB1: Unique LAREF? | AC1: SFT Note | AD1: =Data!Q1 -> Cost Centre | AE1: CostCentre check | AF1: PhaseSchool | AG1: CC Col | AH1: CC lookup | AI1: Does Cost centre match? | AJ1: Note if AD doesn't match AH | AK1: Calculated Costcentre
A2: =Data!A2 -> 3021000 | B2: =IF(A2=0,"",IF(Data!B2=VLOOKUP(A2,Schools!A:B,2,0), Data!B2,"**Unexpected school")) -> Brookhill Nursery | C2: =Data!B2 -> Brookhill Nursery | D2: =IF(A2=0,"",IF(Data!C2="","**Missing",Data!C2)) -> 1116620 | E2: =IF(A2=0,"",IF(Data!D2="","**Missing",TRIM(Data!D2))) -> **Missing | F2: =IF(A2=0,"",IF(Data!E2="","**Missing",TRIM(Data!E2))) -> **Missing | G2: =IF(A2=0,"",IF(Data!F2="XX","**Missing dob",IF(OR((TODAY()-Data!F2)/365>20,(TODAY()-Data!F2)/365<3),"**Unexpected date",Data!F2))) -> 2016-11-26 | H2: =Data!F2 -> 2016-11-26 | I2: =IF(Data!G2=0,0,IF(OR(Data!G2>Fyend),"**Unexpected date",Data!G2)) -> 2021-03-01 | J2: =Data!G2 -> 2021-03-01 | K2: =IF(Data!H2=0,0,IF(OR(Data!H2<Earliest,Data!H2>Fyend),"**Unexpected date",Data!H2)) -> 2021-03-31 | L2: =Data!H2 -> 2021-03-31 | M2: =IFERROR(VLOOKUP(Data!I2,Lookup!$A:$A,1,0), "**Unexpected Yeargroup") -> Nursery 2 | N2: =Data!I2 -> Nursery 2 | O2: =IFERROR(VLOOKUP(Data!J2,Lookup!$A:$A,1,0), "**Unexpected Yeargroup") -> 0 | P2: =Data!J2 -> 0 | Q2: =LEFT(IF(VLOOKUP(N2,Lookup!A:B,2,0)="Empty",VLOOKUP(P2,Lookup!A:B,2,0),VLOOKUP(N2,Lookup!A:B,2,0)),3) -> Nur | R2: =RIGHT(N2,4)&"/"&RIGHT(P2,2) -> ry 2/0 | S2: =IF(A2=0,"",IF(OR(R2="ry 2/n", R2="ry 1/n",R2="ar 6/7",R2="R 11/2"), "**Unexpected phase change",IF(R2="0/0", "**No Yeargroup entered", "OK"))) -> OK | T2: =Data!K2 -> Barnet | U2: =IF(A2=0,"",IFERROR(VLOOKUP(Data!L2,Bandlist!A:A,1,0),"**Unexpected band")) -> EXY | V2: =Data!L2 -> EXY | X2: =Data!M2 -> 1 | Y2: =Data!N2 -> 581.25 | Z2: =Data!O2 -> 0 | AA2: =Data!P2 -> 0 | AB2: =IF(COUNTIF(D:D,D2)=1,"OK",IF(COUNTIF(E:E,E2)>1,"OK","DuplicateLAREF")) -> OK | AD2: =Data!Q2 -> 10265 | AE2: =IFERROR(VLOOKUP(AD2,Costcentres!B:I,2,0),"**Unexpected CC") -> SEN Inclusion - Under 5s | AF2: =IF(AND(Q2="Nur",A2<3021005),"NS",Q2)&IF(VLOOKUP(A2,Schools!A:C,3,0)="M","Maint","Acad") -> NSMaint | AG2: =HLOOKUP(AF2,Bandlist!$A$3:$Y$4,2,0) -> 14 | AH2: =IF(T2="Barnet",VLOOKUP(U2,Bandlist!A:Y,Datacheck!AG2,0),0) -> 10265 | AI2: =IFERROR(IF(T2="Barnet",IF(AD2=AH2,AE2,"**Unexpected cost centre"), "**OOB pupil"),"**Unexpected cost centre") -> SEN Inclusion - Under 5s | AK2: =VLOOKUP(AH2,Costcentres!B:I,2,0) -> SEN Inclusion - Under 5s
A3: =Data!A3 -> 3021000 | B3: =IF(A3=0,"",IF(Data!B3=VLOOKUP(A3,Schools!A:B,2,0), Data!B3,"**Unexpected school")) -> Brookhill Nursery | C3: =Data!B3 -> Brookhill Nursery | D3: =IF(A3=0,"",IF(Data!C3="","**Missing",Data!C3)) -> 1145334 | E3: =IF(A3=0,"",IF(Data!D3="","**Missing",TRIM(Data!D3))) -> **Missing | F3: =IF(A3=0,"",IF(Data!E3="","**Missing",TRIM(Data!E3))) -> **Missing | G3: =IF(A3=0,"",IF(Data!F3="XX","**Missing dob",IF(OR((TODAY()-Data!F3)/365>20,(TODAY()-Data!F3)/365<3),"**Unexpected date",Data!F3))) -> 2018-11-05 | H3: =Data!F3 -> 2018-11-05 | I3: =IF(Data!G3=0,0,IF(OR(Data!G3>Fyend),"**Unexpected date",Data!G3)) -> 2021-02-08 | J3: =Data!G3 -> 2021-02-08 | K3: =IF(Data!H3=0,0,IF(OR(Data!H3<Earliest,Data!H3>Fyend),"**Unexpected date",Data!H3)) -> 2021-07-23 | L3: =Data!H3 -> 2021-07-23 | M3: =IFERROR(VLOOKUP(Data!I3,Lookup!$A:$A,1,0), "**Unexpected Yeargroup") -> Nursery 2 | N3: =Data!I3 -> Nursery 2 | O3: =IFERROR(VLOOKUP(Data!J3,Lookup!$A:$A,1,0), "**Unexpected Yeargroup") -> 0 | P3: =Data!J3 -> 0 | Q3: =LEFT(IF(VLOOKUP(N3,Lookup!A:B,2,0)="Empty",VLOOKUP(P3,Lookup!A:B,2,0),VLOOKUP(N3,Lookup!A:B,2,0)),3) -> Nur | R3: ry 2/0 | S3: =IF(A3=0,"",IF(OR(R3="ry 2/n", R3="ry 1/n",R3="ar 6/7",R3="R 11/2"), "**Unexpected phase change",IF(R3="0/0", "**No Yeargroup entered", "OK"))) -> OK | T3: =Data!K3 -> Barnet | U3: =IF(A3=0,"",IFERROR(VLOOKUP(Data!L3,Bandlist!A:A,1,0),"**Unexpected band")) -> EXY | V3: =Data!L3 -> EXY | X3: =Data!M3 -> 1 | Y3: =Data!N3 -> 3182.25 | Z3: =Data!O3 -> 0 | AA3: =Data!P3 -> 0 | AB3: OK | AD3: =Data!Q3 -> 10265 | AE3: =IFERROR(VLOOKUP(AD3,Costcentres!B:I,2,0),"**Unexpected CC") -> SEN Inclusion - Under 5s | AF3: =IF(AND(Q3="Nur",A3<3021005),"NS",Q3)&IF(VLOOKUP(A3,Schools!A:C,3,0)="M","Maint","Acad") -> NSMaint | AG3: =HLOOKUP(AF3,Bandlist!$A$3:$Y$4,2,0) -> 14 | AH3: =IF(T3="Barnet",VLOOKUP(U3,Bandlist!A:Y,Datacheck!AG3,0),0) -> 10265 | AI3: =IFERROR(IF(T3="Barnet",IF(AD3=AH3,AE3,"**Unexpected cost centre"), "**OOB pupil"),"**Unexpected cost centre") -> SEN Inclusion - Under 5s | AK3: =VLOOKUP(AH3,Costcentres!B:I,2,0) -> SEN Inclusion - Under 5s
A4: =Data!A4 -> 3021000 | B4: =IF(A4=0,"",IF(Data!B4=VLOOKUP(A4,Schools!A:B,2,0), Data!B4,"**Unexpected school")) -> Brookhill Nursery | C4: =Data!B4 -> Brookhill Nursery | D4: =IF(A4=0,"",IF(Data!C4="","**Missing",Data!C4)) -> 1149472 | E4: =IF(A4=0,"",IF(Data!D4="","**Missing",TRIM(Data!D4))) -> **Missing | F4: =IF(A4=0,"",IF(Data!E4="","**Missing",TRIM(Data!E4))) -> **Missing | G4: =IF(A4=0,"",IF(Data!F4="XX","**Missing dob",IF(OR((TODAY()-Data!F4)/365>20,(TODAY()-Data!F4)/365<3),"**Unexpected date",Data!F4))) -> 2018-04-18 | H4: =Data!F4 -> 2018-04-18 | I4: =IF(Data!G4=0,0,IF(OR(Data!G4>Fyend),"**Unexpected date",Data!G4)) -> 2021-09-06 | J4: =Data!G4 -> 2021-09-06 | K4: =IF(Data!H4=0,0,IF(OR(Data!H4<Earliest,Data!H4>Fyend),"**Unexpected date",Data!H4)) -> 2022-02-11 | L4: =Data!H4 -> 2022-02-11 | M4: =IFERROR(VLOOKUP(Data!I4,Lookup!$A:$A,1,0), "**Unexpected Yeargroup") -> 0 | N4: =Data!I4 -> 0 | O4: =IFERROR(VLOOKUP(Data!J4,Lookup!$A:$A,1,0), "**Unexpected Yeargroup") -> Nursery 2 | P4: =Data!J4 -> Nursery 2 | Q4: =LEFT(IF(VLOOKUP(N4,Lookup!A:B,2,0)="Empty",VLOOKUP(P4,Lookup!A:B,2,0),VLOOKUP(N4,Lookup!A:B,2,0)),3) -> Nur | R4: 0/ 2 | S4: OK | T4: =Data!K4 -> Barnet | U4: =IF(A4=0,"",IFERROR(VLOOKUP(Data!L4,Bandlist!A:A,1,0),"**Unexpected band")) -> EXY | V4: =Data!L4 -> EXY | X4: =Data!M4 -> 1 | Y4: =Data!N4 -> 2654.375 | Z4: =Data!O4 -> 0 | AA4: =Data!P4 -> 0 | AB4: OK | AD4: =Data!Q4 -> 10265 | AE4: =IFERROR(VLOOKUP(AD4,Costcentres!B:I,2,0),"**Unexpected CC") -> SEN Inclusion - Under 5s | AF4: =IF(AND(Q4="Nur",A4<3021005),"NS",Q4)&IF(VLOOKUP(A4,Schools!A:C,3,0)="M","Maint","Acad") -> NSMaint | AG4: =HLOOKUP(AF4,Bandlist!$A$3:$Y$4,2,0) -> 14 | AH4: =IF(T4="Barnet",VLOOKUP(U4,Bandlist!A:Y,Datacheck!AG4,0),0) -> 10265 | AI4: SEN Inclusion - Under 5s | AK4: =VLOOKUP(AH4,Costcentres!B:I,2,0) -> SEN Inclusion - Under 5s
A5: =Data!A5 -> 3021000 | B5: =IF(A5=0,"",IF(Data!B5=VLOOKUP(A5,Schools!A:B,2,0), Data!B5,"**Unexpected school")) -> Brookhill Nursery | C5: =Data!B5 -> Brookhill Nursery | D5: =IF(A5=0,"",IF(Data!C5="","**Missing",Data!C5)) -> 1141000 | E5: =IF(A5=0,"",IF(Data!D5="","**Missing",TRIM(Data!D5))) -> **Missing | F5: =IF(A5=0,"",IF(Data!E5="","**Missing",TRIM(Data!E5))) -> **Missing | G5: =IF(A5=0,"",IF(Data!F5="XX","**Missing dob",IF(OR((TODAY()-Data!F5)/365>20,(TODAY()-Data!F5)/365<3),"**Unexpected date",Data!F5))) -> 2018-01-06 | H5: =Data!F5 -> 2018-01-06 | I5: =IF(Data!G5=0,0,IF(OR(Data!G5>Fyend),"**Unexpected date",Data!G5)) -> 00:00:00 | J5: =Data!G5 -> 00:00:00 | K5: =IF(Data!H5=0,0,IF(OR(Data!H5<Earliest,Data!H5>Fyend),"**Unexpected date",Data!H5)) -> 2021-07-23 | L5: =Data!H5 -> 2021-07-23 | M5: =IFERROR(VLOOKUP(Data!I5,Lookup!$A:$A,1,0), "**Unexpected Yeargroup") -> Nursery 2 | N5: =Data!I5 -> Nursery 2 | O5: =IFERROR(VLOOKUP(Data!J5,Lookup!$A:$A,1,0), "**Unexpected Yeargroup") -> 0 | P5: =Data!J5 -> 0 | Q5: =LEFT(IF(VLOOKUP(N5,Lookup!A:B,2,0)="Empty",VLOOKUP(P5,Lookup!A:B,2,0),VLOOKUP(N5,Lookup!A:B,2,0)),3) -> Nur | R5: ry 2/0 | S5: OK | T5: =Data!K5 -> Barnet | U5: =IF(A5=0,"",IFERROR(VLOOKUP(Data!L5,Bandlist!A:A,1,0),"**Unexpected band")) -> EXY | V5: =Data!L5 -> EXY | X5: =Data!M5 -> 1 | Y5: =Data!N5 -> 1472.5 | Z5: =Data!O5 -> 0 | AA5: =Data!P5 -> 0 | AB5: OK | AD5: =Data!Q5 -> 10265 | AE5: =IFERROR(VLOOKUP(AD5,Costcentres!B:I,2,0),"**Unexpected CC") -> SEN Inclusion - Under 5s | AF5: =IF(AND(Q5="Nur",A5<3021005),"NS",Q5)&IF(VLOOKUP(A5,Schools!A:C,3,0)="M","Maint","Acad") -> NSMaint | AG5: =HLOOKUP(AF5,Bandlist!$A$3:$Y$4,2,0) -> 14 | AH5: =IF(T5="Barnet",VLOOKUP(U5,Bandlist!A:Y,Datacheck!AG5,0),0) -> 10265 | AI5: SEN Inclusion - Under 5s | AK5: =VLOOKUP(AH5,Costcentres!B:I,2,0) -> SEN Inclusion - Under 5s
A6: =Data!A6 -> 3021000 | B6: =IF(A6=0,"",IF(Data!B6=VLOOKUP(A6,Schools!A:B,2,0), Data!B6,"**Unexpected school")) -> Brookhill Nursery | C6: =Data!B6 -> Brookhill Nursery | D6: =IF(A6=0,"",IF(Data!C6="","**Missing",Data!C6)) -> 1141000 | E6: =IF(A6=0,"",IF(Data!D6="","**Missing",TRIM(Data!D6))) -> **Missing | F6: =IF(A6=0,"",IF(Data!E6="","**Missing",TRIM(Data!E6))) -> **Missing | G6: =IF(A6=0,"",IF(Data!F6="XX","**Missing dob",IF(OR((TODAY()-Data!F6)/365>20,(TODAY()-Data!F6)/365<3),"**Unexpected date",Data!F6))) -> 2018-01-06 | H6: =Data!F6 -> 2018-01-06 | I6: =IF(Data!G6=0,0,IF(OR(Data!G6>Fyend),"**Unexpected date",Data!G6)) -> 2021-09-06 | J6: =Data!G6 -> 2021-09-06 | K6: =IF(Data!H6=0,0,IF(OR(Data!H6<Earliest,Data!H6>Fyend),"**Unexpected date",Data!H6)) -> 2022-02-11 | L6: =Data!H6 -> 2022-02-11 | M6: =IFERROR(VLOOKUP(Data!I6,Lookup!$A:$A,1,0), "**Unexpected Yeargroup") -> 0 | N6: =Data!I6 -> 0 | O6: =IFERROR(VLOOKUP(Data!J6,Lookup!$A:$A,1,0), "**Unexpected Yeargroup") -> Nursery 2 | P6: =Data!J6 -> Nursery 2 | Q6: =LEFT(IF(VLOOKUP(N6,Lookup!A:B,2,0)="Empty",VLOOKUP(P6,Lookup!A:B,2,0),VLOOKUP(N6,Lookup!A:B,2,0)),3) -> Nur | R6: 0/ 2 | S6: OK | T6: =Data!K6 -> Barnet | U6: =IF(A6=0,"",IFERROR(VLOOKUP(Data!L6,Bandlist!A:A,1,0),"**Unexpected band")) -> EXY | V6: =Data!L6 -> EXY | X6: =Data!M6 -> 1 | Y6: =Data!N6 -> 2123.5 | Z6: =Data!O6 -> 0 | AA6: =Data!P6 -> 0 | AB6: OK | AD6: =Data!Q6 -> 10265 | AE6: =IFERROR(VLOOKUP(AD6,Costcentres!B:I,2,0),"**Unexpected CC") -> SEN Inclusion - Under 5s | AF6: =IF(AND(Q6="Nur",A6<3021005),"NS",Q6)&IF(VLOOKUP(A6,Schools!A:C,3,0)="M","Maint","Acad") -> NSMaint | AG6: =HLOOKUP(AF6,Bandlist!$A$3:$Y$4,2,0) -> 14 | AH6: =IF(T6="Barnet",VLOOKUP(U6,Bandlist!A:Y,Datacheck!AG6,0),0) -> 10265 | AI6: SEN Inclusion - Under 5s | AK6: =VLOOKUP(AH6,Costcentres!B:I,2,0) -> SEN Inclusion - Under 5s
A7: =Data!A7 -> 3021001 | B7: =IF(A7=0,"",IF(Data!B7=VLOOKUP(A7,Schools!A:B,2,0), Data!B7,"**Unexpected school")) -> Hampden Way Nursery | C7: =Data!B7 -> Hampden Way Nursery | D7: =IF(A7=0,"",IF(Data!C7="","**Missing",Data!C7)) -> 1156542 | E7: =IF(A7=0,"",IF(Data!D7="","**Missing",TRIM(Data!D7))) -> **Missing | F7: =IF(A7=0,"",IF(Data!E7="","**Missing",TRIM(Data!E7))) -> **Missing | G7: =IF(A7=0,"",IF(Data!F7="XX","**Missing dob",IF(OR((TODAY()-Data!F7)/365>20,(TODAY()-Data!F7)/365<3),"**Unexpected date",Data!F7))) -> 2018-10-11 | H7: =Data!F7 -> 2018-10-11 | I7: =IF(Data!G7=0,0,IF(OR(Data!G7>Fyend),"**Unexpected date",Data!G7)) -> 2021-10-22 | J7: =Data!G7 -> 2021-10-22 | K7: =IF(Data!H7=0,0,IF(OR(Data!H7<Earliest,Data!H7>Fyend),"**Unexpected date",Data!H7)) -> 00:00:00 | L7: =Data!H7 -> 00:00:00 | M7: =IFERROR(VLOOKUP(Data!I7,Lookup!$A:$A,1,0), "**Unexpected Yeargroup") -> 0 | N7: =Data!I7 -> 0 | O7: =IFERROR(VLOOKUP(Data!J7,Lookup!$A:$A,1,0), "**Unexpected Yeargroup") -> Nursery 2 | P7: =Data!J7 -> Nursery 2 | Q7: =LEFT(IF(VLOOKUP(N7,Lookup!A:B,2,0)="Empty",VLOOKUP(P7,Lookup!A:B,2,0),VLOOKUP(N7,Lookup!A:B,2,0)),3) -> Nur | R7: 0/ 2 | S7: OK | T7: =Data!K7 -> Barnet | U7: =IF(A7=0,"",IFERROR(VLOOKUP(Data!L7,Bandlist!A:A,1,0),"**Unexpected band")) -> N | V7: =Data!L7 -> N | X7: =Data!M7 -> 1 | Y7: =Data!N7 -> 0 | Z7: =Data!O7 -> 0 | AA7: =Data!P7 -> 0 | AB7: OK | AD7: =Data!Q7 -> 11439 | AE7: =IFERROR(VLOOKUP(AD7,Costcentres!B:I,2,0),"**Unexpected CC") -> EHCP - Barnet Nursery Schools | AF7: =IF(AND(Q7="Nur",A7<3021005),"NS",Q7)&IF(VLOOKUP(A7,Schools!A:C,3,0)="M","Maint","Acad") -> NSMaint | AG7: =HLOOKUP(AF7,Bandlist!$A$3:$Y$4,2,0) -> 14 | AH7: =IF(T7="Barnet",VLOOKUP(U7,Bandlist!A:Y,Datacheck!AG7,0),0) -> 11439 | AI7: EHCP - Barnet Nursery Schools | AK7: =VLOOKUP(AH7,Costcentres!B:I,2,0) -> EHCP - Barnet Nursery Schools
A8: =Data!A8 -> 3021001 | B8: =IF(A8=0,"",IF(Data!B8=VLOOKUP(A8,Schools!A:B,2,0), Data!B8,"**Unexpected school")) -> Hampden Way Nursery | C8: =Data!B8 -> Hampden Way Nursery | D8: =IF(A8=0,"",IF(Data!C8="","**Missing",Data!C8)) -> 1156547 | E8: =IF(A8=0,"",IF(Data!D8="","**Missing",TRIM(Data!D8))) -> **Missing | F8: =IF(A8=0,"",IF(Data!E8="","**Missing",TRIM(Data!E8))) -> **Missing | G8: =IF(A8=0,"",IF(Data!F8="XX","**Missing dob",IF(OR((TODAY()-Data!F8)/365>20,(TODAY()-Data!F8)/365<3),"**Unexpected date",Data!F8))) -> 2018-12-28 | H8: =Data!F8 -> 2018-12-28 | I8: =IF(Data!G8=0,0,IF(OR(Data!G8>Fyend),"**Unexpected date",Data!G8)) -> 2022-01-04 | J8: =Data!G8 -> 2022-01-04 | K8: =IF(Data!H8=0,0,IF(OR(Data!H8<Earliest,Data!H8>Fyend),"**Unexpected date",Data!H8)) -> 2022-03-31 | L8: =Data!H8 -> 2022-03-31 | M8: =IFERROR(VLOOKUP(Data!I8,Lookup!$A:$A,1,0), "**Unexpected Yeargroup") -> 0 | N8: =Data!I8 -> 0 | O8: =IFERROR(VLOOKUP(Data!J8,Lookup!$A:$A,1,0), "**Unexpected Yeargroup") -> Nursery 2 | P8: =Data!J8 -> Nursery 2 | Q8: =LEFT(IF(VLOOKUP(N8,Lookup!A:B,2,0)="Empty",VLOOKUP(P8,Lookup!A:B,2,0),VLOOKUP(N8,Lookup!A:B,2,0)),3) -> Nur | R8: 0/ 2 | S8: OK | T8: =Data!K8 -> Barnet | U8: =IF(A8=0,"",IFERROR(VLOOKUP(Data!L8,Bandlist!A:A,1,0),"**Unexpected band")) -> EXY | V8: =Data!L8 -> EXY | X8: =Data!M8 -> 1 | Y8: =Data!N8 -> 1469.96 | Z8: =Data!O8 -> 0 | AA8: =Data!P8 -> 0 | AB8: OK | AD8: =Data!Q8 -> 10265 | AE8: =IFERROR(VLOOKUP(AD8,Costcentres!B:I,2,0),"**Unexpected CC") -> SEN Inclusion - Under 5s | AF8: =IF(AND(Q8="Nur",A8<3021005),"NS",Q8)&IF(VLOOKUP(A8,Schools!A:C,3,0)="M","Maint","Acad") -> NSMaint | AG8: =HLOOKUP(AF8,Bandlist!$A$3:$Y$4,2,0) -> 14 | AH8: =IF(T8="Barnet",VLOOKUP(U8,Bandlist!A:Y,Datacheck!AG8,0),0) -> 10265 | AI8: SEN Inclusion - Under 5s | AK8: =VLOOKUP(AH8,Costcentres!B:I,2,0) -> SEN Inclusion - Under 5s
A9: =Data!A9 -> 3021001 | B9: =IF(A9=0,"",IF(Data!B9=VLOOKUP(A9,Schools!A:B,2,0), Data!B9,"**Unexpected school")) -> Hampden Way Nursery | C9: =Data!B9 -> Hampden Way Nursery | D9: =IF(A9=0,"",IF(Data!C9="","**Missing",Data!C9)) -> 1158000 | E9: =IF(A9=0,"",IF(Data!D9="","**Missing",TRIM(Data!D9))) -> **Missing | F9: =IF(A9=0,"",IF(Data!E9="","**Missing",TRIM(Data!E9))) -> **Missing | G9: =IF(A9=0,"",IF(Data!F9="XX","**Missing dob",IF(OR((TODAY()-Data!F9)/365>20,(TODAY()-Data!F9)/365<3),"**Unexpected date",Data!F9))) -> 2018-08-13 | H9: =Data!F9 -> 2018-08-13 | I9: =IF(Data!G9=0,0,IF(OR(Data!G9>Fyend),"**Unexpected date",Data!G9)) -> 2022-01-04 | J9: =Data!G9 -> 2022-01-04 | K9: =IF(Data!H9=0,0,IF(OR(Data!H9<Earliest,Data!H9>Fyend),"**Unexpected date",Data!H9)) -> 2022-03-31 | L9: =Data!H9 -> 2022-03-31 | M9: =IFERROR(VLOOKUP(Data!I9,Lookup!$A:$A,1,0), "**Unexpected Yeargroup") -> 0 | N9: =Data!I9 -> 0 | O9: =IFERROR(VLOOKUP(Data!J9,Lookup!$A:$A,1,0), "**Unexpected Yeargroup") -> Nursery 2 | P9: =Data!J9 -> Nursery 2 | Q9: =LEFT(IF(VLOOKUP(N9,Lookup!A:B,2,0)="Empty",VLOOKUP(P9,Lookup!A:B,2,0),VLOOKUP(N9,Lookup!A:B,2,0)),3) -> Nur | R9: 0/ 2 | S9: OK | T9: =Data!K9 -> Barnet | U9: =IF(A9=0,"",IFERROR(VLOOKUP(Data!L9,Bandlist!A:A,1,0),"**Unexpected band")) -> EXY | V9: =Data!L9 -> EXY | X9: =Data!M9 -> 1 | Y9: =Data!N9 -> 918.72 | Z9: =Data!O9 -> 0 | AA9: =Data!P9 -> 0 | AB9: OK | AD9: =Data!Q9 -> 10265 | AE9: =IFERROR(VLOOKUP(AD9,Costcentres!B:I,2,0),"**Unexpected CC") -> SEN Inclusion - Under 5s | AF9: =IF(AND(Q9="Nur",A9<3021005),"NS",Q9)&IF(VLOOKUP(A9,Schools!A:C,3,0)="M","Maint","Acad") -> NSMaint | AG9: =HLOOKUP(AF9,Bandlist!$A$3:$Y$4,2,0) -> 14 | AH9: =IF(T9="Barnet",VLOOKUP(U9,Bandlist!A:Y,Datacheck!AG9,0),0) -> 10265 | AI9: SEN Inclusion - Under 5s | AK9: =VLOOKUP(AH9,Costcentres!B:I,2,0) -> SEN Inclusion - Under 5s
A10: =Data!A10 -> 3021001 | B10: =IF(A10=0,"",IF(Data!B10=VLOOKUP(A10,Schools!A:B,2,0), Data!B10,"**Unexpected school")) -> Hampden Way Nursery | C10: =Data!B10 -> Hampden Way Nursery | D10: =IF(A10=0,"",IF(Data!C10="","**Missing",Data!C10)) -> 1135677 | E10: =IF(A10=0,"",IF(Data!D10="","**Missing",TRIM(Data!D10))) -> **Missing | F10: =IF(A10=0,"",IF(Data!E10="","**Missing",TRIM(Data!E10))) -> **Missing | G10: =IF(A10=0,"",IF(Data!F10="XX","**Missing dob",IF(OR((TODAY()-Data!F10)/365>20,(TODAY()-Data!F10)/365<3),"**Unexpected date",Data!F10))) -> 2017-12-02 | H10: =Data!F10 -> 2017-12-02 | I10: =IF(Data!G10=0,0,IF(OR(Data!G10>Fyend),"**Unexpected date",Data!G10)) -> 00:00:00 | J10: =Data!G10 -> 00:00:00 | K10: =IF(Data!H10=0,0,IF(OR(Data!H10<Earliest,Data!H10>Fyend),"**Unexpected date",Data!H10)) -> 2021-07-23 | L10: =Data!H10 -> 2021-07-23 | M10: =IFERROR(VLOOKUP(Data!I10,Lookup!$A:$A,1,0), "**Unexpected Yeargroup") -> Nursery 2 | N10: =Data!I10 -> Nursery 2 | O10: =IFERROR(VLOOKUP(Data!J10,Lookup!$A:$A,1,0), "**Unexpected Yeargroup") -> 0 | P10: =Data!J10 -> 0 | Q10: =LEFT(IF(VLOOKUP(N10,Lookup!A:B,2,0)="Empty",VLOOKUP(P10,Lookup!A:B,2,0),VLOOKUP(N10,Lookup!A:B,2,0)),3) -> Nur | R10: ry 2/0 | S10: OK | T10: =Data!K10 -> Barnet | U10: =IF(A10=0,"",IFERROR(VLOOKUP(Data!L10,Bandlist!A:A,1,0),"**Unexpected band")) -> EXY | V10: =Data!L10 -> EXY | X10: =Data!M10 -> 1 | Y10: =Data!N10 -> 1840.625 | Z10: =Data!O10 -> 0 | AA10: =Data!P10 -> 0 | AB10: OK | AD10: =Data!Q10 -> 10265 | AE10: =IFERROR(VLOOKUP(AD10,Costcentres!B:I,2,0),"**Unexpected CC") -> SEN Inclusion - Under 5s | AF10: =IF(AND(Q10="Nur",A10<3021005),"NS",Q10)&IF(VLOOKUP(A10,Schools!A:C,3,0)="M","Maint","Acad") -> NSMaint | AG10: =HLOOKUP(AF10,Bandlist!$A$3:$Y$4,2,0) -> 14 | AH10: =IF(T10="Barnet",VLOOKUP(U10,Bandlist!A:Y,Datacheck!AG10,0),0) -> 10265 | AI10: SEN Inclusion - Under 5s | AK10: =VLOOKUP(AH10,Costcentres!B:I,2,0) -> SEN Inclusion - Under 5s
A11: =Data!A11 -> 3021001 | B11: =IF(A11=0,"",IF(Data!B11=VLOOKUP(A11,Schools!A:B,2,0), Data!B11,"**Unexpected school")) -> Hampden Way Nursery | C11: =Data!B11 -> Hampden Way Nursery | D11: =IF(A11=0,"",IF(Data!C11="","**Missing",Data!C11)) -> 1145337 | E11: =IF(A11=0,"",IF(Data!D11="","**Missing",TRIM(Data!D11))) -> **Missing | F11: =IF(A11=0,"",IF(Data!E11="","**Missing",TRIM(Data!E11))) -> **Missing | G11: =IF(A11=0,"",IF(Data!F11="XX","**Missing dob",IF(OR((TODAY()-Data!F11)/365>20,(TODAY()-Data!F11)/365<3),"**Unexpected date",Data!F11))) -> 2018-11-26 | H11: =Data!F11 -> 2018-11-26 | I11: =IF(Data!G11=0,0,IF(OR(Data!G11>Fyend),"**Unexpected date",Data!G11)) -> 2022-01-04 | J11: =Data!G11 -> 2022-01-04 | K11: =IF(Data!H11=0,0,IF(OR(Data!H11<Earliest,Data!H11>Fyend),"**Unexpected date",Data!H11)) -> 2022-03-31 | L11: =Data!H11 -> 2022-03-31 | M11: =IFERROR(VLOOKUP(Data!I11,Lookup!$A:$A,1,0), "**Unexpected Yeargroup") -> 0 | N11: =Data!I11 -> 0 | O11: =IFERROR(VLOOKUP(Data!J11,Lookup!$A:$A,1,0), "**Unexpected Yeargroup") -> Nursery 2 | P11: =Data!J11 -> Nursery 2 | Q11: =LEFT(IF(VLOOKUP(N11,Lookup!A:B,2,0)="Empty",VLOOKUP(P11,Lookup!A:B,2,0),VLOOKUP(N11,Lookup!A:B,2,0)),3) -> Nur | R11: 0/ 2 | S11: OK | T11: =Data!K11 -> Barnet | U11: =IF(A11=0,"",IFERROR(VLOOKUP(Data!L11,Bandlist!A:A,1,0),"**Unexpected band")) -> EXY | V11: =Data!L11 -> EXY | X11: =Data!M11 -> 1 | Y11: =Data!N11 -> 1224.97 | Z11: =Data!O11 -> 0 | AA11: =Data!P11 -> 0 | AB11: OK | AD11: =Data!Q11 -> 10265 | AE11: =IFERROR(VLOOKUP(AD11,Costcentres!B:I,2,0),"**Unexpected CC") -> SEN Inclusion - Under 5s | AF11: =IF(AND(Q11="Nur",A11<3021005),"NS",Q11)&IF(VLOOKUP(A11,Schools!A:C,3,0)="M","Maint","Acad") -> NSMaint | AG11: =HLOOKUP(AF11,Bandlist!$A$3:$Y$4,2,0) -> 14 | AH11: =IF(T11="Barnet",VLOOKUP(U11,Bandlist!A:Y,Datacheck!AG11,0),0) -> 10265 | AI11: SEN Inclusion - Under 5s | AK11: =VLOOKUP(AH11,Costcentres!B:I,2,0) -> SEN Inclusion - Under 5s
A12: =Data!A12 -> 3021001 | B12: =IF(A12=0,"",IF(Data!B12=VLOOKUP(A12,Schools!A:B,2,0), Data!B12,"**Unexpected school")) -> Hampden Way Nursery | C12: =Data!B12 -> Hampden Way Nursery | D12: =IF(A12=0,"",IF(Data!C12="","**Missing",Data!C12)) -> 1126475 | E12: =IF(A12=0,"",IF(Data!D12="","**Missing",TRIM(Data!D12))) -> **Missing | F12: =IF(A12=0,"",IF(Data!E12="","**Missing",TRIM(Data!E12))) -> **Missing | G12: =IF(A12=0,"",IF(Data!F12="XX","**Missing dob",IF(OR((TODAY()-Data!F12)/365>20,(TODAY()-Data!F12)/365<3),"**Unexpected date",Data!F12))) -> 2017-04-01 | H12: =Data!F12 -> 2017-04-01 | I12: =IF(Data!G12=0,0,IF(OR(Data!G12>Fyend),"**Unexpected date",Data!G12)) -> 00:00:00 | J12: =Data!G12 -> 00:00:00 | K12: =IF(Data!H12=0,0,IF(OR(Data!H12<Earliest,Data!H12>Fyend),"**Unexpected date",Data!H12)) -> 2021-07-23 | L12: =Data!H12 -> 2021-07-23 | M12: =IFERROR(VLOOKUP(Data!I12,Lookup!$A:$A,1,0), "**Unexpected Yeargroup") -> Nursery 2 | N12: =Data!I12 -> Nursery 2 | O12: =IFERROR(VLOOKUP(Data!J12,Lookup!$A:$A,1,0), "**Unexpected Yeargroup") -> 0 | P12: =Data!J12 -> 0 | Q12: =LEFT(IF(VLOOKUP(N12,Lookup!A:B,2,0)="Empty",VLOOKUP(P12,Lookup!A:B,2,0),VLOOKUP(N12,Lookup!A:B,2,0)),3) -> Nur | R12: ry 2/0 | S12: OK | T12: =Data!K12 -> Barnet | U12: =IF(A12=0,"",IFERROR(VLOOKUP(Data!L12,Bandlist!A:A,1,0),"**Unexpected band")) -> EXY | V12: =Data!L12 -> EXY | X12: =Data!M12 -> 1 | Y12: =Data!N12 -> 1355.925581 | Z12: =Data!O12 -> 0 | AA12: =Data!P12 -> 0 | AB12: OK | AD12: =Data!Q12 -> 10265 | AE12: =IFERROR(VLOOKUP(AD12,Costcentres!B:I,2,0),"**Unexpected CC") -> SEN Inclusion - Under 5s | AF12: =IF(AND(Q12="Nur",A12<3021005),"NS",Q12)&IF(VLOOKUP(A12,Schools!A:C,3,0)="M","Maint","Acad") -> NSMaint | AG12: =HLOOKUP(AF12,Bandlist!$A$3:$Y$4,2,0) -> 14 | AH12: =IF(T12="Barnet",VLOOKUP(U12,Bandlist!A:Y,Datacheck!AG12,0),0) -> 10265 | AI12: SEN Inclusion - Under 5s | AK12: =VLOOKUP(AH12,Costcentres!B:I,2,0) -> SEN Inclusion - Under 5s
A13: =Data!A13 -> 3021001 | B13: =IF(A13=0,"",IF(Data!B13=VLOOKUP(A13,Schools!A:B,2,0), Data!B13,"**Unexpected school")) -> Hampden Way Nursery | C13: =Data!B13 -> Hampden Way Nursery | D13: =IF(A13=0,"",IF(Data!C13="","**Missing",Data!C13)) -> 1157986 | E13: =IF(A13=0,"",IF(Data!D13="","**Missing",TRIM(Data!D13))) -> **Missing | F13: =IF(A13=0,"",IF(Data!E13="","**Missing",TRIM(Data!E13))) -> **Missing | G13: =IF(A13=0,"",IF(Data!F13="XX","**Missing dob",IF(OR((TODAY()-Data!F13)/365>20,(TODAY()-Data!F13)/365<3),"**Unexpected date",Data!F13))) -> 2018-08-16 | H13: =Data!F13 -> 2018-08-16 | I13: =IF(Data!G13=0,0,IF(OR(Data!G13>Fyend),"**Unexpected date",Data!G13)) -> 2022-01-04 | J13: =Data!G13 -> 2022-01-04 | K13: =IF(Data!H13=0,0,IF(OR(Data!H13<Earliest,Data!H13>Fyend),"**Unexpected date",Data!H13)) -> 2022-03-31 | L13: =Data!H13 -> 2022-03-31 | M13: =IFERROR(VLOOKUP(Data!I13,Lookup!$A:$A,1,0), "**Unexpected Yeargroup") -> 0 | N13: =Data!I13 -> 0 | O13: =IFERROR(VLOOKUP(Data!J13,Lookup!$A:$A,1,0), "**Unexpected Yeargroup") -> Nursery 2 | P13: =Data!J13 -> Nursery 2 | Q13: =LEFT(IF(VLOOKUP(N13,Lookup!A:B,2,0)="Empty",VLOOKUP(P13,Lookup!A:B,2,0),VLOOKUP(N13,Lookup!A:B,2,0)),3) -> Nur | R13: 0/ 2 | S13: OK | T13: =Data!K13 -> Barnet | U13: =IF(A13=0,"",IFERROR(VLOOKUP(Data!L13,Bandlist!A:A,1,0),"**Unexpected band")) -> EXY | V13: =Data!L13 -> EXY | X13: =Data!M13 -> 1 | Y13: =Data!N13 -> 918.72 | Z13: =Data!O13 -> 0 | AA13: =Data!P13 -> 0 | AB13: OK | AD13: =Data!Q13 -> 10265 | AE13: =IFERROR(VLOOKUP(AD13,Costcentres!B:I,2,0),"**Unexpected CC") -> SEN Inclusion - Under 5s | AF13: =IF(AND(Q13="Nur",A13<3021005),"NS",Q13)&IF(VLOOKUP(A13,Schools!A:C,3,0)="M","Maint","Acad") -> NSMaint | AG13: =HLOOKUP(AF13,Bandlist!$A$3:$Y$4,2,0) -> 14 | AH13: =IF(T13="Barnet",VLOOKUP(U13,Bandlist!A:Y,Datacheck!AG13,0),0) -> 10265 | AI13: SEN Inclusion - Under 5s | AK13: =VLOOKUP(AH13,Costcentres!B:I,2,0) -> SEN Inclusion - Under 5s
A14: =Data!A14 -> 3021001 | B14: =IF(A14=0,"",IF(Data!B14=VLOOKUP(A14,Schools!A:B,2,0), Data!B14,"**Unexpected school")) -> Hampden Way Nursery | C14: =Data!B14 -> Hampden Way Nursery | D14: =IF(A14=0,"",IF(Data!C14="","**Missing",Data!C14)) -> 1130427 | E14: =IF(A14=0,"",IF(Data!D14="","**Missing",TRIM(Data!D14))) -> **Missing | F14: =IF(A14=0,"",IF(Data!E14="","**Missing",TRIM(Data!E14))) -> **Missing | G14: =IF(A14=0,"",IF(Data!F14="XX","**Missing dob",IF(OR((TODAY()-Data!F14)/365>20,(TODAY()-Data!F14)/365<3),"**Unexpected date",Data!F14))) -> 2017-02-08 | H14: =Data!F14 -> 2017-02-08 | I14: =IF(Data!G14=0,0,IF(OR(Data!G14>Fyend),"**Unexpected date",Data!G14)) -> 2021-03-10 | J14: =Data!G14 -> 2021-03-10 | K14: =IF(Data!H14=0,0,IF(OR(Data!H14<Earliest,Data!H14>Fyend),"**Unexpected date",Data!H14)) -> 2021-03-31 | L14: =Data!H14 -> 2021-03-31 | M14: =IFERROR(VLOOKUP(Data!I14,Lookup!$A:$A,1,0), "**Unexpected Yeargroup") -> Nursery 2 | N14: =Data!I14 -> Nursery 2 | O14: =IFERROR(VLOOKUP(Data!J14,Lookup!$A:$A,1,0), "**Unexpected Yeargroup") -> 0 | P14: =Data!J14 -> 0 | Q14: =LEFT(IF(VLOOKUP(N14,Lookup!A:B,2,0)="Empty",VLOOKUP(P14,Lookup!A:B,2,0),VLOOKUP(N14,Lookup!A:B,2,0)),3) -> Nur | R14: ry 2/0 | S14: OK | T14: =Data!K14 -> Barnet | U14: =IF(A14=0,"",IFERROR(VLOOKUP(Data!L14,Bandlist!A:A,1,0),"**Unexpected band")) -> EXY | V14: =Data!L14 -> EXY | X14: =Data!M14 -> 1 | Y14: =Data!N14 -> 325.5 | Z14: =Data!O14 -> 0 | AA14: =Data!P14 -> 0 | AB14: OK | AD14: =Data!Q14 -> 10265 | AE14: =IFERROR(VLOOKUP(AD14,Costcentres!B:I,2,0),"**Unexpected CC") -> SEN Inclusion - Under 5s | AF14: =IF(AND(Q14="Nur",A14<3021005),"NS",Q14)&IF(VLOOKUP(A14,Schools!A:C,3,0)="M","Maint","Acad") -> NSMaint | AG14: =HLOOKUP(AF14,Bandlist!$A$3:$Y$4,2,0) -> 14 | AH14: =IF(T14="Barnet",VLOOKUP(U14,Bandlist!A:Y,Datacheck!AG14,0),0) -> 10265 | AI14: SEN Inclusion - Under 5s | AK14: =VLOOKUP(AH14,Costcentres!B:I,2,0) -> SEN Inclusion - Under 5s
A15: =Data!A15 -> 3021001 | B15: =IF(A15=0,"",IF(Data!B15=VLOOKUP(A15,Schools!A:B,2,0), Data!B15,"**Unexpected school")) -> Hampden Way Nursery | C15: =Data!B15 -> Hampden Way Nursery | D15: =IF(A15=0,"",IF(Data!C15="","**Missing",Data!C15)) -> 1143312 | E15: =IF(A15=0,"",IF(Data!D15="","**Missing",TRIM(Data!D15))) -> **Missing | F15: =IF(A15=0,"",IF(Data!E15="","**Missing",TRIM(Data!E15))) -> **Missing | G15: =IF(A15=0,"",IF(Data!F15="XX","**Missing dob",IF(OR((TODAY()-Data!F15)/365>20,(TODAY()-Data!F15)/365<3),"**Unexpected date",Data!F15))) -> 2017-08-09 | H15: =Data!F15 -> 2017-08-09 | I15: =IF(Data!G15=0,0,IF(OR(Data!G15>Fyend),"**Unexpected date",Data!G15)) -> 2021-09-06 | J15: =Data!G15 -> 2021-09-06 | K15: =IF(Data!H15=0,0,IF(OR(Data!H15<Earliest,Data!H15>Fyend),"**Unexpected date",Data!H15)) -> 2022-03-31 | L15: =Data!H15 -> 2022-03-31 | M15: =IFERROR(VLOOKUP(Data!I15,Lookup!$A:$A,1,0), "**Unexpected Yeargroup") -> 0 | N15: =Data!I15 -> 0 | O15: =IFERROR(VLOOKUP(Data!J15,Lookup!$A:$A,1,0), "**Unexpected Yeargroup") -> Nursery 2 | P15: =Data!J15 -> Nursery 2 | Q15: =LEFT(IF(VLOOKUP(N15,Lookup!A:B,2,0)="Empty",VLOOKUP(P15,Lookup!A:B,2,0),VLOOKUP(N15,Lookup!A:B,2,0)),3) -> Nur | R15: 0/ 2 | S15: OK | T15: =Data!K15 -> Barnet | U15: =IF(A15=0,"",IFERROR(VLOOKUP(Data!L15,Bandlist!A:A,1,0),"**Unexpected band")) -> EXY | V15: =Data!L15 -> EXY | X15: =Data!M15 -> 1 | Y15: =Data!N15 -> 5549 | Z15: =Data!O15 -> 0 | AA15: =Data!P15 -> 0 | AB15: OK | AD15: =Data!Q15 -> 10265 | AE15: =IFERROR(VLOOKUP(AD15,Costcentres!B:I,2,0),"**Unexpected CC") -> SEN Inclusion - Under 5s | AF15: =IF(AND(Q15="Nur",A15<3021005),"NS",Q15)&IF(VLOOKUP(A15,Schools!A:C,3,0)="M","Maint","Acad") -> NSMaint | AG15: =HLOOKUP(AF15,Bandlist!$A$3:$Y$4,2,0) -> 14 | AH15: =IF(T15="Barnet",VLOOKUP(U15,Bandlist!A:Y,Datacheck!AG15,0),0) -> 10265 | AI15: SEN Inclusion - Under 5s | AK15: =VLOOKUP(AH15,Costcentres!B:I,2,0) -> SEN Inclusion - Under 5s
A16: =Data!A16 -> 3021002 | B16: =IF(A16=0,"",IF(Data!B16=VLOOKUP(A16,Schools!A:B,2,0), Data!B16,"**Unexpected school")) -> Moss Hall Nursery | C16: =Data!B16 -> Moss Hall Nursery | D16: =IF(A16=0,"",IF(Data!C16="","**Missing",Data!C16)) -> 1150086 | E16: =IF(A16=0,"",IF(Data!D16="","**Missing",TRIM(Data!D16))) -> **Missing | F16: =IF(A16=0,"",IF(Data!E16="","**Missing",TRIM(Data!E16))) -> **Missing | G16: =IF(A16=0,"",IF(Data!F16="XX","**Missing dob",IF(OR((TODAY()-Data!F16)/365>20,(TODAY()-Data!F16)/365<3),"**Unexpected date",Data!F16))) -> 2017-02-24 | H16: =Data!F16 -> 2017-02-24 | I16: =IF(Data!G16=0,0,IF(OR(Data!G16>Fyend),"**Unexpected date",Data!G16)) -> 2021-02-01 | J16: =Data!G16 -> 2021-02-01 | K16: =IF(Data!H16=0,0,IF(OR(Data!H16<Earliest,Data!H16>Fyend),"**Unexpected date",Data!H16)) -> 2021-05-28 | L16: =Data!H16 -> 2021-05-28 | M16: =IFERROR(VLOOKUP(Data!I16,Lookup!$A:$A,1,0), "**Unexpected Yeargroup") -> Nursery 2 | N16: =Data!I16 -> Nursery 2 | O16: =IFERROR(VLOOKUP(Data!J16,Lookup!$A:$A,1,0), "**Unexpected Yeargroup") -> 0 | P16: =Data!J16 -> 0 | Q16: =LEFT(IF(VLOOKUP(N16,Lookup!A:B,2,0)="Empty",VLOOKUP(P16,Lookup!A:B,2,0),VLOOKUP(N16,Lookup!A:B,2,0)),3) -> Nur | R16: ry 2/0 | S16: OK | T16: =Data!K16 -> Barnet | U16: =IF(A16=0,"",IFERROR(VLOOKUP(Data!L16,Bandlist!A:A,1,0),"**Unexpected band")) -> EXY | V16: =Data!L16 -> EXY | X16: =Data!M16 -> 1 | Y16: =Data!N16 -> 1840.63 | Z16: =Data!O16 -> 0 | AA16: =Data!P16 -> 0 | AB16: OK | AD16: =Data!Q16 -> 10265 | AE16: =IFERROR(VLOOKUP(AD16,Costcentres!B:I,2,0),"**Unexpected CC") -> SEN Inclusion - Under 5s | AF16: =IF(AND(Q16="Nur",A16<3021005),"NS",Q16)&IF(VLOOKUP(A16,Schools!A:C,3,0)="M","Maint","Acad") -> NSMaint | AG16: =HLOOKUP(AF16,Bandlist!$A$3:$Y$4,2,0) -> 14 | AH16: =IF(T16="Barnet",VLOOKUP(U16,Bandlist!A:Y,Datacheck!AG16,0),0) -> 10265 | AI16: SEN Inclusion - Under 5s | AK16: =VLOOKUP(AH16,Costcentres!B:I,2,0) -> SEN Inclusion - Under 5s
A17: =Data!A17 -> 3021002 | B17: =IF(A17=0,"",IF(Data!B17=VLOOKUP(A17,Schools!A:B,2,0), Data!B17,"**Unexpected school")) -> Moss Hall Nursery | C17: =Data!B17 -> Moss Hall Nursery | D17: =IF(A17=0,"",IF(Data!C17="","**Missing",Data!C17)) -> 1150086 | E17: =IF(A17=0,"",IF(Data!D17="","**Missing",TRIM(Data!D17))) -> **Missing | F17: =IF(A17=0,"",IF(Data!E17="","**Missing",TRIM(Data!E17))) -> **Missing | G17: =IF(A17=0,"",IF(Data!F17="XX","**Missing dob",IF(OR((TODAY()-Data!F17)/365>20,(TODAY()-Data!F17)/365<3),"**Unexpected date",Data!F17))) -> 2017-04-24 | H17: =Data!F17 -> 2017-04-24 | I17: =IF(Data!G17=0,0,IF(OR(Data!G17>Fyend),"**Unexpected date",Data!G17)) -> 2021-06-01 | J17: =Data!G17 -> 2021-06-01 | K17: =IF(Data!H17=0,0,IF(OR(Data!H17<Earliest,Data!H17>Fyend),"**Unexpected date",Data!H17)) -> 2021-08-31 | L17: =Data!H17 -> 2021-08-31 | M17: =IFERROR(VLOOKUP(Data!I17,Lookup!$A:$A,1,0), "**Unexpected Yeargroup") -> Nursery 2 | N17: =Data!I17 -> Nursery 2 | O17: =IFERROR(VLOOKUP(Data!J17,Lookup!$A:$A,1,0), "**Unexpected Yeargroup") -> 0 | P17: =Data!J17 -> 0 | Q17: =LEFT(IF(VLOOKUP(N17,Lookup!A:B,2,0)="Empty",VLOOKUP(P17,Lookup!A:B,2,0),VLOOKUP(N17,Lookup!A:B,2,0)),3) -> Nur | R17: ry 2/0 | S17: OK | T17: =Data!K17 -> Barnet | U17: =IF(A17=0,"",IFERROR(VLOOKUP(Data!L17,Bandlist!A:A,1,0),"**Unexpected band")) -> N | V17: =Data!L17 -> N | X17: =Data!M17 -> 1 | Y17: =Data!N17 -> 0 | Z17: =Data!O17 -> 0 | AA17: =Data!P17 -> 0 | AB17: OK | AD17: =Data!Q17 -> 11439 | AE17: =IFERROR(VLOOKUP(AD17,Costcentres!B:I,2,0),"**Unexpected CC") -> EHCP - Barnet Nursery Schools | AF17: =IF(AND(Q17="Nur",A17<3021005),"NS",Q17)&IF(VLOOKUP(A17,Schools!A:C,3,0)="M","Maint","Acad") -> NSMaint | AG17: =HLOOKUP(AF17,Bandlist!$A$3:$Y$4,2,0) -> 14 | AH17: =IF(T17="Barnet",VLOOKUP(U17,Bandlist!A:Y,Datacheck!AG17,0),0) -> 11439 | AI17: EHCP - Barnet Nursery Schools | AK17: =VLOOKUP(AH17,Costcentres!B:I,2,0) -> EHCP - Barnet Nursery Schools
A18: =Data!A18 -> 3021002 | B18: =IF(A18=0,"",IF(Data!B18=VLOOKUP(A18,Schools!A:B,2,0), Data!B18,"**Unexpected school")) -> Moss Hall Nursery | C18: =Data!B18 -> Moss Hall Nursery | D18: =IF(A18=0,"",IF(Data!C18="","**Missing",Data!C18)) -> 1153178 | E18: =IF(A18=0,"",IF(Data!D18="","**Missing",TRIM(Data!D18))) -> **Missing | F18: =IF(A18=0,"",IF(Data!E18="","**Missing",TRIM(Data!E18))) -> **Missing | G18: =IF(A18=0,"",IF(Data!F18="XX","**Missing dob",IF(OR((TODAY()-Data!F18)/365>20,(TODAY()-Data!F18)/365<3),"**Unexpected date",Data!F18))) -> 2017-12-26 | H18: =Data!F18 -> 2017-12-26 | I18: =IF(Data!G18=0,0,IF(OR(Data!G18>Fyend),"**Unexpected date",Data!G18)) -> 2021-09-06 | J18: =Data!G18 -> 2021-09-06 | K18: =IF(Data!H18=0,0,IF(OR(Data!H18<Earliest,Data!H18>Fyend),"**Unexpected date",Data!H18)) -> 2022-02-11 | L18: =Data!H18 -> 2022-02-11 | M18: =IFERROR(VLOOKUP(Data!I18,Lookup!$A:$A,1,0), "**Unexpected Yeargroup") -> 0 | N18: =Data!I18 -> 0 | O18: =IFERROR(VLOOKUP(Data!J18,Lookup!$A:$A,1,0), "**Unexpected Yeargroup") -> Nursery 2 | P18: =Data!J18 -> Nursery 2 | Q18: =LEFT(IF(VLOOKUP(N18,Lookup!A:B,2,0)="Empty",VLOOKUP(P18,Lookup!A:B,2,0),VLOOKUP(N18,Lookup!A:B,2,0)),3) -> Nur | R18: 0/ 2 | S18: OK | T18: =Data!K18 -> Barnet | U18: =IF(A18=0,"",IFERROR(VLOOKUP(Data!L18,Bandlist!A:A,1,0),"**Unexpected band")) -> EXY | V18: =Data!L18 -> EXY | X18: =Data!M18 -> 1 | Y18: =Data!N18 -> 4247 | Z18: =Data!O18 -> 0 | AA18: =Data!P18 -> 0 | AB18: OK | AD18: =Data!Q18 -> 10265 | AE18: =IFERROR(VLOOKUP(AD18,Costcentres!B:I,2,0),"**Unexpected CC") -> SEN Inclusion - Under 5s | AF18: =IF(AND(Q18="Nur",A18<3021005),"NS",Q18)&IF(VLOOKUP(A18,Schools!A:C,3,0)="M","Maint","Acad") -> NSMaint | AG18: =HLOOKUP(AF18,Bandlist!$A$3:$Y$4,2,0) -> 14 | AH18: =IF(T18="Barnet",VLOOKUP(U18,Bandlist!A:Y,Datacheck!AG18,0),0) -> 10265 | AI18: SEN Inclusion - Under 5s | AK18: =VLOOKUP(AH18,Costcentres!B:I,2,0) -> SEN Inclusion - Under 5s
A19: =Data!A19 -> 3021002 | B19: =IF(A19=0,"",IF(Data!B19=VLOOKUP(A19,Schools!A:B,2,0), Data!B19,"**Unexpected school")) -> Moss Hall Nursery | C19: =Data!B19 -> Moss Hall Nursery | D19: =IF(A19=0,"",IF(Data!C19="","**Missing",Data!C19)) -> 1144236 | E19: =IF(A19=0,"",IF(Data!D19="","**Missing",TRIM(Data!D19))) -> **Missing | F19: =IF(A19=0,"",IF(Data!E19="","**Missing",TRIM(Data!E19))) -> **Missing | G19: =IF(A19=0,"",IF(Data!F19="XX","**Missing dob",IF(OR((TODAY()-Data!F19)/365>20,(TODAY()-Data!F19)/365<3),"**Unexpected date",Data!F19))) -> 2017-02-09 | H19: =Data!F19 -> 2017-02-09 | I19: =IF(Data!G19=0,0,IF(OR(Data!G19>Fyend),"**Unexpected date",Data!G19)) -> 2021-02-01 | J19: =Data!G19 -> 2021-02-01 | K19: =IF(Data!H19=0,0,IF(OR(Data!H19<Earliest,Data!H19>Fyend),"**Unexpected date",Data!H19)) -> 2021-07-23 | L19: =Data!H19 -> 2021-07-23 | M19: =IFERROR(VLOOKUP(Data!I19,Lookup!$A:$A,1,0), "**Unexpected Yeargroup") -> Nursery 2 | N19: =Data!I19 -> Nursery 2 | O19: =IFERROR(VLOOKUP(Data!J19,Lookup!$A:$A,1,0), "**Unexpected Yeargroup") -> 0 | P19: =Data!J19 -> 0 | Q19: =LEFT(IF(VLOOKUP(N19,Lookup!A:B,2,0)="Empty",VLOOKUP(P19,Lookup!A:B,2,0),VLOOKUP(N19,Lookup!A:B,2,0)),3) -> Nur | R19: ry 2/0 | S19: OK | T19: =Data!K19 -> Barnet | U19: =IF(A19=0,"",IFERROR(VLOOKUP(Data!L19,Bandlist!A:A,1,0),"**Unexpected band")) -> EXY | V19: =Data!L19 -> EXY | X19: =Data!M19 -> 1 | Y19: =Data!N19 -> 2232 | Z19: =Data!O19 -> 0 | AA19: =Data!P19 -> 0 | AB19: OK | AD19: =Data!Q19 -> 10265 | AE19: =IFERROR(VLOOKUP(AD19,Costcentres!B:I,2,0),"**Unexpected CC") -> SEN Inclusion - Under 5s | AF19: =IF(AND(Q19="Nur",A19<3021005),"NS",Q19)&IF(VLOOKUP(A19,Schools!A:C,3,0)="M","Maint","Acad") -> NSMaint | AG19: =HLOOKUP(AF19,Bandlist!$A$3:$Y$4,2,0) -> 14 | AH19: =IF(T19="Barnet",VLOOKUP(U19,Bandlist!A:Y,Datacheck!AG19,0),0) -> 10265 | AI19: SEN Inclusion - Under 5s | AK19: =VLOOKUP(AH19,Costcentres!B:I,2,0) -> SEN Inclusion - Under 5s
A20: =Data!A20 -> 3021002 | B20: =IF(A20=0,"",IF(Data!B20=VLOOKUP(A20,Schools!A:B,2,0), Data!B20,"**Unexpected school")) -> Moss Hall Nursery | C20: =Data!B20 -> Moss Hall Nursery | D20: =IF(A20=0,"",IF(Data!C20="","**Missing",Data!C20)) -> 1144236 | E20: =IF(A20=0,"",IF(Data!D20="","**Missing",TRIM(Data!D20))) -> **Missing | F20: =IF(A20=0,"",IF(Data!E20="","**Missing",TRIM(Data!E20))) -> **Missing | G20: =IF(A20=0,"",IF(Data!F20="XX","**Missing dob",IF(OR((TODAY()-Data!F20)/365>20,(TODAY()-Data!F20)/365<3),"**Unexpected date",Data!F20))) -> 2017-02-09 | H20: =Data!F20 -> 2017-02-09 | I20: =IF(Data!G20=0,0,IF(OR(Data!G20>Fyend),"**Unexpected date",Data!G20)) -> 2021-04-19 | J20: =Data!G20 -> 2021-04-19 | K20: =IF(Data!H20=0,0,IF(OR(Data!H20<Earliest,Data!H20>Fyend),"**Unexpected date",Data!H20)) -> 2021-07-23 | L20: =Data!H20 -> 2021-07-23 | M20: =IFERROR(VLOOKUP(Data!I20,Lookup!$A:$A,1,0), "**Unexpected Yeargroup") -> Nursery 2 | N20: =Data!I20 -> Nursery 2 | O20: =IFERROR(VLOOKUP(Data!J20,Lookup!$A:$A,1,0), "**Unexpected Yeargroup") -> 0 | P20: =Data!J20 -> 0 | Q20: =LEFT(IF(VLOOKUP(N20,Lookup!A:B,2,0)="Empty",VLOOKUP(P20,Lookup!A:B,2,0),VLOOKUP(N20,Lookup!A:B,2,0)),3) -> Nur | R20: ry 2/0 | S20: OK | T20: =Data!K20 -> Barnet | U20: =IF(A20=0,"",IFERROR(VLOOKUP(Data!L20,Bandlist!A:A,1,0),"**Unexpected band")) -> EXY | V20: =Data!L20 -> EXY | X20: =Data!M20 -> 1 | Y20: =Data!N20 -> 272.8 | Z20: =Data!O20 -> 0 | AA20: =Data!P20 -> 0 | AB20: OK | AD20: =Data!Q20 -> 10265 | AE20: =IFERROR(VLOOKUP(AD20,Costcentres!B:I,2,0),"**Unexpected CC") -> SEN Inclusion - Under 5s | AF20: =IF(AND(Q20="Nur",A20<3021005),"NS",Q20)&IF(VLOOKUP(A20,Schools!A:C,3,0)="M","Maint","Acad") -> NSMaint | AG20: =HLOOKUP(AF20,Bandlist!$A$3:$Y$4,2,0) -> 14 | AH20: =IF(T20="Barnet",VLOOKUP(U20,Bandlist!A:Y,Datacheck!AG20,0),0) -> 10265 | AI20: SEN Inclusion - Under 5s | AK20: =VLOOKUP(AH20,Costcentres!B:I,2,0) -> SEN Inclusion - Under 5s
A21: =Data!A21 -> 3021002 | B21: =IF(A21=0,"",IF(Data!B21=VLOOKUP(A21,Schools!A:B,2,0), Data!B21,"**Unexpected school")) -> Moss Hall Nursery | C21: =Data!B21 -> Moss Hall Nursery | D21: =IF(A21=0,"",IF(Data!C21="","**Missing",Data!C21)) -> 1141425 | E21: =IF(A21=0,"",IF(Data!D21="","**Missing",TRIM(Data!D21))) -> **Missing | F21: =IF(A21=0,"",IF(Data!E21="","**Missing",TRIM(Data!E21))) -> **Missing | G21: =IF(A21=0,"",IF(Data!F21="XX","**Missing dob",IF(OR((TODAY()-Data!F21)/365>20,(TODAY()-Data!F21)/365<3),"**Unexpected date",Data!F21))) -> 2017-12-06 | H21: =Data!F21 -> 2017-12-06 | I21: =IF(Data!G21=0,0,IF(OR(Data!G21>Fyend),"**Unexpected date",Data!G21)) -> 2021-09-03 | J21: =Data!G21 -> 2021-09-03 | K21: =IF(Data!H21=0,0,IF(OR(Data!H21<Earliest,Data!H21>Fyend),"**Unexpected date",Data!H21)) -> 2021-12-17 | L21: =Data!H21 -> 2021-12-17 | M21: =IFERROR(VLOOKUP(Data!I21,Lookup!$A:$A,1,0), "**Unexpected Yeargroup") -> 0 | N21: =Data!I21 -> 0 | O21: =IFERROR(VLOOKUP(Data!J21,Lookup!$A:$A,1,0), "**Unexpected Yeargroup") -> Nursery 2 | P21: =Data!J21 -> Nursery 2 | Q21: =LEFT(IF(VLOOKUP(N21,Lookup!A:B,2,0)="Empty",VLOOKUP(P21,Lookup!A:B,2,0),VLOOKUP(N21,Lookup!A:B,2,0)),3) -> Nur | R21: 0/ 2 | S21: OK | T21: =Data!K21 -> Barnet | U21: =IF(A21=0,"",IFERROR(VLOOKUP(Data!L21,Bandlist!A:A,1,0),"**Unexpected band")) -> EXY | V21: =Data!L21 -> EXY | X21: =Data!M21 -> 1 | Y21: =Data!N21 -> 1519 | Z21: =Data!O21 -> 0 | AA21: =Data!P21 -> 0 | AB21: OK | AD21: =Data!Q21 -> 10265 | AE21: =IFERROR(VLOOKUP(AD21,Costcentres!B:I,2,0),"**Unexpected CC") -> SEN Inclusion - Under 5s | AF21: =IF(AND(Q21="Nur",A21<3021005),"NS",Q21)&IF(VLOOKUP(A21,Schools!A:C,3,0)="M","Maint","Acad") -> NSMaint | AG21: =HLOOKUP(AF21,Bandlist!$A$3:$Y$4,2,0) -> 14 | AH21: =IF(T21="Barnet",VLOOKUP(U21,Bandlist!A:Y,Datacheck!AG21,0),0) -> 10265 | AI21: SEN Inclusion - Under 5s | AK21: =VLOOKUP(AH21,Costcentres!B:I,2,0) -> SEN Inclusion - Under 5s
A22: =Data!A22 -> 3021002 | B22: =IF(A22=0,"",IF(Data!B22=VLOOKUP(A22,Schools!A:B,2,0), Data!B22,"**Unexpected school")) -> Moss Hall Nursery | C22: =Data!B22 -> Moss Hall Nursery | D22: =IF(A22=0,"",IF(Data!C22="","**Missing",Data!C22)) -> 1144244 | E22: =IF(A22=0,"",IF(Data!D22="","**Missing",TRIM(Data!D22))) -> **Missing | F22: =IF(A22=0,"",IF(Data!E22="","**Missing",TRIM(Data!E22))) -> **Missing | G22: =IF(A22=0,"",IF(Data!F22="XX","**Missing dob",IF(OR((TODAY()-Data!F22)/365>20,(TODAY()-Data!F22)/365<3),"**Unexpected date",Data!F22))) -> 2016-10-07 | H22: =Data!F22 -> 2016-10-07 | I22: =IF(Data!G22=0,0,IF(OR(Data!G22>Fyend),"**Unexpected date",Data!G22)) -> 2021-02-01 | J22: =Data!G22 -> 2021-02-01 | K22: =IF(Data!H22=0,0,IF(OR(Data!H22<Earliest,Data!H22>Fyend),"**Unexpected date",Data!H22)) -> 2021-07-23 | L22: =Data!H22 -> 2021-07-23 | M22: =IFERROR(VLOOKUP(Data!I22,Lookup!$A:$A,1,0), "**Unexpected Yeargroup") -> Nursery 2 | N22: =Data!I22 -> Nursery 2 | O22: =IFERROR(VLOOKUP(Data!J22,Lookup!$A:$A,1,0), "**Unexpected Yeargroup") -> 0 | P22: =Data!J22 -> 0 | Q22: =LEFT(IF(VLOOKUP(N22,Lookup!A:B,2,0)="Empty",VLOOKUP(P22,Lookup!A:B,2,0),VLOOKUP(N22,Lookup!A:B,2,0)),3) -> Nur | R22: ry 2/0 | S22: OK | T22: =Data!K22 -> Barnet | U22: =IF(A22=0,"",IFERROR(VLOOKUP(Data!L22,Bandlist!A:A,1,0),"**Unexpected band")) -> EXY | V22: =Data!L22 -> EXY | X22: =Data!M22 -> 1 | Y22: =Data!N22 -> 3348 | Z22: =Data!O22 -> 0 | AA22: =Data!P22 -> 0 | AB22: OK | AD22: =Data!Q22 -> 10265 | AE22: =IFERROR(VLOOKUP(AD22,Costcentres!B:I,2,0),"**Unexpected CC") -> SEN Inclusion - Under 5s | AF22: =IF(AND(Q22="Nur",A22<3021005),"NS",Q22)&IF(VLOOKUP(A22,Schools!A:C,3,0)="M","Maint","Acad") -> NSMaint | AG22: =HLOOKUP(AF22,Bandlist!$A$3:$Y$4,2,0) -> 14 | AH22: =IF(T22="Barnet",VLOOKUP(U22,Bandlist!A:Y,Datacheck!AG22,0),0) -> 10265 | AI22: SEN Inclusion - Under 5s | AK22: =VLOOKUP(AH22,Costcentres!B:I,2,0) -> SEN Inclusion - Under 5s
A23: =Data!A23 -> 3021002 | B23: =IF(A23=0,"",IF(Data!B23=VLOOKUP(A23,Schools!A:B,2,0), Data!B23,"**Unexpected school")) -> Moss Hall Nursery | C23: =Data!B23 -> Moss Hall Nursery | D23: =IF(A23=0,"",IF(Data!C23="","**Missing",Data!C23)) -> 1115994 | E23: =IF(A23=0,"",IF(Data!D23="","**Missing",TRIM(Data!D23))) -> **Missing | F23: =IF(A23=0,"",IF(Data!E23="","**Missing",TRIM(Data!E23))) -> **Missing | G23: =IF(A23=0,"",IF(Data!F23="XX","**Missing dob",IF(OR((TODAY()-Data!F23)/365>20,(TODAY()-Data!F23)/365<3),"**Unexpected date",Data!F23))) -> 2016-12-09 | H23: =Data!F23 -> 2016-12-09 | I23: =IF(Data!G23=0,0,IF(OR(Data!G23>Fyend),"**Unexpected date",Data!G23)) -> 2021-02-01 | J23: =Data!G23 -> 2021-02-01 | K23: =IF(Data!H23=0,0,IF(OR(Data!H23<Earliest,Data!H23>Fyend),"**Unexpected date",Data!H23)) -> 2021-03-31 | L23: =Data!H23 -> 2021-03-31 | M23: =IFERROR(VLOOKUP(Data!I23,Lookup!$A:$A,1,0), "**Unexpected Yeargroup") -> Nursery 2 | N23: =Data!I23 -> Nursery 2 | O23: =IFERROR(VLOOKUP(Data!J23,Lookup!$A:$A,1,0), "**Unexpected Yeargroup") -> 0 | P23: =Data!J23 -> 0 | Q23: =LEFT(IF(VLOOKUP(N23,Lookup!A:B,2,0)="Empty",VLOOKUP(P23,Lookup!A:B,2,0),VLOOKUP(N23,Lookup!A:B,2,0)),3) -> Nur | R23: ry 2/0 | S23: OK | T23: =Data!K23 -> Barnet | U23: =IF(A23=0,"",IFERROR(VLOOKUP(Data!L23,Bandlist!A:A,1,0),"**Unexpected band")) -> EXY | V23: =Data!L23 -> EXY | X23: =Data!M23 -> 1 | Y23: =Data!N23 -> 1581 | Z23: =Data!O23 -> 0 | AA23: =Data!P23 -> 27.5hours | AB23: OK | AD23: =Data!Q23 -> 10265 | AE23: =IFERROR(VLOOKUP(AD23,Costcentres!B:I,2,0),"**Unexpected CC") -> SEN Inclusion - Under 5s | AF23: =IF(AND(Q23="Nur",A23<3021005),"NS",Q23)&IF(VLOOKUP(A23,Schools!A:C,3,0)="M","Maint","Acad") -> NSMaint | AG23: =HLOOKUP(AF23,Bandlist!$A$3:$Y$4,2,0) -> 14 | AH23: =IF(T23="Barnet",VLOOKUP(U23,Bandlist!A:Y,Datacheck!AG23,0),0) -> 10265 | AI23: SEN Inclusion - Under 5s | AK23: =VLOOKUP(AH23,Costcentres!B:I,2,0) -> SEN Inclusion - Under 5s
A24: =Data!A24 -> 3021002 | B24: =IF(A24=0,"",IF(Data!B24=VLOOKUP(A24,Schools!A:B,2,0), Data!B24,"**Unexpected school")) -> Moss Hall Nursery | C24: =Data!B24 -> Moss Hall Nursery | D24: =IF(A24=0,"",IF(Data!C24="","**Missing",Data!C24)) -> 1115994 | E24: =IF(A24=0,"",IF(Data!D24="","**Missing",TRIM(Data!D24))) -> **Missing | F24: =IF(A24=0,"",IF(Data!E24="","**Missing",TRIM(Data!E24))) -> **Missing | G24: =IF(A24=0,"",IF(Data!F24="XX","**Missing dob",IF(OR((TODAY()-Data!F24)/365>20,(TODAY()-Data!F24)/365<3),"**Unexpected date",Data!F24))) -> 2016-12-09 | H24: =Data!F24 -> 2016-12-09 | I24: =IF(Data!G24=0,0,IF(OR(Data!G24>Fyend),"**Unexpected date",Data!G24)) -> 2021-04-19 | J24: =Data!G24 -> 2021-04-19 | K24: =IF(Data!H24=0,0,IF(OR(Data!H24<Earliest,Data!H24>Fyend),"**Unexpected date",Data!H24)) -> 2021-07-23 | L24: =Data!H24 -> 2021-07-23 | M24: =IFERROR(VLOOKUP(Data!I24,Lookup!$A:$A,1,0), "**Unexpected Yeargroup") -> Nursery 2 | N24: =Data!I24 -> Nursery 2 | O24: =IFERROR(VLOOKUP(Data!J24,Lookup!$A:$A,1,0), "**Unexpected Yeargroup") -> 0 | P24: =Data!J24 -> 0 | Q24: =LEFT(IF(VLOOKUP(N24,Lookup!A:B,2,0)="Empty",VLOOKUP(P24,Lookup!A:B,2,0),VLOOKUP(N24,Lookup!A:B,2,0)),3) -> Nur | R24: ry 2/0 | S24: OK | T24: =Data!K24 -> Barnet | U24: =IF(A24=0,"",IFERROR(VLOOKUP(Data!L24,Bandlist!A:A,1,0),"**Unexpected band")) -> EXY | V24: =Data!L24 -> EXY | X24: =Data!M24 -> 1 | Y24: =Data!N24 -> 1364 | Z24: =Data!O24 -> 0 | AA24: =Data!P24 -> 0 | AB24: OK | AD24: =Data!Q24 -> 10265 | AE24: =IFERROR(VLOOKUP(AD24,Costcentres!B:I,2,0),"**Unexpected CC") -> SEN Inclusion - Under 5s | AF24: =IF(AND(Q24="Nur",A24<3021005),"NS",Q24)&IF(VLOOKUP(A24,Schools!A:C,3,0)="M","Maint","Acad") -> NSMaint | AG24: =HLOOKUP(AF24,Bandlist!$A$3:$Y$4,2,0) -> 14 | AH24: =IF(T24="Barnet",VLOOKUP(U24,Bandlist!A:Y,Datacheck!AG24,0),0) -> 10265 | AI24: SEN Inclusion - Under 5s | AK24: =VLOOKUP(AH24,Costcentres!B:I,2,0) -> SEN Inclusion - Under 5s
A25: =Data!A25 -> 3021002 | B25: =IF(A25=0,"",IF(Data!B25=VLOOKUP(A25,Schools!A:B,2,0), Data!B25,"**Unexpected school")) -> Moss Hall Nursery | C25: =Data!B25 -> Moss Hall Nursery | D25: =IF(A25=0,"",IF(Data!C25="","**Missing",Data!C25)) -> 1115993 | E25: =IF(A25=0,"",IF(Data!D25="","**Missing",TRIM(Data!D25))) -> **Missing | F25: =IF(A25=0,"",IF(Data!E25="","**Missing",TRIM(Data!E25))) -> **Missing | G25: =IF(A25=0,"",IF(Data!F25="XX","**Missing dob",IF(OR((TODAY()-Data!F25)/365>20,(TODAY()-Data!F25)/365<3),"**Unexpected date",Data!F25))) -> 2016-12-09 | H25: =Data!F25 -> 2016-12-09 | I25: =IF(Data!G25=0,0,IF(OR(Data!G25>Fyend),"**Unexpected date",Data!G25)) -> 2021-02-10 | J25: =Data!G25 -> 2021-02-10 | K25: =IF(Data!H25=0,0,IF(OR(Data!H25<Earliest,Data!H25>Fyend),"**Unexpected date",Data!H25)) -> 2021-07-31 | L25: =Data!H25 -> 2021-07-31 | M25: =IFERROR(VLOOKUP(Data!I25,Lookup!$A:$A,1,0), "**Unexpected Yeargroup") -> Nursery 2 | N25: =Data!I25 -> Nursery 2 | O25: =IFERROR(VLOOKUP(Data!J25,Lookup!$A:$A,1,0), "**Unexpected Yeargroup") -> 0 | P25: =Data!J25 -> 0 | Q25: =LEFT(IF(VLOOKUP(N25,Lookup!A:B,2,0)="Empty",VLOOKUP(P25,Lookup!A:B,2,0),VLOOKUP(N25,Lookup!A:B,2,0)),3) -> Nur | R25: ry 2/0 | S25: OK | T25: =Data!K25 -> Barnet | U25: =IF(A25=0,"",IFERROR(VLOOKUP(Data!L25,Bandlist!A:A,1,0),"**Unexpected band")) -> N | V25: =Data!L25 -> N | X25: =Data!M25 -> 2 | Y25: =Data!N25 -> 0 | Z25: =Data!O25 -> 0 | AA25: =Data!P25 -> 0 | AB25: OK | AD25: =Data!Q25 -> 11439 | AE25: =IFERROR(VLOOKUP(AD25,Costcentres!B:I,2,0),"**Unexpected CC") -> EHCP - Barnet Nursery Schools | AF25: =IF(AND(Q25="Nur",A25<3021005),"NS",Q25)&IF(VLOOKUP(A25,Schools!A:C,3,0)="M","Maint","Acad") -> NSMaint | AG25: =HLOOKUP(AF25,Bandlist!$A$3:$Y$4,2,0) -> 14 | AH25: =IF(T25="Barnet",VLOOKUP(U25,Bandlist!A:Y,Datacheck!AG25,0),0) -> 11439 | AI25: EHCP - Barnet Nursery Schools | AK25: =VLOOKUP(AH25,Costcentres!B:I,2,0) -> EHCP - Barnet Nursery Schools
A26: =Data!A26 -> 3021002 | B26: =IF(A26=0,"",IF(Data!B26=VLOOKUP(A26,Schools!A:B,2,0), Data!B26,"**Unexpected school")) -> Moss Hall Nursery | C26: =Data!B26 -> Moss Hall Nursery | D26: =IF(A26=0,"",IF(Data!C26="","**Missing",Data!C26)) -> 1144217 | E26: =IF(A26=0,"",IF(Data!D26="","**Missing",TRIM(Data!D26))) -> **Missing | F26: =IF(A26=0,"",IF(Data!E26="","**Missing",TRIM(Data!E26))) -> **Missing | G26: =IF(A26=0,"",IF(Data!F26="XX","**Missing dob",IF(OR((TODAY()-Data!F26)/365>20,(TODAY()-Data!F26)/365<3),"**Unexpected date",Data!F26))) -> 2017-08-23 | H26: =Data!F26 -> 2017-08-23 | I26: =IF(Data!G26=0,0,IF(OR(Data!G26>Fyend),"**Unexpected date",Data!G26)) -> 2021-02-01 | J26: =Data!G26 -> 2021-02-01 | K26: =IF(Data!H26=0,0,IF(OR(Data!H26<Earliest,Data!H26>Fyend),"**Unexpected date",Data!H26)) -> 2021-07-23 | L26: =Data!H26 -> 2021-07-23 | M26: =IFERROR(VLOOKUP(Data!I26,Lookup!$A:$A,1,0), "**Unexpected Yeargroup") -> Nursery 2 | N26: =Data!I26 -> Nursery 2 | O26: =IFERROR(VLOOKUP(Data!J26,Lookup!$A:$A,1,0), "**Unexpected Yeargroup") -> 0 | P26: =Data!J26 -> 0 | Q26: =LEFT(IF(VLOOKUP(N26,Lookup!A:B,2,0)="Empty",VLOOKUP(P26,Lookup!A:B,2,0),VLOOKUP(N26,Lookup!A:B,2,0)),3) -> Nur | R26: ry 2/0 | S26: OK | T26: =Data!K26 -> Barnet | U26: =IF(A26=0,"",IFERROR(VLOOKUP(Data!L26,Bandlist!A:A,1,0),"**Unexpected band")) -> EXY | V26: =Data!L26 -> EXY | X26: =Data!M26 -> 1 | Y26: =Data!N26 -> 2790 | Z26: =Data!O26 -> 0 | AA26: =Data!P26 -> 0 | AB26: OK | AD26: =Data!Q26 -> 10265 | AE26: =IFERROR(VLOOKUP(AD26,Costcentres!B:I,2,0),"**Unexpected CC") -> SEN Inclusion - Under 5s | AF26: =IF(AND(Q26="Nur",A26<3021005),"NS",Q26)&IF(VLOOKUP(A26,Schools!A:C,3,0)="M","Maint","Acad") -> NSMaint | AG26: =HLOOKUP(AF26,Bandlist!$A$3:$Y$4,2,0) -> 14 | AH26: =IF(T26="Barnet",VLOOKUP(U26,Bandlist!A:Y,Datacheck!AG26,0),0) -> 10265 | AI26: SEN Inclusion - Under 5s | AK26: =VLOOKUP(AH26,Costcentres!B:I,2,0) -> SEN Inclusion - Under 5s
A27: =Data!A27 -> 3021002 | B27: =IF(A27=0,"",IF(Data!B27=VLOOKUP(A27,Schools!A:B,2,0), Data!B27,"**Unexpected school")) -> Moss Hall Nursery | C27: =Data!B27 -> Moss Hall Nursery | D27: =IF(A27=0,"",IF(Data!C27="","**Missing",Data!C27)) -> 1144217 | E27: =IF(A27=0,"",IF(Data!D27="","**Missing",TRIM(Data!D27))) -> **Missing | F27: =IF(A27=0,"",IF(Data!E27="","**Missing",TRIM(Data!E27))) -> **Missing | G27: =IF(A27=0,"",IF(Data!F27="XX","**Missing dob",IF(OR((TODAY()-Data!F27)/365>20,(TODAY()-Data!F27)/365<3),"**Unexpected date",Data!F27))) -> 2017-08-23 | H27: =Data!F27 -> 2017-08-23 | I27: =IF(Data!G27=0,0,IF(OR(Data!G27>Fyend),"**Unexpected date",Data!G27)) -> 2022-01-04 | J27: =Data!G27 -> 2022-01-04 | K27: =IF(Data!H27=0,0,IF(OR(Data!H27<Earliest,Data!H27>Fyend),"**Unexpected date",Data!H27)) -> 2022-03-31 | L27: =Data!H27 -> 2022-03-31 | M27: =IFERROR(VLOOKUP(Data!I27,Lookup!$A:$A,1,0), "**Unexpected Yeargroup") -> 0 | N27: =Data!I27 -> 0 | O27: =IFERROR(VLOOKUP(Data!J27,Lookup!$A:$A,1,0), "**Unexpected Yeargroup") -> Nursery 2 | P27: =Data!J27 -> Nursery 2 | Q27: =LEFT(IF(VLOOKUP(N27,Lookup!A:B,2,0)="Empty",VLOOKUP(P27,Lookup!A:B,2,0),VLOOKUP(N27,Lookup!A:B,2,0)),3) -> Nur | R27: 0/ 2 | S27: OK | T27: =Data!K27 -> Barnet | U27: =IF(A27=0,"",IFERROR(VLOOKUP(Data!L27,Bandlist!A:A,1,0),"**Unexpected band")) -> EXY | V27: =Data!L27 -> EXY | X27: =Data!M27 -> 1 | Y27: =Data!N27 -> 1531.21 | Z27: =Data!O27 -> 0 | AA27: =Data!P27 -> 0 | AB27: OK | AD27: =Data!Q27 -> 10265 | AE27: =IFERROR(VLOOKUP(AD27,Costcentres!B:I,2,0),"**Unexpected CC") -> SEN Inclusion - Under 5s | AF27: =IF(AND(Q27="Nur",A27<3021005),"NS",Q27)&IF(VLOOKUP(A27,Schools!A:C,3,0)="M","Maint","Acad") -> NSMaint | AG27: =HLOOKUP(AF27,Bandlist!$A$3:$Y$4,2,0) -> 14 | AH27: =IF(T27="Barnet",VLOOKUP(U27,Bandlist!A:Y,Datacheck!AG27,0),0) -> 10265 | AI27: SEN Inclusion - Under 5s | AK27: =VLOOKUP(AH27,Costcentres!B:I,2,0) -> SEN Inclusion - Under 5s
A28: =Data!A28 -> 3021002 | B28: =IF(A28=0,"",IF(Data!B28=VLOOKUP(A28,Schools!A:B,2,0), Data!B28,"**Unexpected school")) -> Moss Hall Nursery | C28: =Data!B28 -> Moss Hall Nursery | D28: =IF(A28=0,"",IF(Data!C28="","**Missing",Data!C28)) -> 1151181 | E28: =IF(A28=0,"",IF(Data!D28="","**Missing",TRIM(Data!D28))) -> **Missing | F28: =IF(A28=0,"",IF(Data!E28="","**Missing",TRIM(Data!E28))) -> **Missing | G28: =IF(A28=0,"",IF(Data!F28="XX","**Missing dob",IF(OR((TODAY()-Data!F28)/365>20,(TODAY()-Data!F28)/365<3),"**Unexpected date",Data!F28))) -> 2017-11-30 | H28: =Data!F28 -> 2017-11-30 | I28: =IF(Data!G28=0,0,IF(OR(Data!G28>Fyend),"**Unexpected date",Data!G28)) -> 2021-04-19 | J28: =Data!G28 -> 2021-04-19 | K28: =IF(Data!H28=0,0,IF(OR(Data!H28<Earliest,Data!H28>Fyend),"**Unexpected date",Data!H28)) -> 2021-10-22 | L28: =Data!H28 -> 2021-10-22 | M28: =IFERROR(VLOOKUP(Data!I28,Lookup!$A:$A,1,0), "**Unexpected Yeargroup") -> Nursery 1 | N28: =Data!I28 -> Nursery 1 | O28: =IFERROR(VLOOKUP(Data!J28,Lookup!$A:$A,1,0), "**Unexpected Yeargroup") -> Nursery 2 | P28: =Data!J28 -> Nursery 2 | Q28: =LEFT(IF(VLOOKUP(N28,Lookup!A:B,2,0)="Empty",VLOOKUP(P28,Lookup!A:B,2,0),VLOOKUP(N28,Lookup!A:B,2,0)),3) -> Nur | R28: ry 1/ 2 | S28: OK | T28: =Data!K28 -> Barnet | U28: =IF(A28=0,"",IFERROR(VLOOKUP(Data!L28,Bandlist!A:A,1,0),"**Unexpected band")) -> EXY | V28: =Data!L28 -> EXY | X28: =Data!M28 -> 1 | Y28: =Data!N28 -> 2654.375 | Z28: =Data!O28 -> 0 | AA28: =Data!P28 -> 0 | AB28: OK | AD28: =Data!Q28 -> 10265 | AE28: =IFERROR(VLOOKUP(AD28,Costcentres!B:I,2,0),"**Unexpected CC") -> SEN Inclusion - Under 5s | AF28: =IF(AND(Q28="Nur",A28<3021005),"NS",Q28)&IF(VLOOKUP(A28,Schools!A:C,3,0)="M","Maint","Acad") -> NSMaint | AG28: =HLOOKUP(AF28,Bandlist!$A$3:$Y$4,2,0) -> 14 | AH28: =IF(T28="Barnet",VLOOKUP(U28,Bandlist!A:Y,Datacheck!AG28,0),0) -> 10265 | AI28: SEN Inclusion - Under 5s | AK28: =VLOOKUP(AH28,Costcentres!B:I,2,0) -> SEN Inclusion - Under 5s
A29: =Data!A29 -> 3021002 | B29: =IF(A29=0,"",IF(Data!B29=VLOOKUP(A29,Schools!A:B,2,0), Data!B29,"**Unexpected school")) -> Moss Hall Nursery | C29: =Data!B29 -> Moss Hall Nursery | D29: =IF(A29=0,"",IF(Data!C29="","**Missing",Data!C29)) -> 1150764 | E29: =IF(A29=0,"",IF(Data!D29="","**Missing",TRIM(Data!D29))) -> **Missing | F29: =IF(A29=0,"",IF(Data!E29="","**Missing",TRIM(Data!E29))) -> **Missing | G29: =IF(A29=0,"",IF(Data!F29="XX","**Missing dob",IF(OR((TODAY()-Data!F29)/365>20,(TODAY()-Data!F29)/365<3),"**Unexpected date",Data!F29))) -> 2017-01-15 | H29: =Data!F29 -> 2017-01-15 | I29: =IF(Data!G29=0,0,IF(OR(Data!G29>Fyend),"**Unexpected date",Data!G29)) -> 2021-06-07 | J29: =Data!G29 -> 2021-06-07 | K29: =IF(Data!H29=0,0,IF(OR(Data!H29<Earliest,Data!H29>Fyend),"**Unexpected date",Data!H29)) -> 2021-07-23 | L29: =Data!H29 -> 2021-07-23 | M29: =IFERROR(VLOOKUP(Data!I29,Lookup!$A:$A,1,0), "**Unexpected Yeargroup") -> Nursery 2 | N29: =Data!I29 -> Nursery 2 | O29: =IFERROR(VLOOKUP(Data!J29,Lookup!$A:$A,1,0), "**Unexpected Yeargroup") -> 0 | P29: =Data!J29 -> 0 | Q29: =LEFT(IF(VLOOKUP(N29,Lookup!A:B,2,0)="Empty",VLOOKUP(P29,Lookup!A:B,2,0),VLOOKUP(N29,Lookup!A:B,2,0)),3) -> Nur | R29: ry 2/0 | S29: OK | T29: =Data!K29 -> Barnet | U29: =IF(A29=0,"",IFERROR(VLOOKUP(Data!L29,Bandlist!A:A,1,0),"**Unexpected band")) -> EXY | V29: =Data!L29 -> EXY | X29: =Data!M29 -> 1 | Y29: =Data!N29 -> 356.5 | Z29: =Data!O29 -> 0 | AA29: =Data!P29 -> 0 | AB29: OK | AD29: =Data!Q29 -> 10265 | AE29: =IFERROR(VLOOKUP(AD29,Costcentres!B:I,2,0),"**Unexpected CC") -> SEN Inclusion - Under 5s | AF29: =IF(AND(Q29="Nur",A29<3021005),"NS",Q29)&IF(VLOOKUP(A29,Schools!A:C,3,0)="M","Maint","Acad") -> NSMaint | AG29: =HLOOKUP(AF29,Bandlist!$A$3:$Y$4,2,0) -> 14 | AH29: =IF(T29="Barnet",VLOOKUP(U29,Bandlist!A:Y,Datacheck!AG29,0),0) -> 10265 | AI29: SEN Inclusion - Under 5s | AK29: =VLOOKUP(AH29,Costcentres!B:I,2,0) -> SEN Inclusion - Under 5s
A30: =Data!A30 -> 3021003 | B30: =IF(A30=0,"",IF(Data!B30=VLOOKUP(A30,Schools!A:B,2,0), Data!B30,"**Unexpected school")) -> St Margaret's Nursery | C30: =Data!B30 -> St Margaret's Nursery | D30: =IF(A30=0,"",IF(Data!C30="","**Missing",Data!C30)) -> 1141141 | E30: =IF(A30=0,"",IF(Data!D30="","**Missing",TRIM(Data!D30))) -> **Missing | F30: =IF(A30=0,"",IF(Data!E30="","**Missing",TRIM(Data!E30))) -> **Missing | G30: =IF(A30=0,"",IF(Data!F30="XX","**Missing dob",IF(OR((TODAY()-Data!F30)/365>20,(TODAY()-Data!F30)/365<3),"**Unexpected date",Data!F30))) -> 2016-10-26 | H30: =Data!F30 -> 2016-10-26 | I30: =IF(Data!G30=0,0,IF(OR(Data!G30>Fyend),"**Unexpected date",Data!G30)) -> 00:00:00 | J30: =Data!G30 -> 00:00:00 | K30: =IF(Data!H30=0,0,IF(OR(Data!H30<Earliest,Data!H30>Fyend),"**Unexpected date",Data!H30)) -> 2021-07-23 | L30: =Data!H30 -> 2021-07-23 | M30: =IFERROR(VLOOKUP(Data!I30,Lookup!$A:$A,1,0), "**Unexpected Yeargroup") -> Nursery 2 | N30: =Data!I30 -> Nursery 2 | O30: =IFERROR(VLOOKUP(Data!J30,Lookup!$A:$A,1,0), "**Unexpected Yeargroup") -> 0 | P30: =Data!J30 -> 0 | Q30: =LEFT(IF(VLOOKUP(N30,Lookup!A:B,2,0)="Empty",VLOOKUP(P30,Lookup!A:B,2,0),VLOOKUP(N30,Lookup!A:B,2,0)),3) -> Nur | R30: ry 2/0 | S30: OK | T30: =Data!K30 -> Barnet | U30: =IF(A30=0,"",IFERROR(VLOOKUP(Data!L30,Bandlist!A:A,1,0),"**Unexpected band")) -> N | V30: =Data!L30 -> N | X30: =Data!M30 -> 1.833333333 | Y30: =Data!N30 -> 0 | Z30: =Data!O30 -> 0 | AA30: =Data!P30 -> 0 | AB30: OK | AD30: =Data!Q30 -> 11439 | AE30: =IFERROR(VLOOKUP(AD30,Costcentres!B:I,2,0),"**Unexpected CC") -> EHCP - Barnet Nursery Schools | AF30: =IF(AND(Q30="Nur",A30<3021005),"NS",Q30)&IF(VLOOKUP(A30,Schools!A:C,3,0)="M","Maint","Acad") -> NSMaint | AG30: =HLOOKUP(AF30,Bandlist!$A$3:$Y$4,2,0) -> 14 | AH30: =IF(T30="Barnet",VLOOKUP(U30,Bandlist!A:Y,Datacheck!AG30,0),0) -> 11439 | AI30: EHCP - Barnet Nursery Schools | AK30: =VLOOKUP(AH30,Costcentres!B:I,2,0) -> EHCP - Barnet Nursery Schools
A31: =Data!A31 -> 3021003 | B31: =IF(A31=0,"",IF(Data!B31=VLOOKUP(A31,Schools!A:B,2,0), Data!B31,"**Unexpected school")) -> St Margaret's Nursery | C31: =Data!B31 -> St Margaret's Nursery | D31: =IF(A31=0,"",IF(Data!C31="","**Missing",Data!C31)) -> 1127466 | E31: =IF(A31=0,"",IF(Data!D31="","**Missing",TRIM(Data!D31))) -> **Missing | F31: =IF(A31=0,"",IF(Data!E31="","**Missing",TRIM(Data!E31))) -> **Missing | G31: =IF(A31=0,"",IF(Data!F31="XX","**Missing dob",IF(OR((TODAY()-Data!F31)/365>20,(TODAY()-Data!F31)/365<3),"**Unexpected date",Data!F31))) -> 2017-09-06 | H31: =Data!F31 -> 2017-09-06 | I31: =IF(Data!G31=0,0,IF(OR(Data!G31>Fyend),"**Unexpected date",Data!G31)) -> 2021-04-19 | J31: =Data!G31 -> 2021-04-19 | K31: =IF(Data!H31=0,0,IF(OR(Data!H31<Earliest,Data!H31>Fyend),"**Unexpected date",Data!H31)) -> 2021-10-22 | L31: =Data!H31 -> 2021-10-22 | M31: =IFERROR(VLOOKUP(Data!I31,Lookup!$A:$A,1,0), "**Unexpected Yeargroup") -> Nursery 1 | N31: =Data!I31 -> Nursery 1 | O31: =IFERROR(VLOOKUP(Data!J31,Lookup!$A:$A,1,0), "**Unexpected Yeargroup") -> Nursery 2 | P31: =Data!J31 -> Nursery 2 | Q31: =LEFT(IF(VLOOKUP(N31,Lookup!A:B,2,0)="Empty",VLOOKUP(P31,Lookup!A:B,2,0),VLOOKUP(N31,Lookup!A:B,2,0)),3) -> Nur | R31: ry 1/ 2 | S31: OK | T31: =Data!K31 -> Barnet | U31: =IF(A31=0,"",IFERROR(VLOOKUP(Data!L31,Bandlist!A:A,1,0),"**Unexpected band")) -> EXY | V31: =Data!L31 -> EXY | X31: =Data!M31 -> 1 | Y31: =Data!N31 -> 2123.5 | Z31: =Data!O31 -> 0 | AA31: =Data!P31 -> 0 | AB31: OK | AD31: =Data!Q31 -> 10265 | AE31: =IFERROR(VLOOKUP(AD31,Costcentres!B:I,2,0),"**Unexpected CC") -> SEN Inclusion - Under 5s | AF31: =IF(AND(Q31="Nur",A31<3021005),"NS",Q31)&IF(VLOOKUP(A31,Schools!A:C,3,0)="M","Maint","Acad") -> NSMaint | AG31: =HLOOKUP(AF31,Bandlist!$A$3:$Y$4,2,0) -> 14 | AH31: =IF(T31="Barnet",VLOOKUP(U31,Bandlist!A:Y,Datacheck!AG31,0),0) -> 10265 | AI31: SEN Inclusion - Under 5s | AK31: =VLOOKUP(AH31,Costcentres!B:I,2,0) -> SEN Inclusion - Under 5s
A32: =Data!A32 -> 3021003 | B32: =IF(A32=0,"",IF(Data!B32=VLOOKUP(A32,Schools!A:B,2,0), Data!B32,"**Unexpected school")) -> St Margaret's Nursery | C32: =Data!B32 -> St Margaret's Nursery | D32: =IF(A32=0,"",IF(Data!C32="","**Missing",Data!C32)) -> 1157972 | E32: =IF(A32=0,"",IF(Data!D32="","**Missing",TRIM(Data!D32))) -> **Missing | F32: =IF(A32=0,"",IF(Data!E32="","**Missing",TRIM(Data!E32))) -> **Missing | G32: =IF(A32=0,"",IF(Data!F32="XX","**Missing dob",IF(OR((TODAY()-Data!F32)/365>20,(TODAY()-Data!F32)/365<3),"**Unexpected date",Data!F32))) -> 2017-04-18 | H32: =Data!F32 -> 2017-04-18 | I32: =IF(Data!G32=0,0,IF(OR(Data!G32>Fyend),"**Unexpected date",Data!G32)) -> 2022-01-04 | J32: =Data!G32 -> 2022-01-04 | K32: =IF(Data!H32=0,0,IF(OR(Data!H32<Earliest,Data!H32>Fyend),"**Unexpected date",Data!H32)) -> 2022-03-31 | L32: =Data!H32 -> 2022-03-31 | M32: =IFERROR(VLOOKUP(Data!I32,Lookup!$A:$A,1,0), "**Unexpected Yeargroup") -> 0 | N32: =Data!I32 -> 0 | O32: =IFERROR(VLOOKUP(Data!J32,Lookup!$A:$A,1,0), "**Unexpected Yeargroup") -> Nursery 2 | P32: =Data!J32 -> Nursery 2 | Q32: =LEFT(IF(VLOOKUP(N32,Lookup!A:B,2,0)="Empty",VLOOKUP(P32,Lookup!A:B,2,0),VLOOKUP(N32,Lookup!A:B,2,0)),3) -> Nur | R32: 0/ 2 | S32: OK | T32: =Data!K32 -> Barnet | U32: =IF(A32=0,"",IFERROR(VLOOKUP(Data!L32,Bandlist!A:A,1,0),"**Unexpected band")) -> EXY | V32: =Data!L32 -> EXY | X32: =Data!M32 -> 1 | Y32: =Data!N32 -> 612.48 | Z32: =Data!O32 -> 0 | AA32: =Data!P32 -> 0 | AB32: OK | AD32: =Data!Q32 -> 10265 | AE32: =IFERROR(VLOOKUP(AD32,Costcentres!B:I,2,0),"**Unexpected CC") -> SEN Inclusion - Under 5s | AF32: =IF(AND(Q32="Nur",A32<3021005),"NS",Q32)&IF(VLOOKUP(A32,Schools!A:C,3,0)="M","Maint","Acad") -> NSMaint | AG32: =HLOOKUP(AF32,Bandlist!$A$3:$Y$4,2,0) -> 14 | AH32: =IF(T32="Barnet",VLOOKUP(U32,Bandlist!A:Y,Datacheck!AG32,0),0) -> 10265 | AI32: SEN Inclusion - Under 5s | AK32: =VLOOKUP(AH32,Costcentres!B:I,2,0) -> SEN Inclusion - Under 5s
A33: =Data!A33 -> 3021003 | B33: =IF(A33=0,"",IF(Data!B33=VLOOKUP(A33,Schools!A:B,2,0), Data!B33,"**Unexpected school")) -> St Margaret's Nursery | C33: =Data!B33 -> St Margaret's Nursery | D33: =IF(A33=0,"",IF(Data!C33="","**Missing",Data!C33)) -> 1163623 | E33: =IF(A33=0,"",IF(Data!D33="","**Missing",TRIM(Data!D33))) -> **Missing | F33: =IF(A33=0,"",IF(Data!E33="","**Missing",TRIM(Data!E33))) -> **Missing | G33: =IF(A33=0,"",IF(Data!F33="XX","**Missing dob",IF(OR((TODAY()-Data!F33)/365>20,(TODAY()-Data!F33)/365<3),"**Unexpected date",Data!F33))) -> 2017-09-06 | H33: =Data!F33 -> 2017-09-06 | I33: =IF(Data!G33=0,0,IF(OR(Data!G33>Fyend),"**Unexpected date",Data!G33)) -> 2021-11-29 | J33: =Data!G33 -> 2021-11-29 | K33: =IF(Data!H33=0,0,IF(OR(Data!H33<Earliest,Data!H33>Fyend),"**Unexpected date",Data!H33)) -> 2022-03-31 | L33: =Data!H33 -> 2022-03-31 | M33: =IFERROR(VLOOKUP(Data!I33,Lookup!$A:$A,1,0), "**Unexpected Yeargroup") -> 0 | N33: =Data!I33 -> 0 | O33: =IFERROR(VLOOKUP(Data!J33,Lookup!$A:$A,1,0), "**Unexpected Yeargroup") -> Nursery 2 | P33: =Data!J33 -> Nursery 2 | Q33: =LEFT(IF(VLOOKUP(N33,Lookup!A:B,2,0)="Empty",VLOOKUP(P33,Lookup!A:B,2,0),VLOOKUP(N33,Lookup!A:B,2,0)),3) -> Nur | R33: 0/ 2 | S33: OK | T33: =Data!K33 -> Barnet | U33: =IF(A33=0,"",IFERROR(VLOOKUP(Data!L33,Bandlist!A:A,1,0),"**Unexpected band")) -> EXY | V33: =Data!L33 -> EXY | X33: =Data!M33 -> 1 | Y33: =Data!N33 -> 1122.16 | Z33: =Data!O33 -> 0 | AA33: =Data!P33 -> Care check if moved to gloucester house as per EHCP | AB33: OK | AD33: =Data!Q33 -> 10265 | AE33: =IFERROR(VLOOKUP(AD33,Costcentres!B:I,2,0),"**Unexpected CC") -> SEN Inclusion - Under 5s | AF33: =IF(AND(Q33="Nur",A33<3021005),"NS",Q33)&IF(VLOOKUP(A33,Schools!A:C,3,0)="M","Maint","Acad") -> NSMaint | AG33: =HLOOKUP(AF33,Bandlist!$A$3:$Y$4,2,0) -> 14 | AH33: =IF(T33="Barnet",VLOOKUP(U33,Bandlist!A:Y,Datacheck!AG33,0),0) -> 10265 | AI33: SEN Inclusion - Under 5s | AK33: =VLOOKUP(AH33,Costcentres!B:I,2,0) -> SEN Inclusion - Under 5s
A34: =Data!A34 -> 3021003 | B34: =IF(A34=0,"",IF(Data!B34=VLOOKUP(A34,Schools!A:B,2,0), Data!B34,"**Unexpected school")) -> St Margaret's Nursery | C34: =Data!B34 -> St Margaret's Nursery | D34: =IF(A34=0,"",IF(Data!C34="","**Missing",Data!C34)) -> 1116071 | E34: =IF(A34=0,"",IF(Data!D34="","**Missing",TRIM(Data!D34))) -> **Missing | F34: =IF(A34=0,"",IF(Data!E34="","**Missing",TRIM(Data!E34))) -> **Missing | G34: =IF(A34=0,"",IF(Data!F34="XX","**Missing dob",IF(OR((TODAY()-Data!F34)/365>20,(TODAY()-Data!F34)/365<3),"**Unexpected date",Data!F34))) -> 2017-03-01 | H34: =Data!F34 -> 2017-03-01 | I34: =IF(Data!G34=0,0,IF(OR(Data!G34>Fyend),"**Unexpected date",Data!G34)) -> 2021-04-19 | J34: =Data!G34 -> 2021-04-19 | K34: =IF(Data!H34=0,0,IF(OR(Data!H34<Earliest,Data!H34>Fyend),"**Unexpected date",Data!H34)) -> 2021-07-23 | L34: =Data!H34 -> 2021-07-23 | M34: =IFERROR(VLOOKUP(Data!I34,Lookup!$A:$A,1,0), "**Unexpected Yeargroup") -> Nursery 2 | N34: =Data!I34 -> Nursery 2 | O34: =IFERROR(VLOOKUP(Data!J34,Lookup!$A:$A,1,0), "**Unexpected Yeargroup") -> 0 | P34: =Data!J34 -> 0 | Q34: =LEFT(IF(VLOOKUP(N34,Lookup!A:B,2,0)="Empty",VLOOKUP(P34,Lookup!A:B,2,0),VLOOKUP(N34,Lookup!A:B,2,0)),3) -> Nur | R34: ry 2/0 | S34: OK | T34: =Data!K34 -> Barnet | U34: =IF(A34=0,"",IFERROR(VLOOKUP(Data!L34,Bandlist!A:A,1,0),"**Unexpected band")) -> EXY | V34: =Data!L34 -> EXY | X34: =Data!M34 -> 1 | Y34: =Data!N34 -> 1364 | Z34: =Data!O34 -> 0 | AA34: =Data!P34 -> 0 | AB34: OK | AD34: =Data!Q34 -> 10265 | AE34: =IFERROR(VLOOKUP(AD34,Costcentres!B:I,2,0),"**Unexpected CC") -> SEN Inclusion - Under 5s | AF34: =IF(AND(Q34="Nur",A34<3021005),"NS",Q34)&IF(VLOOKUP(A34,Schools!A:C,3,0)="M","Maint","Acad") -> NSMaint | AG34: =HLOOKUP(AF34,Bandlist!$A$3:$Y$4,2,0) -> 14 | AH34: =IF(T34="Barnet",VLOOKUP(U34,Bandlist!A:Y,Datacheck!AG34,0),0) -> 10265 | AI34: SEN Inclusion - Under 5s | AK34: =VLOOKUP(AH34,Costcentres!B:I,2,0) -> SEN Inclusion - Under 5s
A35: =Data!A35 -> 3021003 | B35: =IF(A35=0,"",IF(Data!B35=VLOOKUP(A35,Schools!A:B,2,0), Data!B35,"**Unexpected school")) -> St Margaret's Nursery | C35: =Data!B35 -> St Margaret's Nursery | D35: =IF(A35=0,"",IF(Data!C35="","**Missing",Data!C35)) -> 1154131 | E35: =IF(A35=0,"",IF(Data!D35="","**Missing",TRIM(Data!D35))) -> **Missing | F35: =IF(A35=0,"",IF(Data!E35="","**Missing",TRIM(Data!E35))) -> **Missing | G35: =IF(A35=0,"",IF(Data!F35="XX","**Missing dob",IF(OR((TODAY()-Data!F35)/365>20,(TODAY()-Data!F35)/365<3),"**Unexpected date",Data!F35))) -> 2017-01-05 | H35: =Data!F35 -> 2017-01-05 | I35: =IF(Data!G35=0,0,IF(OR(Data!G35>Fyend),"**Unexpected date",Data!G35)) -> 2021-06-07 | J35: =Data!G35 -> 2021-06-07 | K35: =IF(Data!H35=0,0,IF(OR(Data!H35<Earliest,Data!H35>Fyend),"**Unexpected date",Data!H35)) -> 2021-07-23 | L35: =Data!H35 -> 2021-07-23 | M35: =IFERROR(VLOOKUP(Data!I35,Lookup!$A:$A,1,0), "**Unexpected Yeargroup") -> Nursery 2 | N35: =Data!I35 -> Nursery 2 | O35: =IFERROR(VLOOKUP(Data!J35,Lookup!$A:$A,1,0), "**Unexpected Yeargroup") -> 0 | P35: =Data!J35 -> 0 | Q35: =LEFT(IF(VLOOKUP(N35,Lookup!A:B,2,0)="Empty",VLOOKUP(P35,Lookup!A:B,2,0),VLOOKUP(N35,Lookup!A:B,2,0)),3) -> Nur | R35: ry 2/0 | S35: OK | T35: =Data!K35 -> Barnet | U35: =IF(A35=0,"",IFERROR(VLOOKUP(Data!L35,Bandlist!A:A,1,0),"**Unexpected band")) -> EXY | V35: =Data!L35 -> EXY | X35: =Data!M35 -> 1 | Y35: =Data!N35 -> 855.6 | Z35: =Data!O35 -> 0 | AA35: =Data!P35 -> Primary place. | AB35: OK | AD35: =Data!Q35 -> 10265 | AE35: =IFERROR(VLOOKUP(AD35,Costcentres!B:I,2,0),"**Unexpected CC") -> SEN Inclusion - Under 5s | AF35: =IF(AND(Q35="Nur",A35<3021005),"NS",Q35)&IF(VLOOKUP(A35,Schools!A:C,3,0)="M","Maint","Acad") -> NSMaint | AG35: =HLOOKUP(AF35,Bandlist!$A$3:$Y$4,2,0) -> 14 | AH35: =IF(T35="Barnet",VLOOKUP(U35,Bandlist!A:Y,Datacheck!AG35,0),0) -> 10265 | AI35: SEN Inclusion - Under 5s | AK35: =VLOOKUP(AH35,Costcentres!B:I,2,0) -> SEN Inclusion - Under 5s
A36: =Data!A36 -> 3021003 | B36: =IF(A36=0,"",IF(Data!B36=VLOOKUP(A36,Schools!A:B,2,0), Data!B36,"**Unexpected school")) -> St Margaret's Nursery | C36: =Data!B36 -> St Margaret's Nursery | D36: =IF(A36=0,"",IF(Data!C36="","**Missing",Data!C36)) -> 1154628 | E36: =IF(A36=0,"",IF(Data!D36="","**Missing",TRIM(Data!D36))) -> **Missing | F36: =IF(A36=0,"",IF(Data!E36="","**Missing",TRIM(Data!E36))) -> **Missing | G36: =IF(A36=0,"",IF(Data!F36="XX","**Missing dob",IF(OR((TODAY()-Data!F36)/365>20,(TODAY()-Data!F36)/365<3),"**Unexpected date",Data!F36))) -> 2018-11-02 | H36: =Data!F36 -> 2018-11-02 | I36: =IF(Data!G36=0,0,IF(OR(Data!G36>Fyend),"**Unexpected date",Data!G36)) -> 2021-10-11 | J36: =Data!G36 -> 2021-10-11 | K36: =IF(Data!H36=0,0,IF(OR(Data!H36<Earliest,Data!H36>Fyend),"**Unexpected date",Data!H36)) -> 2022-03-31 | L36: =Data!H36 -> 2022-03-31 | M36: =IFERROR(VLOOKUP(Data!I36,Lookup!$A:$A,1,0), "**Unexpected Yeargroup") -> 0 | N36: =Data!I36 -> 0 | O36: =IFERROR(VLOOKUP(Data!J36,Lookup!$A:$A,1,0), "**Unexpected Yeargroup") -> Nursery 2 | P36: =Data!J36 -> Nursery 2 | Q36: =LEFT(IF(VLOOKUP(N36,Lookup!A:B,2,0)="Empty",VLOOKUP(P36,Lookup!A:B,2,0),VLOOKUP(N36,Lookup!A:B,2,0)),3) -> Nur | R36: 0/ 2 | S36: OK | T36: =Data!K36 -> Barnet | U36: =IF(A36=0,"",IFERROR(VLOOKUP(Data!L36,Bandlist!A:A,1,0),"**Unexpected band")) -> EXY | V36: =Data!L36 -> EXY | X36: =Data!M36 -> 1 | Y36: =Data!N36 -> 2216.5 | Z36: =Data!O36 -> 0 | AA36: =Data!P36 -> 1 Day a week at Capel Manor with Grasvenor support from Autumn 2020 | AB36: OK | AD36: =Data!Q36 -> 10265 | AE36: =IFERROR(VLOOKUP(AD36,Costcentres!B:I,2,0),"**Unexpected CC") -> SEN Inclusion - Under 5s | AF36: =IF(AND(Q36="Nur",A36<3021005),"NS",Q36)&IF(VLOOKUP(A36,Schools!A:C,3,0)="M","Maint","Acad") -> NSMaint | AG36: =HLOOKUP(AF36,Bandlist!$A$3:$Y$4,2,0) -> 14 | AH36: =IF(T36="Barnet",VLOOKUP(U36,Bandlist!A:Y,Datacheck!AG36,0),0) -> 10265 | AI36: SEN Inclusion - Under 5s | AK36: =VLOOKUP(AH36,Costcentres!B:I,2,0) -> SEN Inclusion - Under 5s
A37: =Data!A37 -> 3021003 | B37: =IF(A37=0,"",IF(Data!B37=VLOOKUP(A37,Schools!A:B,2,0), Data!B37,"**Unexpected school")) -> St Margaret's Nursery | C37: =Data!B37 -> St Margaret's Nursery | D37: =IF(A37=0,"",IF(Data!C37="","**Missing",Data!C37)) -> 1135823 | E37: =IF(A37=0,"",IF(Data!D37="","**Missing",TRIM(Data!D37))) -> **Missing | F37: =IF(A37=0,"",IF(Data!E37="","**Missing",TRIM(Data!E37))) -> **Missing | G37: =IF(A37=0,"",IF(Data!F37="XX","**Missing dob",IF(OR((TODAY()-Data!F37)/365>20,(TODAY()-Data!F37)/365<3),"**Unexpected date",Data!F37))) -> 2017-08-05 | H37: =Data!F37 -> 2017-08-05 | I37: =IF(Data!G37=0,0,IF(OR(Data!G37>Fyend),"**Unexpected date",Data!G37)) -> 2021-04-19 | J37: =Data!G37 -> 2021-04-19 | K37: =IF(Data!H37=0,0,IF(OR(Data!H37<Earliest,Data!H37>Fyend),"**Unexpected date",Data!H37)) -> 2021-07-23 | L37: =Data!H37 -> 2021-07-23 | M37: =IFERROR(VLOOKUP(Data!I37,Lookup!$A:$A,1,0), "**Unexpected Yeargroup") -> Nursery 2 | N37: =Data!I37 -> Nursery 2 | O37: =IFERROR(VLOOKUP(Data!J37,Lookup!$A:$A,1,0), "**Unexpected Yeargroup") -> 0 | P37: =Data!J37 -> 0 | Q37: =LEFT(IF(VLOOKUP(N37,Lookup!A:B,2,0)="Empty",VLOOKUP(P37,Lookup!A:B,2,0),VLOOKUP(N37,Lookup!A:B,2,0)),3) -> Nur | R37: ry 2/0 | S37: OK | T37: =Data!K37 -> Barnet | U37: =IF(A37=0,"",IFERROR(VLOOKUP(Data!L37,Bandlist!A:A,1,0),"**Unexpected band")) -> EXY | V37: =Data!L37 -> EXY | X37: =Data!M37 -> 1 | Y37: =Data!N37 -> 1364 | Z37: =Data!O37 -> 0 | AA37: =Data!P37 -> to cover payment to Capel manor | AB37: OK | AD37: =Data!Q37 -> 10265 | AE37: =IFERROR(VLOOKUP(AD37,Costcentres!B:I,2,0),"**Unexpected CC") -> SEN Inclusion - Under 5s | AF37: =IF(AND(Q37="Nur",A37<3021005),"NS",Q37)&IF(VLOOKUP(A37,Schools!A:C,3,0)="M","Maint","Acad") -> NSMaint | AG37: =HLOOKUP(AF37,Bandlist!$A$3:$Y$4,2,0) -> 14 | AH37: =IF(T37="Barnet",VLOOKUP(U37,Bandlist!A:Y,Datacheck!AG37,0),0) -> 10265 | AI37: SEN Inclusion - Under 5s | AK37: =VLOOKUP(AH37,Costcentres!B:I,2,0) -> SEN Inclusion - Under 5s
A38: =Data!A38 -> 3021003 | B38: =IF(A38=0,"",IF(Data!B38=VLOOKUP(A38,Schools!A:B,2,0), Data!B38,"**Unexpected school")) -> St Margaret's Nursery | C38: =Data!B38 -> St Margaret's Nursery | D38: =IF(A38=0,"",IF(Data!C38="","**Missing",Data!C38)) -> 1135823 | E38: =IF(A38=0,"",IF(Data!D38="","**Missing",TRIM(Data!D38))) -> **Missing | F38: =IF(A38=0,"",IF(Data!E38="","**Missing",TRIM(Data!E38))) -> **Missing | G38: =IF(A38=0,"",IF(Data!F38="XX","**Missing dob",IF(OR((TODAY()-Data!F38)/365>20,(TODAY()-Data!F38)/365<3),"**Unexpected date",Data!F38))) -> 2017-08-05 | H38: =Data!F38 -> 2017-08-05 | I38: =IF(Data!G38=0,0,IF(OR(Data!G38>Fyend),"**Unexpected date",Data!G38)) -> 2021-09-01 | J38: =Data!G38 -> 2021-09-01 | K38: =IF(Data!H38=0,0,IF(OR(Data!H38<Earliest,Data!H38>Fyend),"**Unexpected date",Data!H38)) -> 2021-12-03 | L38: =Data!H38 -> 2021-12-03 | M38: =IFERROR(VLOOKUP(Data!I38,Lookup!$A:$A,1,0), "**Unexpected Yeargroup") -> 0 | N38: =Data!I38 -> 0 | O38: =IFERROR(VLOOKUP(Data!J38,Lookup!$A:$A,1,0), "**Unexpected Yeargroup") -> Nursery 2 | P38: =Data!J38 -> Nursery 2 | Q38: =LEFT(IF(VLOOKUP(N38,Lookup!A:B,2,0)="Empty",VLOOKUP(P38,Lookup!A:B,2,0),VLOOKUP(N38,Lookup!A:B,2,0)),3) -> Nur | R38: 0/ 2 | S38: OK | T38: =Data!K38 -> Barnet | U38: =IF(A38=0,"",IFERROR(VLOOKUP(Data!L38,Bandlist!A:A,1,0),"**Unexpected band")) -> N | V38: =Data!L38 -> N | X38: =Data!M38 -> 1 | Y38: =Data!N38 -> 0 | Z38: =Data!O38 -> 0 | AA38: =Data!P38 -> 0 | AB38: OK | AD38: =Data!Q38 -> 11439 | AE38: =IFERROR(VLOOKUP(AD38,Costcentres!B:I,2,0),"**Unexpected CC") -> EHCP - Barnet Nursery Schools | AF38: =IF(AND(Q38="Nur",A38<3021005),"NS",Q38)&IF(VLOOKUP(A38,Schools!A:C,3,0)="M","Maint","Acad") -> NSMaint | AG38: =HLOOKUP(AF38,Bandlist!$A$3:$Y$4,2,0) -> 14 | AH38: =IF(T38="Barnet",VLOOKUP(U38,Bandlist!A:Y,Datacheck!AG38,0),0) -> 11439 | AI38: EHCP - Barnet Nursery Schools | AK38: =VLOOKUP(AH38,Costcentres!B:I,2,0) -> EHCP - Barnet Nursery Schools
A39: =Data!A39 -> 3021003 | B39: =IF(A39=0,"",IF(Data!B39=VLOOKUP(A39,Schools!A:B,2,0), Data!B39,"**Unexpected school")) -> St Margaret's Nursery | C39: =Data!B39 -> St Margaret's Nursery | D39: =IF(A39=0,"",IF(Data!C39="","**Missing",Data!C39)) -> 1125735 | E39: =IF(A39=0,"",IF(Data!D39="","**Missing",TRIM(Data!D39))) -> **Missing | F39: =IF(A39=0,"",IF(Data!E39="","**Missing",TRIM(Data!E39))) -> **Missing | G39: =IF(A39=0,"",IF(Data!F39="XX","**Missing dob",IF(OR((TODAY()-Data!F39)/365>20,(TODAY()-Data!F39)/365<3),"**Unexpected date",Data!F39))) -> 2016-09-18 | H39: =Data!F39 -> 2016-09-18 | I39: =IF(Data!G39=0,0,IF(OR(Data!G39>Fyend),"**Unexpected date",Data!G39)) -> 00:00:00 | J39: =Data!G39 -> 00:00:00 | K39: =IF(Data!H39=0,0,IF(OR(Data!H39<Earliest,Data!H39>Fyend),"**Unexpected date",Data!H39)) -> 2021-06-30 | L39: =Data!H39 -> 2021-06-30 | M39: =IFERROR(VLOOKUP(Data!I39,Lookup!$A:$A,1,0), "**Unexpected Yeargroup") -> Nursery 2 | N39: =Data!I39 -> Nursery 2 | O39: =IFERROR(VLOOKUP(Data!J39,Lookup!$A:$A,1,0), "**Unexpected Yeargroup") -> 0 | P39: =Data!J39 -> 0 | Q39: =LEFT(IF(VLOOKUP(N39,Lookup!A:B,2,0)="Empty",VLOOKUP(P39,Lookup!A:B,2,0),VLOOKUP(N39,Lookup!A:B,2,0)),3) -> Nur | R39: ry 2/0 | S39: OK | T39: =Data!K39 -> Barnet | U39: =IF(A39=0,"",IFERROR(VLOOKUP(Data!L39,Bandlist!A:A,1,0),"**Unexpected band")) -> N | V39: =Data!L39 -> N | X39: =Data!M39 -> 1 | Y39: =Data!N39 -> 0 | Z39: =Data!O39 -> 0 | AA39: =Data!P39 -> 0 | AB39: OK | AD39: =Data!Q39 -> 11439 | AE39: =IFERROR(VLOOKUP(AD39,Costcentres!B:I,2,0),"**Unexpected CC") -> EHCP - Barnet Nursery Schools | AF39: =IF(AND(Q39="Nur",A39<3021005),"NS",Q39)&IF(VLOOKUP(A39,Schools!A:C,3,0)="M","Maint","Acad") -> NSMaint | AG39: =HLOOKUP(AF39,Bandlist!$A$3:$Y$4,2,0) -> 14 | AH39: =IF(T39="Barnet",VLOOKUP(U39,Bandlist!A:Y,Datacheck!AG39,0),0) -> 11439 | AI39: EHCP - Barnet Nursery Schools | AK39: =VLOOKUP(AH39,Costcentres!B:I,2,0) -> EHCP - Barnet Nursery Schools
A40: =Data!A40 -> 3021003 | B40: =IF(A40=0,"",IF(Data!B40=VLOOKUP(A40,Schools!A:B,2,0), Data!B40,"**Unexpected school")) -> St Margaret's Nursery | C40: =Data!B40 -> St Margaret's Nursery | D40: =IF(A40=0,"",IF(Data!C40="","**Missing",Data!C40)) -> 1125735 | E40: =IF(A40=0,"",IF(Data!D40="","**Missing",TRIM(Data!D40))) -> **Missing | F40: =IF(A40=0,"",IF(Data!E40="","**Missing",TRIM(Data!E40))) -> **Missing | G40: =IF(A40=0,"",IF(Data!F40="XX","**Missing dob",IF(OR((TODAY()-Data!F40)/365>20,(TODAY()-Data!F40)/365<3),"**Unexpected date",Data!F40))) -> 2016-09-18 | H40: =Data!F40 -> 2016-09-18 | I40: =IF(Data!G40=0,0,IF(OR(Data!G40>Fyend),"**Unexpected date",Data!G40)) -> 2021-07-01 | J40: =Data!G40 -> 2021-07-01 | K40: =IF(Data!H40=0,0,IF(OR(Data!H40<Earliest,Data!H40>Fyend),"**Unexpected date",Data!H40)) -> 2021-07-31 | L40: =Data!H40 -> 2021-07-31 | M40: =IFERROR(VLOOKUP(Data!I40,Lookup!$A:$A,1,0), "**Unexpected Yeargroup") -> Nursery 2 | N40: =Data!I40 -> Nursery 2 | O40: =IFERROR(VLOOKUP(Data!J40,Lookup!$A:$A,1,0), "**Unexpected Yeargroup") -> 0 | P40: =Data!J40 -> 0 | Q40: =LEFT(IF(VLOOKUP(N40,Lookup!A:B,2,0)="Empty",VLOOKUP(P40,Lookup!A:B,2,0),VLOOKUP(N40,Lookup!A:B,2,0)),3) -> Nur | R40: ry 2/0 | S40: OK | T40: =Data!K40 -> Barnet | U40: =IF(A40=0,"",IFERROR(VLOOKUP(Data!L40,Bandlist!A:A,1,0),"**Unexpected band")) -> N | V40: =Data!L40 -> N | X40: =Data!M40 -> 2 | Y40: =Data!N40 -> 0 | Z40: =Data!O40 -> 0 | AA40: =Data!P40 -> 0 | AB40: OK | AD40: =Data!Q40 -> 11439 | AE40: =IFERROR(VLOOKUP(AD40,Costcentres!B:I,2,0),"**Unexpected CC") -> EHCP - Barnet Nursery Schools | AF40: =IF(AND(Q40="Nur",A40<3021005),"NS",Q40)&IF(VLOOKUP(A40,Schools!A:C,3,0)="M","Maint","Acad") -> NSMaint | AG40: =HLOOKUP(AF40,Bandlist!$A$3:$Y$4,2,0) -> 14 | AH40: =IF(T40="Barnet",VLOOKUP(U40,Bandlist!A:Y,Datacheck!AG40,0),0) -> 11439 | AI40: EHCP - Barnet Nursery Schools | AK40: =VLOOKUP(AH40,Costcentres!B:I,2,0) -> EHCP - Barnet Nursery Schools
A41: =Data!A41 -> 3021003 | B41: =IF(A41=0,"",IF(Data!B41=VLOOKUP(A41,Schools!A:B,2,0), Data!B41,"**Unexpected school")) -> St Margaret's Nursery | C41: =Data!B41 -> St Margaret's Nursery | D41: =IF(A41=0,"",IF(Data!C41="","**Missing",Data!C41)) -> 1163574 | E41: =IF(A41=0,"",IF(Data!D41="","**Missing",TRIM(Data!D41))) -> **Missing | F41: =IF(A41=0,"",IF(Data!E41="","**Missing",TRIM(Data!E41))) -> **Missing | G41: =IF(A41=0,"",IF(Data!F41="XX","**Missing dob",IF(OR((TODAY()-Data!F41)/365>20,(TODAY()-Data!F41)/365<3),"**Unexpected date",Data!F41))) -> 2017-04-01 | H41: =Data!F41 -> 2017-04-01 | I41: =IF(Data!G41=0,0,IF(OR(Data!G41>Fyend),"**Unexpected date",Data!G41)) -> 2022-01-04 | J41: =Data!G41 -> 2022-01-04 | K41: =IF(Data!H41=0,0,IF(OR(Data!H41<Earliest,Data!H41>Fyend),"**Unexpected date",Data!H41)) -> 2022-03-31 | L41: =Data!H41 -> 2022-03-31 | M41: =IFERROR(VLOOKUP(Data!I41,Lookup!$A:$A,1,0), "**Unexpected Yeargroup") -> 0 | N41: =Data!I41 -> 0 | O41: =IFERROR(VLOOKUP(Data!J41,Lookup!$A:$A,1,0), "**Unexpected Yeargroup") -> Nursery 2 | P41: =Data!J41 -> Nursery 2 | Q41: =LEFT(IF(VLOOKUP(N41,Lookup!A:B,2,0)="Empty",VLOOKUP(P41,Lookup!A:B,2,0),VLOOKUP(N41,Lookup!A:B,2,0)),3) -> Nur | R41: 0/ 2 | S41: OK | T41: =Data!K41 -> Barnet | U41: =IF(A41=0,"",IFERROR(VLOOKUP(Data!L41,Bandlist!A:A,1,0),"**Unexpected band")) -> EXY | V41: =Data!L41 -> EXY | X41: =Data!M41 -> 1 | Y41: =Data!N41 -> 1469.96 | Z41: =Data!O41 -> 0 | AA41: =Data!P41 -> 0 | AB41: OK | AD41: =Data!Q41 -> 10265 | AE41: =IFERROR(VLOOKUP(AD41,Costcentres!B:I,2,0),"**Unexpected CC") -> SEN Inclusion - Under 5s | AF41: =IF(AND(Q41="Nur",A41<3021005),"NS",Q41)&IF(VLOOKUP(A41,Schools!A:C,3,0)="M","Maint","Acad") -> NSMaint | AG41: =HLOOKUP(AF41,Bandlist!$A$3:$Y$4,2,0) -> 14 | AH41: =IF(T41="Barnet",VLOOKUP(U41,Bandlist!A:Y,Datacheck!AG41,0),0) -> 10265 | AI41: SEN Inclusion - Under 5s | AK41: =VLOOKUP(AH41,Costcentres!B:I,2,0) -> SEN Inclusion - Under 5s
A42: =Data!A42 -> 3021100 | B42: =IF(A42=0,"",IF(Data!B42=VLOOKUP(A42,Schools!A:B,2,0), Data!B42,"**Unexpected school")) -> Pavilion | C42: =Data!B42 -> Pavilion | D42: =IF(A42=0,"",IF(Data!C42="","**Missing",Data!C42)) -> 1035746 | E42: =IF(A42=0,"",IF(Data!D42="","**Missing",TRIM(Data!D42))) -> **Missing | F42: =IF(A42=0,"",IF(Data!E42="","**Missing",TRIM(Data!E42))) -> **Missing | G42: =IF(A42=0,"",IF(Data!F42="XX","**Missing dob",IF(OR((TODAY()-Data!F42)/365>20,(TODAY()-Data!F42)/365<3),"**Unexpected date",Data!F42))) -> 2009-12-07 | H42: =Data!F42 -> 2009-12-07 | I42: =IF(Data!G42=0,0,IF(OR(Data!G42>Fyend),"**Unexpected date",Data!G42)) -> 2021-09-01 | J42: =Data!G42 -> 2021-09-01 | K42: =IF(Data!H42=0,0,IF(OR(Data!H42<Earliest,Data!H42>Fyend),"**Unexpected date",Data!H42)) -> 2021-11-30 | L42: =Data!H42 -> 2021-11-30 | M42: =IFERROR(VLOOKUP(Data!I42,Lookup!$A:$A,1,0), "**Unexpected Yeargroup") -> 0 | N42: =Data!I42 -> 0 | O42: =IFERROR(VLOOKUP(Data!J42,Lookup!$A:$A,1,0), "**Unexpected Yeargroup") -> NC Year 7 | P42: =Data!J42 -> NC Year 7 | Q42: =LEFT(IF(VLOOKUP(N42,Lookup!A:B,2,0)="Empty",VLOOKUP(P42,Lookup!A:B,2,0),VLOOKUP(N42,Lookup!A:B,2,0)),3) -> Sec | R42: 0/ 7 | S42: OK | T42: =Data!K42 -> Barnet | U42: =IF(A42=0,"",IFERROR(VLOOKUP(Data!L42,Bandlist!A:A,1,0),"**Unexpected band")) -> PavD | V42: =Data!L42 -> PavD | X42: =Data!M42 -> 1 | Y42: =Data!N42 -> 0 | Z42: =Data!O42 -> 0 | AA42: =Data!P42 -> 0 | AB42: OK | AD42: =Data!Q42 -> 11425 | AE42: =IFERROR(VLOOKUP(AD42,Costcentres!B:I,2,0),"**Unexpected CC") -> PRU Top-ups | AF42: =IF(AND(Q42="Nur",A42<3021005),"NS",Q42)&IF(VLOOKUP(A42,Schools!A:C,3,0)="M","Maint","Acad") -> SecMaint | AG42: =HLOOKUP(AF42,Bandlist!$A$3:$Y$4,2,0) -> 19 | AH42: =IF(T42="Barnet",VLOOKUP(U42,Bandlist!A:Y,Datacheck!AG42,0),0) -> 11425 | AI42: PRU Top-ups | AK42: =VLOOKUP(AH42,Costcentres!B:I,2,0) -> PRU Top-ups
A43: =Data!A43 -> 3021100 | B43: =IF(A43=0,"",IF(Data!B43=VLOOKUP(A43,Schools!A:B,2,0), Data!B43,"**Unexpected school")) -> Pavilion | C43: =Data!B43 -> Pavilion | D43: =IF(A43=0,"",IF(Data!C43="","**Missing",Data!C43)) -> 239154 | E43: =IF(A43=0,"",IF(Data!D43="","**Missing",TRIM(Data!D43))) -> **Missing | F43: =IF(A43=0,"",IF(Data!E43="","**Missing",TRIM(Data!E43))) -> **Missing | G43: =IF(A43=0,"",IF(Data!F43="XX","**Missing dob",IF(OR((TODAY()-Data!F43)/365>20,(TODAY()-Data!F43)/365<3),"**Unexpected date",Data!F43))) -> 2008-06-12 | H43: =Data!F43 -> 2008-06-12 | I43: =IF(Data!G43=0,0,IF(OR(Data!G43>Fyend),"**Unexpected date",Data!G43)) -> 00:00:00 | J43: =Data!G43 -> 00:00:00 | K43: =IF(Data!H43=0,0,IF(OR(Data!H43<Earliest,Data!H43>Fyend),"**Unexpected date",Data!H43)) -> 2021-12-31 | L43: =Data!H43 -> 2021-12-31 | M43: =IFERROR(VLOOKUP(Data!I43,Lookup!$A:$A,1,0), "**Unexpected Yeargroup") -> NC Year 8 | N43: =Data!I43 -> NC Year 8 | O43: =IFERROR(VLOOKUP(Data!J43,Lookup!$A:$A,1,0), "**Unexpected Yeargroup") -> NC Year 9 | P43: =Data!J43 -> NC Year 9 | Q43: =LEFT(IF(VLOOKUP(N43,Lookup!A:B,2,0)="Empty",VLOOKUP(P43,Lookup!A:B,2,0),VLOOKUP(N43,Lookup!A:B,2,0)),3) -> Sec | R43: ar 8/ 9 | S43: OK | T43: =Data!K43 -> Barnet | U43: =IF(A43=0,"",IFERROR(VLOOKUP(Data!L43,Bandlist!A:A,1,0),"**Unexpected band")) -> PavC | V43: =Data!L43 -> PavC | X43: =Data!M43 -> 1 | Y43: =Data!N43 -> 0 | Z43: =Data!O43 -> 0 | AA43: =Data!P43 -> £9990 additional cost of placement. See email 16.6.20 7 MONTHS 20/21 fy 5 MONTHS 21/22 fy | AB43: OK | AD43: =Data!Q43 -> 11425 | AE43: =IFERROR(VLOOKUP(AD43,Costcentres!B:I,2,0),"**Unexpected CC") -> PRU Top-ups | AF43: =IF(AND(Q43="Nur",A43<3021005),"NS",Q43)&IF(VLOOKUP(A43,Schools!A:C,3,0)="M","Maint","Acad") -> SecMaint | AG43: =HLOOKUP(AF43,Bandlist!$A$3:$Y$4,2,0) -> 19 | AH43: =IF(T43="Barnet",VLOOKUP(U43,Bandlist!A:Y,Datacheck!AG43,0),0) -> 11425 | AI43: PRU Top-ups | AK43: =VLOOKUP(AH43,Costcentres!B:I,2,0) -> PRU Top-ups
A44: =Data!A44 -> 3021100 | B44: =IF(A44=0,"",IF(Data!B44=VLOOKUP(A44,Schools!A:B,2,0), Data!B44,"**Unexpected school")) -> Pavilion | C44: =Data!B44 -> Pavilion | D44: =IF(A44=0,"",IF(Data!C44="","**Missing",Data!C44)) -> 1142830 | E44: =IF(A44=0,"",IF(Data!D44="","**Missing",TRIM(Data!D44))) -> **Missing | F44: =IF(A44=0,"",IF(Data!E44="","**Missing",TRIM(Data!E44))) -> **Missing | G44: =IF(A44=0,"",IF(Data!F44="XX","**Missing dob",IF(OR((TODAY()-Data!F44)/365>20,(TODAY()-Data!F44)/365<3),"**Unexpected date",Data!F44))) -> 2007-09-03 | H44: =Data!F44 -> 2007-09-03 | I44: =IF(Data!G44=0,0,IF(OR(Data!G44>Fyend),"**Unexpected date",Data!G44)) -> 00:00:00 | J44: =Data!G44 -> 00:00:00 | K44: =IF(Data!H44=0,0,IF(OR(Data!H44<Earliest,Data!H44>Fyend),"**Unexpected date",Data!H44)) -> 2021-08-31 | L44: =Data!H44 -> 2021-08-31 | M44: =IFERROR(VLOOKUP(Data!I44,Lookup!$A:$A,1,0), "**Unexpected Yeargroup") -> NC Year 8 | N44: =Data!I44 -> NC Year 8 | O44: =IFERROR(VLOOKUP(Data!J44,Lookup!$A:$A,1,0), "**Unexpected Yeargroup") -> 0 | P44: =Data!J44 -> 0 | Q44: =LEFT(IF(VLOOKUP(N44,Lookup!A:B,2,0)="Empty",VLOOKUP(P44,Lookup!A:B,2,0),VLOOKUP(N44,Lookup!A:B,2,0)),3) -> Sec | R44: ar 8/0 | S44: OK | T44: =Data!K44 -> Barnet | U44: =IF(A44=0,"",IFERROR(VLOOKUP(Data!L44,Bandlist!A:A,1,0),"**Unexpected band")) -> PavC | V44: =Data!L44 -> PavC | X44: =Data!M44 -> 1 | Y44: =Data!N44 -> 0 | Z44: =Data!O44 -> 0 | AA44: =Data!P44 -> 0 | AB44: OK | AD44: =Data!Q44 -> 11425 | AE44: =IFERROR(VLOOKUP(AD44,Costcentres!B:I,2,0),"**Unexpected CC") -> PRU Top-ups | AF44: =IF(AND(Q44="Nur",A44<3021005),"NS",Q44)&IF(VLOOKUP(A44,Schools!A:C,3,0)="M","Maint","Acad") -> SecMaint | AG44: =HLOOKUP(AF44,Bandlist!$A$3:$Y$4,2,0) -> 19 | AH44: =IF(T44="Barnet",VLOOKUP(U44,Bandlist!A:Y,Datacheck!AG44,0),0) -> 11425 | AI44: PRU Top-ups | AK44: =VLOOKUP(AH44,Costcentres!B:I,2,0) -> PRU Top-ups
A45: =Data!A45 -> 3021100 | B45: =IF(A45=0,"",IF(Data!B45=VLOOKUP(A45,Schools!A:B,2,0), Data!B45,"**Unexpected school")) -> Pavilion | C45: =Data!B45 -> Pavilion | D45: =IF(A45=0,"",IF(Data!C45="","**Missing",Data!C45)) -> 1038732 | E45: =IF(A45=0,"",IF(Data!D45="","**Missing",TRIM(Data!D45))) -> **Missing | F45: =IF(A45=0,"",IF(Data!E45="","**Missing",TRIM(Data!E45))) -> **Missing | G45: =IF(A45=0,"",IF(Data!F45="XX","**Missing dob",IF(OR((TODAY()-Data!F45)/365>20,(TODAY()-Data!F45)/365<3),"**Unexpected date",Data!F45))) -> 2011-11-14 | H45: =Data!F45 -> 2011-11-14 | I45: =IF(Data!G45=0,0,IF(OR(Data!G45>Fyend),"**Unexpected date",Data!G45)) -> 2020-09-04 | J45: =Data!G45 -> 2020-09-04 | K45: =IF(Data!H45=0,0,IF(OR(Data!H45<Earliest,Data!H45>Fyend),"**Unexpected date",Data!H45)) -> 2021-03-31 | L45: =Data!H45 -> 2021-03-31 | M45: =IFERROR(VLOOKUP(Data!I45,Lookup!$A:$A,1,0), "**Unexpected Yeargroup") -> NC Year 4 | N45: =Data!I45 -> Nc Year 4 | O45: =IFERROR(VLOOKUP(Data!J45,Lookup!$A:$A,1,0), "**Unexpected Yeargroup") -> 0 | P45: =Data!J45 -> 0 | Q45: =LEFT(IF(VLOOKUP(N45,Lookup!A:B,2,0)="Empty",VLOOKUP(P45,Lookup!A:B,2,0),VLOOKUP(N45,Lookup!A:B,2,0)),3) -> Pri | R45: ar 4/0 | S45: OK | T45: =Data!K45 -> Barnet | U45: =IF(A45=0,"",IFERROR(VLOOKUP(Data!L45,Bandlist!A:A,1,0),"**Unexpected band")) -> PavASS | V45: =Data!L45 -> PAVASS | X45: =Data!M45 -> 1 | Y45: =Data!N45 -> 0 | Z45: =Data!O45 -> 0 | AA45: =Data!P45 -> 0 | AB45: OK | AD45: =Data!Q45 -> 11425 | AE45: =IFERROR(VLOOKUP(AD45,Costcentres!B:I,2,0),"**Unexpected CC") -> PRU Top-ups | AF45: =IF(AND(Q45="Nur",A45<3021005),"NS",Q45)&IF(VLOOKUP(A45,Schools!A:C,3,0)="M","Maint","Acad") -> PriMaint | AG45: =HLOOKUP(AF45,Bandlist!$A$3:$Y$4,2,0) -> 17 | AH45: =IF(T45="Barnet",VLOOKUP(U45,Bandlist!A:Y,Datacheck!AG45,0),0) -> 11425 | AI45: PRU Top-ups | AK45: =VLOOKUP(AH45,Costcentres!B:I,2,0) -> PRU Top-ups
A46: =Data!A46 -> 3021100 | B46: =IF(A46=0,"",IF(Data!B46=VLOOKUP(A46,Schools!A:B,2,0), Data!B46,"**Unexpected school")) -> Pavilion | C46: =Data!B46 -> Pavilion | D46: =IF(A46=0,"",IF(Data!C46="","**Missing",Data!C46)) -> 316388 | E46: =IF(A46=0,"",IF(Data!D46="","**Missing",TRIM(Data!D46))) -> **Missing | F46: =IF(A46=0,"",IF(Data!E46="","**Missing",TRIM(Data!E46))) -> **Missing | G46: =IF(A46=0,"",IF(Data!F46="XX","**Missing dob",IF(OR((TODAY()-Data!F46)/365>20,(TODAY()-Data!F46)/365<3),"**Unexpected date",Data!F46))) -> 2005-01-06 | H46: =Data!F46 -> 2005-01-06 | I46: =IF(Data!G46=0,0,IF(OR(Data!G46>Fyend),"**Unexpected date",Data!G46)) -> 00:00:00 | J46: =Data!G46 -> 00:00:00 | K46: =IF(Data!H46=0,0,IF(OR(Data!H46<Earliest,Data!H46>Fyend),"**Unexpected date",Data!H46)) -> 2021-08-31 | L46: =Data!H46 -> 2021-08-31 | M46: =IFERROR(VLOOKUP(Data!I46,Lookup!$A:$A,1,0), "**Unexpected Yeargroup") -> NC Year 11 | N46: =Data!I46 -> NC Year 11 | O46: =IFERROR(VLOOKUP(Data!J46,Lookup!$A:$A,1,0), "**Unexpected Yeargroup") -> 0 | P46: =Data!J46 -> 0 | Q46: =LEFT(IF(VLOOKUP(N46,Lookup!A:B,2,0)="Empty",VLOOKUP(P46,Lookup!A:B,2,0),VLOOKUP(N46,Lookup!A:B,2,0)),3) -> Sec | R46: r 11/0 | S46: OK | T46: =Data!K46 -> Barnet | U46: =IF(A46=0,"",IFERROR(VLOOKUP(Data!L46,Bandlist!A:A,1,0),"**Unexpected band")) -> PavD | V46: =Data!L46 -> PAVD | X46: =Data!M46 -> 0.8 | Y46: =Data!N46 -> 0 | Z46: =Data!O46 -> 0 | AA46: =Data!P46 -> 0 | AB46: OK | AD46: =Data!Q46 -> 11425 | AE46: =IFERROR(VLOOKUP(AD46,Costcentres!B:I,2,0),"**Unexpected CC") -> PRU Top-ups | AF46: =IF(AND(Q46="Nur",A46<3021005),"NS",Q46)&IF(VLOOKUP(A46,Schools!A:C,3,0)="M","Maint","Acad") -> SecMaint | AG46: =HLOOKUP(AF46,Bandlist!$A$3:$Y$4,2,0) -> 19 | AH46: =IF(T46="Barnet",VLOOKUP(U46,Bandlist!A:Y,Datacheck!AG46,0),0) -> 11425 | AI46: PRU Top-ups | AK46: =VLOOKUP(AH46,Costcentres!B:I,2,0) -> PRU Top-ups
A47: =Data!A47 -> 3021100 | B47: =IF(A47=0,"",IF(Data!B47=VLOOKUP(A47,Schools!A:B,2,0), Data!B47,"**Unexpected school")) -> Pavilion | C47: =Data!B47 -> Pavilion | D47: =IF(A47=0,"",IF(Data!C47="","**Missing",Data!C47)) -> 316388 | E47: =IF(A47=0,"",IF(Data!D47="","**Missing",TRIM(Data!D47))) -> **Missing | F47: =IF(A47=0,"",IF(Data!E47="","**Missing",TRIM(Data!E47))) -> **Missing | G47: =IF(A47=0,"",IF(Data!F47="XX","**Missing dob",IF(OR((TODAY()-Data!F47)/365>20,(TODAY()-Data!F47)/365<3),"**Unexpected date",Data!F47))) -> 2005-01-06 | H47: =Data!F47 -> 2005-01-06 | I47: =IF(Data!G47=0,0,IF(OR(Data!G47>Fyend),"**Unexpected date",Data!G47)) -> 00:00:00 | J47: =Data!G47 -> 00:00:00 | K47: =IF(Data!H47=0,0,IF(OR(Data!H47<Earliest,Data!H47>Fyend),"**Unexpected date",Data!H47)) -> 2021-08-31 | L47: =Data!H47 -> 2021-08-31 | M47: =IFERROR(VLOOKUP(Data!I47,Lookup!$A:$A,1,0), "**Unexpected Yeargroup") -> NC Year 11 | N47: =Data!I47 -> NC Year 11 | O47: =IFERROR(VLOOKUP(Data!J47,Lookup!$A:$A,1,0), "**Unexpected Yeargroup") -> 0 | P47: =Data!J47 -> 0 | Q47: =LEFT(IF(VLOOKUP(N47,Lookup!A:B,2,0)="Empty",VLOOKUP(P47,Lookup!A:B,2,0),VLOOKUP(N47,Lookup!A:B,2,0)),3) -> Sec | R47: r 11/0 | S47: OK | T47: =Data!K47 -> Barnet | U47: =IF(A47=0,"",IFERROR(VLOOKUP(Data!L47,Bandlist!A:A,1,0),"**Unexpected band")) -> PRUAD | V47: =Data!L47 -> PRUAD | X47: =Data!M47 -> 1 | Y47: =Data!N47 -> 3183 | Z47: =Data!O47 -> 0 | AA47: =Data!P47 -> 0 | AB47: OK | AD47: =Data!Q47 -> 11425 | AE47: =IFERROR(VLOOKUP(AD47,Costcentres!B:I,2,0),"**Unexpected CC") -> PRU Top-ups | AF47: =IF(AND(Q47="Nur",A47<3021005),"NS",Q47)&IF(VLOOKUP(A47,Schools!A:C,3,0)="M","Maint","Acad") -> SecMaint | AG47: =HLOOKUP(AF47,Bandlist!$A$3:$Y$4,2,0) -> 19 | AH47: =IF(T47="Barnet",VLOOKUP(U47,Bandlist!A:Y,Datacheck!AG47,0),0) -> 11425 | AI47: PRU Top-ups | AK47: =VLOOKUP(AH47,Costcentres!B:I,2,0) -> PRU Top-ups
A48: =Data!A48 -> 3021100 | B48: =IF(A48=0,"",IF(Data!B48=VLOOKUP(A48,Schools!A:B,2,0), Data!B48,"**Unexpected school")) -> Pavilion | C48: =Data!B48 -> Pavilion | D48: =IF(A48=0,"",IF(Data!C48="","**Missing",Data!C48)) -> 1135699 | E48: =IF(A48=0,"",IF(Data!D48="","**Missing",TRIM(Data!D48))) -> **Missing | F48: =IF(A48=0,"",IF(Data!E48="","**Missing",TRIM(Data!E48))) -> **Missing | G48: =IF(A48=0,"",IF(Data!F48="XX","**Missing dob",IF(OR((TODAY()-Data!F48)/365>20,(TODAY()-Data!F48)/365<3),"**Unexpected date",Data!F48))) -> 2007-04-29 | H48: =Data!F48 -> 2007-04-29 | I48: =IF(Data!G48=0,0,IF(OR(Data!G48>Fyend),"**Unexpected date",Data!G48)) -> 2022-02-14 | J48: =Data!G48 -> 2022-02-14 | K48: =IF(Data!H48=0,0,IF(OR(Data!H48<Earliest,Data!H48>Fyend),"**Unexpected date",Data!H48)) -> 00:00:00 | L48: =Data!H48 -> 00:00:00 | M48: =IFERROR(VLOOKUP(Data!I48,Lookup!$A:$A,1,0), "**Unexpected Yeargroup") -> 0 | N48: =Data!I48 -> 0 | O48: =IFERROR(VLOOKUP(Data!J48,Lookup!$A:$A,1,0), "**Unexpected Yeargroup") -> NC Year 10 | P48: =Data!J48 -> NC Year 10 | Q48: =LEFT(IF(VLOOKUP(N48,Lookup!A:B,2,0)="Empty",VLOOKUP(P48,Lookup!A:B,2,0),VLOOKUP(N48,Lookup!A:B,2,0)),3) -> Sec | R48: 0/10 | S48: OK | T48: =Data!K48 -> Barnet | U48: =IF(A48=0,"",IFERROR(VLOOKUP(Data!L48,Bandlist!A:A,1,0),"**Unexpected band")) -> PavD | V48: =Data!L48 -> PavD | X48: =Data!M48 -> 1 | Y48: =Data!N48 -> 0 | Z48: =Data!O48 -> 0 | AA48: =Data!P48 -> 0 | AB48: OK | AD48: =Data!Q48 -> 11425 | AE48: =IFERROR(VLOOKUP(AD48,Costcentres!B:I,2,0),"**Unexpected CC") -> PRU Top-ups | AF48: =IF(AND(Q48="Nur",A48<3021005),"NS",Q48)&IF(VLOOKUP(A48,Schools!A:C,3,0)="M","Maint","Acad") -> SecMaint | AG48: =HLOOKUP(AF48,Bandlist!$A$3:$Y$4,2,0) -> 19 | AH48: =IF(T48="Barnet",VLOOKUP(U48,Bandlist!A:Y,Datacheck!AG48,0),0) -> 11425 | AI48: PRU Top-ups | AK48: =VLOOKUP(AH48,Costcentres!B:I,2,0) -> PRU Top-ups
A49: =Data!A49 -> 3021100 | B49: =IF(A49=0,"",IF(Data!B49=VLOOKUP(A49,Schools!A:B,2,0), Data!B49,"**Unexpected school")) -> Pavilion | C49: =Data!B49 -> Pavilion | D49: =IF(A49=0,"",IF(Data!C49="","**Missing",Data!C49)) -> 151326 | E49: =IF(A49=0,"",IF(Data!D49="","**Missing",TRIM(Data!D49))) -> **Missing | F49: =IF(A49=0,"",IF(Data!E49="","**Missing",TRIM(Data!E49))) -> **Missing | G49: =IF(A49=0,"",IF(Data!F49="XX","**Missing dob",IF(OR((TODAY()-Data!F49)/365>20,(TODAY()-Data!F49)/365<3),"**Unexpected date",Data!F49))) -> 2005-04-19 | H49: =Data!F49 -> 2005-04-19 | I49: =IF(Data!G49=0,0,IF(OR(Data!G49>Fyend),"**Unexpected date",Data!G49)) -> 00:00:00 | J49: =Data!G49 -> 00:00:00 | K49: =IF(Data!H49=0,0,IF(OR(Data!H49<Earliest,Data!H49>Fyend),"**Unexpected date",Data!H49)) -> 2021-08-31 | L49: =Data!H49 -> 2021-08-31 | M49: =IFERROR(VLOOKUP(Data!I49,Lookup!$A:$A,1,0), "**Unexpected Yeargroup") -> NC Year 11 | N49: =Data!I49 -> NC Year 11 | O49: =IFERROR(VLOOKUP(Data!J49,Lookup!$A:$A,1,0), "**Unexpected Yeargroup") -> 0 | P49: =Data!J49 -> 0 | Q49: =LEFT(IF(VLOOKUP(N49,Lookup!A:B,2,0)="Empty",VLOOKUP(P49,Lookup!A:B,2,0),VLOOKUP(N49,Lookup!A:B,2,0)),3) -> Sec | R49: =RIGHT(N49,4)&"/"&RIGHT(P49,2) -> r 11/0 | S49: OK | T49: =Data!K49 -> Barnet | U49: =IF(A49=0,"",IFERROR(VLOOKUP(Data!L49,Bandlist!A:A,1,0),"**Unexpected band")) -> PavB | V49: =Data!L49 -> PavB | X49: =Data!M49 -> 1 | Y49: =Data!N49 -> 0 | Z49: =Data!O49 -> 0 | AA49: =Data!P49 -> Plesae confirm is still with you Autumn 21 | AB49: OK | AD49: =Data!Q49 -> 11425 | AE49: =IFERROR(VLOOKUP(AD49,Costcentres!B:I,2,0),"**Unexpected CC") -> PRU Top-ups | AF49: =IF(AND(Q49="Nur",A49<3021005),"NS",Q49)&IF(VLOOKUP(A49,Schools!A:C,3,0)="M","Maint","Acad") -> SecMaint | AG49: =HLOOKUP(AF49,Bandlist!$A$3:$Y$4,2,0) -> 19 | AH49: =IF(T49="Barnet",VLOOKUP(U49,Bandlist!A:Y,Datacheck!AG49,0),0) -> 11425 | AI49: PRU Top-ups | AK49: =VLOOKUP(AH49,Costcentres!B:I,2,0) -> PRU Top-ups
A50: =Data!A50 -> 3021100 | B50: =IF(A50=0,"",IF(Data!B50=VLOOKUP(A50,Schools!A:B,2,0), Data!B50,"**Unexpected school")) -> Pavilion | C50: =Data!B50 -> Pavilion | D50: =IF(A50=0,"",IF(Data!C50="","**Missing",Data!C50)) -> 1003800 | E50: =IF(A50=0,"",IF(Data!D50="","**Missing",TRIM(Data!D50))) -> **Missing | F50: =IF(A50=0,"",IF(Data!E50="","**Missing",TRIM(Data!E50))) -> **Missing | G50: =IF(A50=0,"",IF(Data!F50="XX","**Missing dob",IF(OR((TODAY()-Data!F50)/365>20,(TODAY()-Data!F50)/365<3),"**Unexpected date",Data!F50))) -> 2010-10-26 | H50: =Data!F50 -> 2010-10-26 | I50: =IF(Data!G50=0,0,IF(OR(Data!G50>Fyend),"**Unexpected date",Data!G50)) -> 2021-09-01 | J50: =Data!G50 -> 2021-09-01 | K50: =IF(Data!H50=0,0,IF(OR(Data!H50<Earliest,Data!H50>Fyend),"**Unexpected date",Data!H50)) -> 00:00:00 | L50: =Data!H50 -> 00:00:00 | M50: =IFERROR(VLOOKUP(Data!I50,Lookup!$A:$A,1,0), "**Unexpected Yeargroup") -> 0 | N50: =Data!I50 -> 0 | O50: =IFERROR(VLOOKUP(Data!J50,Lookup!$A:$A,1,0), "**Unexpected Yeargroup") -> NC Year 6 | P50: =Data!J50 -> NC Year 6 | Q50: =LEFT(IF(VLOOKUP(N50,Lookup!A:B,2,0)="Empty",VLOOKUP(P50,Lookup!A:B,2,0),VLOOKUP(N50,Lookup!A:B,2,0)),3) -> Pri | R50: =RIGHT(N50,4)&"/"&RIGHT(P50,2) -> 0/ 6 | S50: OK | T50: =Data!K50 -> Barnet | U50: =IF(A50=0,"",IFERROR(VLOOKUP(Data!L50,Bandlist!A:A,1,0),"**Unexpected band")) -> PavASS | V50: =Data!L50 -> PAVASS | X50: =Data!M50 -> 1 | Y50: =Data!N50 -> 0 | Z50: =Data!O50 -> 0 | AA50: =Data!P50 -> 0 | AB50: OK | AD50: =Data!Q50 -> 11425 | AE50: =IFERROR(VLOOKUP(AD50,Costcentres!B:I,2,0),"**Unexpected CC") -> PRU Top-ups | AF50: =IF(AND(Q50="Nur",A50<3021005),"NS",Q50)&IF(VLOOKUP(A50,Schools!A:C,3,0)="M","Maint","Acad") -> PriMaint | AG50: =HLOOKUP(AF50,Bandlist!$A$3:$Y$4,2,0) -> 17 | AH50: =IF(T50="Barnet",VLOOKUP(U50,Bandlist!A:Y,Datacheck!AG50,0),0) -> 11425 | AI50: PRU Top-ups | AK50: =VLOOKUP(AH50,Costcentres!B:I,2,0) -> PRU Top-ups
A51: =Data!A51 -> 3021100 | B51: =IF(A51=0,"",IF(Data!B51=VLOOKUP(A51,Schools!A:B,2,0), Data!B51,"**Unexpected school")) -> Pavilion | C51: =Data!B51 -> Pavilion | D51: =IF(A51=0,"",IF(Data!C51="","**Missing",Data!C51)) -> 1091170 | E51: =IF(A51=0,"",IF(Data!D51="","**Missing",TRIM(Data!D51))) -> **Missing | F51: =IF(A51=0,"",IF(Data!E51="","**Missing",TRIM(Data!E51))) -> **Missing | G51: =IF(A51=0,"",IF(Data!F51="XX","**Missing dob",IF(OR((TODAY()-Data!F51)/365>20,(TODAY()-Data!F51)/365<3),"**Unexpected date",Data!F51))) -> 2006-11-06 | H51: =Data!F51 -> 2006-11-06 | I51: =IF(Data!G51=0,0,IF(OR(Data!G51>Fyend),"**Unexpected date",Data!G51)) -> 2021-10-22 | J51: =Data!G51 -> 2021-10-22 | K51: =IF(Data!H51=0,0,IF(OR(Data!H51<Earliest,Data!H51>Fyend),"**Unexpected date",Data!H51)) -> 00:00:00 | L51: =Data!H51 -> 00:00:00 | M51: =IFERROR(VLOOKUP(Data!I51,Lookup!$A:$A,1,0), "**Unexpected Yeargroup") -> 0 | N51: =Data!I51 -> 0 | O51: =IFERROR(VLOOKUP(Data!J51,Lookup!$A:$A,1,0), "**Unexpected Yeargroup") -> NC Year 10 | P51: =Data!J51 -> NC Year 10 | Q51: =LEFT(IF(VLOOKUP(N51,Lookup!A:B,2,0)="Empty",VLOOKUP(P51,Lookup!A:B,2,0),VLOOKUP(N51,Lookup!A:B,2,0)),3) -> Sec | R51: =RIGHT(N51,4)&"/"&RIGHT(P51,2) -> 0/10 | S51: OK | T51: =Data!K51 -> Barnet | U51: =IF(A51=0,"",IFERROR(VLOOKUP(Data!L51,Bandlist!A:A,1,0),"**Unexpected band")) -> PavC | V51: =Data!L51 -> PavC | X51: =Data!M51 -> 1 | Y51: =Data!N51 -> 0 | Z51: =Data!O51 -> 0 | AA51: =Data!P51 -> 0 | AB51: OK | AD51: =Data!Q51 -> 11425 | AE51: =IFERROR(VLOOKUP(AD51,Costcentres!B:I,2,0),"**Unexpected CC") -> PRU Top-ups | AF51: =IF(AND(Q51="Nur",A51<3021005),"NS",Q51)&IF(VLOOKUP(A51,Schools!A:C,3,0)="M","Maint","Acad") -> SecMaint | AG51: =HLOOKUP(AF51,Bandlist!$A$3:$Y$4,2,0) -> 19 | AH51: =IF(T51="Barnet",VLOOKUP(U51,Bandlist!A:Y,Datacheck!AG51,0),0) -> 11425 | AI51: PRU Top-ups | AK51: =VLOOKUP(AH51,Costcentres!B:I,2,0) -> PRU Top-ups
A52: =Data!A52 -> 3021100 | B52: =IF(A52=0,"",IF(Data!B52=VLOOKUP(A52,Schools!A:B,2,0), Data!B52,"**Unexpected school")) -> Pavilion | C52: =Data!B52 -> Pavilion | D52: =IF(A52=0,"",IF(Data!C52="","**Missing",Data!C52)) -> 244499 | E52: =IF(A52=0,"",IF(Data!D52="","**Missing",TRIM(Data!D52))) -> **Missing | F52: =IF(A52=0,"",IF(Data!E52="","**Missing",TRIM(Data!E52))) -> **Missing | G52: =IF(A52=0,"",IF(Data!F52="XX","**Missing dob",IF(OR((TODAY()-Data!F52)/365>20,(TODAY()-Data!F52)/365<3),"**Unexpected date",Data!F52))) -> 2008-01-27 | H52: =Data!F52 -> 2008-01-27 | I52: =IF(Data!G52=0,0,IF(OR(Data!G52>Fyend),"**Unexpected date",Data!G52)) -> 00:00:00 | J52: =Data!G52 -> 00:00:00 | K52: =IF(Data!H52=0,0,IF(OR(Data!H52<Earliest,Data!H52>Fyend),"**Unexpected date",Data!H52)) -> 00:00:00 | L52: =Data!H52 -> 00:00:00 | M52: =IFERROR(VLOOKUP(Data!I52,Lookup!$A:$A,1,0), "**Unexpected Yeargroup") -> NC Year 8 | N52: =Data!I52 -> NC Year 8 | O52: =IFERROR(VLOOKUP(Data!J52,Lookup!$A:$A,1,0), "**Unexpected Yeargroup") -> NC Year 9 | P52: =Data!J52 -> NC Year 9 | Q52: =LEFT(IF(VLOOKUP(N52,Lookup!A:B,2,0)="Empty",VLOOKUP(P52,Lookup!A:B,2,0),VLOOKUP(N52,Lookup!A:B,2,0)),3) -> Sec | R52: ar 8/ 9 | S52: OK | T52: =Data!K52 -> Barnet | U52: =IF(A52=0,"",IFERROR(VLOOKUP(Data!L52,Bandlist!A:A,1,0),"**Unexpected band")) -> PavC | V52: =Data!L52 -> PavC | X52: =Data!M52 -> 1 | Y52: =Data!N52 -> 0 | Z52: =Data!O52 -> 0 | AA52: =Data!P52 -> 0 | AB52: OK | AD52: =Data!Q52 -> 11425 | AE52: =IFERROR(VLOOKUP(AD52,Costcentres!B:I,2,0),"**Unexpected CC") -> PRU Top-ups | AF52: =IF(AND(Q52="Nur",A52<3021005),"NS",Q52)&IF(VLOOKUP(A52,Schools!A:C,3,0)="M","Maint","Acad") -> SecMaint | AG52: =HLOOKUP(AF52,Bandlist!$A$3:$Y$4,2,0) -> 19 | AH52: =IF(T52="Barnet",VLOOKUP(U52,Bandlist!A:Y,Datacheck!AG52,0),0) -> 11425 | AI52: PRU Top-ups | AK52: =VLOOKUP(AH52,Costcentres!B:I,2,0) -> PRU Top-ups
A53: =Data!A53 -> 3021100 | B53: =IF(A53=0,"",IF(Data!B53=VLOOKUP(A53,Schools!A:B,2,0), Data!B53,"**Unexpected school")) -> Pavilion | C53: =Data!B53 -> Pavilion | D53: =IF(A53=0,"",IF(Data!C53="","**Missing",Data!C53)) -> 1128320 | E53: =IF(A53=0,"",IF(Data!D53="","**Missing",TRIM(Data!D53))) -> **Missing | F53: =IF(A53=0,"",IF(Data!E53="","**Missing",TRIM(Data!E53))) -> **Missing | G53: =IF(A53=0,"",IF(Data!F53="XX","**Missing dob",IF(OR((TODAY()-Data!F53)/365>20,(TODAY()-Data!F53)/365<3),"**Unexpected date",Data!F53))) -> 2011-03-09 | H53: =Data!F53 -> 2011-03-09 | I53: =IF(Data!G53=0,0,IF(OR(Data!G53>Fyend),"**Unexpected date",Data!G53)) -> 2021-11-30 | J53: =Data!G53 -> 2021-11-30 | K53: =IF(Data!H53=0,0,IF(OR(Data!H53<Earliest,Data!H53>Fyend),"**Unexpected date",Data!H53)) -> 00:00:00 | L53: =Data!H53 -> 00:00:00 | M53: =IFERROR(VLOOKUP(Data!I53,Lookup!$A:$A,1,0), "**Unexpected Yeargroup") -> 0 | N53: =Data!I53 -> 0 | O53: =IFERROR(VLOOKUP(Data!J53,Lookup!$A:$A,1,0), "**Unexpected Yeargroup") -> NC Year 6 | P53: =Data!J53 -> NC Year 6 | Q53: =LEFT(IF(VLOOKUP(N53,Lookup!A:B,2,0)="Empty",VLOOKUP(P53,Lookup!A:B,2,0),VLOOKUP(N53,Lookup!A:B,2,0)),3) -> Pri | R53: 0/ 6 | S53: OK | T53: =Data!K53 -> Barnet | U53: =IF(A53=0,"",IFERROR(VLOOKUP(Data!L53,Bandlist!A:A,1,0),"**Unexpected band")) -> PavASS | V53: =Data!L53 -> PAVASS | X53: =Data!M53 -> 1 | Y53: =Data!N53 -> 0 | Z53: =Data!O53 -> 0 | AA53: =Data!P53 -> 0 | AB53: OK | AD53: =Data!Q53 -> 11425 | AE53: =IFERROR(VLOOKUP(AD53,Costcentres!B:I,2,0),"**Unexpected CC") -> PRU Top-ups | AF53: =IF(AND(Q53="Nur",A53<3021005),"NS",Q53)&IF(VLOOKUP(A53,Schools!A:C,3,0)="M","Maint","Acad") -> PriMaint | AG53: =HLOOKUP(AF53,Bandlist!$A$3:$Y$4,2,0) -> 17 | AH53: =IF(T53="Barnet",VLOOKUP(U53,Bandlist!A:Y,Datacheck!AG53,0),0) -> 11425 | AI53: PRU Top-ups | AK53: =VLOOKUP(AH53,Costcentres!B:I,2,0) -> PRU Top-ups
A54: =Data!A54 -> 3021100 | B54: =IF(A54=0,"",IF(Data!B54=VLOOKUP(A54,Schools!A:B,2,0), Data!B54,"**Unexpected school")) -> Pavilion | C54: =Data!B54 -> Pavilion | D54: =IF(A54=0,"",IF(Data!C54="","**Missing",Data!C54)) -> 174210 | E54: =IF(A54=0,"",IF(Data!D54="","**Missing",TRIM(Data!D54))) -> **Missing | F54: =IF(A54=0,"",IF(Data!E54="","**Missing",TRIM(Data!E54))) -> **Missing | G54: =IF(A54=0,"",IF(Data!F54="XX","**Missing dob",IF(OR((TODAY()-Data!F54)/365>20,(TODAY()-Data!F54)/365<3),"**Unexpected date",Data!F54))) -> 2006-03-19 | H54: =Data!F54 -> 2006-03-19 | I54: =IF(Data!G54=0,0,IF(OR(Data!G54>Fyend),"**Unexpected date",Data!G54)) -> 2021-10-12 | J54: =Data!G54 -> 2021-10-12 | K54: =IF(Data!H54=0,0,IF(OR(Data!H54<Earliest,Data!H54>Fyend),"**Unexpected date",Data!H54)) -> 00:00:00 | L54: =Data!H54 -> 00:00:00 | M54: =IFERROR(VLOOKUP(Data!I54,Lookup!$A:$A,1,0), "**Unexpected Yeargroup") -> 0 | N54: =Data!I54 -> 0 | O54: =IFERROR(VLOOKUP(Data!J54,Lookup!$A:$A,1,0), "**Unexpected Yeargroup") -> NC Year 11 | P54: =Data!J54 -> NC Year 11 | Q54: =LEFT(IF(VLOOKUP(N54,Lookup!A:B,2,0)="Empty",VLOOKUP(P54,Lookup!A:B,2,0),VLOOKUP(N54,Lookup!A:B,2,0)),3) -> Sec | R54: 0/11 | S54: OK | T54: =Data!K54 -> Barnet | U54: =IF(A54=0,"",IFERROR(VLOOKUP(Data!L54,Bandlist!A:A,1,0),"**Unexpected band")) -> PavC | V54: =Data!L54 -> PavC | X54: =Data!M54 -> 1 | Y54: =Data!N54 -> 0 | Z54: =Data!O54 -> 0 | AA54: =Data!P54 -> 0 | AB54: OK | AD54: =Data!Q54 -> 11425 | AE54: =IFERROR(VLOOKUP(AD54,Costcentres!B:I,2,0),"**Unexpected CC") -> PRU Top-ups | AF54: =IF(AND(Q54="Nur",A54<3021005),"NS",Q54)&IF(VLOOKUP(A54,Schools!A:C,3,0)="M","Maint","Acad") -> SecMaint | AG54: =HLOOKUP(AF54,Bandlist!$A$3:$Y$4,2,0) -> 19 | AH54: =IF(T54="Barnet",VLOOKUP(U54,Bandlist!A:Y,Datacheck!AG54,0),0) -> 11425 | AI54: PRU Top-ups | AK54: =VLOOKUP(AH54,Costcentres!B:I,2,0) -> PRU Top-ups
A55: =Data!A55 -> 3021100 | B55: =IF(A55=0,"",IF(Data!B55=VLOOKUP(A55,Schools!A:B,2,0), Data!B55,"**Unexpected school")) -> Pavilion | C55: =Data!B55 -> Pavilion | D55: =IF(A55=0,"",IF(Data!C55="","**Missing",Data!C55)) -> 1153078 | E55: =IF(A55=0,"",IF(Data!D55="","**Missing",TRIM(Data!D55))) -> **Missing | F55: =IF(A55=0,"",IF(Data!E55="","**Missing",TRIM(Data!E55))) -> **Missing | G55: =IF(A55=0,"",IF(Data!F55="XX","**Missing dob",IF(OR((TODAY()-Data!F55)/365>20,(TODAY()-Data!F55)/365<3),"**Unexpected date",Data!F55))) -> 2011-10-31 | H55: =Data!F55 -> 2011-10-31 | I55: =IF(Data!G55=0,0,IF(OR(Data!G55>Fyend),"**Unexpected date",Data!G55)) -> 2021-09-01 | J55: =Data!G55 -> 2021-09-01 | K55: =IF(Data!H55=0,0,IF(OR(Data!H55<Earliest,Data!H55>Fyend),"**Unexpected date",Data!H55)) -> 00:00:00 | L55: =Data!H55 -> 00:00:00 | M55: =IFERROR(VLOOKUP(Data!I55,Lookup!$A:$A,1,0), "**Unexpected Yeargroup") -> 0 | N55: =Data!I55 -> 0 | O55: =IFERROR(VLOOKUP(Data!J55,Lookup!$A:$A,1,0), "**Unexpected Yeargroup") -> NC Year 5 | P55: =Data!J55 -> NC Year 5 | Q55: =LEFT(IF(VLOOKUP(N55,Lookup!A:B,2,0)="Empty",VLOOKUP(P55,Lookup!A:B,2,0),VLOOKUP(N55,Lookup!A:B,2,0)),3) -> Pri | R55: 0/ 5 | S55: OK | T55: =Data!K55 -> Barnet | U55: =IF(A55=0,"",IFERROR(VLOOKUP(Data!L55,Bandlist!A:A,1,0),"**Unexpected band")) -> PavASS | V55: =Data!L55 -> PAVASS | X55: =Data!M55 -> 1 | Y55: =Data!N55 -> 0 | Z55: =Data!O55 -> 0 | AA55: =Data!P55 -> 0 | AB55: OK | AD55: =Data!Q55 -> 11425 | AE55: =IFERROR(VLOOKUP(AD55,Costcentres!B:I,2,0),"**Unexpected CC") -> PRU Top-ups | AF55: =IF(AND(Q55="Nur",A55<3021005),"NS",Q55)&IF(VLOOKUP(A55,Schools!A:C,3,0)="M","Maint","Acad") -> PriMaint | AG55: =HLOOKUP(AF55,Bandlist!$A$3:$Y$4,2,0) -> 17 | AH55: =IF(T55="Barnet",VLOOKUP(U55,Bandlist!A:Y,Datacheck!AG55,0),0) -> 11425 | AI55: PRU Top-ups | AK55: =VLOOKUP(AH55,Costcentres!B:I,2,0) -> PRU Top-ups
A56: =Data!A56 -> 3021100 | B56: =IF(A56=0,"",IF(Data!B56=VLOOKUP(A56,Schools!A:B,2,0), Data!B56,"**Unexpected school")) -> Pavilion | C56: =Data!B56 -> Pavilion | D56: =IF(A56=0,"",IF(Data!C56="","**Missing",Data!C56)) -> 155578 | E56: =IF(A56=0,"",IF(Data!D56="","**Missing",TRIM(Data!D56))) -> **Missing | F56: =IF(A56=0,"",IF(Data!E56="","**Missing",TRIM(Data!E56))) -> **Missing | G56: =IF(A56=0,"",IF(Data!F56="XX","**Missing dob",IF(OR((TODAY()-Data!F56)/365>20,(TODAY()-Data!F56)/365<3),"**Unexpected date",Data!F56))) -> 2005-08-20 | H56: =Data!F56 -> 2005-08-20 | I56: =IF(Data!G56=0,0,IF(OR(Data!G56>Fyend),"**Unexpected date",Data!G56)) -> 00:00:00 | J56: =Data!G56 -> 00:00:00 | K56: =IF(Data!H56=0,0,IF(OR(Data!H56<Earliest,Data!H56>Fyend),"**Unexpected date",Data!H56)) -> 2021-08-31 | L56: =Data!H56 -> 2021-08-31 | M56: =IFERROR(VLOOKUP(Data!I56,Lookup!$A:$A,1,0), "**Unexpected Yeargroup") -> NC Year 11 | N56: =Data!I56 -> NC Year 11 | O56: =IFERROR(VLOOKUP(Data!J56,Lookup!$A:$A,1,0), "**Unexpected Yeargroup") -> 0 | P56: =Data!J56 -> 0 | Q56: =LEFT(IF(VLOOKUP(N56,Lookup!A:B,2,0)="Empty",VLOOKUP(P56,Lookup!A:B,2,0),VLOOKUP(N56,Lookup!A:B,2,0)),3) -> Sec | R56: r 11/0 | S56: OK | T56: =Data!K56 -> Barnet | U56: =IF(A56=0,"",IFERROR(VLOOKUP(Data!L56,Bandlist!A:A,1,0),"**Unexpected band")) -> PavE | V56: =Data!L56 -> PAVe | X56: =Data!M56 -> 1 | Y56: =Data!N56 -> 0 | Z56: =Data!O56 -> 0 | AA56: =Data!P56 -> 0 | AB56: OK | AD56: =Data!Q56 -> 11425 | AE56: =IFERROR(VLOOKUP(AD56,Costcentres!B:I,2,0),"**Unexpected CC") -> PRU Top-ups | AF56: =IF(AND(Q56="Nur",A56<3021005),"NS",Q56)&IF(VLOOKUP(A56,Schools!A:C,3,0)="M","Maint","Acad") -> SecMaint | AG56: =HLOOKUP(AF56,Bandlist!$A$3:$Y$4,2,0) -> 19 | AH56: =IF(T56="Barnet",VLOOKUP(U56,Bandlist!A:Y,Datacheck!AG56,0),0) -> 11425 | AI56: PRU Top-ups | AK56: =VLOOKUP(AH56,Costcentres!B:I,2,0) -> PRU Top-ups
A57: =Data!A57 -> 3021100 | B57: =IF(A57=0,"",IF(Data!B57=VLOOKUP(A57,Schools!A:B,2,0), Data!B57,"**Unexpected school")) -> Pavilion | C57: =Data!B57 -> Pavilion | D57: =IF(A57=0,"",IF(Data!C57="","**Missing",Data!C57)) -> 155578 | E57: =IF(A57=0,"",IF(Data!D57="","**Missing",TRIM(Data!D57))) -> **Missing | F57: =IF(A57=0,"",IF(Data!E57="","**Missing",TRIM(Data!E57))) -> **Missing | G57: =IF(A57=0,"",IF(Data!F57="XX","**Missing dob",IF(OR((TODAY()-Data!F57)/365>20,(TODAY()-Data!F57)/365<3),"**Unexpected date",Data!F57))) -> 2005-08-20 | H57: =Data!F57 -> 2005-08-20 | I57: =IF(Data!G57=0,0,IF(OR(Data!G57>Fyend),"**Unexpected date",Data!G57)) -> 00:00:00 | J57: =Data!G57 -> 00:00:00 | K57: =IF(Data!H57=0,0,IF(OR(Data!H57<Earliest,Data!H57>Fyend),"**Unexpected date",Data!H57)) -> 2021-08-31 | L57: =Data!H57 -> 2021-08-31 | M57: =IFERROR(VLOOKUP(Data!I57,Lookup!$A:$A,1,0), "**Unexpected Yeargroup") -> NC Year 11 | N57: =Data!I57 -> NC Year 11 | O57: =IFERROR(VLOOKUP(Data!J57,Lookup!$A:$A,1,0), "**Unexpected Yeargroup") -> 0 | P57: =Data!J57 -> 0 | Q57: =LEFT(IF(VLOOKUP(N57,Lookup!A:B,2,0)="Empty",VLOOKUP(P57,Lookup!A:B,2,0),VLOOKUP(N57,Lookup!A:B,2,0)),3) -> Sec | R57: r 11/0 | S57: OK | T57: =Data!K57 -> Barnet | U57: =IF(A57=0,"",IFERROR(VLOOKUP(Data!L57,Bandlist!A:A,1,0),"**Unexpected band")) -> PRUAD | V57: =Data!L57 -> PRUAD | X57: =Data!M57 -> 1 | Y57: =Data!N57 -> 4162.5 | Z57: =Data!O57 -> 0 | AA57: =Data!P57 -> 0 | AB57: OK | AD57: =Data!Q57 -> 11425 | AE57: =IFERROR(VLOOKUP(AD57,Costcentres!B:I,2,0),"**Unexpected CC") -> PRU Top-ups | AF57: =IF(AND(Q57="Nur",A57<3021005),"NS",Q57)&IF(VLOOKUP(A57,Schools!A:C,3,0)="M","Maint","Acad") -> SecMaint | AG57: =HLOOKUP(AF57,Bandlist!$A$3:$Y$4,2,0) -> 19 | AH57: =IF(T57="Barnet",VLOOKUP(U57,Bandlist!A:Y,Datacheck!AG57,0),0) -> 11425 | AI57: PRU Top-ups | AK57: =VLOOKUP(AH57,Costcentres!B:I,2,0) -> PRU Top-ups
A58: =Data!A58 -> 3021100 | B58: =IF(A58=0,"",IF(Data!B58=VLOOKUP(A58,Schools!A:B,2,0), Data!B58,"**Unexpected school")) -> Pavilion | C58: =Data!B58 -> Pavilion | D58: =IF(A58=0,"",IF(Data!C58="","**Missing",Data!C58)) -> 30200 | E58: =IF(A58=0,"",IF(Data!D58="","**Missing",TRIM(Data!D58))) -> **Missing | F58: =IF(A58=0,"",IF(Data!E58="","**Missing",TRIM(Data!E58))) -> **Missing | G58: =IF(A58=0,"",IF(Data!F58="XX","**Missing dob",IF(OR((TODAY()-Data!F58)/365>20,(TODAY()-Data!F58)/365<3),"**Unexpected date",Data!F58))) -> 2014-01-01 | H58: =Data!F58 -> 2014-01-01 | I58: =IF(Data!G58=0,0,IF(OR(Data!G58>Fyend),"**Unexpected date",Data!G58)) -> 2021-09-01 | J58: =Data!G58 -> 2021-09-01 | K58: =IF(Data!H58=0,0,IF(OR(Data!H58<Earliest,Data!H58>Fyend),"**Unexpected date",Data!H58)) -> 00:00:00 | L58: =Data!H58 -> 00:00:00 | M58: =IFERROR(VLOOKUP(Data!I58,Lookup!$A:$A,1,0), "**Unexpected Yeargroup") -> 0 | N58: =Data!I58 -> 0 | O58: =IFERROR(VLOOKUP(Data!J58,Lookup!$A:$A,1,0), "**Unexpected Yeargroup") -> NC Year 3 | P58: =Data!J58 -> NC Year 3 | Q58: =LEFT(IF(VLOOKUP(N58,Lookup!A:B,2,0)="Empty",VLOOKUP(P58,Lookup!A:B,2,0),VLOOKUP(N58,Lookup!A:B,2,0)),3) -> Pri | R58: 0/ 3 | S58: OK | T58: =Data!K58 -> Barnet | U58: =IF(A58=0,"",IFERROR(VLOOKUP(Data!L58,Bandlist!A:A,1,0),"**Unexpected band")) -> PRUAD | V58: =Data!L58 -> PRUAD | X58: =Data!M58 -> 1 | Y58: =Data!N58 -> 8166.666667 | Z58: =Data!O58 -> 0 | AA58: =Data!P58 -> 0 | AB58: OK | AD58: =Data!Q58 -> 11425 | AE58: =IFERROR(VLOOKUP(AD58,Costcentres!B:I,2,0),"**Unexpected CC") -> PRU Top-ups | AF58: =IF(AND(Q58="Nur",A58<3021005),"NS",Q58)&IF(VLOOKUP(A58,Schools!A:C,3,0)="M","Maint","Acad") -> PriMaint | AG58: =HLOOKUP(AF58,Bandlist!$A$3:$Y$4,2,0) -> 17 | AH58: =IF(T58="Barnet",VLOOKUP(U58,Bandlist!A:Y,Datacheck!AG58,0),0) -> 11425 | AI58: PRU Top-ups | AK58: =VLOOKUP(AH58,Costcentres!B:I,2,0) -> PRU Top-ups
A59: =Data!A59 -> 3021100 | B59: =IF(A59=0,"",IF(Data!B59=VLOOKUP(A59,Schools!A:B,2,0), Data!B59,"**Unexpected school")) -> Pavilion | C59: =Data!B59 -> Pavilion | D59: =IF(A59=0,"",IF(Data!C59="","**Missing",Data!C59)) -> 1017900 | E59: =IF(A59=0,"",IF(Data!D59="","**Missing",TRIM(Data!D59))) -> **Missing | F59: =IF(A59=0,"",IF(Data!E59="","**Missing",TRIM(Data!E59))) -> **Missing | G59: =IF(A59=0,"",IF(Data!F59="XX","**Missing dob",IF(OR((TODAY()-Data!F59)/365>20,(TODAY()-Data!F59)/365<3),"**Unexpected date",Data!F59))) -> 2014-05-24 | H59: =Data!F59 -> 2014-05-24 | I59: =IF(Data!G59=0,0,IF(OR(Data!G59>Fyend),"**Unexpected date",Data!G59)) -> 2021-09-01 | J59: =Data!G59 -> 2021-09-01 | K59: =IF(Data!H59=0,0,IF(OR(Data!H59<Earliest,Data!H59>Fyend),"**Unexpected date",Data!H59)) -> 00:00:00 | L59: =Data!H59 -> 00:00:00 | M59: =IFERROR(VLOOKUP(Data!I59,Lookup!$A:$A,1,0), "**Unexpected Yeargroup") -> 0 | N59: =Data!I59 -> 0 | O59: =IFERROR(VLOOKUP(Data!J59,Lookup!$A:$A,1,0), "**Unexpected Yeargroup") -> NC Year 3 | P59: =Data!J59 -> NC Year 3 | Q59: =LEFT(IF(VLOOKUP(N59,Lookup!A:B,2,0)="Empty",VLOOKUP(P59,Lookup!A:B,2,0),VLOOKUP(N59,Lookup!A:B,2,0)),3) -> Pri | R59: 0/ 3 | S59: OK | T59: =Data!K59 -> Barnet | U59: =IF(A59=0,"",IFERROR(VLOOKUP(Data!L59,Bandlist!A:A,1,0),"**Unexpected band")) -> PRUAD | V59: =Data!L59 -> PRUAD | X59: =Data!M59 -> 1 | Y59: =Data!N59 -> 8166.666667 | Z59: =Data!O59 -> 0 | AA59: =Data!P59 -> 0 | AB59: OK | AD59: =Data!Q59 -> 11425 | AE59: =IFERROR(VLOOKUP(AD59,Costcentres!B:I,2,0),"**Unexpected CC") -> PRU Top-ups | AF59: =IF(AND(Q59="Nur",A59<3021005),"NS",Q59)&IF(VLOOKUP(A59,Schools!A:C,3,0)="M","Maint","Acad") -> PriMaint | AG59: =HLOOKUP(AF59,Bandlist!$A$3:$Y$4,2,0) -> 17 | AH59: =IF(T59="Barnet",VLOOKUP(U59,Bandlist!A:Y,Datacheck!AG59,0),0) -> 11425 | AI59: PRU Top-ups | AK59: =VLOOKUP(AH59,Costcentres!B:I,2,0) -> PRU Top-ups
A60: =Data!A60 -> 3021100 | B60: =IF(A60=0,"",IF(Data!B60=VLOOKUP(A60,Schools!A:B,2,0), Data!B60,"**Unexpected school")) -> Pavilion | C60: =Data!B60 -> Pavilion | D60: =IF(A60=0,"",IF(Data!C60="","**Missing",Data!C60)) -> 341552 | E60: =IF(A60=0,"",IF(Data!D60="","**Missing",TRIM(Data!D60))) -> **Missing | F60: =IF(A60=0,"",IF(Data!E60="","**Missing",TRIM(Data!E60))) -> **Missing | G60: =IF(A60=0,"",IF(Data!F60="XX","**Missing dob",IF(OR((TODAY()-Data!F60)/365>20,(TODAY()-Data!F60)/365<3),"**Unexpected date",Data!F60))) -> 2010-09-01 | H60: =Data!F60 -> 2010-09-01 | I60: =IF(Data!G60=0,0,IF(OR(Data!G60>Fyend),"**Unexpected date",Data!G60)) -> 2021-09-01 | J60: =Data!G60 -> 2021-09-01 | K60: =IF(Data!H60=0,0,IF(OR(Data!H60<Earliest,Data!H60>Fyend),"**Unexpected date",Data!H60)) -> 00:00:00 | L60: =Data!H60 -> 00:00:00 | M60: =IFERROR(VLOOKUP(Data!I60,Lookup!$A:$A,1,0), "**Unexpected Yeargroup") -> 0 | N60: =Data!I60 -> 0 | O60: =IFERROR(VLOOKUP(Data!J60,Lookup!$A:$A,1,0), "**Unexpected Yeargroup") -> NC Year 6 | P60: =Data!J60 -> NC Year 6 | Q60: =LEFT(IF(VLOOKUP(N60,Lookup!A:B,2,0)="Empty",VLOOKUP(P60,Lookup!A:B,2,0),VLOOKUP(N60,Lookup!A:B,2,0)),3) -> Pri | R60: 0/ 6 | S60: OK | T60: =Data!K60 -> Barnet | U60: =IF(A60=0,"",IFERROR(VLOOKUP(Data!L60,Bandlist!A:A,1,0),"**Unexpected band")) -> PavASS | V60: =Data!L60 -> PAVASS | X60: =Data!M60 -> 1 | Y60: =Data!N60 -> 0 | Z60: =Data!O60 -> 0 | AA60: =Data!P60 -> 0 | AB60: OK | AD60: =Data!Q60 -> 11425 | AE60: =IFERROR(VLOOKUP(AD60,Costcentres!B:I,2,0),"**Unexpected CC") -> PRU Top-ups | AF60: =IF(AND(Q60="Nur",A60<3021005),"NS",Q60)&IF(VLOOKUP(A60,Schools!A:C,3,0)="M","Maint","Acad") -> PriMaint | AG60: =HLOOKUP(AF60,Bandlist!$A$3:$Y$4,2,0) -> 17 | AH60: =IF(T60="Barnet",VLOOKUP(U60,Bandlist!A:Y,Datacheck!AG60,0),0) -> 11425 | AI60: PRU Top-ups | AK60: =VLOOKUP(AH60,Costcentres!B:I,2,0) -> PRU Top-ups
A61: =Data!A61 -> 3021100 | B61: =IF(A61=0,"",IF(Data!B61=VLOOKUP(A61,Schools!A:B,2,0), Data!B61,"**Unexpected school")) -> Pavilion | C61: =Data!B61 -> Pavilion | D61: =IF(A61=0,"",IF(Data!C61="","**Missing",Data!C61)) -> 184222 | E61: =IF(A61=0,"",IF(Data!D61="","**Missing",TRIM(Data!D61))) -> **Missing | F61: =IF(A61=0,"",IF(Data!E61="","**Missing",TRIM(Data!E61))) -> **Missing | G61: =IF(A61=0,"",IF(Data!F61="XX","**Missing dob",IF(OR((TODAY()-Data!F61)/365>20,(TODAY()-Data!F61)/365<3),"**Unexpected date",Data!F61))) -> 2006-05-15 | H61: =Data!F61 -> 2006-05-15 | I61: =IF(Data!G61=0,0,IF(OR(Data!G61>Fyend),"**Unexpected date",Data!G61)) -> 2021-09-01 | J61: =Data!G61 -> 2021-09-01 | K61: =IF(Data!H61=0,0,IF(OR(Data!H61<Earliest,Data!H61>Fyend),"**Unexpected date",Data!H61)) -> 00:00:00 | L61: =Data!H61 -> 00:00:00 | M61: =IFERROR(VLOOKUP(Data!I61,Lookup!$A:$A,1,0), "**Unexpected Yeargroup") -> 0 | N61: =Data!I61 -> 0 | O61: =IFERROR(VLOOKUP(Data!J61,Lookup!$A:$A,1,0), "**Unexpected Yeargroup") -> NC Year 11 | P61: =Data!J61 -> NC Year 11 | Q61: =LEFT(IF(VLOOKUP(N61,Lookup!A:B,2,0)="Empty",VLOOKUP(P61,Lookup!A:B,2,0),VLOOKUP(N61,Lookup!A:B,2,0)),3) -> Sec | R61: 0/11 | S61: OK | T61: =Data!K61 -> Barnet | U61: =IF(A61=0,"",IFERROR(VLOOKUP(Data!L61,Bandlist!A:A,1,0),"**Unexpected band")) -> PavD | V61: =Data!L61 -> PavD | X61: =Data!M61 -> 1 | Y61: =Data!N61 -> 0 | Z61: =Data!O61 -> 0 | AA61: =Data!P61 -> 0 | AB61: OK | AD61: =Data!Q61 -> 11425 | AE61: =IFERROR(VLOOKUP(AD61,Costcentres!B:I,2,0),"**Unexpected CC") -> PRU Top-ups | AF61: =IF(AND(Q61="Nur",A61<3021005),"NS",Q61)&IF(VLOOKUP(A61,Schools!A:C,3,0)="M","Maint","Acad") -> SecMaint | AG61: =HLOOKUP(AF61,Bandlist!$A$3:$Y$4,2,0) -> 19 | AH61: =IF(T61="Barnet",VLOOKUP(U61,Bandlist!A:Y,Datacheck!AG61,0),0) -> 11425 | AI61: PRU Top-ups | AK61: =VLOOKUP(AH61,Costcentres!B:I,2,0) -> PRU Top-ups
A62: =Data!A62 -> 3021100 | B62: =IF(A62=0,"",IF(Data!B62=VLOOKUP(A62,Schools!A:B,2,0), Data!B62,"**Unexpected school")) -> Pavilion | C62: =Data!B62 -> Pavilion | D62: =IF(A62=0,"",IF(Data!C62="","**Missing",Data!C62)) -> 1140348 | E62: =IF(A62=0,"",IF(Data!D62="","**Missing",TRIM(Data!D62))) -> **Missing | F62: =IF(A62=0,"",IF(Data!E62="","**Missing",TRIM(Data!E62))) -> **Missing | G62: =IF(A62=0,"",IF(Data!F62="XX","**Missing dob",IF(OR((TODAY()-Data!F62)/365>20,(TODAY()-Data!F62)/365<3),"**Unexpected date",Data!F62))) -> 2015-06-04 | H62: =Data!F62 -> 2015-06-04 | I62: =IF(Data!G62=0,0,IF(OR(Data!G62>Fyend),"**Unexpected date",Data!G62)) -> 2021-11-23 | J62: =Data!G62 -> 2021-11-23 | K62: =IF(Data!H62=0,0,IF(OR(Data!H62<Earliest,Data!H62>Fyend),"**Unexpected date",Data!H62)) -> 00:00:00 | L62: =Data!H62 -> 00:00:00 | M62: =IFERROR(VLOOKUP(Data!I62,Lookup!$A:$A,1,0), "**Unexpected Yeargroup") -> 0 | N62: =Data!I62 -> 0 | O62: =IFERROR(VLOOKUP(Data!J62,Lookup!$A:$A,1,0), "**Unexpected Yeargroup") -> NC Year 2 | P62: =Data!J62 -> NC Year 2 | Q62: =LEFT(IF(VLOOKUP(N62,Lookup!A:B,2,0)="Empty",VLOOKUP(P62,Lookup!A:B,2,0),VLOOKUP(N62,Lookup!A:B,2,0)),3) -> Pri | R62: 0/ 2 | S62: OK | T62: =Data!K62 -> Barnet | U62: =IF(A62=0,"",IFERROR(VLOOKUP(Data!L62,Bandlist!A:A,1,0),"**Unexpected band")) -> PavASS | V62: =Data!L62 -> PAVASS | X62: =Data!M62 -> 1 | Y62: =Data!N62 -> 0 | Z62: =Data!O62 -> 0 | AA62: =Data!P62 -> 0 | AB62: OK | AD62: =Data!Q62 -> 11425 | AE62: =IFERROR(VLOOKUP(AD62,Costcentres!B:I,2,0),"**Unexpected CC") -> PRU Top-ups | AF62: =IF(AND(Q62="Nur",A62<3021005),"NS",Q62)&IF(VLOOKUP(A62,Schools!A:C,3,0)="M","Maint","Acad") -> PriMaint | AG62: =HLOOKUP(AF62,Bandlist!$A$3:$Y$4,2,0) -> 17 | AH62: =IF(T62="Barnet",VLOOKUP(U62,Bandlist!A:Y,Datacheck!AG62,0),0) -> 11425 | AI62: PRU Top-ups | AK62: =VLOOKUP(AH62,Costcentres!B:I,2,0) -> PRU Top-ups
A63: =Data!A63 -> 3021100 | B63: =IF(A63=0,"",IF(Data!B63=VLOOKUP(A63,Schools!A:B,2,0), Data!B63,"**Unexpected school")) -> Pavilion | C63: =Data!B63 -> Pavilion | D63: =IF(A63=0,"",IF(Data!C63="","**Missing",Data!C63)) -> Topups 47 | E63: =IF(A63=0,"",IF(Data!D63="","**Missing",TRIM(Data!D63))) -> **Missing | F63: =IF(A63=0,"",IF(Data!E63="","**Missing",TRIM(Data!E63))) -> **Missing | G63: =IF(A63=0,"",IF(Data!F63="XX","**Missing dob",IF(OR((TODAY()-Data!F63)/365>20,(TODAY()-Data!F63)/365<3),"**Unexpected date",Data!F63))) -> 2003-01-01 | H63: =Data!F63 -> 2003-01-01 | I63: =IF(Data!G63=0,0,IF(OR(Data!G63>Fyend),"**Unexpected date",Data!G63)) -> 2021-04-01 | J63: =Data!G63 -> 2021-04-01 | K63: =IF(Data!H63=0,0,IF(OR(Data!H63<Earliest,Data!H63>Fyend),"**Unexpected date",Data!H63)) -> 2022-03-31 | L63: =Data!H63 -> 2022-03-31 | M63: =IFERROR(VLOOKUP(Data!I63,Lookup!$A:$A,1,0), "**Unexpected Yeargroup") -> NC Year 7 | N63: =Data!I63 -> NC Year 7 | O63: =IFERROR(VLOOKUP(Data!J63,Lookup!$A:$A,1,0), "**Unexpected Yeargroup") -> NC Year 8 | P63: =Data!J63 -> NC Year 8 | Q63: =LEFT(IF(VLOOKUP(N63,Lookup!A:B,2,0)="Empty",VLOOKUP(P63,Lookup!A:B,2,0),VLOOKUP(N63,Lookup!A:B,2,0)),3) -> Sec | R63: ar 7/ 8 | S63: OK | T63: =Data!K63 -> Barnet | U63: =IF(A63=0,"",IFERROR(VLOOKUP(Data!L63,Bandlist!A:A,1,0),"**Unexpected band")) -> PAV1 | V63: =Data!L63 -> PAV1 | X63: =Data!M63 -> 47 | Y63: =Data!N63 -> 0 | Z63: =Data!O63 -> 0 | AA63: =Data!P63 -> 0 | AB63: OK | AD63: =Data!Q63 -> 11425 | AE63: =IFERROR(VLOOKUP(AD63,Costcentres!B:I,2,0),"**Unexpected CC") -> PRU Top-ups | AF63: =IF(AND(Q63="Nur",A63<3021005),"NS",Q63)&IF(VLOOKUP(A63,Schools!A:C,3,0)="M","Maint","Acad") -> SecMaint | AG63: =HLOOKUP(AF63,Bandlist!$A$3:$Y$4,2,0) -> 19 | AH63: =IF(T63="Barnet",VLOOKUP(U63,Bandlist!A:Y,Datacheck!AG63,0),0) -> 11425 | AI63: PRU Top-ups | AK63: =VLOOKUP(AH63,Costcentres!B:I,2,0) -> PRU Top-ups
A64: =Data!A64 -> 3021100 | B64: =IF(A64=0,"",IF(Data!B64=VLOOKUP(A64,Schools!A:B,2,0), Data!B64,"**Unexpected school")) -> Pavilion | C64: =Data!B64 -> Pavilion | D64: =IF(A64=0,"",IF(Data!C64="","**Missing",Data!C64)) -> Topups 80 | E64: =IF(A64=0,"",IF(Data!D64="","**Missing",TRIM(Data!D64))) -> **Missing | F64: =IF(A64=0,"",IF(Data!E64="","**Missing",TRIM(Data!E64))) -> **Missing | G64: =IF(A64=0,"",IF(Data!F64="XX","**Missing dob",IF(OR((TODAY()-Data!F64)/365>20,(TODAY()-Data!F64)/365<3),"**Unexpected date",Data!F64))) -> 2003-01-01 | H64: =Data!F64 -> 2003-01-01 | I64: =IF(Data!G64=0,0,IF(OR(Data!G64>Fyend),"**Unexpected date",Data!G64)) -> 2021-04-01 | J64: =Data!G64 -> 2021-04-01 | K64: =IF(Data!H64=0,0,IF(OR(Data!H64<Earliest,Data!H64>Fyend),"**Unexpected date",Data!H64)) -> 2022-03-31 | L64: =Data!H64 -> 2022-03-31 | M64: =IFERROR(VLOOKUP(Data!I64,Lookup!$A:$A,1,0), "**Unexpected Yeargroup") -> NC Year 7 | N64: =Data!I64 -> NC Year 7 | O64: =IFERROR(VLOOKUP(Data!J64,Lookup!$A:$A,1,0), "**Unexpected Yeargroup") -> NC Year 8 | P64: =Data!J64 -> NC Year 8 | Q64: =LEFT(IF(VLOOKUP(N64,Lookup!A:B,2,0)="Empty",VLOOKUP(P64,Lookup!A:B,2,0),VLOOKUP(N64,Lookup!A:B,2,0)),3) -> Sec | R64: ar 7/ 8 | S64: OK | T64: =Data!K64 -> Barnet | U64: =IF(A64=0,"",IFERROR(VLOOKUP(Data!L64,Bandlist!A:A,1,0),"**Unexpected band")) -> PAV2 | V64: =Data!L64 -> PAV2 | X64: =Data!M64 -> 80 | Y64: =Data!N64 -> 0 | Z64: =Data!O64 -> 0 | AA64: =Data!P64 -> 0 | AB64: OK | AD64: =Data!Q64 -> 11425 | AE64: =IFERROR(VLOOKUP(AD64,Costcentres!B:I,2,0),"**Unexpected CC") -> PRU Top-ups | AF64: =IF(AND(Q64="Nur",A64<3021005),"NS",Q64)&IF(VLOOKUP(A64,Schools!A:C,3,0)="M","Maint","Acad") -> SecMaint | AG64: =HLOOKUP(AF64,Bandlist!$A$3:$Y$4,2,0) -> 19 | AH64: =IF(T64="Barnet",VLOOKUP(U64,Bandlist!A:Y,Datacheck!AG64,0),0) -> 11425 | AI64: PRU Top-ups | AK64: =VLOOKUP(AH64,Costcentres!B:I,2,0) -> PRU Top-ups
A65: =Data!A65 -> 3021100 | B65: =IF(A65=0,"",IF(Data!B65=VLOOKUP(A65,Schools!A:B,2,0), Data!B65,"**Unexpected school")) -> Pavilion | C65: =Data!B65 -> Pavilion | D65: =IF(A65=0,"",IF(Data!C65="","**Missing",Data!C65)) -> 157944 | E65: =IF(A65=0,"",IF(Data!D65="","**Missing",TRIM(Data!D65))) -> **Missing | F65: =IF(A65=0,"",IF(Data!E65="","**Missing",TRIM(Data!E65))) -> **Missing | G65: =IF(A65=0,"",IF(Data!F65="XX","**Missing dob",IF(OR((TODAY()-Data!F65)/365>20,(TODAY()-Data!F65)/365<3),"**Unexpected date",Data!F65))) -> 2006-05-12 | H65: =Data!F65 -> 2006-05-12 | I65: =IF(Data!G65=0,0,IF(OR(Data!G65>Fyend),"**Unexpected date",Data!G65)) -> 2021-11-20 | J65: =Data!G65 -> 2021-11-20 | K65: =IF(Data!H65=0,0,IF(OR(Data!H65<Earliest,Data!H65>Fyend),"**Unexpected date",Data!H65)) -> 00:00:00 | L65: =Data!H65 -> 00:00:00 | M65: =IFERROR(VLOOKUP(Data!I65,Lookup!$A:$A,1,0), "**Unexpected Yeargroup") -> 0 | N65: =Data!I65 -> 0 | O65: =IFERROR(VLOOKUP(Data!J65,Lookup!$A:$A,1,0), "**Unexpected Yeargroup") -> NC Year 11 | P65: =Data!J65 -> NC Year 11 | Q65: =LEFT(IF(VLOOKUP(N65,Lookup!A:B,2,0)="Empty",VLOOKUP(P65,Lookup!A:B,2,0),VLOOKUP(N65,Lookup!A:B,2,0)),3) -> Sec | R65: 0/11 | S65: OK | T65: =Data!K65 -> Barnet | U65: =IF(A65=0,"",IFERROR(VLOOKUP(Data!L65,Bandlist!A:A,1,0),"**Unexpected band")) -> PavE | V65: =Data!L65 -> PavE | X65: =Data!M65 -> 1 | Y65: =Data!N65 -> 0 | Z65: =Data!O65 -> 0 | AA65: =Data!P65 -> 0 | AB65: OK | AD65: =Data!Q65 -> 11425 | AE65: =IFERROR(VLOOKUP(AD65,Costcentres!B:I,2,0),"**Unexpected CC") -> PRU Top-ups | AF65: =IF(AND(Q65="Nur",A65<3021005),"NS",Q65)&IF(VLOOKUP(A65,Schools!A:C,3,0)="M","Maint","Acad") -> SecMaint | AG65: =HLOOKUP(AF65,Bandlist!$A$3:$Y$4,2,0) -> 19 | AH65: =IF(T65="Barnet",VLOOKUP(U65,Bandlist!A:Y,Datacheck!AG65,0),0) -> 11425 | AI65: PRU Top-ups | AK65: =VLOOKUP(AH65,Costcentres!B:I,2,0) -> PRU Top-ups
A66: =Data!A66 -> 3021100 | B66: =IF(A66=0,"",IF(Data!B66=VLOOKUP(A66,Schools!A:B,2,0), Data!B66,"**Unexpected school")) -> Pavilion | C66: =Data!B66 -> Pavilion | D66: =IF(A66=0,"",IF(Data!C66="","**Missing",Data!C66)) -> AdditionalPrimaryPlacefunding | E66: =IF(A66=0,"",IF(Data!D66="","**Missing",TRIM(Data!D66))) -> **Missing | F66: =IF(A66=0,"",IF(Data!E66="","**Missing",TRIM(Data!E66))) -> **Missing | G66: =IF(A66=0,"",IF(Data!F66="XX","**Missing dob",IF(OR((TODAY()-Data!F66)/365>20,(TODAY()-Data!F66)/365<3),"**Unexpected date",Data!F66))) -> 2014-01-01 | H66: =Data!F66 -> 2014-01-01 | I66: =IF(Data!G66=0,0,IF(OR(Data!G66>Fyend),"**Unexpected date",Data!G66)) -> 00:00:00 | J66: =Data!G66 -> 00:00:00 | K66: =IF(Data!H66=0,0,IF(OR(Data!H66<Earliest,Data!H66>Fyend),"**Unexpected date",Data!H66)) -> 00:00:00 | L66: =Data!H66 -> 00:00:00 | M66: =IFERROR(VLOOKUP(Data!I66,Lookup!$A:$A,1,0), "**Unexpected Yeargroup") -> 0 | N66: =Data!I66 -> 0 | O66: =IFERROR(VLOOKUP(Data!J66,Lookup!$A:$A,1,0), "**Unexpected Yeargroup") -> NC Year 6 | P66: =Data!J66 -> Nc Year 6 | Q66: =LEFT(IF(VLOOKUP(N66,Lookup!A:B,2,0)="Empty",VLOOKUP(P66,Lookup!A:B,2,0),VLOOKUP(N66,Lookup!A:B,2,0)),3) -> Pri | R66: 0/ 6 | S66: OK | T66: =Data!K66 -> Barnet | U66: =IF(A66=0,"",IFERROR(VLOOKUP(Data!L66,Bandlist!A:A,1,0),"**Unexpected band")) -> PRUAD | V66: =Data!L66 -> PRUAD | X66: =Data!M66 -> 1 | Y66: =Data!N66 -> 16666 | Z66: =Data!O66 -> 0 | AA66: =Data!P66 -> 0 | AB66: =IF(COUNTIF(D:D,D66)=1,"OK",IF(COUNTIF(E:E,E66)>1,"OK","DuplicateLAREF")) -> OK | AD66: =Data!Q66 -> 11425 | AE66: =IFERROR(VLOOKUP(AD66,Costcentres!B:I,2,0),"**Unexpected CC") -> PRU Top-ups | AF66: =IF(AND(Q66="Nur",A66<3021005),"NS",Q66)&IF(VLOOKUP(A66,Schools!A:C,3,0)="M","Maint","Acad") -> PriMaint | AG66: =HLOOKUP(AF66,Bandlist!$A$3:$Y$4,2,0) -> 17 | AH66: =IF(T66="Barnet",VLOOKUP(U66,Bandlist!A:Y,Datacheck!AG66,0),0) -> 11425 | AI66: PRU Top-ups | AK66: =VLOOKUP(AH66,Costcentres!B:I,2,0) -> PRU Top-ups
A67: =Data!A67 -> 3021100 | B67: =IF(A67=0,"",IF(Data!B67=VLOOKUP(A67,Schools!A:B,2,0), Data!B67,"**Unexpected school")) -> Pavilion | C67: =Data!B67 -> Pavilion | D67: =IF(A67=0,"",IF(Data!C67="","**Missing",Data!C67)) -> 212285 | E67: =IF(A67=0,"",IF(Data!D67="","**Missing",TRIM(Data!D67))) -> **Missing | F67: =IF(A67=0,"",IF(Data!E67="","**Missing",TRIM(Data!E67))) -> **Missing | G67: =IF(A67=0,"",IF(Data!F67="XX","**Missing dob",IF(OR((TODAY()-Data!F67)/365>20,(TODAY()-Data!F67)/365<3),"**Unexpected date",Data!F67))) -> 2006-11-03 | H67: =Data!F67 -> 2006-11-03 | I67: =IF(Data!G67=0,0,IF(OR(Data!G67>Fyend),"**Unexpected date",Data!G67)) -> 00:00:00 | J67: =Data!G67 -> 00:00:00 | K67: =IF(Data!H67=0,0,IF(OR(Data!H67<Earliest,Data!H67>Fyend),"**Unexpected date",Data!H67)) -> 2021-08-31 | L67: =Data!H67 -> 2021-08-31 | M67: =IFERROR(VLOOKUP(Data!I67,Lookup!$A:$A,1,0), "**Unexpected Yeargroup") -> NC Year 9 | N67: =Data!I67 -> NC Year 9 | O67: =IFERROR(VLOOKUP(Data!J67,Lookup!$A:$A,1,0), "**Unexpected Yeargroup") -> 0 | P67: =Data!J67 -> 0 | Q67: =LEFT(IF(VLOOKUP(N67,Lookup!A:B,2,0)="Empty",VLOOKUP(P67,Lookup!A:B,2,0),VLOOKUP(N67,Lookup!A:B,2,0)),3) -> Sec | R67: ar 9/0 | S67: =IF(A67=0,"",IF(OR(R67="ry 2/n", R67="ry 1/n",R67="ar 6/7",R67="R 11/2"), "**Unexpected phase change",IF(R67="0/0", "**No Yeargroup entered", "OK"))) -> OK | T67: =Data!K67 -> Barnet | U67: =IF(A67=0,"",IFERROR(VLOOKUP(Data!L67,Bandlist!A:A,1,0),"**Unexpected band")) -> PavD | V67: =Data!L67 -> PavD | X67: =Data!M67 -> 1 | Y67: =Data!N67 -> 0 | Z67: =Data!O67 -> 0 | AA67: =Data!P67 -> 0 | AB67: OK | AD67: =Data!Q67 -> 11425 | AE67: =IFERROR(VLOOKUP(AD67,Costcentres!B:I,2,0),"**Unexpected CC") -> PRU Top-ups | AF67: =IF(AND(Q67="Nur",A67<3021005),"NS",Q67)&IF(VLOOKUP(A67,Schools!A:C,3,0)="M","Maint","Acad") -> SecMaint | AG67: =HLOOKUP(AF67,Bandlist!$A$3:$Y$4,2,0) -> 19 | AH67: =IF(T67="Barnet",VLOOKUP(U67,Bandlist!A:Y,Datacheck!AG67,0),0) -> 11425 | AI67: =IFERROR(IF(T67="Barnet",IF(AD67=AH67,AE67,"**Unexpected cost centre"), "**OOB pupil"),"**Unexpected cost centre") -> PRU Top-ups | AK67: =VLOOKUP(AH67,Costcentres!B:I,2,0) -> PRU Top-ups
A68: =Data!A68 -> 3021100 | B68: =IF(A68=0,"",IF(Data!B68=VLOOKUP(A68,Schools!A:B,2,0), Data!B68,"**Unexpected school")) -> Pavilion | C68: =Data!B68 -> Pavilion | D68: =IF(A68=0,"",IF(Data!C68="","**Missing",Data!C68)) -> 183720 | E68: =IF(A68=0,"",IF(Data!D68="","**Missing",TRIM(Data!D68))) -> **Missing | F68: =IF(A68=0,"",IF(Data!E68="","**Missing",TRIM(Data!E68))) -> **Missing | G68: =IF(A68=0,"",IF(Data!F68="XX","**Missing dob",IF(OR((TODAY()-Data!F68)/365>20,(TODAY()-Data!F68)/365<3),"**Unexpected date",Data!F68))) -> 2006-01-08 | H68: =Data!F68 -> 2006-01-08 | I68: =IF(Data!G68=0,0,IF(OR(Data!G68>Fyend),"**Unexpected date",Data!G68)) -> 00:00:00 | J68: =Data!G68 -> 00:00:00 | K68: =IF(Data!H68=0,0,IF(OR(Data!H68<Earliest,Data!H68>Fyend),"**Unexpected date",Data!H68)) -> 00:00:00 | L68: =Data!H68 -> 00:00:00 | M68: =IFERROR(VLOOKUP(Data!I68,Lookup!$A:$A,1,0), "**Unexpected Yeargroup") -> NC Year 10 | N68: =Data!I68 -> NC Year 10 | O68: =IFERROR(VLOOKUP(Data!J68,Lookup!$A:$A,1,0), "**Unexpected Yeargroup") -> NC Year 11 | P68: =Data!J68 -> NC Year 11 | Q68: =LEFT(IF(VLOOKUP(N68,Lookup!A:B,2,0)="Empty",VLOOKUP(P68,Lookup!A:B,2,0),VLOOKUP(N68,Lookup!A:B,2,0)),3) -> Sec | R68: r 10/11 | S68: OK | T68: =Data!K68 -> Barnet | U68: =IF(A68=0,"",IFERROR(VLOOKUP(Data!L68,Bandlist!A:A,1,0),"**Unexpected band")) -> PavD | V68: =Data!L68 -> PavD | X68: =Data!M68 -> 1 | Y68: =Data!N68 -> 0 | Z68: =Data!O68 -> 0 | AA68: =Data!P68 -> 0 | AB68: OK | AD68: =Data!Q68 -> 11425 | AE68: =IFERROR(VLOOKUP(AD68,Costcentres!B:I,2,0),"**Unexpected CC") -> PRU Top-ups | AF68: =IF(AND(Q68="Nur",A68<3021005),"NS",Q68)&IF(VLOOKUP(A68,Schools!A:C,3,0)="M","Maint","Acad") -> SecMaint | AG68: =HLOOKUP(AF68,Bandlist!$A$3:$Y$4,2,0) -> 19 | AH68: =IF(T68="Barnet",VLOOKUP(U68,Bandlist!A:Y,Datacheck!AG68,0),0) -> 11425 | AI68: PRU Top-ups | AK68: =VLOOKUP(AH68,Costcentres!B:I,2,0) -> PRU Top-ups
A69: =Data!A69 -> 3021100 | B69: =IF(A69=0,"",IF(Data!B69=VLOOKUP(A69,Schools!A:B,2,0), Data!B69,"**Unexpected school")) -> Pavilion | C69: =Data!B69 -> Pavilion | D69: =IF(A69=0,"",IF(Data!C69="","**Missing",Data!C69)) -> 162775 | E69: =IF(A69=0,"",IF(Data!D69="","**Missing",TRIM(Data!D69))) -> **Missing | F69: =IF(A69=0,"",IF(Data!E69="","**Missing",TRIM(Data!E69))) -> **Missing | G69: =IF(A69=0,"",IF(Data!F69="XX","**Missing dob",IF(OR((TODAY()-Data!F69)/365>20,(TODAY()-Data!F69)/365<3),"**Unexpected date",Data!F69))) -> 2005-12-24 | H69: =Data!F69 -> 2005-12-24 | I69: =IF(Data!G69=0,0,IF(OR(Data!G69>Fyend),"**Unexpected date",Data!G69)) -> 00:00:00 | J69: =Data!G69 -> 00:00:00 | K69: =IF(Data!H69=0,0,IF(OR(Data!H69<Earliest,Data!H69>Fyend),"**Unexpected date",Data!H69)) -> 00:00:00 | L69: =Data!H69 -> 00:00:00 | M69: =IFERROR(VLOOKUP(Data!I69,Lookup!$A:$A,1,0), "**Unexpected Yeargroup") -> NC Year 10 | N69: =Data!I69 -> NC Year 10 | O69: =IFERROR(VLOOKUP(Data!J69,Lookup!$A:$A,1,0), "**Unexpected Yeargroup") -> NC Year 11 | P69: =Data!J69 -> NC Year 11 | Q69: =LEFT(IF(VLOOKUP(N69,Lookup!A:B,2,0)="Empty",VLOOKUP(P69,Lookup!A:B,2,0),VLOOKUP(N69,Lookup!A:B,2,0)),3) -> Sec | R69: r 10/11 | S69: OK | T69: =Data!K69 -> Barnet | U69: =IF(A69=0,"",IFERROR(VLOOKUP(Data!L69,Bandlist!A:A,1,0),"**Unexpected band")) -> PavE | V69: =Data!L69 -> PavE | X69: =Data!M69 -> 1 | Y69: =Data!N69 -> 0 | Z69: =Data!O69 -> 0 | AA69: =Data!P69 -> 0 | AB69: OK | AD69: =Data!Q69 -> 11425 | AE69: =IFERROR(VLOOKUP(AD69,Costcentres!B:I,2,0),"**Unexpected CC") -> PRU Top-ups | AF69: =IF(AND(Q69="Nur",A69<3021005),"NS",Q69)&IF(VLOOKUP(A69,Schools!A:C,3,0)="M","Maint","Acad") -> SecMaint | AG69: =HLOOKUP(AF69,Bandlist!$A$3:$Y$4,2,0) -> 19 | AH69: =IF(T69="Barnet",VLOOKUP(U69,Bandlist!A:Y,Datacheck!AG69,0),0) -> 11425 | AI69: PRU Top-ups | AK69: =VLOOKUP(AH69,Costcentres!B:I,2,0) -> PRU Top-ups
A70: =Data!A70 -> 3022001 | B70: =IF(A70=0,"",IF(Data!B70=VLOOKUP(A70,Schools!A:B,2,0), Data!B70,"**Unexpected school")) -> Etz Chaim Jewish Primary School | C70: =Data!B70 -> Etz Chaim Jewish Primary School | D70: =IF(A70=0,"",IF(Data!C70="","**Missing",Data!C70)) -> 1003783 | E70: =IF(A70=0,"",IF(Data!D70="","**Missing",TRIM(Data!D70))) -> **Missing | F70: =IF(A70=0,"",IF(Data!E70="","**Missing",TRIM(Data!E70))) -> **Missing | G70: =IF(A70=0,"",IF(Data!F70="XX","**Missing dob",IF(OR((TODAY()-Data!F70)/365>20,(TODAY()-Data!F70)/365<3),"**Unexpected date",Data!F70))) -> 2011-07-22 | H70: =Data!F70 -> 2011-07-22 | I70: =IF(Data!G70=0,0,IF(OR(Data!G70>Fyend),"**Unexpected date",Data!G70)) -> 00:00:00 | J70: =Data!G70 -> 00:00:00 | K70: =IF(Data!H70=0,0,IF(OR(Data!H70<Earliest,Data!H70>Fyend),"**Unexpected date",Data!H70)) -> 00:00:00 | L70: =Data!H70 -> 00:00:00 | M70: =IFERROR(VLOOKUP(Data!I70,Lookup!$A:$A,1,0), "**Unexpected Yeargroup") -> NC Year 5 | N70: =Data!I70 -> NC Year 5 | O70: =IFERROR(VLOOKUP(Data!J70,Lookup!$A:$A,1,0), "**Unexpected Yeargroup") -> NC Year 6 | P70: =Data!J70 -> NC Year 6 | Q70: =LEFT(IF(VLOOKUP(N70,Lookup!A:B,2,0)="Empty",VLOOKUP(P70,Lookup!A:B,2,0),VLOOKUP(N70,Lookup!A:B,2,0)),3) -> Pri | R70: ar 5/ 6 | S70: OK | T70: =Data!K70 -> Barnet | U70: =IF(A70=0,"",IFERROR(VLOOKUP(Data!L70,Bandlist!A:A,1,0),"**Unexpected band")) -> D | V70: =Data!L70 -> D | X70: =Data!M70 -> 1 | Y70: =Data!N70 -> 0 | Z70: =Data!O70 -> 0 | AA70: =Data!P70 -> 0 | AB70: OK | AD70: =Data!Q70 -> 11443 | AE70: =IFERROR(VLOOKUP(AD70,Costcentres!B:I,2,0),"**Unexpected CC") -> EHCP topups: Barnet academies - primary | AF70: =IF(AND(Q70="Nur",A70<3021005),"NS",Q70)&IF(VLOOKUP(A70,Schools!A:C,3,0)="M","Maint","Acad") -> PriAcad | AG70: =HLOOKUP(AF70,Bandlist!$A$3:$Y$4,2,0) -> 18 | AH70: =IF(T70="Barnet",VLOOKUP(U70,Bandlist!A:Y,Datacheck!AG70,0),0) -> 11443 | AI70: EHCP topups: Barnet academies - primary | AK70: =VLOOKUP(AH70,Costcentres!B:I,2,0) -> EHCP topups: Barnet academies - primary
A71: =Data!A71 -> 3022002 | B71: =IF(A71=0,"",IF(Data!B71=VLOOKUP(A71,Schools!A:B,2,0), Data!B71,"**Unexpected school")) -> Barnfield School | C71: =Data!B71 -> Barnfield School | D71: =IF(A71=0,"",IF(Data!C71="","**Missing",Data!C71)) -> 274331 | E71: =IF(A71=0,"",IF(Data!D71="","**Missing",TRIM(Data!D71))) -> **Missing | F71: =IF(A71=0,"",IF(Data!E71="","**Missing",TRIM(Data!E71))) -> **Missing | G71: =IF(A71=0,"",IF(Data!F71="XX","**Missing dob",IF(OR((TODAY()-Data!F71)/365>20,(TODAY()-Data!F71)/365<3),"**Unexpected date",Data!F71))) -> 2009-05-05 | H71: =Data!F71 -> 2009-05-05 | I71: =IF(Data!G71=0,0,IF(OR(Data!G71>Fyend),"**Unexpected date",Data!G71)) -> 00:00:00 | J71: =Data!G71 -> 00:00:00 | K71: =IF(Data!H71=0,0,IF(OR(Data!H71<Earliest,Data!H71>Fyend),"**Unexpected date",Data!H71)) -> 2021-08-31 | L71: =Data!H71 -> 2021-08-31 | M71: =IFERROR(VLOOKUP(Data!I71,Lookup!$A:$A,1,0), "**Unexpected Yeargroup") -> NC Year 6 | N71: =Data!I71 -> NC Year 6 | O71: =IFERROR(VLOOKUP(Data!J71,Lookup!$A:$A,1,0), "**Unexpected Yeargroup") -> 0 | P71: =Data!J71 -> 0 | Q71: =LEFT(IF(VLOOKUP(N71,Lookup!A:B,2,0)="Empty",VLOOKUP(P71,Lookup!A:B,2,0),VLOOKUP(N71,Lookup!A:B,2,0)),3) -> Pri | R71: ar 6/0 | S71: OK | T71: =Data!K71 -> Barnet | U71: =IF(A71=0,"",IFERROR(VLOOKUP(Data!L71,Bandlist!A:A,1,0),"**Unexpected band")) -> D | V71: =Data!L71 -> D | X71: =Data!M71 -> 1 | Y71: =Data!N71 -> 0 | Z71: =Data!O71 -> 0 | AA71: =Data!P71 -> 0 | AB71: OK | AD71: =Data!Q71 -> 11431 | AE71: =IFERROR(VLOOKUP(AD71,Costcentres!B:I,2,0),"**Unexpected CC") -> EHCP topups: Barnet maintained primary | AF71: =IF(AND(Q71="Nur",A71<3021005),"NS",Q71)&IF(VLOOKUP(A71,Schools!A:C,3,0)="M","Maint","Acad") -> PriMaint | AG71: =HLOOKUP(AF71,Bandlist!$A$3:$Y$4,2,0) -> 17 | AH71: =IF(T71="Barnet",VLOOKUP(U71,Bandlist!A:Y,Datacheck!AG71,0),0) -> 11431 | AI71: EHCP topups: Barnet maintained primary | AK71: =VLOOKUP(AH71,Costcentres!B:I,2,0) -> EHCP topups: Barnet maintained primary
A72: =Data!A72 -> 3022002 | B72: =IF(A72=0,"",IF(Data!B72=VLOOKUP(A72,Schools!A:B,2,0), Data!B72,"**Unexpected school")) -> Barnfield School | C72: =Data!B72 -> Barnfield School | D72: =IF(A72=0,"",IF(Data!C72="","**Missing",Data!C72)) -> 1122105 | E72: =IF(A72=0,"",IF(Data!D72="","**Missing",TRIM(Data!D72))) -> **Missing | F72: =IF(A72=0,"",IF(Data!E72="","**Missing",TRIM(Data!E72))) -> **Missing | G72: =IF(A72=0,"",IF(Data!F72="XX","**Missing dob",IF(OR((TODAY()-Data!F72)/365>20,(TODAY()-Data!F72)/365<3),"**Unexpected date",Data!F72))) -> 2017-01-24 | H72: =Data!F72 -> 2017-01-24 | I72: =IF(Data!G72=0,0,IF(OR(Data!G72>Fyend),"**Unexpected date",Data!G72)) -> 00:00:00 | J72: =Data!G72 -> 00:00:00 | K72: =IF(Data!H72=0,0,IF(OR(Data!H72<Earliest,Data!H72>Fyend),"**Unexpected date",Data!H72)) -> 2021-07-23 | L72: =Data!H72 -> 2021-07-23 | M72: =IFERROR(VLOOKUP(Data!I72,Lookup!$A:$A,1,0), "**Unexpected Yeargroup") -> Nursery 2 | N72: =Data!I72 -> Nursery 2 | O72: =IFERROR(VLOOKUP(Data!J72,Lookup!$A:$A,1,0), "**Unexpected Yeargroup") -> 0 | P72: =Data!J72 -> 0 | Q72: =LEFT(IF(VLOOKUP(N72,Lookup!A:B,2,0)="Empty",VLOOKUP(P72,Lookup!A:B,2,0),VLOOKUP(N72,Lookup!A:B,2,0)),3) -> Nur | R72: ry 2/0 | S72: OK | T72: =Data!K72 -> Barnet | U72: =IF(A72=0,"",IFERROR(VLOOKUP(Data!L72,Bandlist!A:A,1,0),"**Unexpected band")) -> EXY | V72: =Data!L72 -> EXY | X72: =Data!M72 -> 1 | Y72: =Data!N72 -> 1472.5 | Z72: =Data!O72 -> 0 | AA72: =Data!P72 -> 0 | AB72: OK | AD72: =Data!Q72 -> 10265 | AE72: =IFERROR(VLOOKUP(AD72,Costcentres!B:I,2,0),"**Unexpected CC") -> SEN Inclusion - Under 5s | AF72: =IF(AND(Q72="Nur",A72<3021005),"NS",Q72)&IF(VLOOKUP(A72,Schools!A:C,3,0)="M","Maint","Acad") -> NurMaint | AG72: =HLOOKUP(AF72,Bandlist!$A$3:$Y$4,2,0) -> 15 | AH72: =IF(T72="Barnet",VLOOKUP(U72,Bandlist!A:Y,Datacheck!AG72,0),0) -> 10265 | AI72: SEN Inclusion - Under 5s | AK72: =VLOOKUP(AH72,Costcentres!B:I,2,0) -> SEN Inclusion - Under 5s
A73: =Data!A73 -> 3022002 | B73: =IF(A73=0,"",IF(Data!B73=VLOOKUP(A73,Schools!A:B,2,0), Data!B73,"**Unexpected school")) -> Barnfield School | C73: =Data!B73 -> Barnfield School | D73: =IF(A73=0,"",IF(Data!C73="","**Missing",Data!C73)) -> 1122105 | E73: =IF(A73=0,"",IF(Data!D73="","**Missing",TRIM(Data!D73))) -> **Missing | F73: =IF(A73=0,"",IF(Data!E73="","**Missing",TRIM(Data!E73))) -> **Missing | G73: =IF(A73=0,"",IF(Data!F73="XX","**Missing dob",IF(OR((TODAY()-Data!F73)/365>20,(TODAY()-Data!F73)/365<3),"**Unexpected date",Data!F73))) -> 2017-01-24 | H73: =Data!F73 -> 2017-01-24 | I73: =IF(Data!G73=0,0,IF(OR(Data!G73>Fyend),"**Unexpected date",Data!G73)) -> 2022-01-05 | J73: =Data!G73 -> 2022-01-05 | K73: =IF(Data!H73=0,0,IF(OR(Data!H73<Earliest,Data!H73>Fyend),"**Unexpected date",Data!H73)) -> 00:00:00 | L73: =Data!H73 -> 00:00:00 | M73: =IFERROR(VLOOKUP(Data!I73,Lookup!$A:$A,1,0), "**Unexpected Yeargroup") -> 0 | N73: =Data!I73 -> 0 | O73: =IFERROR(VLOOKUP(Data!J73,Lookup!$A:$A,1,0), "**Unexpected Yeargroup") -> Reception | P73: =Data!J73 -> Reception | Q73: =LEFT(IF(VLOOKUP(N73,Lookup!A:B,2,0)="Empty",VLOOKUP(P73,Lookup!A:B,2,0),VLOOKUP(N73,Lookup!A:B,2,0)),3) -> Pri | R73: 0/on | S73: OK | T73: =Data!K73 -> Barnet | U73: =IF(A73=0,"",IFERROR(VLOOKUP(Data!L73,Bandlist!A:A,1,0),"**Unexpected band")) -> B | V73: =Data!L73 -> B | X73: =Data!M73 -> 1 | Y73: =Data!N73 -> 0 | Z73: =Data!O73 -> 0 | AA73: =Data!P73 -> 0 | AB73: OK | AD73: =Data!Q73 -> 11431 | AE73: =IFERROR(VLOOKUP(AD73,Costcentres!B:I,2,0),"**Unexpected CC") -> EHCP topups: Barnet maintained primary | AF73: =IF(AND(Q73="Nur",A73<3021005),"NS",Q73)&IF(VLOOKUP(A73,Schools!A:C,3,0)="M","Maint","Acad") -> PriMaint | AG73: =HLOOKUP(AF73,Bandlist!$A$3:$Y$4,2,0) -> 17 | AH73: =IF(T73="Barnet",VLOOKUP(U73,Bandlist!A:Y,Datacheck!AG73,0),0) -> 11431 | AI73: EHCP topups: Barnet maintained primary | AK73: =VLOOKUP(AH73,Costcentres!B:I,2,0) -> EHCP topups: Barnet maintained primary
A74: =Data!A74 -> 3022002 | B74: =IF(A74=0,"",IF(Data!B74=VLOOKUP(A74,Schools!A:B,2,0), Data!B74,"**Unexpected school")) -> Barnfield School | C74: =Data!B74 -> Barnfield School | D74: =IF(A74=0,"",IF(Data!C74="","**Missing",Data!C74)) -> 1144909 | E74: =IF(A74=0,"",IF(Data!D74="","**Missing",TRIM(Data!D74))) -> **Missing | F74: =IF(A74=0,"",IF(Data!E74="","**Missing",TRIM(Data!E74))) -> **Missing | G74: =IF(A74=0,"",IF(Data!F74="XX","**Missing dob",IF(OR((TODAY()-Data!F74)/365>20,(TODAY()-Data!F74)/365<3),"**Unexpected date",Data!F74))) -> 2017-05-27 | H74: =Data!F74 -> 2017-05-27 | I74: =IF(Data!G74=0,0,IF(OR(Data!G74>Fyend),"**Unexpected date",Data!G74)) -> 00:00:00 | J74: =Data!G74 -> 00:00:00 | K74: =IF(Data!H74=0,0,IF(OR(Data!H74<Earliest,Data!H74>Fyend),"**Unexpected date",Data!H74)) -> 2021-07-23 | L74: =Data!H74 -> 2021-07-23 | M74: =IFERROR(VLOOKUP(Data!I74,Lookup!$A:$A,1,0), "**Unexpected Yeargroup") -> Nursery 2 | N74: =Data!I74 -> Nursery 2 | O74: =IFERROR(VLOOKUP(Data!J74,Lookup!$A:$A,1,0), "**Unexpected Yeargroup") -> 0 | P74: =Data!J74 -> 0 | Q74: =LEFT(IF(VLOOKUP(N74,Lookup!A:B,2,0)="Empty",VLOOKUP(P74,Lookup!A:B,2,0),VLOOKUP(N74,Lookup!A:B,2,0)),3) -> Nur | R74: ry 2/0 | S74: OK | T74: =Data!K74 -> Barnet | U74: =IF(A74=0,"",IFERROR(VLOOKUP(Data!L74,Bandlist!A:A,1,0),"**Unexpected band")) -> EXY | V74: =Data!L74 -> EXY | X74: =Data!M74 -> 1 | Y74: =Data!N74 -> 1472.5 | Z74: =Data!O74 -> 0 | AA74: =Data!P74 -> 0 | AB74: OK | AD74: =Data!Q74 -> 10265 | AE74: =IFERROR(VLOOKUP(AD74,Costcentres!B:I,2,0),"**Unexpected CC") -> SEN Inclusion - Under 5s | AF74: =IF(AND(Q74="Nur",A74<3021005),"NS",Q74)&IF(VLOOKUP(A74,Schools!A:C,3,0)="M","Maint","Acad") -> NurMaint | AG74: =HLOOKUP(AF74,Bandlist!$A$3:$Y$4,2,0) -> 15 | AH74: =IF(T74="Barnet",VLOOKUP(U74,Bandlist!A:Y,Datacheck!AG74,0),0) -> 10265 | AI74: SEN Inclusion - Under 5s | AK74: =VLOOKUP(AH74,Costcentres!B:I,2,0) -> SEN Inclusion - Under 5s
A75: =Data!A75 -> 3022002 | B75: =IF(A75=0,"",IF(Data!B75=VLOOKUP(A75,Schools!A:B,2,0), Data!B75,"**Unexpected school")) -> Barnfield School | C75: =Data!B75 -> Barnfield School | D75: =IF(A75=0,"",IF(Data!C75="","**Missing",Data!C75)) -> 1002812 | E75: =IF(A75=0,"",IF(Data!D75="","**Missing",TRIM(Data!D75))) -> **Missing | F75: =IF(A75=0,"",IF(Data!E75="","**Missing",TRIM(Data!E75))) -> **Missing | G75: =IF(A75=0,"",IF(Data!F75="XX","**Missing dob",IF(OR((TODAY()-Data!F75)/365>20,(TODAY()-Data!F75)/365<3),"**Unexpected date",Data!F75))) -> 2010-12-31 | H75: =Data!F75 -> 2010-12-31 | I75: =IF(Data!G75=0,0,IF(OR(Data!G75>Fyend),"**Unexpected date",Data!G75)) -> 00:00:00 | J75: =Data!G75 -> 00:00:00 | K75: =IF(Data!H75=0,0,IF(OR(Data!H75<Earliest,Data!H75>Fyend),"**Unexpected date",Data!H75)) -> 00:00:00 | L75: =Data!H75 -> 00:00:00 | M75: =IFERROR(VLOOKUP(Data!I75,Lookup!$A:$A,1,0), "**Unexpected Yeargroup") -> NC Year 5 | N75: =Data!I75 -> NC Year 5 | O75: =IFERROR(VLOOKUP(Data!J75,Lookup!$A:$A,1,0), "**Unexpected Yeargroup") -> NC Year 6 | P75: =Data!J75 -> NC Year 6 | Q75: =LEFT(IF(VLOOKUP(N75,Lookup!A:B,2,0)="Empty",VLOOKUP(P75,Lookup!A:B,2,0),VLOOKUP(N75,Lookup!A:B,2,0)),3) -> Pri | R75: ar 5/ 6 | S75: OK | T75: =Data!K75 -> Barnet | U75: =IF(A75=0,"",IFERROR(VLOOKUP(Data!L75,Bandlist!A:A,1,0),"**Unexpected band")) -> C | V75: =Data!L75 -> C | X75: =Data!M75 -> 1 | Y75: =Data!N75 -> 0 | Z75: =Data!O75 -> 0 | AA75: =Data!P75 -> 0 | AB75: OK | AD75: =Data!Q75 -> 11431 | AE75: =IFERROR(VLOOKUP(AD75,Costcentres!B:I,2,0),"**Unexpected CC") -> EHCP topups: Barnet maintained primary | AF75: =IF(AND(Q75="Nur",A75<3021005),"NS",Q75)&IF(VLOOKUP(A75,Schools!A:C,3,0)="M","Maint","Acad") -> PriMaint | AG75: =HLOOKUP(AF75,Bandlist!$A$3:$Y$4,2,0) -> 17 | AH75: =IF(T75="Barnet",VLOOKUP(U75,Bandlist!A:Y,Datacheck!AG75,0),0) -> 11431 | AI75: EHCP topups: Barnet maintained primary | AK75: =VLOOKUP(AH75,Costcentres!B:I,2,0) -> EHCP topups: Barnet maintained primary
A76: =Data!A76 -> 3022002 | B76: =IF(A76=0,"",IF(Data!B76=VLOOKUP(A76,Schools!A:B,2,0), Data!B76,"**Unexpected school")) -> Barnfield School | C76: =Data!B76 -> Barnfield School | D76: =IF(A76=0,"",IF(Data!C76="","**Missing",Data!C76)) -> 1040297 | E76: =IF(A76=0,"",IF(Data!D76="","**Missing",TRIM(Data!D76))) -> **Missing | F76: =IF(A76=0,"",IF(Data!E76="","**Missing",TRIM(Data!E76))) -> **Missing | G76: =IF(A76=0,"",IF(Data!F76="XX","**Missing dob",IF(OR((TODAY()-Data!F76)/365>20,(TODAY()-Data!F76)/365<3),"**Unexpected date",Data!F76))) -> 2012-06-25 | H76: =Data!F76 -> 2012-06-25 | I76: =IF(Data!G76=0,0,IF(OR(Data!G76>Fyend),"**Unexpected date",Data!G76)) -> 2021-09-30 | J76: =Data!G76 -> 2021-09-30 | K76: =IF(Data!H76=0,0,IF(OR(Data!H76<Earliest,Data!H76>Fyend),"**Unexpected date",Data!H76)) -> 00:00:00 | L76: =Data!H76 -> 00:00:00 | M76: =IFERROR(VLOOKUP(Data!I76,Lookup!$A:$A,1,0), "**Unexpected Yeargroup") -> 0 | N76: =Data!I76 -> 0 | O76: =IFERROR(VLOOKUP(Data!J76,Lookup!$A:$A,1,0), "**Unexpected Yeargroup") -> NC Year 5 | P76: =Data!J76 -> NC Year 5 | Q76: =LEFT(IF(VLOOKUP(N76,Lookup!A:B,2,0)="Empty",VLOOKUP(P76,Lookup!A:B,2,0),VLOOKUP(N76,Lookup!A:B,2,0)),3) -> Pri | R76: 0/ 5 | S76: OK | T76: =Data!K76 -> Barnet | U76: =IF(A76=0,"",IFERROR(VLOOKUP(Data!L76,Bandlist!A:A,1,0),"**Unexpected band")) -> B | V76: =Data!L76 -> B | X76: =Data!M76 -> 1 | Y76: =Data!N76 -> 0 | Z76: =Data!O76 -> 0 | AA76: =Data!P76 -> 0 | AB76: OK | AD76: =Data!Q76 -> 11431 | AE76: =IFERROR(VLOOKUP(AD76,Costcentres!B:I,2,0),"**Unexpected CC") -> EHCP topups: Barnet maintained primary | AF76: =IF(AND(Q76="Nur",A76<3021005),"NS",Q76)&IF(VLOOKUP(A76,Schools!A:C,3,0)="M","Maint","Acad") -> PriMaint | AG76: =HLOOKUP(AF76,Bandlist!$A$3:$Y$4,2,0) -> 17 | AH76: =IF(T76="Barnet",VLOOKUP(U76,Bandlist!A:Y,Datacheck!AG76,0),0) -> 11431 | AI76: EHCP topups: Barnet maintained primary | AK76: =VLOOKUP(AH76,Costcentres!B:I,2,0) -> EHCP topups: Barnet maintained primary
A77: =Data!A77 -> 3022002 | B77: =IF(A77=0,"",IF(Data!B77=VLOOKUP(A77,Schools!A:B,2,0), Data!B77,"**Unexpected school")) -> Barnfield School | C77: =Data!B77 -> Barnfield School | D77: =IF(A77=0,"",IF(Data!C77="","**Missing",Data!C77)) -> 1159492 | E77: =IF(A77=0,"",IF(Data!D77="","**Missing",TRIM(Data!D77))) -> **Missing | F77: =IF(A77=0,"",IF(Data!E77="","**Missing",TRIM(Data!E77))) -> **Missing | G77: =IF(A77=0,"",IF(Data!F77="XX","**Missing dob",IF(OR((TODAY()-Data!F77)/365>20,(TODAY()-Data!F77)/365<3),"**Unexpected date",Data!F77))) -> 2017-10-23 | H77: =Data!F77 -> 2017-10-23 | I77: =IF(Data!G77=0,0,IF(OR(Data!G77>Fyend),"**Unexpected date",Data!G77)) -> 2022-01-04 | J77: =Data!G77 -> 2022-01-04 | K77: =IF(Data!H77=0,0,IF(OR(Data!H77<Earliest,Data!H77>Fyend),"**Unexpected date",Data!H77)) -> 2022-03-31 | L77: =Data!H77 -> 2022-03-31 | M77: =IFERROR(VLOOKUP(Data!I77,Lookup!$A:$A,1,0), "**Unexpected Yeargroup") -> 0 | N77: =Data!I77 -> 0 | O77: =IFERROR(VLOOKUP(Data!J77,Lookup!$A:$A,1,0), "**Unexpected Yeargroup") -> Nursery 2 | P77: =Data!J77 -> Nursery 2 | Q77: =LEFT(IF(VLOOKUP(N77,Lookup!A:B,2,0)="Empty",VLOOKUP(P77,Lookup!A:B,2,0),VLOOKUP(N77,Lookup!A:B,2,0)),3) -> Nur | R77: 0/ 2 | S77: OK | T77: =Data!K77 -> Barnet | U77: =IF(A77=0,"",IFERROR(VLOOKUP(Data!L77,Bandlist!A:A,1,0),"**Unexpected band")) -> EXY | V77: =Data!L77 -> EXY | X77: =Data!M77 -> 1 | Y77: =Data!N77 -> 1469.96 | Z77: =Data!O77 -> 0 | AA77: =Data!P77 -> 0 | AB77: OK | AD77: =Data!Q77 -> 10265 | AE77: =IFERROR(VLOOKUP(AD77,Costcentres!B:I,2,0),"**Unexpected CC") -> SEN Inclusion - Under 5s | AF77: =IF(AND(Q77="Nur",A77<3021005),"NS",Q77)&IF(VLOOKUP(A77,Schools!A:C,3,0)="M","Maint","Acad") -> NurMaint | AG77: =HLOOKUP(AF77,Bandlist!$A$3:$Y$4,2,0) -> 15 | AH77: =IF(T77="Barnet",VLOOKUP(U77,Bandlist!A:Y,Datacheck!AG77,0),0) -> 10265 | AI77: SEN Inclusion - Under 5s | AK77: =VLOOKUP(AH77,Costcentres!B:I,2,0) -> SEN Inclusion - Under 5s
A78: =Data!A78 -> 3022002 | B78: =IF(A78=0,"",IF(Data!B78=VLOOKUP(A78,Schools!A:B,2,0), Data!B78,"**Unexpected school")) -> Barnfield School | C78: =Data!B78 -> Barnfield School | D78: =IF(A78=0,"",IF(Data!C78="","**Missing",Data!C78)) -> 1009527 | E78: =IF(A78=0,"",IF(Data!D78="","**Missing",TRIM(Data!D78))) -> **Missing | F78: =IF(A78=0,"",IF(Data!E78="","**Missing",TRIM(Data!E78))) -> **Missing | G78: =IF(A78=0,"",IF(Data!F78="XX","**Missing dob",IF(OR((TODAY()-Data!F78)/365>20,(TODAY()-Data!F78)/365<3),"**Unexpected date",Data!F78))) -> 2011-03-03 | H78: =Data!F78 -> 2011-03-03 | I78: =IF(Data!G78=0,0,IF(OR(Data!G78>Fyend),"**Unexpected date",Data!G78)) -> 2021-06-21 | J78: =Data!G78 -> 2021-06-21 | K78: =IF(Data!H78=0,0,IF(OR(Data!H78<Earliest,Data!H78>Fyend),"**Unexpected date",Data!H78)) -> 00:00:00 | L78: =Data!H78 -> 00:00:00 | M78: =IFERROR(VLOOKUP(Data!I78,Lookup!$A:$A,1,0), "**Unexpected Yeargroup") -> NC Year 5 | N78: =Data!I78 -> NC Year 5 | O78: =IFERROR(VLOOKUP(Data!J78,Lookup!$A:$A,1,0), "**Unexpected Yeargroup") -> NC Year 6 | P78: =Data!J78 -> Nc Year 6 | Q78: =LEFT(IF(VLOOKUP(N78,Lookup!A:B,2,0)="Empty",VLOOKUP(P78,Lookup!A:B,2,0),VLOOKUP(N78,Lookup!A:B,2,0)),3) -> Pri | R78: ar 5/ 6 | S78: OK | T78: =Data!K78 -> Barnet | U78: =IF(A78=0,"",IFERROR(VLOOKUP(Data!L78,Bandlist!A:A,1,0),"**Unexpected band")) -> C | V78: =Data!L78 -> C | X78: =Data!M78 -> 1 | Y78: =Data!N78 -> 0 | Z78: =Data!O78 -> 0 | AA78: =Data!P78 -> 0 | AB78: OK | AD78: =Data!Q78 -> 11431 | AE78: =IFERROR(VLOOKUP(AD78,Costcentres!B:I,2,0),"**Unexpected CC") -> EHCP topups: Barnet maintained primary | AF78: =IF(AND(Q78="Nur",A78<3021005),"NS",Q78)&IF(VLOOKUP(A78,Schools!A:C,3,0)="M","Maint","Acad") -> PriMaint | AG78: =HLOOKUP(AF78,Bandlist!$A$3:$Y$4,2,0) -> 17 | AH78: =IF(T78="Barnet",VLOOKUP(U78,Bandlist!A:Y,Datacheck!AG78,0),0) -> 11431 | AI78: EHCP topups: Barnet maintained primary | AK78: =VLOOKUP(AH78,Costcentres!B:I,2,0) -> EHCP topups: Barnet maintained primary
A79: =Data!A79 -> 3022002 | B79: =IF(A79=0,"",IF(Data!B79=VLOOKUP(A79,Schools!A:B,2,0), Data!B79,"**Unexpected school")) -> Barnfield School | C79: =Data!B79 -> Barnfield School | D79: =IF(A79=0,"",IF(Data!C79="","**Missing",Data!C79)) -> 1115600 | E79: =IF(A79=0,"",IF(Data!D79="","**Missing",TRIM(Data!D79))) -> **Missing | F79: =IF(A79=0,"",IF(Data!E79="","**Missing",TRIM(Data!E79))) -> **Missing | G79: =IF(A79=0,"",IF(Data!F79="XX","**Missing dob",IF(OR((TODAY()-Data!F79)/365>20,(TODAY()-Data!F79)/365<3),"**Unexpected date",Data!F79))) -> 2016-07-19 | H79: =Data!F79 -> 2016-07-19 | I79: =IF(Data!G79=0,0,IF(OR(Data!G79>Fyend),"**Unexpected date",Data!G79)) -> 2021-04-06 | J79: =Data!G79 -> 2021-04-06 | K79: =IF(Data!H79=0,0,IF(OR(Data!H79<Earliest,Data!H79>Fyend),"**Unexpected date",Data!H79)) -> 00:00:00 | L79: =Data!H79 -> 00:00:00 | M79: =IFERROR(VLOOKUP(Data!I79,Lookup!$A:$A,1,0), "**Unexpected Yeargroup") -> Reception | N79: =Data!I79 -> Reception | O79: =IFERROR(VLOOKUP(Data!J79,Lookup!$A:$A,1,0), "**Unexpected Yeargroup") -> NC Year 1 | P79: =Data!J79 -> NC Year 1 | Q79: =LEFT(IF(VLOOKUP(N79,Lookup!A:B,2,0)="Empty",VLOOKUP(P79,Lookup!A:B,2,0),VLOOKUP(N79,Lookup!A:B,2,0)),3) -> Pri | R79: tion/ 1 | S79: OK | T79: =Data!K79 -> Barnet | U79: =IF(A79=0,"",IFERROR(VLOOKUP(Data!L79,Bandlist!A:A,1,0),"**Unexpected band")) -> C | V79: =Data!L79 -> C | X79: =Data!M79 -> 1 | Y79: =Data!N79 -> 0 | Z79: =Data!O79 -> 0 | AA79: =Data!P79 -> 0 | AB79: OK | AD79: =Data!Q79 -> 11431 | AE79: =IFERROR(VLOOKUP(AD79,Costcentres!B:I,2,0),"**Unexpected CC") -> EHCP topups: Barnet maintained primary | AF79: =IF(AND(Q79="Nur",A79<3021005),"NS",Q79)&IF(VLOOKUP(A79,Schools!A:C,3,0)="M","Maint","Acad") -> PriMaint | AG79: =HLOOKUP(AF79,Bandlist!$A$3:$Y$4,2,0) -> 17 | AH79: =IF(T79="Barnet",VLOOKUP(U79,Bandlist!A:Y,Datacheck!AG79,0),0) -> 11431 | AI79: EHCP topups: Barnet maintained primary | AK79: =VLOOKUP(AH79,Costcentres!B:I,2,0) -> EHCP topups: Barnet maintained primary
A80: =Data!A80 -> 3022002 | B80: =IF(A80=0,"",IF(Data!B80=VLOOKUP(A80,Schools!A:B,2,0), Data!B80,"**Unexpected school")) -> Barnfield School | C80: =Data!B80 -> Barnfield School | D80: =IF(A80=0,"",IF(Data!C80="","**Missing",Data!C80)) -> 1152453 | E80: =IF(A80=0,"",IF(Data!D80="","**Missing",TRIM(Data!D80))) -> **Missing | F80: =IF(A80=0,"",IF(Data!E80="","**Missing",TRIM(Data!E80))) -> **Missing | G80: =IF(A80=0,"",IF(Data!F80="XX","**Missing dob",IF(OR((TODAY()-Data!F80)/365>20,(TODAY()-Data!F80)/365<3),"**Unexpected date",Data!F80))) -> 2012-04-15 | H80: =Data!F80 -> 2012-04-15 | I80: =IF(Data!G80=0,0,IF(OR(Data!G80>Fyend),"**Unexpected date",Data!G80)) -> 2021-03-26 | J80: =Data!G80 -> 2021-03-26 | K80: =IF(Data!H80=0,0,IF(OR(Data!H80<Earliest,Data!H80>Fyend),"**Unexpected date",Data!H80)) -> 00:00:00 | L80: =Data!H80 -> 00:00:00 | M80: =IFERROR(VLOOKUP(Data!I80,Lookup!$A:$A,1,0), "**Unexpected Yeargroup") -> NC Year 4 | N80: =Data!I80 -> NC Year 4 | O80: =IFERROR(VLOOKUP(Data!J80,Lookup!$A:$A,1,0), "**Unexpected Yeargroup") -> NC Year 5 | P80: =Data!J80 -> NC Year 5 | Q80: =LEFT(IF(VLOOKUP(N80,Lookup!A:B,2,0)="Empty",VLOOKUP(P80,Lookup!A:B,2,0),VLOOKUP(N80,Lookup!A:B,2,0)),3) -> Pri | R80: ar 4/ 5 | S80: OK | T80: =Data!K80 -> Barnet | U80: =IF(A80=0,"",IFERROR(VLOOKUP(Data!L80,Bandlist!A:A,1,0),"**Unexpected band")) -> B | V80: =Data!L80 -> B | X80: =Data!M80 -> 1 | Y80: =Data!N80 -> 0 | Z80: =Data!O80 -> 0 | AA80: =Data!P80 -> 0 | AB80: OK | AD80: =Data!Q80 -> 11431 | AE80: =IFERROR(VLOOKUP(AD80,Costcentres!B:I,2,0),"**Unexpected CC") -> EHCP topups: Barnet maintained primary | AF80: =IF(AND(Q80="Nur",A80<3021005),"NS",Q80)&IF(VLOOKUP(A80,Schools!A:C,3,0)="M","Maint","Acad") -> PriMaint | AG80: =HLOOKUP(AF80,Bandlist!$A$3:$Y$4,2,0) -> 17 | AH80: =IF(T80="Barnet",VLOOKUP(U80,Bandlist!A:Y,Datacheck!AG80,0),0) -> 11431 | AI80: EHCP topups: Barnet maintained primary | AK80: =VLOOKUP(AH80,Costcentres!B:I,2,0) -> EHCP topups: Barnet maintained primary
A81: =Data!A81 -> 3022002 | B81: =IF(A81=0,"",IF(Data!B81=VLOOKUP(A81,Schools!A:B,2,0), Data!B81,"**Unexpected school")) -> Barnfield School | C81: =Data!B81 -> Barnfield School | D81: =IF(A81=0,"",IF(Data!C81="","**Missing",Data!C81)) -> 1142557 | E81: =IF(A81=0,"",IF(Data!D81="","**Missing",TRIM(Data!D81))) -> **Missing | F81: =IF(A81=0,"",IF(Data!E81="","**Missing",TRIM(Data!E81))) -> **Missing | G81: =IF(A81=0,"",IF(Data!F81="XX","**Missing dob",IF(OR((TODAY()-Data!F81)/365>20,(TODAY()-Data!F81)/365<3),"**Unexpected date",Data!F81))) -> 2017-06-22 | H81: =Data!F81 -> 2017-06-22 | I81: =IF(Data!G81=0,0,IF(OR(Data!G81>Fyend),"**Unexpected date",Data!G81)) -> 2021-09-01 | J81: =Data!G81 -> 2021-09-01 | K81: =IF(Data!H81=0,0,IF(OR(Data!H81<Earliest,Data!H81>Fyend),"**Unexpected date",Data!H81)) -> 00:00:00 | L81: =Data!H81 -> 00:00:00 | M81: =IFERROR(VLOOKUP(Data!I81,Lookup!$A:$A,1,0), "**Unexpected Yeargroup") -> 0 | N81: =Data!I81 -> 0 | O81: =IFERROR(VLOOKUP(Data!J81,Lookup!$A:$A,1,0), "**Unexpected Yeargroup") -> Reception | P81: =Data!J81 -> Reception | Q81: =LEFT(IF(VLOOKUP(N81,Lookup!A:B,2,0)="Empty",VLOOKUP(P81,Lookup!A:B,2,0),VLOOKUP(N81,Lookup!A:B,2,0)),3) -> Pri | R81: 0/on | S81: OK | T81: =Data!K81 -> Barnet | U81: =IF(A81=0,"",IFERROR(VLOOKUP(Data!L81,Bandlist!A:A,1,0),"**Unexpected band")) -> C | V81: =Data!L81 -> C | X81: =Data!M81 -> 1 | Y81: =Data!N81 -> 0 | Z81: =Data!O81 -> 0 | AA81: =Data!P81 -> 0 | AB81: OK | AD81: =Data!Q81 -> 11431 | AE81: =IFERROR(VLOOKUP(AD81,Costcentres!B:I,2,0),"**Unexpected CC") -> EHCP topups: Barnet maintained primary | AF81: =IF(AND(Q81="Nur",A81<3021005),"NS",Q81)&IF(VLOOKUP(A81,Schools!A:C,3,0)="M","Maint","Acad") -> PriMaint | AG81: =HLOOKUP(AF81,Bandlist!$A$3:$Y$4,2,0) -> 17 | AH81: =IF(T81="Barnet",VLOOKUP(U81,Bandlist!A:Y,Datacheck!AG81,0),0) -> 11431 | AI81: EHCP topups: Barnet maintained primary | AK81: =VLOOKUP(AH81,Costcentres!B:I,2,0) -> EHCP topups: Barnet maintained primary
A82: =Data!A82 -> 3022002 | B82: =IF(A82=0,"",IF(Data!B82=VLOOKUP(A82,Schools!A:B,2,0), Data!B82,"**Unexpected school")) -> Barnfield School | C82: =Data!B82 -> Barnfield School | D82: =IF(A82=0,"",IF(Data!C82="","**Missing",Data!C82)) -> 1116566 | E82: =IF(A82=0,"",IF(Data!D82="","**Missing",TRIM(Data!D82))) -> **Missing | F82: =IF(A82=0,"",IF(Data!E82="","**Missing",TRIM(Data!E82))) -> **Missing | G82: =IF(A82=0,"",IF(Data!F82="XX","**Missing dob",IF(OR((TODAY()-Data!F82)/365>20,(TODAY()-Data!F82)/365<3),"**Unexpected date",Data!F82))) -> 2016-07-13 | H82: =Data!F82 -> 2016-07-13 | I82: =IF(Data!G82=0,0,IF(OR(Data!G82>Fyend),"**Unexpected date",Data!G82)) -> 00:00:00 | J82: =Data!G82 -> 00:00:00 | K82: =IF(Data!H82=0,0,IF(OR(Data!H82<Earliest,Data!H82>Fyend),"**Unexpected date",Data!H82)) -> 00:00:00 | L82: =Data!H82 -> 00:00:00 | M82: =IFERROR(VLOOKUP(Data!I82,Lookup!$A:$A,1,0), "**Unexpected Yeargroup") -> Reception | N82: =Data!I82 -> Reception | O82: =IFERROR(VLOOKUP(Data!J82,Lookup!$A:$A,1,0), "**Unexpected Yeargroup") -> NC Year 1 | P82: =Data!J82 -> NC Year 1 | Q82: =LEFT(IF(VLOOKUP(N82,Lookup!A:B,2,0)="Empty",VLOOKUP(P82,Lookup!A:B,2,0),VLOOKUP(N82,Lookup!A:B,2,0)),3) -> Pri | R82: tion/ 1 | S82: OK | T82: =Data!K82 -> Barnet | U82: =IF(A82=0,"",IFERROR(VLOOKUP(Data!L82,Bandlist!A:A,1,0),"**Unexpected band")) -> D | V82: =Data!L82 -> D | X82: =Data!M82 -> 1 | Y82: =Data!N82 -> 0 | Z82: =Data!O82 -> 0 | AA82: =Data!P82 -> Move overseas | AB82: OK | AD82: =Data!Q82 -> 11431 | AE82: =IFERROR(VLOOKUP(AD82,Costcentres!B:I,2,0),"**Unexpected CC") -> EHCP topups: Barnet maintained primary | AF82: =IF(AND(Q82="Nur",A82<3021005),"NS",Q82)&IF(VLOOKUP(A82,Schools!A:C,3,0)="M","Maint","Acad") -> PriMaint | AG82: =HLOOKUP(AF82,Bandlist!$A$3:$Y$4,2,0) -> 17 | AH82: =IF(T82="Barnet",VLOOKUP(U82,Bandlist!A:Y,Datacheck!AG82,0),0) -> 11431 | AI82: EHCP topups: Barnet maintained primary | AK82: =VLOOKUP(AH82,Costcentres!B:I,2,0) -> EHCP topups: Barnet maintained primary
A83: =Data!A83 -> 3022002 | B83: =IF(A83=0,"",IF(Data!B83=VLOOKUP(A83,Schools!A:B,2,0), Data!B83,"**Unexpected school")) -> Barnfield School | C83: =Data!B83 -> Barnfield School | D83: =IF(A83=0,"",IF(Data!C83="","**Missing",Data!C83)) -> 1067795 | E83: =IF(A83=0,"",IF(Data!D83="","**Missing",TRIM(Data!D83))) -> **Missing | F83: =IF(A83=0,"",IF(Data!E83="","**Missing",TRIM(Data!E83))) -> **Missing | G83: =IF(A83=0,"",IF(Data!F83="XX","**Missing dob",IF(OR((TODAY()-Data!F83)/365>20,(TODAY()-Data!F83)/365<3),"**Unexpected date",Data!F83))) -> 2014-08-21 | H83: =Data!F83 -> 2014-08-21 | I83: =IF(Data!G83=0,0,IF(OR(Data!G83>Fyend),"**Unexpected date",Data!G83)) -> 00:00:00 | J83: =Data!G83 -> 00:00:00 | K83: =IF(Data!H83=0,0,IF(OR(Data!H83<Earliest,Data!H83>Fyend),"**Unexpected date",Data!H83)) -> 00:00:00 | L83: =Data!H83 -> 00:00:00 | M83: =IFERROR(VLOOKUP(Data!I83,Lookup!$A:$A,1,0), "**Unexpected Yeargroup") -> NC Year 2 | N83: =Data!I83 -> NC Year 2 | O83: =IFERROR(VLOOKUP(Data!J83,Lookup!$A:$A,1,0), "**Unexpected Yeargroup") -> NC Year 3 | P83: =Data!J83 -> NC Year 3 | Q83: =LEFT(IF(VLOOKUP(N83,Lookup!A:B,2,0)="Empty",VLOOKUP(P83,Lookup!A:B,2,0),VLOOKUP(N83,Lookup!A:B,2,0)),3) -> Pri | R83: ar 2/ 3 | S83: OK | T83: =Data!K83 -> Barnet | U83: =IF(A83=0,"",IFERROR(VLOOKUP(Data!L83,Bandlist!A:A,1,0),"**Unexpected band")) -> D | V83: =Data!L83 -> D | X83: =Data!M83 -> 1 | Y83: =Data!N83 -> 0 | Z83: =Data!O83 -> 0 | AA83: =Data!P83 -> 0 | AB83: OK | AD83: =Data!Q83 -> 11431 | AE83: =IFERROR(VLOOKUP(AD83,Costcentres!B:I,2,0),"**Unexpected CC") -> EHCP topups: Barnet maintained primary | AF83: =IF(AND(Q83="Nur",A83<3021005),"NS",Q83)&IF(VLOOKUP(A83,Schools!A:C,3,0)="M","Maint","Acad") -> PriMaint | AG83: =HLOOKUP(AF83,Bandlist!$A$3:$Y$4,2,0) -> 17 | AH83: =IF(T83="Barnet",VLOOKUP(U83,Bandlist!A:Y,Datacheck!AG83,0),0) -> 11431 | AI83: EHCP topups: Barnet maintained primary | AK83: =VLOOKUP(AH83,Costcentres!B:I,2,0) -> EHCP topups: Barnet maintained primary
A84: =Data!A84 -> 3022002 | B84: =IF(A84=0,"",IF(Data!B84=VLOOKUP(A84,Schools!A:B,2,0), Data!B84,"**Unexpected school")) -> Barnfield School | C84: =Data!B84 -> Barnfield School | D84: =IF(A84=0,"",IF(Data!C84="","**Missing",Data!C84)) -> 1074093 | E84: =IF(A84=0,"",IF(Data!D84="","**Missing",TRIM(Data!D84))) -> **Missing | F84: =IF(A84=0,"",IF(Data!E84="","**Missing",TRIM(Data!E84))) -> **Missing | G84: =IF(A84=0,"",IF(Data!F84="XX","**Missing dob",IF(OR((TODAY()-Data!F84)/365>20,(TODAY()-Data!F84)/365<3),"**Unexpected date",Data!F84))) -> 2014-12-01 | H84: =Data!F84 -> 2014-12-01 | I84: =IF(Data!G84=0,0,IF(OR(Data!G84>Fyend),"**Unexpected date",Data!G84)) -> 00:00:00 | J84: =Data!G84 -> 00:00:00 | K84: =IF(Data!H84=0,0,IF(OR(Data!H84<Earliest,Data!H84>Fyend),"**Unexpected date",Data!H84)) -> 00:00:00 | L84: =Data!H84 -> 00:00:00 | M84: =IFERROR(VLOOKUP(Data!I84,Lookup!$A:$A,1,0), "**Unexpected Yeargroup") -> NC Year 1 | N84: =Data!I84 -> NC Year 1 | O84: =IFERROR(VLOOKUP(Data!J84,Lookup!$A:$A,1,0), "**Unexpected Yeargroup") -> NC Year 2 | P84: =Data!J84 -> NC Year 2 | Q84: =LEFT(IF(VLOOKUP(N84,Lookup!A:B,2,0)="Empty",VLOOKUP(P84,Lookup!A:B,2,0),VLOOKUP(N84,Lookup!A:B,2,0)),3) -> Pri | R84: ar 1/ 2 | S84: OK | T84: =Data!K84 -> Barnet | U84: =IF(A84=0,"",IFERROR(VLOOKUP(Data!L84,Bandlist!A:A,1,0),"**Unexpected band")) -> C | V84: =Data!L84 -> C | X84: =Data!M84 -> 1 | Y84: =Data!N84 -> 0 | Z84: =Data!O84 -> 0 | AA84: =Data!P84 -> 0 | AB84: OK | AD84: =Data!Q84 -> 11431 | AE84: =IFERROR(VLOOKUP(AD84,Costcentres!B:I,2,0),"**Unexpected CC") -> EHCP topups: Barnet maintained primary | AF84: =IF(AND(Q84="Nur",A84<3021005),"NS",Q84)&IF(VLOOKUP(A84,Schools!A:C,3,0)="M","Maint","Acad") -> PriMaint | AG84: =HLOOKUP(AF84,Bandlist!$A$3:$Y$4,2,0) -> 17 | AH84: =IF(T84="Barnet",VLOOKUP(U84,Bandlist!A:Y,Datacheck!AG84,0),0) -> 11431 | AI84: EHCP topups: Barnet maintained primary | AK84: =VLOOKUP(AH84,Costcentres!B:I,2,0) -> EHCP topups: Barnet maintained primary
A85: =Data!A85 -> 3022002 | B85: =IF(A85=0,"",IF(Data!B85=VLOOKUP(A85,Schools!A:B,2,0), Data!B85,"**Unexpected school")) -> Barnfield School | C85: =Data!B85 -> Barnfield School | D85: =IF(A85=0,"",IF(Data!C85="","**Missing",Data!C85)) -> 1130491 | E85: =IF(A85=0,"",IF(Data!D85="","**Missing",TRIM(Data!D85))) -> **Missing | F85: =IF(A85=0,"",IF(Data!E85="","**Missing",TRIM(Data!E85))) -> **Missing | G85: =IF(A85=0,"",IF(Data!F85="XX","**Missing dob",IF(OR((TODAY()-Data!F85)/365>20,(TODAY()-Data!F85)/365<3),"**Unexpected date",Data!F85))) -> 2016-06-27 | H85: =Data!F85 -> 2016-06-27 | I85: =IF(Data!G85=0,0,IF(OR(Data!G85>Fyend),"**Unexpected date",Data!G85)) -> 2021-06-10 | J85: =Data!G85 -> 2021-06-10 | K85: =IF(Data!H85=0,0,IF(OR(Data!H85<Earliest,Data!H85>Fyend),"**Unexpected date",Data!H85)) -> 00:00:00 | L85: =Data!H85 -> 00:00:00 | M85: =IFERROR(VLOOKUP(Data!I85,Lookup!$A:$A,1,0), "**Unexpected Yeargroup") -> NC Year 4 | N85: =Data!I85 -> NC Year 4 | O85: =IFERROR(VLOOKUP(Data!J85,Lookup!$A:$A,1,0), "**Unexpected Yeargroup") -> NC Year 5 | P85: =Data!J85 -> NC Year 5 | Q85: =LEFT(IF(VLOOKUP(N85,Lookup!A:B,2,0)="Empty",VLOOKUP(P85,Lookup!A:B,2,0),VLOOKUP(N85,Lookup!A:B,2,0)),3) -> Pri | R85: ar 4/ 5 | S85: OK | T85: =Data!K85 -> Barnet | U85: =IF(A85=0,"",IFERROR(VLOOKUP(Data!L85,Bandlist!A:A,1,0),"**Unexpected band")) -> C | V85: =Data!L85 -> C | X85: =Data!M85 -> 1 | Y85: =Data!N85 -> 0 | Z85: =Data!O85 -> 0 | AA85: =Data!P85 -> 0 | AB85: OK | AD85: =Data!Q85 -> 11431 | AE85: =IFERROR(VLOOKUP(AD85,Costcentres!B:I,2,0),"**Unexpected CC") -> EHCP topups: Barnet maintained primary | AF85: =IF(AND(Q85="Nur",A85<3021005),"NS",Q85)&IF(VLOOKUP(A85,Schools!A:C,3,0)="M","Maint","Acad") -> PriMaint | AG85: =HLOOKUP(AF85,Bandlist!$A$3:$Y$4,2,0) -> 17 | AH85: =IF(T85="Barnet",VLOOKUP(U85,Bandlist!A:Y,Datacheck!AG85,0),0) -> 11431 | AI85: EHCP topups: Barnet maintained primary | AK85: =VLOOKUP(AH85,Costcentres!B:I,2,0) -> EHCP topups: Barnet maintained primary
A86: =Data!A86 -> 3022002 | B86: =IF(A86=0,"",IF(Data!B86=VLOOKUP(A86,Schools!A:B,2,0), Data!B86,"**Unexpected school")) -> Barnfield School | C86: =Data!B86 -> Barnfield School | D86: =IF(A86=0,"",IF(Data!C86="","**Missing",Data!C86)) -> 1135558 | E86: =IF(A86=0,"",IF(Data!D86="","**Missing",TRIM(Data!D86))) -> **Missing | F86: =IF(A86=0,"",IF(Data!E86="","**Missing",TRIM(Data!E86))) -> **Missing | G86: =IF(A86=0,"",IF(Data!F86="XX","**Missing dob",IF(OR((TODAY()-Data!F86)/365>20,(TODAY()-Data!F86)/365<3),"**Unexpected date",Data!F86))) -> 2018-03-18 | H86: =Data!F86 -> 2018-03-18 | I86: =IF(Data!G86=0,0,IF(OR(Data!G86>Fyend),"**Unexpected date",Data!G86)) -> 2022-01-04 | J86: =Data!G86 -> 2022-01-04 | K86: =IF(Data!H86=0,0,IF(OR(Data!H86<Earliest,Data!H86>Fyend),"**Unexpected date",Data!H86)) -> 2022-03-31 | L86: =Data!H86 -> 2022-03-31 | M86: =IFERROR(VLOOKUP(Data!I86,Lookup!$A:$A,1,0), "**Unexpected Yeargroup") -> 0 | N86: =Data!I86 -> 0 | O86: =IFERROR(VLOOKUP(Data!J86,Lookup!$A:$A,1,0), "**Unexpected Yeargroup") -> Nursery 2 | P86: =Data!J86 -> Nursery 2 | Q86: =LEFT(IF(VLOOKUP(N86,Lookup!A:B,2,0)="Empty",VLOOKUP(P86,Lookup!A:B,2,0),VLOOKUP(N86,Lookup!A:B,2,0)),3) -> Nur | R86: 0/ 2 | S86: OK | T86: =Data!K86 -> Barnet | U86: =IF(A86=0,"",IFERROR(VLOOKUP(Data!L86,Bandlist!A:A,1,0),"**Unexpected band")) -> EXY | V86: =Data!L86 -> EXY | X86: =Data!M86 -> 1 | Y86: =Data!N86 -> 1469.96 | Z86: =Data!O86 -> 0 | AA86: =Data!P86 -> 0 | AB86: OK | AD86: =Data!Q86 -> 10265 | AE86: =IFERROR(VLOOKUP(AD86,Costcentres!B:I,2,0),"**Unexpected CC") -> SEN Inclusion - Under 5s | AF86: =IF(AND(Q86="Nur",A86<3021005),"NS",Q86)&IF(VLOOKUP(A86,Schools!A:C,3,0)="M","Maint","Acad") -> NurMaint | AG86: =HLOOKUP(AF86,Bandlist!$A$3:$Y$4,2,0) -> 15 | AH86: =IF(T86="Barnet",VLOOKUP(U86,Bandlist!A:Y,Datacheck!AG86,0),0) -> 10265 | AI86: SEN Inclusion - Under 5s | AK86: =VLOOKUP(AH86,Costcentres!B:I,2,0) -> SEN Inclusion - Under 5s
A87: =Data!A87 -> 3022002 | B87: =IF(A87=0,"",IF(Data!B87=VLOOKUP(A87,Schools!A:B,2,0), Data!B87,"**Unexpected school")) -> Barnfield School | C87: =Data!B87 -> Barnfield School | D87: =IF(A87=0,"",IF(Data!C87="","**Missing",Data!C87)) -> 1144921 | E87: =IF(A87=0,"",IF(Data!D87="","**Missing",TRIM(Data!D87))) -> **Missing | F87: =IF(A87=0,"",IF(Data!E87="","**Missing",TRIM(Data!E87))) -> **Missing | G87: =IF(A87=0,"",IF(Data!F87="XX","**Missing dob",IF(OR((TODAY()-Data!F87)/365>20,(TODAY()-Data!F87)/365<3),"**Unexpected date",Data!F87))) -> 2017-06-26 | H87: =Data!F87 -> 2017-06-26 | I87: =IF(Data!G87=0,0,IF(OR(Data!G87>Fyend),"**Unexpected date",Data!G87)) -> 2021-09-01 | J87: =Data!G87 -> 2021-09-01 | K87: =IF(Data!H87=0,0,IF(OR(Data!H87<Earliest,Data!H87>Fyend),"**Unexpected date",Data!H87)) -> 00:00:00 | L87: =Data!H87 -> 00:00:00 | M87: =IFERROR(VLOOKUP(Data!I87,Lookup!$A:$A,1,0), "**Unexpected Yeargroup") -> 0 | N87: =Data!I87 -> 0 | O87: =IFERROR(VLOOKUP(Data!J87,Lookup!$A:$A,1,0), "**Unexpected Yeargroup") -> Reception | P87: =Data!J87 -> Reception | Q87: =LEFT(IF(VLOOKUP(N87,Lookup!A:B,2,0)="Empty",VLOOKUP(P87,Lookup!A:B,2,0),VLOOKUP(N87,Lookup!A:B,2,0)),3) -> Pri | R87: 0/on | S87: OK | T87: =Data!K87 -> Barnet | U87: =IF(A87=0,"",IFERROR(VLOOKUP(Data!L87,Bandlist!A:A,1,0),"**Unexpected band")) -> B | V87: =Data!L87 -> B | X87: =Data!M87 -> 1 | Y87: =Data!N87 -> 0 | Z87: =Data!O87 -> 0 | AA87: =Data!P87 -> 0 | AB87: OK | AD87: =Data!Q87 -> 11431 | AE87: =IFERROR(VLOOKUP(AD87,Costcentres!B:I,2,0),"**Unexpected CC") -> EHCP topups: Barnet maintained primary | AF87: =IF(AND(Q87="Nur",A87<3021005),"NS",Q87)&IF(VLOOKUP(A87,Schools!A:C,3,0)="M","Maint","Acad") -> PriMaint | AG87: =HLOOKUP(AF87,Bandlist!$A$3:$Y$4,2,0) -> 17 | AH87: =IF(T87="Barnet",VLOOKUP(U87,Bandlist!A:Y,Datacheck!AG87,0),0) -> 11431 | AI87: EHCP topups: Barnet maintained primary | AK87: =VLOOKUP(AH87,Costcentres!B:I,2,0) -> EHCP topups: Barnet maintained primary
A88: =Data!A88 -> 3022003 | B88: =IF(A88=0,"",IF(Data!B88=VLOOKUP(A88,Schools!A:B,2,0), Data!B88,"**Unexpected school")) -> Bell Lane Primary School | C88: =Data!B88 -> Bell Lane Primary School | D88: =IF(A88=0,"",IF(Data!C88="","**Missing",Data!C88)) -> 1123196 | E88: =IF(A88=0,"",IF(Data!D88="","**Missing",TRIM(Data!D88))) -> **Missing | F88: =IF(A88=0,"",IF(Data!E88="","**Missing",TRIM(Data!E88))) -> **Missing | G88: =IF(A88=0,"",IF(Data!F88="XX","**Missing dob",IF(OR((TODAY()-Data!F88)/365>20,(TODAY()-Data!F88)/365<3),"**Unexpected date",Data!F88))) -> 2014-11-12 | H88: =Data!F88 -> 2014-11-12 | I88: =IF(Data!G88=0,0,IF(OR(Data!G88>Fyend),"**Unexpected date",Data!G88)) -> 00:00:00 | J88: =Data!G88 -> 00:00:00 | K88: =IF(Data!H88=0,0,IF(OR(Data!H88<Earliest,Data!H88>Fyend),"**Unexpected date",Data!H88)) -> 00:00:00 | L88: =Data!H88 -> 00:00:00 | M88: =IFERROR(VLOOKUP(Data!I88,Lookup!$A:$A,1,0), "**Unexpected Yeargroup") -> NC Year 1 | N88: =Data!I88 -> NC Year 1 | O88: =IFERROR(VLOOKUP(Data!J88,Lookup!$A:$A,1,0), "**Unexpected Yeargroup") -> NC Year 2 | P88: =Data!J88 -> NC Year 2 | Q88: =LEFT(IF(VLOOKUP(N88,Lookup!A:B,2,0)="Empty",VLOOKUP(P88,Lookup!A:B,2,0),VLOOKUP(N88,Lookup!A:B,2,0)),3) -> Pri | R88: ar 1/ 2 | S88: OK | T88: =Data!K88 -> Barnet | U88: =IF(A88=0,"",IFERROR(VLOOKUP(Data!L88,Bandlist!A:A,1,0),"**Unexpected band")) -> C | V88: =Data!L88 -> C | X88: =Data!M88 -> 1 | Y88: =Data!N88 -> 0 | Z88: =Data!O88 -> 0 | AA88: =Data!P88 -> 0 | AB88: OK | AD88: =Data!Q88 -> 11431 | AE88: =IFERROR(VLOOKUP(AD88,Costcentres!B:I,2,0),"**Unexpected CC") -> EHCP topups: Barnet maintained primary | AF88: =IF(AND(Q88="Nur",A88<3021005),"NS",Q88)&IF(VLOOKUP(A88,Schools!A:C,3,0)="M","Maint","Acad") -> PriMaint | AG88: =HLOOKUP(AF88,Bandlist!$A$3:$Y$4,2,0) -> 17 | AH88: =IF(T88="Barnet",VLOOKUP(U88,Bandlist!A:Y,Datacheck!AG88,0),0) -> 11431 | AI88: EHCP topups: Barnet maintained primary | AK88: =VLOOKUP(AH88,Costcentres!B:I,2,0) -> EHCP topups: Barnet maintained primary
A89: =Data!A89 -> 3022003 | B89: =IF(A89=0,"",IF(Data!B89=VLOOKUP(A89,Schools!A:B,2,0), Data!B89,"**Unexpected school")) -> Bell Lane Primary School | C89: =Data!B89 -> Bell Lane Primary School | D89: =IF(A89=0,"",IF(Data!C89="","**Missing",Data!C89)) -> 1155964 | E89: =IF(A89=0,"",IF(Data!D89="","**Missing",TRIM(Data!D89))) -> **Missing | F89: =IF(A89=0,"",IF(Data!E89="","**Missing",TRIM(Data!E89))) -> **Missing | G89: =IF(A89=0,"",IF(Data!F89="XX","**Missing dob",IF(OR((TODAY()-Data!F89)/365>20,(TODAY()-Data!F89)/365<3),"**Unexpected date",Data!F89))) -> 2016-10-25 | H89: =Data!F89 -> 2016-10-25 | I89: =IF(Data!G89=0,0,IF(OR(Data!G89>Fyend),"**Unexpected date",Data!G89)) -> 2021-09-01 | J89: =Data!G89 -> 2021-09-01 | K89: =IF(Data!H89=0,0,IF(OR(Data!H89<Earliest,Data!H89>Fyend),"**Unexpected date",Data!H89)) -> 00:00:00 | L89: =Data!H89 -> 00:00:00 | M89: =IFERROR(VLOOKUP(Data!I89,Lookup!$A:$A,1,0), "**Unexpected Yeargroup") -> 0 | N89: =Data!I89 -> 0 | O89: =IFERROR(VLOOKUP(Data!J89,Lookup!$A:$A,1,0), "**Unexpected Yeargroup") -> Reception | P89: =Data!J89 -> Reception | Q89: =LEFT(IF(VLOOKUP(N89,Lookup!A:B,2,0)="Empty",VLOOKUP(P89,Lookup!A:B,2,0),VLOOKUP(N89,Lookup!A:B,2,0)),3) -> Pri | R89: 0/on | S89: OK | T89: =Data!K89 -> Barnet | U89: =IF(A89=0,"",IFERROR(VLOOKUP(Data!L89,Bandlist!A:A,1,0),"**Unexpected band")) -> D | V89: =Data!L89 -> D | X89: =Data!M89 -> 1 | Y89: =Data!N89 -> 0 | Z89: =Data!O89 -> 0 | AA89: =Data!P89 -> Move to Ind | AB89: OK | AD89: =Data!Q89 -> 11431 | AE89: =IFERROR(VLOOKUP(AD89,Costcentres!B:I,2,0),"**Unexpected CC") -> EHCP topups: Barnet maintained primary | AF89: =IF(AND(Q89="Nur",A89<3021005),"NS",Q89)&IF(VLOOKUP(A89,Schools!A:C,3,0)="M","Maint","Acad") -> PriMaint | AG89: =HLOOKUP(AF89,Bandlist!$A$3:$Y$4,2,0) -> 17 | AH89: =IF(T89="Barnet",VLOOKUP(U89,Bandlist!A:Y,Datacheck!AG89,0),0) -> 11431 | AI89: EHCP topups: Barnet maintained primary | AK89: =VLOOKUP(AH89,Costcentres!B:I,2,0) -> EHCP topups: Barnet maintained primary
A90: =Data!A90 -> 3022003 | B90: =IF(A90=0,"",IF(Data!B90=VLOOKUP(A90,Schools!A:B,2,0), Data!B90,"**Unexpected school")) -> Bell Lane Primary School | C90: =Data!B90 -> Bell Lane Primary School | D90: =IF(A90=0,"",IF(Data!C90="","**Missing",Data!C90)) -> 1126237 | E90: =IF(A90=0,"",IF(Data!D90="","**Missing",TRIM(Data!D90))) -> **Missing | F90: =IF(A90=0,"",IF(Data!E90="","**Missing",TRIM(Data!E90))) -> **Missing | G90: =IF(A90=0,"",IF(Data!F90="XX","**Missing dob",IF(OR((TODAY()-Data!F90)/365>20,(TODAY()-Data!F90)/365<3),"**Unexpected date",Data!F90))) -> 2015-05-28 | H90: =Data!F90 -> 2015-05-28 | I90: =IF(Data!G90=0,0,IF(OR(Data!G90>Fyend),"**Unexpected date",Data!G90)) -> 00:00:00 | J90: =Data!G90 -> 00:00:00 | K90: =IF(Data!H90=0,0,IF(OR(Data!H90<Earliest,Data!H90>Fyend),"**Unexpected date",Data!H90)) -> 00:00:00 | L90: =Data!H90 -> 00:00:00 | M90: =IFERROR(VLOOKUP(Data!I90,Lookup!$A:$A,1,0), "**Unexpected Yeargroup") -> NC Year 1 | N90: =Data!I90 -> NC Year 1 | O90: =IFERROR(VLOOKUP(Data!J90,Lookup!$A:$A,1,0), "**Unexpected Yeargroup") -> NC Year 2 | P90: =Data!J90 -> NC Year 2 | Q90: =LEFT(IF(VLOOKUP(N90,Lookup!A:B,2,0)="Empty",VLOOKUP(P90,Lookup!A:B,2,0),VLOOKUP(N90,Lookup!A:B,2,0)),3) -> Pri | R90: ar 1/ 2 | S90: OK | T90: =Data!K90 -> Barnet | U90: =IF(A90=0,"",IFERROR(VLOOKUP(Data!L90,Bandlist!A:A,1,0),"**Unexpected band")) -> C | V90: =Data!L90 -> C | X90: =Data!M90 -> 1 | Y90: =Data!N90 -> 0 | Z90: =Data!O90 -> 0 | AA90: =Data!P90 -> 0 | AB90: OK | AD90: =Data!Q90 -> 11431 | AE90: =IFERROR(VLOOKUP(AD90,Costcentres!B:I,2,0),"**Unexpected CC") -> EHCP topups: Barnet maintained primary | AF90: =IF(AND(Q90="Nur",A90<3021005),"NS",Q90)&IF(VLOOKUP(A90,Schools!A:C,3,0)="M","Maint","Acad") -> PriMaint | AG90: =HLOOKUP(AF90,Bandlist!$A$3:$Y$4,2,0) -> 17 | AH90: =IF(T90="Barnet",VLOOKUP(U90,Bandlist!A:Y,Datacheck!AG90,0),0) -> 11431 | AI90: EHCP topups: Barnet maintained primary | AK90: =VLOOKUP(AH90,Costcentres!B:I,2,0) -> EHCP topups: Barnet maintained primary
A91: =Data!A91 -> 3022003 | B91: =IF(A91=0,"",IF(Data!B91=VLOOKUP(A91,Schools!A:B,2,0), Data!B91,"**Unexpected school")) -> Bell Lane Primary School | C91: =Data!B91 -> Bell Lane Primary School | D91: =IF(A91=0,"",IF(Data!C91="","**Missing",Data!C91)) -> 1044920 | E91: =IF(A91=0,"",IF(Data!D91="","**Missing",TRIM(Data!D91))) -> **Missing | F91: =IF(A91=0,"",IF(Data!E91="","**Missing",TRIM(Data!E91))) -> **Missing | G91: =IF(A91=0,"",IF(Data!F91="XX","**Missing dob",IF(OR((TODAY()-Data!F91)/365>20,(TODAY()-Data!F91)/365<3),"**Unexpected date",Data!F91))) -> 2014-03-21 | H91: =Data!F91 -> 2014-03-21 | I91: =IF(Data!G91=0,0,IF(OR(Data!G91>Fyend),"**Unexpected date",Data!G91)) -> 00:00:00 | J91: =Data!G91 -> 00:00:00 | K91: =IF(Data!H91=0,0,IF(OR(Data!H91<Earliest,Data!H91>Fyend),"**Unexpected date",Data!H91)) -> 00:00:00 | L91: =Data!H91 -> 00:00:00 | M91: =IFERROR(VLOOKUP(Data!I91,Lookup!$A:$A,1,0), "**Unexpected Yeargroup") -> NC Year 2 | N91: =Data!I91 -> NC Year 2 | O91: =IFERROR(VLOOKUP(Data!J91,Lookup!$A:$A,1,0), "**Unexpected Yeargroup") -> NC Year 3 | P91: =Data!J91 -> NC Year 3 | Q91: =LEFT(IF(VLOOKUP(N91,Lookup!A:B,2,0)="Empty",VLOOKUP(P91,Lookup!A:B,2,0),VLOOKUP(N91,Lookup!A:B,2,0)),3) -> Pri | R91: ar 2/ 3 | S91: OK | T91: =Data!K91 -> Barnet | U91: =IF(A91=0,"",IFERROR(VLOOKUP(Data!L91,Bandlist!A:A,1,0),"**Unexpected band")) -> C | V91: =Data!L91 -> C | X91: =Data!M91 -> 1 | Y91: =Data!N91 -> 0 | Z91: =Data!O91 -> 0 | AA91: =Data!P91 -> 0 | AB91: OK | AD91: =Data!Q91 -> 11431 | AE91: =IFERROR(VLOOKUP(AD91,Costcentres!B:I,2,0),"**Unexpected CC") -> EHCP topups: Barnet maintained primary | AF91: =IF(AND(Q91="Nur",A91<3021005),"NS",Q91)&IF(VLOOKUP(A91,Schools!A:C,3,0)="M","Maint","Acad") -> PriMaint | AG91: =HLOOKUP(AF91,Bandlist!$A$3:$Y$4,2,0) -> 17 | AH91: =IF(T91="Barnet",VLOOKUP(U91,Bandlist!A:Y,Datacheck!AG91,0),0) -> 11431 | AI91: EHCP topups: Barnet maintained primary | AK91: =VLOOKUP(AH91,Costcentres!B:I,2,0) -> EHCP topups: Barnet maintained primary
A92: =Data!A92 -> 3022003 | B92: =IF(A92=0,"",IF(Data!B92=VLOOKUP(A92,Schools!A:B,2,0), Data!B92,"**Unexpected school")) -> Bell Lane Primary School | C92: =Data!B92 -> Bell Lane Primary School | D92: =IF(A92=0,"",IF(Data!C92="","**Missing",Data!C92)) -> 1135818 | E92: =IF(A92=0,"",IF(Data!D92="","**Missing",TRIM(Data!D92))) -> **Missing | F92: =IF(A92=0,"",IF(Data!E92="","**Missing",TRIM(Data!E92))) -> **Missing | G92: =IF(A92=0,"",IF(Data!F92="XX","**Missing dob",IF(OR((TODAY()-Data!F92)/365>20,(TODAY()-Data!F92)/365<3),"**Unexpected date",Data!F92))) -> 2018-03-15 | H92: =Data!F92 -> 2018-03-15 | I92: =IF(Data!G92=0,0,IF(OR(Data!G92>Fyend),"**Unexpected date",Data!G92)) -> 2021-09-06 | J92: =Data!G92 -> 2021-09-06 | K92: =IF(Data!H92=0,0,IF(OR(Data!H92<Earliest,Data!H92>Fyend),"**Unexpected date",Data!H92)) -> 2022-02-11 | L92: =Data!H92 -> 2022-02-11 | M92: =IFERROR(VLOOKUP(Data!I92,Lookup!$A:$A,1,0), "**Unexpected Yeargroup") -> 0 | N92: =Data!I92 -> 0 | O92: =IFERROR(VLOOKUP(Data!J92,Lookup!$A:$A,1,0), "**Unexpected Yeargroup") -> Nursery 2 | P92: =Data!J92 -> Nursery 2 | Q92: =LEFT(IF(VLOOKUP(N92,Lookup!A:B,2,0)="Empty",VLOOKUP(P92,Lookup!A:B,2,0),VLOOKUP(N92,Lookup!A:B,2,0)),3) -> Nur | R92: 0/ 2 | S92: OK | T92: =Data!K92 -> Barnet | U92: =IF(A92=0,"",IFERROR(VLOOKUP(Data!L92,Bandlist!A:A,1,0),"**Unexpected band")) -> EXY | V92: =Data!L92 -> EXY | X92: =Data!M92 -> 1 | Y92: =Data!N92 -> 2123.5 | Z92: =Data!O92 -> 0 | AA92: =Data!P92 -> 0 | AB92: OK | AD92: =Data!Q92 -> 10265 | AE92: =IFERROR(VLOOKUP(AD92,Costcentres!B:I,2,0),"**Unexpected CC") -> SEN Inclusion - Under 5s | AF92: =IF(AND(Q92="Nur",A92<3021005),"NS",Q92)&IF(VLOOKUP(A92,Schools!A:C,3,0)="M","Maint","Acad") -> NurMaint | AG92: =HLOOKUP(AF92,Bandlist!$A$3:$Y$4,2,0) -> 15 | AH92: =IF(T92="Barnet",VLOOKUP(U92,Bandlist!A:Y,Datacheck!AG92,0),0) -> 10265 | AI92: SEN Inclusion - Under 5s | AK92: =VLOOKUP(AH92,Costcentres!B:I,2,0) -> SEN Inclusion - Under 5s
A93: =Data!A93 -> 3022003 | B93: =IF(A93=0,"",IF(Data!B93=VLOOKUP(A93,Schools!A:B,2,0), Data!B93,"**Unexpected school")) -> Bell Lane Primary School | C93: =Data!B93 -> Bell Lane Primary School | D93: =IF(A93=0,"",IF(Data!C93="","**Missing",Data!C93)) -> 1005428 | E93: =IF(A93=0,"",IF(Data!D93="","**Missing",TRIM(Data!D93))) -> **Missing | F93: =IF(A93=0,"",IF(Data!E93="","**Missing",TRIM(Data!E93))) -> **Missing | G93: =IF(A93=0,"",IF(Data!F93="XX","**Missing dob",IF(OR((TODAY()-Data!F93)/365>20,(TODAY()-Data!F93)/365<3),"**Unexpected date",Data!F93))) -> 2011-06-08 | H93: =Data!F93 -> 2011-06-08 | I93: =IF(Data!G93=0,0,IF(OR(Data!G93>Fyend),"**Unexpected date",Data!G93)) -> 00:00:00 | J93: =Data!G93 -> 00:00:00 | K93: =IF(Data!H93=0,0,IF(OR(Data!H93<Earliest,Data!H93>Fyend),"**Unexpected date",Data!H93)) -> 00:00:00 | L93: =Data!H93 -> 00:00:00 | M93: =IFERROR(VLOOKUP(Data!I93,Lookup!$A:$A,1,0), "**Unexpected Yeargroup") -> NC Year 5 | N93: =Data!I93 -> NC Year 5 | O93: =IFERROR(VLOOKUP(Data!J93,Lookup!$A:$A,1,0), "**Unexpected Yeargroup") -> NC Year 6 | P93: =Data!J93 -> NC Year 6 | Q93: =LEFT(IF(VLOOKUP(N93,Lookup!A:B,2,0)="Empty",VLOOKUP(P93,Lookup!A:B,2,0),VLOOKUP(N93,Lookup!A:B,2,0)),3) -> Pri | R93: ar 5/ 6 | S93: OK | T93: =Data!K93 -> Barnet | U93: =IF(A93=0,"",IFERROR(VLOOKUP(Data!L93,Bandlist!A:A,1,0),"**Unexpected band")) -> B | V93: =Data!L93 -> B | X93: =Data!M93 -> 1 | Y93: =Data!N93 -> 0 | Z93: =Data!O93 -> 0 | AA93: =Data!P93 -> 0 | AB93: OK | AD93: =Data!Q93 -> 11431 | AE93: =IFERROR(VLOOKUP(AD93,Costcentres!B:I,2,0),"**Unexpected CC") -> EHCP topups: Barnet maintained primary | AF93: =IF(AND(Q93="Nur",A93<3021005),"NS",Q93)&IF(VLOOKUP(A93,Schools!A:C,3,0)="M","Maint","Acad") -> PriMaint | AG93: =HLOOKUP(AF93,Bandlist!$A$3:$Y$4,2,0) -> 17 | AH93: =IF(T93="Barnet",VLOOKUP(U93,Bandlist!A:Y,Datacheck!AG93,0),0) -> 11431 | AI93: EHCP topups: Barnet maintained primary | AK93: =VLOOKUP(AH93,Costcentres!B:I,2,0) -> EHCP topups: Barnet maintained primary
A94: =Data!A94 -> 3022003 | B94: =IF(A94=0,"",IF(Data!B94=VLOOKUP(A94,Schools!A:B,2,0), Data!B94,"**Unexpected school")) -> Bell Lane Primary School | C94: =Data!B94 -> Bell Lane Primary School | D94: =IF(A94=0,"",IF(Data!C94="","**Missing",Data!C94)) -> 1086945 | E94: =IF(A94=0,"",IF(Data!D94="","**Missing",TRIM(Data!D94))) -> **Missing | F94: =IF(A94=0,"",IF(Data!E94="","**Missing",TRIM(Data!E94))) -> **Missing | G94: =IF(A94=0,"",IF(Data!F94="XX","**Missing dob",IF(OR((TODAY()-Data!F94)/365>20,(TODAY()-Data!F94)/365<3),"**Unexpected date",Data!F94))) -> 2015-06-29 | H94: =Data!F94 -> 2015-06-29 | I94: =IF(Data!G94=0,0,IF(OR(Data!G94>Fyend),"**Unexpected date",Data!G94)) -> 00:00:00 | J94: =Data!G94 -> 00:00:00 | K94: =IF(Data!H94=0,0,IF(OR(Data!H94<Earliest,Data!H94>Fyend),"**Unexpected date",Data!H94)) -> 00:00:00 | L94: =Data!H94 -> 00:00:00 | M94: =IFERROR(VLOOKUP(Data!I94,Lookup!$A:$A,1,0), "**Unexpected Yeargroup") -> NC Year 1 | N94: =Data!I94 -> NC Year 1 | O94: =IFERROR(VLOOKUP(Data!J94,Lookup!$A:$A,1,0), "**Unexpected Yeargroup") -> NC Year 2 | P94: =Data!J94 -> NC Year 2 | Q94: =LEFT(IF(VLOOKUP(N94,Lookup!A:B,2,0)="Empty",VLOOKUP(P94,Lookup!A:B,2,0),VLOOKUP(N94,Lookup!A:B,2,0)),3) -> Pri | R94: ar 1/ 2 | S94: OK | T94: =Data!K94 -> Barnet | U94: =IF(A94=0,"",IFERROR(VLOOKUP(Data!L94,Bandlist!A:A,1,0),"**Unexpected band")) -> C | V94: =Data!L94 -> C | X94: =Data!M94 -> 1 | Y94: =Data!N94 -> 0 | Z94: =Data!O94 -> 0 | AA94: =Data!P94 -> 0 | AB94: OK | AD94: =Data!Q94 -> 11431 | AE94: =IFERROR(VLOOKUP(AD94,Costcentres!B:I,2,0),"**Unexpected CC") -> EHCP topups: Barnet maintained primary | AF94: =IF(AND(Q94="Nur",A94<3021005),"NS",Q94)&IF(VLOOKUP(A94,Schools!A:C,3,0)="M","Maint","Acad") -> PriMaint | AG94: =HLOOKUP(AF94,Bandlist!$A$3:$Y$4,2,0) -> 17 | AH94: =IF(T94="Barnet",VLOOKUP(U94,Bandlist!A:Y,Datacheck!AG94,0),0) -> 11431 | AI94: EHCP topups: Barnet maintained primary | AK94: =VLOOKUP(AH94,Costcentres!B:I,2,0) -> EHCP topups: Barnet maintained primary
A95: =Data!A95 -> 3022003 | B95: =IF(A95=0,"",IF(Data!B95=VLOOKUP(A95,Schools!A:B,2,0), Data!B95,"**Unexpected school")) -> Bell Lane Primary School | C95: =Data!B95 -> Bell Lane Primary School | D95: =IF(A95=0,"",IF(Data!C95="","**Missing",Data!C95)) -> 1076700 | E95: =IF(A95=0,"",IF(Data!D95="","**Missing",TRIM(Data!D95))) -> **Missing | F95: =IF(A95=0,"",IF(Data!E95="","**Missing",TRIM(Data!E95))) -> **Missing | G95: =IF(A95=0,"",IF(Data!F95="XX","**Missing dob",IF(OR((TODAY()-Data!F95)/365>20,(TODAY()-Data!F95)/365<3),"**Unexpected date",Data!F95))) -> 2013-05-01 | H95: =Data!F95 -> 2013-05-01 | I95: =IF(Data!G95=0,0,IF(OR(Data!G95>Fyend),"**Unexpected date",Data!G95)) -> 00:00:00 | J95: =Data!G95 -> 00:00:00 | K95: =IF(Data!H95=0,0,IF(OR(Data!H95<Earliest,Data!H95>Fyend),"**Unexpected date",Data!H95)) -> 00:00:00 | L95: =Data!H95 -> 00:00:00 | M95: =IFERROR(VLOOKUP(Data!I95,Lookup!$A:$A,1,0), "**Unexpected Yeargroup") -> NC Year 3 | N95: =Data!I95 -> NC Year 3 | O95: =IFERROR(VLOOKUP(Data!J95,Lookup!$A:$A,1,0), "**Unexpected Yeargroup") -> NC Year 4 | P95: =Data!J95 -> NC Year 4 | Q95: =LEFT(IF(VLOOKUP(N95,Lookup!A:B,2,0)="Empty",VLOOKUP(P95,Lookup!A:B,2,0),VLOOKUP(N95,Lookup!A:B,2,0)),3) -> Pri | R95: ar 3/ 4 | S95: OK | T95: =Data!K95 -> Barnet | U95: =IF(A95=0,"",IFERROR(VLOOKUP(Data!L95,Bandlist!A:A,1,0),"**Unexpected band")) -> C | V95: =Data!L95 -> C | X95: =Data!M95 -> 1 | Y95: =Data!N95 -> 0 | Z95: =Data!O95 -> 0 | AA95: =Data!P95 -> 0 | AB95: OK | AD95: =Data!Q95 -> 11431 | AE95: =IFERROR(VLOOKUP(AD95,Costcentres!B:I,2,0),"**Unexpected CC") -> EHCP topups: Barnet maintained primary | AF95: =IF(AND(Q95="Nur",A95<3021005),"NS",Q95)&IF(VLOOKUP(A95,Schools!A:C,3,0)="M","Maint","Acad") -> PriMaint | AG95: =HLOOKUP(AF95,Bandlist!$A$3:$Y$4,2,0) -> 17 | AH95: =IF(T95="Barnet",VLOOKUP(U95,Bandlist!A:Y,Datacheck!AG95,0),0) -> 11431 | AI95: EHCP topups: Barnet maintained primary | AK95: =VLOOKUP(AH95,Costcentres!B:I,2,0) -> EHCP topups: Barnet maintained primary
A96: =Data!A96 -> 3022003 | B96: =IF(A96=0,"",IF(Data!B96=VLOOKUP(A96,Schools!A:B,2,0), Data!B96,"**Unexpected school")) -> Bell Lane Primary School | C96: =Data!B96 -> Bell Lane Primary School | D96: =IF(A96=0,"",IF(Data!C96="","**Missing",Data!C96)) -> 1104637 | E96: =IF(A96=0,"",IF(Data!D96="","**Missing",TRIM(Data!D96))) -> **Missing | F96: =IF(A96=0,"",IF(Data!E96="","**Missing",TRIM(Data!E96))) -> **Missing | G96: =IF(A96=0,"",IF(Data!F96="XX","**Missing dob",IF(OR((TODAY()-Data!F96)/365>20,(TODAY()-Data!F96)/365<3),"**Unexpected date",Data!F96))) -> 2014-08-02 | H96: =Data!F96 -> 2014-08-02 | I96: =IF(Data!G96=0,0,IF(OR(Data!G96>Fyend),"**Unexpected date",Data!G96)) -> 00:00:00 | J96: =Data!G96 -> 00:00:00 | K96: =IF(Data!H96=0,0,IF(OR(Data!H96<Earliest,Data!H96>Fyend),"**Unexpected date",Data!H96)) -> 00:00:00 | L96: =Data!H96 -> 00:00:00 | M96: =IFERROR(VLOOKUP(Data!I96,Lookup!$A:$A,1,0), "**Unexpected Yeargroup") -> NC Year 2 | N96: =Data!I96 -> NC Year 2 | O96: =IFERROR(VLOOKUP(Data!J96,Lookup!$A:$A,1,0), "**Unexpected Yeargroup") -> NC Year 3 | P96: =Data!J96 -> NC Year 3 | Q96: =LEFT(IF(VLOOKUP(N96,Lookup!A:B,2,0)="Empty",VLOOKUP(P96,Lookup!A:B,2,0),VLOOKUP(N96,Lookup!A:B,2,0)),3) -> Pri | R96: ar 2/ 3 | S96: OK | T96: =Data!K96 -> Barnet | U96: =IF(A96=0,"",IFERROR(VLOOKUP(Data!L96,Bandlist!A:A,1,0),"**Unexpected band")) -> D | V96: =Data!L96 -> D | X96: =Data!M96 -> 1 | Y96: =Data!N96 -> 0 | Z96: =Data!O96 -> 0 | AA96: =Data!P96 -> 0 | AB96: OK | AD96: =Data!Q96 -> 11431 | AE96: =IFERROR(VLOOKUP(AD96,Costcentres!B:I,2,0),"**Unexpected CC") -> EHCP topups: Barnet maintained primary | AF96: =IF(AND(Q96="Nur",A96<3021005),"NS",Q96)&IF(VLOOKUP(A96,Schools!A:C,3,0)="M","Maint","Acad") -> PriMaint | AG96: =HLOOKUP(AF96,Bandlist!$A$3:$Y$4,2,0) -> 17 | AH96: =IF(T96="Barnet",VLOOKUP(U96,Bandlist!A:Y,Datacheck!AG96,0),0) -> 11431 | AI96: EHCP topups: Barnet maintained primary | AK96: =VLOOKUP(AH96,Costcentres!B:I,2,0) -> EHCP topups: Barnet maintained primary
A97: =Data!A97 -> 3022003 | B97: =IF(A97=0,"",IF(Data!B97=VLOOKUP(A97,Schools!A:B,2,0), Data!B97,"**Unexpected school")) -> Bell Lane Primary School | C97: =Data!B97 -> Bell Lane Primary School | D97: =IF(A97=0,"",IF(Data!C97="","**Missing",Data!C97)) -> 1137645 | E97: =IF(A97=0,"",IF(Data!D97="","**Missing",TRIM(Data!D97))) -> **Missing | F97: =IF(A97=0,"",IF(Data!E97="","**Missing",TRIM(Data!E97))) -> **Missing | G97: =IF(A97=0,"",IF(Data!F97="XX","**Missing dob",IF(OR((TODAY()-Data!F97)/365>20,(TODAY()-Data!F97)/365<3),"**Unexpected date",Data!F97))) -> 2016-04-20 | H97: =Data!F97 -> 2016-04-20 | I97: =IF(Data!G97=0,0,IF(OR(Data!G97>Fyend),"**Unexpected date",Data!G97)) -> 2021-04-21 | J97: =Data!G97 -> 2021-04-21 | K97: =IF(Data!H97=0,0,IF(OR(Data!H97<Earliest,Data!H97>Fyend),"**Unexpected date",Data!H97)) -> 00:00:00 | L97: =Data!H97 -> 00:00:00 | M97: =IFERROR(VLOOKUP(Data!I97,Lookup!$A:$A,1,0), "**Unexpected Yeargroup") -> Reception | N97: =Data!I97 -> Reception | O97: =IFERROR(VLOOKUP(Data!J97,Lookup!$A:$A,1,0), "**Unexpected Yeargroup") -> NC Year 1 | P97: =Data!J97 -> NC Year 1 | Q97: =LEFT(IF(VLOOKUP(N97,Lookup!A:B,2,0)="Empty",VLOOKUP(P97,Lookup!A:B,2,0),VLOOKUP(N97,Lookup!A:B,2,0)),3) -> Pri | R97: tion/ 1 | S97: OK | T97: =Data!K97 -> Barnet | U97: =IF(A97=0,"",IFERROR(VLOOKUP(Data!L97,Bandlist!A:A,1,0),"**Unexpected band")) -> D | V97: =Data!L97 -> D | X97: =Data!M97 -> 1 | Y97: =Data!N97 -> 0 | Z97: =Data!O97 -> 0 | AA97: =Data!P97 -> 0 | AB97: OK | AD97: =Data!Q97 -> 11431 | AE97: =IFERROR(VLOOKUP(AD97,Costcentres!B:I,2,0),"**Unexpected CC") -> EHCP topups: Barnet maintained primary | AF97: =IF(AND(Q97="Nur",A97<3021005),"NS",Q97)&IF(VLOOKUP(A97,Schools!A:C,3,0)="M","Maint","Acad") -> PriMaint | AG97: =HLOOKUP(AF97,Bandlist!$A$3:$Y$4,2,0) -> 17 | AH97: =IF(T97="Barnet",VLOOKUP(U97,Bandlist!A:Y,Datacheck!AG97,0),0) -> 11431 | AI97: EHCP topups: Barnet maintained primary | AK97: =VLOOKUP(AH97,Costcentres!B:I,2,0) -> EHCP topups: Barnet maintained primary
A98: =Data!A98 -> 3022003 | B98: =IF(A98=0,"",IF(Data!B98=VLOOKUP(A98,Schools!A:B,2,0), Data!B98,"**Unexpected school")) -> Bell Lane Primary School | C98: =Data!B98 -> Bell Lane Primary School | D98: =IF(A98=0,"",IF(Data!C98="","**Missing",Data!C98)) -> 1050663 | E98: =IF(A98=0,"",IF(Data!D98="","**Missing",TRIM(Data!D98))) -> **Missing | F98: =IF(A98=0,"",IF(Data!E98="","**Missing",TRIM(Data!E98))) -> **Missing | G98: =IF(A98=0,"",IF(Data!F98="XX","**Missing dob",IF(OR((TODAY()-Data!F98)/365>20,(TODAY()-Data!F98)/365<3),"**Unexpected date",Data!F98))) -> 2014-04-01 | H98: =Data!F98 -> 2014-04-01 | I98: =IF(Data!G98=0,0,IF(OR(Data!G98>Fyend),"**Unexpected date",Data!G98)) -> 00:00:00 | J98: =Data!G98 -> 00:00:00 | K98: =IF(Data!H98=0,0,IF(OR(Data!H98<Earliest,Data!H98>Fyend),"**Unexpected date",Data!H98)) -> 00:00:00 | L98: =Data!H98 -> 00:00:00 | M98: =IFERROR(VLOOKUP(Data!I98,Lookup!$A:$A,1,0), "**Unexpected Yeargroup") -> NC Year 2 | N98: =Data!I98 -> NC Year 2 | O98: =IFERROR(VLOOKUP(Data!J98,Lookup!$A:$A,1,0), "**Unexpected Yeargroup") -> NC Year 3 | P98: =Data!J98 -> NC Year 3 | Q98: =LEFT(IF(VLOOKUP(N98,Lookup!A:B,2,0)="Empty",VLOOKUP(P98,Lookup!A:B,2,0),VLOOKUP(N98,Lookup!A:B,2,0)),3) -> Pri | R98: ar 2/ 3 | S98: OK | T98: =Data!K98 -> Barnet | U98: =IF(A98=0,"",IFERROR(VLOOKUP(Data!L98,Bandlist!A:A,1,0),"**Unexpected band")) -> D | V98: =Data!L98 -> D | X98: =Data!M98 -> 1 | Y98: =Data!N98 -> 0 | Z98: =Data!O98 -> 0 | AA98: =Data!P98 -> 0 | AB98: OK | AD98: =Data!Q98 -> 11431 | AE98: =IFERROR(VLOOKUP(AD98,Costcentres!B:I,2,0),"**Unexpected CC") -> EHCP topups: Barnet maintained primary | AF98: =IF(AND(Q98="Nur",A98<3021005),"NS",Q98)&IF(VLOOKUP(A98,Schools!A:C,3,0)="M","Maint","Acad") -> PriMaint | AG98: =HLOOKUP(AF98,Bandlist!$A$3:$Y$4,2,0) -> 17 | AH98: =IF(T98="Barnet",VLOOKUP(U98,Bandlist!A:Y,Datacheck!AG98,0),0) -> 11431 | AI98: EHCP topups: Barnet maintained primary | AK98: =VLOOKUP(AH98,Costcentres!B:I,2,0) -> EHCP topups: Barnet maintained primary
A99: =Data!A99 -> 3022003 | B99: =IF(A99=0,"",IF(Data!B99=VLOOKUP(A99,Schools!A:B,2,0), Data!B99,"**Unexpected school")) -> Bell Lane Primary School | C99: =Data!B99 -> Bell Lane Primary School | D99: =IF(A99=0,"",IF(Data!C99="","**Missing",Data!C99)) -> 1038606 | E99: =IF(A99=0,"",IF(Data!D99="","**Missing",TRIM(Data!D99))) -> **Missing | F99: =IF(A99=0,"",IF(Data!E99="","**Missing",TRIM(Data!E99))) -> **Missing | G99: =IF(A99=0,"",IF(Data!F99="XX","**Missing dob",IF(OR((TODAY()-Data!F99)/365>20,(TODAY()-Data!F99)/365<3),"**Unexpected date",Data!F99))) -> 2011-12-31 | H99: =Data!F99 -> 2011-12-31 | I99: =IF(Data!G99=0,0,IF(OR(Data!G99>Fyend),"**Unexpected date",Data!G99)) -> 00:00:00 | J99: =Data!G99 -> 00:00:00 | K99: =IF(Data!H99=0,0,IF(OR(Data!H99<Earliest,Data!H99>Fyend),"**Unexpected date",Data!H99)) -> 00:00:00 | L99: =Data!H99 -> 00:00:00 | M99: =IFERROR(VLOOKUP(Data!I99,Lookup!$A:$A,1,0), "**Unexpected Yeargroup") -> NC Year 4 | N99: =Data!I99 -> NC Year 4 | O99: =IFERROR(VLOOKUP(Data!J99,Lookup!$A:$A,1,0), "**Unexpected Yeargroup") -> NC Year 5 | P99: =Data!J99 -> NC Year 5 | Q99: =LEFT(IF(VLOOKUP(N99,Lookup!A:B,2,0)="Empty",VLOOKUP(P99,Lookup!A:B,2,0),VLOOKUP(N99,Lookup!A:B,2,0)),3) -> Pri | R99: ar 4/ 5 | S99: OK | T99: =Data!K99 -> Barnet | U99: =IF(A99=0,"",IFERROR(VLOOKUP(Data!L99,Bandlist!A:A,1,0),"**Unexpected band")) -> C | V99: =Data!L99 -> C | X99: =Data!M99 -> 1 | Y99: =Data!N99 -> 0 | Z99: =Data!O99 -> 0 | AA99: =Data!P99 -> 0 | AB99: OK | AD99: =Data!Q99 -> 11431 | AE99: =IFERROR(VLOOKUP(AD99,Costcentres!B:I,2,0),"**Unexpected CC") -> EHCP topups: Barnet maintained primary | AF99: =IF(AND(Q99="Nur",A99<3021005),"NS",Q99)&IF(VLOOKUP(A99,Schools!A:C,3,0)="M","Maint","Acad") -> PriMaint | AG99: =HLOOKUP(AF99,Bandlist!$A$3:$Y$4,2,0) -> 17 | AH99: =IF(T99="Barnet",VLOOKUP(U99,Bandlist!A:Y,Datacheck!AG99,0),0) -> 11431 | AI99: EHCP topups: Barnet maintained primary | AK99: =VLOOKUP(AH99,Costcentres!B:I,2,0) -> EHCP topups: Barnet maintained primary
